Workbook

Sheet codes (hidden)
F1: =COUNTIF(H10:H99,"=open") -> 70 | H1: =COUNTA(H10:H99) -> 70
A6: 2022-12-16 | B6: code 436 | F6: 2023-11-24 | G6: code cha
H8: Operating
A9: LEA | B9: DISTRICT | C9: op | D9: chng | F9: Lea | G9: Charter | H9: Status
A10: 1 | B10: ABINGTON | C10: 1 | F10: 409 | G10: ALMA DEL MAR | H10: open
A11: 2 | B11: ACTON | C11: 0 | D11: fy15 | F11: 410 | G11: EXCEL ACADEMY | H11: open
A12: 3 | B12: ACUSHNET | C12: 1 | F12: 412 | G12: ACADEMY OF THE PACIFIC RIM | H12: open
A13: 4 | B13: ADAMS | C13: 0 | F13: 413 | G13: FOUR RIVERS | H13: open
A14: 5 | B14: AGAWAM | C14: 1 | F14: 414 | G14: BERKSHIRE ARTS AND TECHNOLOGY | H14: open
A15: 6 | B15: ALFORD | C15: 0 | F15: 416 | G15: BOSTON PREPARATORY | H15: open
A16: 7 | B16: AMESBURY | C16: 1 | F16: 417 | G16: BRIDGE BOSTON | H16: open
A17: 8 | B17: AMHERST | C17: 1 | F17: 418 | G17: CHRISTA MCAULIFFE | H17: open
A18: 9 | B18: ANDOVER | C18: 1 | F18: 419 | G18: HELEN Y. DAVIS LEADERSHIP ACADEMY | H18: open
A19: 10 | B19: ARLINGTON | C19: 1 | F19: 420 | G19: BENJAMIN BANNEKER | H19: open
A20: 11 | B20: ASHBURNHAM | C20: 0 | F20: 428 | G20: BROOKE | H20: open
A21: 12 | B21: ASHBY | C21: 0 | F21: 429 | G21: KIPP ACADEMY LYNN | H21: open
A22: 13 | B22: ASHFIELD | C22: 0 | F22: 430 | G22: ADVANCED MATH AND SCIENCE ACADEMY | H22: open
A23: 14 | B23: ASHLAND | C23: 1 | F23: 432 | G23: CAPE COD LIGHTHOUSE | H23: open
A24: 15 | B24: ATHOL | C24: 0 | F24: 435 | G24: INNOVATION ACADEMY | H24: open
A25: 16 | B25: ATTLEBORO | C25: 1 | F25: 436 | G25: COMMUNITY CS OF CAMBRIDGE | H25: open
A26: 17 | B26: AUBURN | C26: 1 | F26: 437 | G26: CITY ON A HILL | H26: open
A27: 18 | B27: AVON | C27: 1 | F27: 438 | G27: CODMAN ACADEMY | H27: open
A28: 19 | B28: AYER | C28: 0 | D28: fy12 | F28: 439 | G28: CONSERVATORY LAB | H28: open
A29: 20 | B29: BARNSTABLE | C29: 1 | F29: 440 | G29: COMMUNITY DAY | H29: open
A30: 21 | B30: BARRE | C30: 0 | F30: 441 | G30: SPRINGFIELD INTERNATIONAL | H30: open
A31: 22 | B31: BECKET | C31: 0 | F31: 444 | G31: NEIGHBORHOOD HOUSE | H31: open
A32: 23 | B32: BEDFORD | C32: 1 | F32: 445 | G32: ABBY KELLEY FOSTER | H32: open
A33: 24 | B33: BELCHERTOWN | C33: 1 | F33: 446 | G33: FOXBOROUGH REGIONAL | H33: open
A34: 25 | B34: BELLINGHAM | C34: 1 | F34: 447 | G34: BENJAMIN FRANKLIN CLASSICAL | H34: open
A35: 26 | B35: BELMONT | C35: 1 | F35: 449 | G35: BOSTON COLLEGIATE | H35: open
A36: 27 | B36: BERKLEY | C36: 1 | D36: fy12 | F36: 450 | G36: HILLTOWN COOPERATIVE | H36: open
A37: 28 | B37: BERLIN | C37: 0 | D37: fy20 | F37: 453 | G37: HOLYOKE COMMUNITY | H37: open
A38: 29 | B38: BERNARDSTON | C38: 0 | F38: 454 | G38: LAWRENCE FAMILY DEVELOPMENT | H38: open
A39: 30 | B39: BEVERLY | C39: 1 | F39: 455 | G39: HILL VIEW MONTESSORI | H39: open
A40: 31 | B40: BILLERICA | C40: 1 | F40: 456 | G40: LOWELL COMMUNITY | H40: open
A41: 32 | B41: BLACKSTONE | C41: 0 | F41: 458 | G41: LOWELL MIDDLESEX ACADEMY | H41: open
A42: 33 | B42: BLANDFORD | C42: 0 | F42: 463 | G42: KIPP ACADEMY BOSTON | H42: open
A43: 34 | B43: BOLTON | C43: 0 | F43: 464 | G43: MARBLEHEAD COMMUNITY | H43: open
A44: 35 | B44: BOSTON | C44: 1 | F44: 466 | G44: MARTHA'S VINEYARD | H44: open
A45: 36 | B45: BOURNE | C45: 1 | F45: 469 | G45: MATCH | H45: open
A46: 37 | B46: BOXBOROUGH | C46: 0 | D46: fy15 | F46: 470 | G46: MYSTIC VALLEY REGIONAL | H46: open
A47: 38 | B47: BOXFORD | C47: 1 | F47: 474 | G47: SIZER SCHOOL, A NORTH CENTRAL CHARTER ESSENTIAL SCHOOL | H47: open
A48: 39 | B48: BOYLSTON | C48: 0 | D48: fy20 | F48: 478 | G48: FRANCIS W. PARKER CHARTER ESSENTIAL | H48: open
A49: 40 | B49: BRAINTREE | C49: 1 | F49: 479 | G49: PIONEER VALLEY PERFORMING ARTS | H49: open
A50: 41 | B50: BREWSTER | C50: 1 | F50: 481 | G50: BOSTON RENAISSANCE | H50: open
A51: 42 | B51: BRIDGEWATER | C51: 0 | F51: 482 | G51: RIVER VALLEY | H51: open
A52: 43 | B52: BRIMFIELD | C52: 1 | F52: 483 | G52: RISING TIDE | H52: open
A53: 44 | B53: BROCKTON | C53: 1 | F53: 484 | G53: ROXBURY PREPARATORY | H53: open
A54: 45 | B54: BROOKFIELD | C54: 1 | F54: 485 | G54: SALEM ACADEMY | H54: open
A55: 46 | B55: BROOKLINE | C55: 1 | F55: 486 | G55: LEARNING FIRST | H55: open
A56: 47 | B56: BUCKLAND | C56: 0 | F56: 487 | G56: PROSPECT HILL ACADEMY | H56: open
A57: 48 | B57: BURLINGTON | C57: 1 | F57: 488 | G57: SOUTH SHORE | H57: open
A58: 49 | B58: CAMBRIDGE | C58: 1 | F58: 489 | G58: STURGIS | H58: open
A59: 50 | B59: CANTON | C59: 1 | F59: 491 | G59: ATLANTIS | H59: open
A60: 51 | B60: CARLISLE | C60: 1 | F60: 492 | G60: MARTIN LUTHER KING JR CS OF EXCELLENCE | H60: open
A61: 52 | B61: CARVER | C61: 1 | F61: 493 | G61: PHOENIX ACADEMY CHELSEA | H61: open
A62: 53 | B62: CHARLEMONT | C62: 0 | F62: 494 | G62: PIONEER CS OF SCIENCE | H62: open
A63: 54 | B63: CHARLTON | C63: 0 | F63: 496 | G63: GLOBAL LEARNING | H63: open
A64: 55 | B64: CHATHAM | C64: 0 | D64: fy13 | F64: 497 | G64: PIONEER VALLEY CHINESE IMMERSION | H64: open
A65: 56 | B65: CHELMSFORD | C65: 1 | F65: 498 | G65: VERITAS PREPARATORY | H65: open
A66: 57 | B66: CHELSEA | C66: 1 | F66: 499 | G66: HAMPDEN CS OF SCIENCE EAST | H66: open
A67: 58 | B67: CHESHIRE | C67: 0 | F67: 3502 | G67: BAYSTATE ACADEMY | H67: open
A68: 59 | B68: CHESTER | C68: 0 | F68: 3503 | G68: COLLEGIATE CS OF LOWELL | H68: open
A69: 60 | B69: CHESTERFIELD | C69: 0 | F69: 3506 | G69: PIONEER CS OF SCIENCE II | H69: open
A70: 61 | B70: CHICOPEE | C70: 1 | F70: 3508 | G70: PHOENIX ACADEMY SPRINGFIELD | H70: open
A71: 62 | B71: CHILMARK | C71: 0 | F71: 3509 | G71: ARGOSY COLLEGIATE | H71: open
A72: 63 | B72: CLARKSBURG | C72: 1 | F72: 3510 | G72: SPRINGFIELD PREPARATORY | H72: open
A73: 64 | B73: CLINTON | C73: 1 | F73: 3513 | G73: NEW HEIGHTS CS OF BROCKTON | H73: open
A74: 65 | B74: COHASSET | C74: 1 | F74: 3514 | G74: LIBERTAS ACADEMY | H74: open
A75: 66 | B75: COLRAIN | C75: 0 | F75: 3515 | G75: OLD STURBRIDGE ACADEMY | H75: open
A76: 67 | B76: CONCORD | C76: 1 | F76: 3516 | G76: HAMPDEN CS OF SCIENCE WEST | H76: open
A77: 68 | B77: CONWAY | C77: 1 | F77: 3517 | G77: MAP ACADEMY | H77: open
A78: 69 | B78: CUMMINGTON | C78: 0 | F78: 3518 | G78: PHOENIX ACADEMY LAWRENCE | H78: open
A79: 70 | B79: DALTON | C79: 0 | F79: 3519 | G79: WORCESTER CULTURAL ACADEMY | H79: open
A80: 71 | B80: DANVERS | C80: 1
A81: 72 | B81: DARTMOUTH | C81: 1
A82: 73 | B82: DEDHAM | C82: 1
A83: 74 | B83: DEERFIELD | C83: 1
A84: 75 | B84: DENNIS | C84: 0
A85: 76 | B85: DIGHTON | C85: 0
A86: 77 | B86: DOUGLAS | C86: 1
A87: 78 | B87: DOVER | C87: 1
A88: 79 | B88: DRACUT | C88: 1
A89: 80 | B89: DUDLEY | C89: 0
A90: 81 | B90: DUNSTABLE | C90: 0
A91: 82 | B91: DUXBURY | C91: 1
A92: 83 | B92: EAST BRIDGEWATER | C92: 1
A93: 84 | B93: EAST BROOKFIELD | C93: 0
A94: 85 | B94: EASTHAM | C94: 1
A95: 86 | B95: EASTHAMPTON | C95: 1
A96: 87 | B96: EAST LONGMEADOW | C96: 1
A97: 88 | B97: EASTON | C97: 1
A98: 89 | B98: EDGARTOWN | C98: 1
A99: 90 | B99: EGREMONT | C99: 0
A100: 91 | B100: ERVING | C100: 1
A101: 92 | B101: ESSEX | C101: 0
A102: 93 | B102: EVERETT | C102: 1
A103: 94 | B103: FAIRHAVEN | C103: 1
A104: 95 | B104: FALL RIVER | C104: 1
A105: 96 | B105: FALMOUTH | C105: 1
A106: 97 | B106: FITCHBURG | C106: 1
A107: 98 | B107: FLORIDA | C107: 1
A108: 99 | B108: FOXBOROUGH | C108: 1
A109: 100 | B109: FRAMINGHAM | C109: 1
A110: 101 | B110: FRANKLIN | C110: 1
A111: 102 | B111: FREETOWN | C111: 0 | D111: fy12
A112: 103 | B112: GARDNER | C112: 1
A113: 104 | B113: AQUINNAH | C113: 0
A114: 105 | B114: GEORGETOWN | C114: 1
A115: 106 | B115: GILL | C115: 0
A116: 107 | B116: GLOUCESTER | C116: 1
A117: 108 | B117: GOSHEN | C117: 0
A118: 109 | B118: GOSNOLD | C118: 0
A119: 110 | B119: GRAFTON | C119: 1
A120: 111 | B120: GRANBY | C120: 1
A121: 112 | B121: GRANVILLE | C121: 0 | D121: fy13
A122: 113 | B122: GREAT BARRINGTON | C122: 0
A123: 114 | B123: GREENFIELD | C123: 1
A124: 115 | B124: GROTON | C124: 0
A125: 116 | B125: GROVELAND | C125: 0
A126: 117 | B126: HADLEY | C126: 1
A127: 118 | B127: HALIFAX | C127: 1
A128: 119 | B128: HAMILTON | C128: 0
A129: 120 | B129: HAMPDEN | C129: 0
A130: 121 | B130: HANCOCK | C130: 1
A131: 122 | B131: HANOVER | C131: 1
A132: 123 | B132: HANSON | C132: 0
A133: 124 | B133: HARDWICK | C133: 0
A134: 125 | B134: HARVARD | C134: 1
A135: 126 | B135: HARWICH | C135: 0 | D135: fy13
A136: 127 | B136: HATFIELD | C136: 1
A137: 128 | B137: HAVERHILL | C137: 1
A138: 129 | B138: HAWLEY | C138: 0
A139: 130 | B139: HEATH | C139: 0
A140: 131 | B140: HINGHAM | C140: 1
A141: 132 | B141: HINSDALE | C141: 0
A142: 133 | B142: HOLBROOK | C142: 1
A143: 134 | B143: HOLDEN | C143: 0
A144: 135 | B144: HOLLAND | C144: 1
A145: 136 | B145: HOLLISTON | C145: 1
A146: 137 | B146: HOLYOKE | C146: 1
A147: 138 | B147: HOPEDALE | C147: 1
A148: 139 | B148: HOPKINTON | C148: 1
A149: 140 | B149: HUBBARDSTON | C149: 0
A150: 141 | B150: HUDSON | C150: 1
A151: 142 | B151: HULL | C151: 1
A152: 143 | B152: HUNTINGTON | C152: 0
A153: 144 | B153: IPSWICH | C153: 1
A154: 145 | B154: KINGSTON | C154: 1
A155: 146 | B155: LAKEVILLE | C155: 0 | D155: fy12
A156: 147 | B156: LANCASTER | C156: 0
A157: 148 | B157: LANESBOROUGH | C157: 0 | D157: fy19
A158: 149 | B158: LAWRENCE | C158: 1
A159: 150 | B159: LEE | C159: 1
A160: 151 | B160: LEICESTER | C160: 1
A161: 152 | B161: LENOX | C161: 1
A162: 153 | B162: LEOMINSTER | C162: 1
A163: 154 | B163: LEVERETT | C163: 1
A164: 155 | B164: LEXINGTON | C164: 1
A165: 156 | B165: LEYDEN | C165: 0
A166: 157 | B166: LINCOLN | C166: 1
A167: 158 | B167: LITTLETON | C167: 1
A168: 159 | B168: LONGMEADOW | C168: 1
A169: 160 | B169: LOWELL | C169: 1
A170: 161 | B170: LUDLOW | C170: 1
A171: 162 | B171: LUNENBURG | C171: 1
A172: 163 | B172: LYNN | C172: 1
A173: 164 | B173: LYNNFIELD | C173: 1
A174: 165 | B174: MALDEN | C174: 1
A175: 166 | B175: MANCHESTER | C175: 0
A176: 167 | B176: MANSFIELD | C176: 1
A177: 168 | B177: MARBLEHEAD | C177: 1
A178: 169 | B178: MARION | C178: 1
A179: 170 | B179: MARLBOROUGH | C179: 1
A180: 171 | B180: MARSHFIELD | C180: 1
A181: 172 | B181: MASHPEE | C181: 1
A182: 173 | B182: MATTAPOISETT | C182: 1
A183: 174 | B183: MAYNARD | C183: 1
A184: 175 | B184: MEDFIELD | C184: 1
A185: 176 | B185: MEDFORD | C185: 1
A186: 177 | B186: MEDWAY | C186: 1
A187: 178 | B187: MELROSE | C187: 1
A188: 179 | B188: MENDON | C188: 0
A189: 180 | B189: MERRIMAC | C189: 0
A190: 181 | B190: METHUEN | C190: 1
A191: 182 | B191: MIDDLEBOROUGH | C191: 1
A192: 183 | B192: MIDDLEFIELD | C192: 0
A193: 184 | B193: MIDDLETON | C193: 1
A194: 185 | B194: MILFORD | C194: 1
A195: 186 | B195: MILLBURY | C195: 1
A196: 187 | B196: MILLIS | C196: 1
A197: 188 | B197: MILLVILLE | C197: 0
A198: 189 | B198: MILTON | C198: 1
A199: 190 | B199: MONROE | C199: 0
A200: 191 | B200: MONSON | C200: 1
A201: 192 | B201: MONTAGUE | C201: 0
A202: 193 | B202: MONTEREY | C202: 0
A203: 194 | B203: MONTGOMERY | C203: 0
A204: 195 | B204: MOUNT WASHINGTON | C204: 0
A205: 196 | B205: NAHANT | C205: 1
... 243 more rows

Sheet fnd enro explain (hidden)
A1: Massachusetts Department of Elementary and Secondary Education
A2: Office of District and School Finance
A3: FY24 FOUNDATION ENROLLMENT | M3: 2023-03-28 | O3: FY23 | AA3: 2022-08-01 | AC3: fy21 & fy 22 | AO3: 2021-03-17 | AQ3: FY20 SWM Budget | BC3: Draft at time of run, 5/7/2019 | BE3: FY20 Governor's Budget | BQ3: 2019-01-14 | BS3: Prior Year | CE3: 2018-05-01
A5: Foundation enrollment is the total headcount of pupils in grades PK - 12. Pupils are further divided into program | O5: Foundation enrollment is the total headcount of pupils in grades PK - 12. Pupils are further divided into program | AC5: Foundation enrollment is the total headcount of pupils in grades PK - 12. Pupils are further divided into program | AQ5: Foundation enrollment is the total headcount of pupils in grades PK - 12. Pupils are further divided into program | BE5: Foundation enrollment is the total headcount of pupils in grades PK - 12. Enrollment is broken into two categories, | BS5: Foundation enrollment is the total headcount of pupils in grades PK - 12. Enrollment is broken into two categories,
A6: groups: pre-kindergarten; half-time kindergarten; full-time kindergarten; elementary, grades 1 to 5; middle school, grades 6 | O6: groups: pre-kindergarten; half-time kindergarten; full-time kindergarten; elementary, grades 1 to 5; middle school, grades 6 | AC6: groups: pre-kindergarten; half-time kindergarten; full-time kindergarten; elementary, grades 1 to 5; middle school, grades 6 | AQ6: groups: pre-kindergarten; half-time kindergarten; full-time kindergarten; elementary, grades 1 to 5; middle school, grades 6 | BE6: regular education pupils and traditional or Path vocational pupils. Pupils are further divided into program groups: pre- | BS6: regular education pupils or English language learners (ELL). Pupils are further divided into program groups: pre-
A7: through 8; or high school, grades 9 through 12 under the Regular Education section, but reported in bulk for | O7: through 8; or high school, grades 9 through 12 under the Regular Education section, but reported in bulk for | AC7: through 8; or high school, grades 9 through 12 under the Regular Education section, but reported in bulk for | AQ7: through 8; or high school, grades 9 through 12 under the Regular Education section, but reported in bulk for | BE7: kindergarten; half-time kindergarten; full-time kindergarten; elementary, grades 1 to 5; middle school, grades 6 | BS7: kindergarten; half-time kindergarten; full-time kindergarten; elementary, grades 1 to 5; middle school, grades 6
A8: Vocational programs. Voke enrollment was first incorporated in FY23. | O8: vocational programs. | AC8: vocational programs. | AQ8: vocational programs. | BE8: through 8; or high school, grades 9 through 12 under the Regular Education section, but reported in bulk for | BS8: through 8; or high school, grades 9 through 12.
BE9: vocational programs. The Path enrollment categories are new in FY20. See below.
A10: Foundation enrollment considers PK and K2 to be half day programs. The PK and K2 rates are essentially half the cost | O10: Foundation enrollment considers PK and K2 to be half day programs. The PK and K2 rates are essentially half the cost | AC10: Foundation enrollment considers PK and K2 to be half day programs. The PK and K2 rates are essentially half the cost | AQ10: Foundation enrollment considers PK and K2 to be half day programs. The PK and K2 rates are essentially half the cost | BS10: Foundation enrollment considers PK and K2 to be half day programs. The PK and K2 rates are essentially half the cost
A11: of KF. The headcount is divided by two, rounded to the nearest whole number, then folded into the total enrollment. | O11: of KF. The headcount is divided by two, rounded to the nearest whole number, then folded into the total enrollment. | AC11: of KF. The headcount is divided by two, rounded to the nearest whole number, then folded into the total enrollment. | AQ11: of KF. The headcount is divided by two, rounded to the nearest whole number, then folded into the total enrollment. | BE11: Foundation enrollment considers PK and K2 to be half day programs. The PK and K2 rates are essentially half the cost | BS11: of KF. The headcount is divided by two, rounded to the nearest whole number, then folded into the total enrollment.
A12: PK enrollment is not included in the special education FTE increment. | O12: PK enrollment is not included in the special education FTE increment. | AC12: PK enrollment is not included in the special education FTE increment. | AQ12: PK enrollment is not included in the special education FTE increment. | BE12: of KF. The headcount is divided by two, rounded to the nearest whole number, then folded into the total enrollment. | BS12: PK enrollment is not included in the SPED FTE increment.
BE13: PK enrollment is not included in the special education FTE increment.
A14: The halftime PK also effects Ecodis and ELL. Where full enrollment is shown under the regular ed PK column, the | O14: The halftime PK also effects Ecodis and ELL. Where full enrollment is shown under the regular ed PK column, the | AC14: The halftime PK also effects Ecodis and ELL. Where full enrollment is shown under the regular ed PK column, the | AQ14: The halftime PK also effects Ecodis and ELL. Where full enrollment is shown under the regular ed PK column, the | BS14: FY15 marks the first year all PK enrollment was included. In prior years PK enrollment included only SPED and
A15: same enrollment is presented as halved. So, total enrollment, ELL, and Ecodis all show PK/K2 enrollment as | O15: same enrollment is presented as halved. So, total enrollment, ELL, and Ecodis all show PK/K2 enrollment as | AC15: same enrollment is presented as halved. So, total enrollment, ELL, and Ecodis all show PK/K2 enrollment as | AQ15: same enrollment is presented as halved. So, total enrollment, ELL, and Ecodis all show PK/K2 enrollment as | BE15: The halftime PK also effects Ecodis and ELL. Where full enrollment is shown under the regular ed PK column, the | BS15: role model enrollment.
A16: halved. | O16: halved. | AC16: halved. | AQ16: halved. | BE16: same enrollment is presented as halved. So, total enrollment, ELL, and Ecodis all show PK/K2 enrollment as
BE17: halved. | BS17: Foundation enrollment does not use actual special education enrollment. The SPED increment FTE is
A18: Foundation enrollment does not use actual special education enrollment. The spec ed increment is | O18: Foundation enrollment does not use actual special education enrollment. The incremental FTE is | AC18: Foundation enrollment does not use actual special education enrollment. The incremental FTE is | AQ18: Foundation enrollment does not use actual special education enrollment. The incremental FTE is | BS18: determined by formula. The formula determines SPED FTE to be 3.75% of grade K - 12 enrollment. PK enrollment
A19: determined by formula. Special education is added at 3.9% of each foundation enrollment, up from 3.83% in | O19: determined by formula. Special education FTE is set at 3.83% of grade K - 12 regular ed. PK enrollment | AC19: determined by formula. Special education FTE is set at 3.83% of grade K - 12 regular ed. PK enrollment | AQ19: determined by formula. Special education FTE is set at 3.79% of grade K - 12 regular ed. PK enrollment | BE19: Foundation enrollment does not use actual special education enrollment. The incremental FTE is | BS19: is excluded. District foundation budgets round the SPED FTE to a whole number. Charter foundation budets
A20: FY23. PK enrollmentis excluded. District foundation budgets round the increment's FTE to a whole number. | O20: is excluded. District foundation budgets round the increment's FTE to a whole number. Charter foundation budets | AC20: is excluded. District foundation budgets round the increment's FTE to a whole number. Charter foundation budets | AQ20: is excluded. District foundation budgets round the increment's FTE to a whole number. Charter foundation budets | BE20: determined by formula. Special education FTE is set at 3.75% of grade K - 12 regular ed and Path enrollment. PK enrollment | BS20: do not round, returning enrollment to the 4th decimal point, as there are many rates based on only one (1) pupil.
A21: Charter foundation budets round to the 4th decimal point, in order to capture special education tuition in rates | O21: round to the 4th decimal point, in order to capture special education tuition in rates with only one (1) | AC21: round to the 4th decimal point, in order to capture special education tuition in rates with only one (1) | AQ21: round to the 4th decimal point, in order to capture special education tuition in rates with only one (1) | BE21: is excluded. District foundation budgets round the increment's FTE to a whole number. Charter foundation budets
A22: with only one (1) pupil. | O22: pupil. | AC22: pupil. | AQ22: pupil. | BE22: round to the 4th decimal point, in order to capture special education tuition in rates with only one (1) | BS22: Prior to FY17 October SIMS was the sole source for foundation enrollment. In FY16 six (6) charter schools
BE23: pupil. | BS23: did not use SIMS to report their their low income enrollment. For these districts, prior year low income
A24: Traditionally, Commonwealth charter schools have not reported vocational enrollment. This column was always left | O24: Traditionally, Commonwealth charter schools have not had vocational enrollment. This column was always left | AQ24: FY20 Changes | BS24: percentages were used to project their low income foundation enrollment. The October SIMS was used for the remaining
A25: blank, set to 0. Effective with the signed budget FY23 projections, voke enrollment is included. | O25: blank, set to 0. Effective with the signed budget FY23 projections, voke enrollment is included. | AC25: FY22 Changes | AQ25: FY20 projections incorporate a revision to the recent English Language Learner remodel. The seven (7) categories used | BE25: FY20 Changes | BS25: schools.
AC26: FY20 projections incorporate a revision to the recent English Language Learner remodel. The seven (7) categories used | AQ26: in FY19 have been pared down to three, with vocational ELL funding removed altogether. | BE26: FY20 projections incorporate a revision to the recent English Language Learner remodel. The seven (7) categories used
O27: FY23 Changes | AC27: in FY19 have been pared down to three, with vocational ELL funding removed altogether. | BE27: in FY19 have been pared down to three, with vocational ELL funding removed altogether. | BS27: In FY17 DESE transistioned to the ECODIS low income model. ECODIS low income is sourced from the
A28: Historic Transitions | O28: In the truncated 7/29/22 and the full 8/9/22 projection postings, the two rates with voke enrollment | BS28: Department of Health and Human Services. Low income status is given to pupils enrolled in one or more
A29: FY23, by the December 2022 analysis, the first vocational pupils were properly included in the | O29: were based on faulty foundation enrollment. The voke enro was not deducted from the HS reg ed column. | AC29: Historic Transitions | AQ29: Historic Transitions | BE29: There is the addition of non-chapter 74 vocational program identified as Early College Innovation Pathways enrollment. | BS29: public assistence program, specifically SNAP, TANF, Medicaid, and DCF foster care. DESE matches those
A30: foundation base rates for Methuen and Lawrence at 3518 Phoenix Academy. | O30: Later projections, and postings, will include the correction.
A32: FY20 projections incorporate a revision to the recent English Language Learner remodel. The seven (7) categories used | AC32: FY20 projections incorporate a revision to the recent English Language Learner remodel. The seven (7) categories used | AQ32: FY15 marks the first year all PK enrollment was included. In prior years PK enrollment included only SPED and | BE32: Three categories have been set up, but only one population identified, Path1. | BS32: direct certified with each SIMS collection, October, March, and June. Foundation Enrollment low income status is
A33: in FY19 have been pared down to three, with vocational ELL funding removed altogether. | O33: FY22 Changes | AC33: in FY19 have been pared down to three, with vocational ELL funding removed altogether. | AQ33: role model enrollment, which was set at 2 times the PK headcount. | BE33: Path enrollment is duplicately reported in the regular education high school cohort. Foundation enrollment | BS33: given to a pupil if they counted as low income in as little as one of the last four collections, current October,
O34: FY20 projections incorporate a revision to the recent English Language Learner remodel. The seven (7) categories used | BE34: deductions the enrollment from regular education high school enrollment.
A35: FY15 marks the first year all PK enrollment was included. In prior years PK enrollment included only SPED and | O35: in FY19 have been pared down to three, with vocational ELL funding removed altogether. | AC35: FY15 marks the first year all PK enrollment was included. In prior years PK enrollment included only SPED and | AQ35: FY17 marks the first transition year for using EcoDis in place of SIMS low income reporting. In FY16 six (6) charter schools
A36: role model enrollment, which was set at 2 times the PK headcount. | AC36: role model enrollment, which was set at 2 times the PK headcount. | AQ36: did not use SIMS to report their their low income enrollment. For these districts, prior year low income | BE36: Historic Transitions
O37: Historic Transitions | AQ37: percentages were used to project their low income foundation enrollment. The October SIMS was used for the remaining | BE37: FY15 marks the first year all PK enrollment was included. In prior years PK enrollment included only SPED and
A38: FY17 marks the first transition year for using EcoDis in place of SIMS low income reporting. In FY16 six (6) charter schools | O38: FY20 projections incorporate a revision to the recent English Language Learner remodel. The seven (7) categories used | AC38: FY17 marks the first transition year for using EcoDis in place of SIMS low income reporting. In FY16 six (6) charter schools | AQ38: schools. In FY18 to the present all rates are set using EcoDis. ECODIS low income is sourced from the | BE38: role model enrollment, which was set at 2 times the PK headcount.
A39: did not use SIMS to report their their low income enrollment. For these districts, prior year low income | O39: in FY19 have been pared down to three, with vocational ELL funding removed altogether. | AC39: did not use SIMS to report their their low income enrollment. For these districts, prior year low income | AQ39: Department of Health and Human Services. Low income status is given to pupils enrolled in one or more
A40: percentages were used to project their low income foundation enrollment. The October SIMS was used for the remaining | AC40: percentages were used to project their low income foundation enrollment. The October SIMS was used for the remaining | AQ40: public assistence program, specifically SNAP, TANF, Medicaid, and DCF foster care. DESE matches those | BE40: FY17 marks the first transition year for using EcoDis in place of SIMS low income reporting. In FY16 six (6) charter schools
A41: schools. In FY18 to the present all rates are set using EcoDis. ECODIS low income is sourced from the | O41: FY15 marks the first year all PK enrollment was included. In prior years PK enrollment included only SPED and | AC41: schools. In FY18 to the present all rates are set using EcoDis. ECODIS low income is sourced from the | AQ41: direct certified with each SIMS collection, October, March, and June. Foundation Enrollment low income status is | BE41: did not use SIMS to report their their low income enrollment. For these districts, prior year low income
A42: Department of Health and Human Services. Low income status is given to pupils enrolled in one or more | O42: role model enrollment, which was set at 2 times the PK headcount. | AC42: Department of Health and Human Services. Low income status is given to pupils enrolled in one or more | AQ42: given to a pupil if they counted as low income in as little as one of the last four collections, current October, | BE42: percentages were used to project their low income foundation enrollment. The October SIMS was used for the remaining
A43: public assistence program, specifically SNAP, TANF, Medicaid, and DCF foster care. DESE matches those | AC43: public assistence program, specifically SNAP, TANF, Medicaid, and DCF foster care. DESE matches those | AQ43: June, March, and prior year October. | BE43: schools. In FY18 to the present all rates are set using EcoDis. ECODIS low income is sourced from the
A44: direct certified with each SIMS collection, October, March, and June. Foundation Enrollment low income status is | O44: FY17 marks the first transition year for using EcoDis in place of SIMS low income reporting. In FY16 six (6) charter schools | AC44: direct certified with each SIMS collection, October, March, and June. Foundation Enrollment low income status is | BE44: Department of Health and Human Services. Low income status is given to pupils enrolled in one or more
A45: given to a pupil if they counted as low income in as little as one of the last four collections, current October, | O45: did not use SIMS to report their their low income enrollment. For these districts, prior year low income | AC45: given to a pupil if they counted as low income in as little as one of the last four collections, current October, | AQ45: FY19 marks the first year ELL is transitioned from being based on standalone rates, to the increment side of the formula. | BE45: public assistence program, specifically SNAP, TANF, Medicaid, and DCF foster care. DESE matches those
A46: June, March, and prior year October. | O46: percentages were used to project their low income foundation enrollment. The October SIMS was used for the remaining | AC46: June, March, and prior year October. | AQ46: A different rate is presented for each regular ed & chapter 74 voke cohort. | BE46: direct certified with each SIMS collection, October, March, and June. Foundation Enrollment low income status is
O47: schools. In FY18 to the present all rates are set using EcoDis. ECODIS low income is sourced from the | BE47: given to a pupil if they counted as low income in as little as one of the last four collections, current October,
A48: FY19 marks the first year ELL is transitioned from being based on standalone rates, to the increment side of the formula. | O48: Department of Health and Human Services. Low income status is given to pupils enrolled in one or more | AC48: FY19 marks the first year ELL is transitioned from being based on standalone rates, to the increment side of the formula. | BE48: June, March, and prior year October.
A49: A different rate is presented for each regular ed & chapter 74 voke cohort. | O49: public assistence program, specifically SNAP, TANF, Medicaid, and DCF foster care. DESE matches those | AC49: A different rate is presented for each regular ed & chapter 74 voke cohort.
O50: direct certified with each SIMS collection, October, March, and June. Foundation Enrollment low income status is | BE50: FY19 marks the first year ELL is transitioned from being based on standalone rates, to the increment side of the formula.
O51: given to a pupil if they counted as low income in as little as one of the last four collections, current October, | BE51: A different rate is presented for each regular ed & chapter 74 voke cohort.
O52: June, March, and prior year October.
O54: FY19 marks the first year ELL is transitioned from being based on standalone rates, to the increment side of the formula.
O55: A different rate is presented for each regular ed & chapter 74 voke cohort.

Sheet fnd enro (hidden)
A1: fill in lea - chalocsend, all else formulas | I1: =SUM(D10:I1068) -> 45627 | N1: =SUM(M10:O1068) -> 5897 | P1: =SUM(P10:P1068) -> 29375 | AA1: Source: 24 - PROJa fnd enro | AI1: =SUM(AD10:AI1068) -> 45630 | AN1: =SUM(AK10:AN1068) -> 5958 | AS1: =SUM(AO10:AS1068) -> 29587
A6: FOUNDATION ENROLLMENT | AA6: SIMS OCTOBER 1 DATA
D7: A l l P u p i l s | J7: Voke | K7: Sped | M7: Eng Lang Learners | P7: EcoDis | Q7: Lowinc | R7: TOTAL | AD7: A l l P u p i l s | AJ7: Voke | AK7: Early ELP | AO7: EcoDis | AU7: Campus | AV7: Sending | AW7: Lowinc
A8: LEA | B8: chalocsend | C8: charter school | D8: PK | E8: K2 | F8: KF | G8: G1-5 | H8: G6-8 | I8: G9-12 | J8: Reg | K8: In | L8: Tuit | M8: PK-5 | N8: G6-8 | O8: G9-12 | P8: All | Q8: Group | R8: Enro | AA8: lea | AB8: chalocsend | AC8: charter school | AD8: PK | AE8: K2 | AF8: K | AG8: G1-5 | AH8: G6-8 | AI8: G9-12 | AJ8: Reg | AK8: PK | AL8: KF-5 | AM8: G6-8 | AN8: G9-12 | AO8: g1-8 | AP8: PK | AQ8: K2 | AR8: KF | AS8: g9-12 | AU8: LEA | AV8: LEA | AW8: Group
Q9: ROUND(ao10*0.5,0)+ROUND(ap10*0.5,0)+ROUND(SUM(an10,aq10:ar10),0)
A10: 409 | B10: 409201003 | C10: ALMA DEL MAR | D10: =ROUND(AD10,0) -> 0 | E10: =ROUND(AE10,0) -> 0 | F10: 0 | G10: 1 | H10: 0 | I10: =ROUND(AI10,0)-J10 -> 0 | J10: 0 | K10: =ROUND(0.039*(SUM(AF10:AI10)+(AE10*0.5))+0.049*AJ10,4) -> 0.039 | M10: =ROUND(AL10+(AK10*0.5),0) -> 0 | N10: =ROUND(AM10,0) -> 0 | O10: =ROUND(AN10,0) -> 0 | P10: =ROUND(((AP10+AQ10)*0.5)+AO10+AR10+AS10,0) -> 0 | Q10: =AW10 -> 7 | R10: =SUM(F10:I10)+ROUND(D10*0.5,0)+ROUND(J10,0) -> 1 | AA10: 409 | AB10: 409201003 | AC10: ALMA DEL MAR | AD10: 0 | AE10: 0 | AF10: 0 | AG10: 1 | AH10: 0 | AI10: 0 | AJ10: 0 | AK10: 0 | AL10: 0 | AM10: 0 | AN10: 0 | AO10: 0 | AP10: 0 | AQ10: 0 | AR10: 0 | AS10: 0 | AU10: 201 | AV10: 3 | AW10: 7
A11: 409 | B11: 409201095 | C11: ALMA DEL MAR | D11: =ROUND(AD11,0) -> 0 | E11: =ROUND(AE11,0) -> 0 | F11: =ROUND(AF11,0) -> 0 | G11: =ROUND(AG11,0) -> 1 | H11: =ROUND(AH11,0) -> 0 | I11: =ROUND(AI11,0)-J11 -> 0 | J11: =ROUND(AJ11,0) -> 0 | K11: =ROUND(0.039*(SUM(AF11:AI11)+(AE11*0.5))+0.049*AJ11,4) -> 0.039 | M11: =ROUND(AL11+(AK11*0.5),0) -> 0 | N11: =ROUND(AM11,0) -> 0 | O11: =ROUND(AN11,0) -> 0 | P11: =ROUND(((AP11+AQ11)*0.5)+AO11+AR11+AS11,0) -> 1 | Q11: =AW11 -> 12 | R11: =SUM(F11:I11)+ROUND(D11*0.5,0)+ROUND(J11,0) -> 1 | AA11: 409 | AB11: 409201095 | AC11: ALMA DEL MAR | AD11: 0 | AE11: 0 | AF11: 0 | AG11: 1 | AH11: 0 | AI11: 0 | AJ11: 0 | AK11: 0 | AL11: 0 | AM11: 0 | AN11: 0 | AO11: 1 | AP11: 0 | AQ11: 0 | AR11: 0 | AS11: 0 | AU11: 201 | AV11: 95 | AW11: 12
A12: 409 | B12: 409201201 | C12: ALMA DEL MAR | D12: 0 | E12: 0 | F12: 102 | G12: 513 | H12: 419 | I12: 0 | J12: 0 | K12: 40.326 | M12: 252 | N12: 57 | O12: 0 | P12: 855 | Q12: 12 | R12: 1034 | AA12: 409 | AB12: 409201201 | AC12: ALMA DEL MAR | AD12: 0 | AE12: 0 | AF12: 102 | AG12: 513 | AH12: 419 | AI12: 0 | AJ12: 0 | AK12: 0 | AL12: 252 | AM12: 57 | AN12: 0 | AO12: 763 | AP12: 0 | AQ12: 0 | AR12: 92 | AS12: 0 | AU12: 201 | AV12: 201 | AW12: 12
A13: 409 | B13: 409201331 | C13: ALMA DEL MAR | D13: 0 | E13: 0 | F13: 0 | G13: 0 | H13: 2 | I13: 0 | J13: 0 | K13: 0.078 | M13: 0 | N13: 0 | O13: 0 | P13: 0 | Q13: 7 | R13: 2 | AA13: 409 | AB13: 409201331 | AC13: ALMA DEL MAR | AD13: 0 | AE13: 0 | AF13: 0 | AG13: 0 | AH13: 2 | AI13: 0 | AJ13: 0 | AK13: 0 | AL13: 0 | AM13: 0 | AN13: 0 | AO13: 0 | AP13: 0 | AQ13: 0 | AR13: 0 | AS13: 0 | AU13: 201 | AV13: 331 | AW13: 7
A14: 410 | B14: 410035035 | C14: EXCEL ACADEMY | D14: 0 | E14: 0 | F14: 0 | G14: 93 | H14: 236 | I14: 323 | J14: 0 | K14: 25.428 | M14: 20 | N14: 37 | O14: 36 | P14: 510 | Q14: 11 | R14: 652 | AA14: 410 | AB14: 410035035 | AC14: EXCEL ACADEMY | AD14: 0 | AE14: 0 | AF14: 0 | AG14: 93 | AH14: 236 | AI14: 323 | AJ14: 0 | AK14: 0 | AL14: 20 | AM14: 37 | AN14: 36 | AO14: 264 | AP14: 0 | AQ14: 0 | AR14: 0 | AS14: 246 | AU14: 35 | AV14: 35 | AW14: 11
A15: 410 | B15: 410035044 | C15: EXCEL ACADEMY | D15: 0 | E15: 0 | F15: 0 | G15: 0 | H15: 1 | I15: 1 | J15: 0 | K15: 0.078 | M15: 0 | N15: 0 | O15: 0 | P15: 2 | Q15: 11 | R15: 2 | AA15: 410 | AB15: 410035044 | AC15: EXCEL ACADEMY | AD15: 0 | AE15: 0 | AF15: 0 | AG15: 0 | AH15: 1 | AI15: 1 | AJ15: 0 | AK15: 0 | AL15: 0 | AM15: 0 | AN15: 0 | AO15: 1 | AP15: 0 | AQ15: 0 | AR15: 0 | AS15: 1 | AU15: 35 | AV15: 44 | AW15: 11
A16: 410 | B16: 410035049 | C16: EXCEL ACADEMY | D16: 0 | E16: 0 | F16: 0 | G16: 1 | H16: 0 | I16: 0 | J16: 0 | K16: 0.039 | M16: 0 | N16: 0 | O16: 0 | P16: 1 | Q16: 8 | R16: 1 | AA16: 410 | AB16: 410035049 | AC16: EXCEL ACADEMY | AD16: 0 | AE16: 0 | AF16: 0 | AG16: 1 | AH16: 0 | AI16: 0 | AJ16: 0 | AK16: 0 | AL16: 0 | AM16: 0 | AN16: 0 | AO16: 1 | AP16: 0 | AQ16: 0 | AR16: 0 | AS16: 0 | AU16: 35 | AV16: 49 | AW16: 8
A17: 410 | B17: 410035057 | C17: EXCEL ACADEMY | D17: 0 | E17: 0 | F17: 0 | G17: 11 | H17: 73 | I17: 243 | J17: 0 | K17: 12.753 | M17: 2 | N17: 12 | O17: 19 | P17: 247 | Q17: 12 | R17: 327 | AA17: 410 | AB17: 410035057 | AC17: EXCEL ACADEMY | AD17: 0 | AE17: 0 | AF17: 0 | AG17: 11 | AH17: 73 | AI17: 243 | AJ17: 0 | AK17: 0 | AL17: 2 | AM17: 12 | AN17: 19 | AO17: 66 | AP17: 0 | AQ17: 0 | AR17: 0 | AS17: 181 | AU17: 35 | AV17: 57 | AW17: 12
A18: 410 | B18: 410035093 | C18: EXCEL ACADEMY | D18: 0 | E18: 0 | F18: 0 | G18: 0 | H18: 5 | I18: 13 | J18: 0 | K18: 0.702 | M18: 0 | N18: 1 | O18: 2 | P18: 16 | Q18: 11 | R18: 18 | AA18: 410 | AB18: 410035093 | AC18: EXCEL ACADEMY | AD18: 0 | AE18: 0 | AF18: 0 | AG18: 0 | AH18: 5 | AI18: 13 | AJ18: 0 | AK18: 0 | AL18: 0 | AM18: 1 | AN18: 2 | AO18: 4 | AP18: 0 | AQ18: 0 | AR18: 0 | AS18: 12 | AU18: 35 | AV18: 93 | AW18: 11
A19: 410 | B19: 410035160 | C19: EXCEL ACADEMY | D19: 0 | E19: 0 | F19: 0 | G19: 0 | H19: 0 | I19: 3 | J19: 0 | K19: 0.117 | M19: 0 | N19: 0 | O19: 0 | P19: 2 | Q19: 11 | R19: 3 | AA19: 410 | AB19: 410035160 | AC19: EXCEL ACADEMY | AD19: 0 | AE19: 0 | AF19: 0 | AG19: 0 | AH19: 0 | AI19: 3 | AJ19: 0 | AK19: 0 | AL19: 0 | AM19: 0 | AN19: 0 | AO19: 0 | AP19: 0 | AQ19: 0 | AR19: 0 | AS19: 2 | AU19: 35 | AV19: 160 | AW19: 11
A20: 410 | B20: 410035163 | C20: EXCEL ACADEMY | D20: 0 | E20: 0 | F20: 0 | G20: 0 | H20: 9 | I20: 21 | J20: 0 | K20: 1.17 | M20: 0 | N20: 0 | O20: 1 | P20: 23 | Q20: 11 | R20: 30 | AA20: 410 | AB20: 410035163 | AC20: EXCEL ACADEMY | AD20: 0 | AE20: 0 | AF20: 0 | AG20: 0 | AH20: 9 | AI20: 21 | AJ20: 0 | AK20: 0 | AL20: 0 | AM20: 0 | AN20: 1 | AO20: 7 | AP20: 0 | AQ20: 0 | AR20: 0 | AS20: 16 | AU20: 35 | AV20: 163 | AW20: 11
A21: 410 | B21: 410035165 | C21: EXCEL ACADEMY | D21: 0 | E21: 0 | F21: 0 | G21: 0 | H21: 1 | I21: 5 | J21: 0 | K21: 0.234 | M21: 0 | N21: 0 | O21: 0 | P21: 4 | Q21: 10 | R21: 6 | AA21: 410 | AB21: 410035165 | AC21: EXCEL ACADEMY | AD21: 0 | AE21: 0 | AF21: 0 | AG21: 0 | AH21: 1 | AI21: 5 | AJ21: 0 | AK21: 0 | AL21: 0 | AM21: 0 | AN21: 0 | AO21: 1 | AP21: 0 | AQ21: 0 | AR21: 0 | AS21: 3 | AU21: 35 | AV21: 165 | AW21: 10
A22: 410 | B22: 410035176 | C22: EXCEL ACADEMY | D22: 0 | E22: 0 | F22: 0 | G22: 0 | H22: 0 | I22: 1 | J22: 0 | K22: 0.039 | M22: 0 | N22: 0 | O22: 0 | P22: 1 | Q22: 8 | R22: 1 | AA22: 410 | AB22: 410035176 | AC22: EXCEL ACADEMY | AD22: 0 | AE22: 0 | AF22: 0 | AG22: 0 | AH22: 0 | AI22: 1 | AJ22: 0 | AK22: 0 | AL22: 0 | AM22: 0 | AN22: 0 | AO22: 0 | AP22: 0 | AQ22: 0 | AR22: 0 | AS22: 1 | AU22: 35 | AV22: 176 | AW22: 8
A23: 410 | B23: 410035229 | C23: EXCEL ACADEMY | D23: 0 | E23: 0 | F23: 0 | G23: 0 | H23: 0 | I23: 2 | J23: 0 | K23: 0.078 | M23: 0 | N23: 0 | O23: 0 | P23: 2 | Q23: 9 | R23: 2 | AA23: 410 | AB23: 410035229 | AC23: EXCEL ACADEMY | AD23: 0 | AE23: 0 | AF23: 0 | AG23: 0 | AH23: 0 | AI23: 2 | AJ23: 0 | AK23: 0 | AL23: 0 | AM23: 0 | AN23: 0 | AO23: 0 | AP23: 0 | AQ23: 0 | AR23: 0 | AS23: 2 | AU23: 35 | AV23: 229 | AW23: 9
A24: 410 | B24: 410035244 | C24: EXCEL ACADEMY | D24: 0 | E24: 0 | F24: 0 | G24: 0 | H24: 0 | I24: 1 | J24: 0 | K24: 0.039 | M24: 0 | N24: 0 | O24: 0 | P24: 1 | Q24: 10 | R24: 1 | AA24: 410 | AB24: 410035244 | AC24: EXCEL ACADEMY | AD24: 0 | AE24: 0 | AF24: 0 | AG24: 0 | AH24: 0 | AI24: 1 | AJ24: 0 | AK24: 0 | AL24: 0 | AM24: 0 | AN24: 0 | AO24: 0 | AP24: 0 | AQ24: 0 | AR24: 0 | AS24: 1 | AU24: 35 | AV24: 244 | AW24: 10
A25: 410 | B25: 410035248 | C25: EXCEL ACADEMY | D25: 0 | E25: 0 | F25: 0 | G25: 7 | H25: 17 | I25: 50 | J25: 0 | K25: 2.886 | M25: 0 | N25: 4 | O25: 3 | P25: 50 | Q25: 11 | R25: 74 | AA25: 410 | AB25: 410035248 | AC25: EXCEL ACADEMY | AD25: 0 | AE25: 0 | AF25: 0 | AG25: 7 | AH25: 17 | AI25: 50 | AJ25: 0 | AK25: 0 | AL25: 0 | AM25: 4 | AN25: 3 | AO25: 18 | AP25: 0 | AQ25: 0 | AR25: 0 | AS25: 32 | AU25: 35 | AV25: 248 | AW25: 11
A26: 410 | B26: 410035262 | C26: EXCEL ACADEMY | D26: 0 | E26: 0 | F26: 0 | G26: 0 | H26: 0 | I26: 4 | J26: 0 | K26: 0.156 | M26: 0 | N26: 0 | O26: 0 | P26: 2 | Q26: 9 | R26: 4 | AA26: 410 | AB26: 410035262 | AC26: EXCEL ACADEMY | AD26: 0 | AE26: 0 | AF26: 0 | AG26: 0 | AH26: 0 | AI26: 4 | AJ26: 0 | AK26: 0 | AL26: 0 | AM26: 0 | AN26: 0 | AO26: 0 | AP26: 0 | AQ26: 0 | AR26: 0 | AS26: 2 | AU26: 35 | AV26: 262 | AW26: 9
A27: 410 | B27: 410035346 | C27: EXCEL ACADEMY | D27: 0 | E27: 0 | F27: 0 | G27: 1 | H27: 3 | I27: 8 | J27: 0 | K27: 0.468 | M27: 1 | N27: 0 | O27: 0 | P27: 6 | Q27: 8 | R27: 12 | AA27: 410 | AB27: 410035346 | AC27: EXCEL ACADEMY | AD27: 0 | AE27: 0 | AF27: 0 | AG27: 1 | AH27: 3 | AI27: 8 | AJ27: 0 | AK27: 0 | AL27: 1 | AM27: 0 | AN27: 0 | AO27: 2 | AP27: 0 | AQ27: 0 | AR27: 0 | AS27: 4 | AU27: 35 | AV27: 346 | AW27: 8
A28: 410 | B28: 410057035 | C28: EXCEL ACADEMY | D28: 0 | E28: 0 | F28: 0 | G28: 0 | H28: 8 | I28: 0 | J28: 0 | K28: 0.312 | M28: 0 | N28: 1 | O28: 0 | P28: 7 | Q28: 11 | R28: 8 | AA28: 410 | AB28: 410057035 | AC28: EXCEL ACADEMY | AD28: 0 | AE28: 0 | AF28: 0 | AG28: 0 | AH28: 8 | AI28: 0 | AJ28: 0 | AK28: 0 | AL28: 0 | AM28: 1 | AN28: 0 | AO28: 7 | AP28: 0 | AQ28: 0 | AR28: 0 | AS28: 0 | AU28: 57 | AV28: 35 | AW28: 11
A29: 410 | B29: 410057057 | C29: EXCEL ACADEMY | D29: 0 | E29: 0 | F29: 0 | G29: 46 | H29: 148 | I29: 0 | J29: 0 | K29: 7.566 | M29: 10 | N29: 12 | O29: 0 | P29: 156 | Q29: 12 | R29: 194 | AA29: 410 | AB29: 410057057 | AC29: EXCEL ACADEMY | AD29: 0 | AE29: 0 | AF29: 0 | AG29: 46 | AH29: 148 | AI29: 0 | AJ29: 0 | AK29: 0 | AL29: 10 | AM29: 12 | AN29: 0 | AO29: 156 | AP29: 0 | AQ29: 0 | AR29: 0 | AS29: 0 | AU29: 57 | AV29: 57 | AW29: 12
A30: 410 | B30: 410057093 | C30: EXCEL ACADEMY | D30: 0 | E30: 0 | F30: 0 | G30: 5 | H30: 3 | I30: 0 | J30: 0 | K30: 0.312 | M30: 0 | N30: 1 | O30: 0 | P30: 5 | Q30: 11 | R30: 8 | AA30: 410 | AB30: 410057093 | AC30: EXCEL ACADEMY | AD30: 0 | AE30: 0 | AF30: 0 | AG30: 5 | AH30: 3 | AI30: 0 | AJ30: 0 | AK30: 0 | AL30: 0 | AM30: 1 | AN30: 0 | AO30: 5 | AP30: 0 | AQ30: 0 | AR30: 0 | AS30: 0 | AU30: 57 | AV30: 93 | AW30: 11
A31: 410 | B31: 410057163 | C31: EXCEL ACADEMY | D31: 0 | E31: 0 | F31: 0 | G31: 0 | H31: 2 | I31: 0 | J31: 0 | K31: 0.078 | M31: 0 | N31: 0 | O31: 0 | P31: 2 | Q31: 11 | R31: 2 | AA31: 410 | AB31: 410057163 | AC31: EXCEL ACADEMY | AD31: 0 | AE31: 0 | AF31: 0 | AG31: 0 | AH31: 2 | AI31: 0 | AJ31: 0 | AK31: 0 | AL31: 0 | AM31: 0 | AN31: 0 | AO31: 2 | AP31: 0 | AQ31: 0 | AR31: 0 | AS31: 0 | AU31: 57 | AV31: 163 | AW31: 11
A32: 410 | B32: 410057248 | C32: EXCEL ACADEMY | D32: 0 | E32: 0 | F32: 0 | G32: 7 | H32: 10 | I32: 0 | J32: 0 | K32: 0.663 | M32: 0 | N32: 0 | O32: 0 | P32: 14 | Q32: 11 | R32: 17 | AA32: 410 | AB32: 410057248 | AC32: EXCEL ACADEMY | AD32: 0 | AE32: 0 | AF32: 0 | AG32: 7 | AH32: 10 | AI32: 0 | AJ32: 0 | AK32: 0 | AL32: 0 | AM32: 0 | AN32: 0 | AO32: 14 | AP32: 0 | AQ32: 0 | AR32: 0 | AS32: 0 | AU32: 57 | AV32: 248 | AW32: 11
A33: 410 | B33: 410057262 | C33: EXCEL ACADEMY | D33: 0 | E33: 0 | F33: 0 | G33: 0 | H33: 1 | I33: 0 | J33: 0 | K33: 0.039 | M33: 0 | N33: 0 | O33: 0 | P33: 1 | Q33: 9 | R33: 1 | AA33: 410 | AB33: 410057262 | AC33: EXCEL ACADEMY | AD33: 0 | AE33: 0 | AF33: 0 | AG33: 0 | AH33: 1 | AI33: 0 | AJ33: 0 | AK33: 0 | AL33: 0 | AM33: 0 | AN33: 0 | AO33: 1 | AP33: 0 | AQ33: 0 | AR33: 0 | AS33: 0 | AU33: 57 | AV33: 262 | AW33: 9
A34: 412 | B34: 412035035 | C34: ACADEMY OF THE PACIFIC RIM | D34: 0 | E34: 0 | F34: 0 | G34: 31 | H34: 175 | I34: 229 | J34: 0 | K34: 16.965 | M34: 6 | N34: 18 | O34: 17 | P34: 317 | Q34: 11 | R34: 435 | AA34: 412 | AB34: 412035035 | AC34: ACADEMY OF THE PACIFIC RIM | AD34: 0 | AE34: 0 | AF34: 0 | AG34: 31 | AH34: 175 | AI34: 229 | AJ34: 0 | AK34: 0 | AL34: 6 | AM34: 18 | AN34: 17 | AO34: 145 | AP34: 0 | AQ34: 0 | AR34: 0 | AS34: 172 | AU34: 35 | AV34: 35 | AW34: 11
A35: 412 | B35: 412035044 | C35: ACADEMY OF THE PACIFIC RIM | D35: 0 | E35: 0 | F35: 0 | G35: 0 | H35: 5 | I35: 8 | J35: 0 | K35: 0.507 | M35: 0 | N35: 0 | O35: 0 | P35: 3 | Q35: 11 | R35: 13 | AA35: 412 | AB35: 412035044 | AC35: ACADEMY OF THE PACIFIC RIM | AD35: 0 | AE35: 0 | AF35: 0 | AG35: 0 | AH35: 5 | AI35: 8 | AJ35: 0 | AK35: 0 | AL35: 0 | AM35: 0 | AN35: 0 | AO35: 2 | AP35: 0 | AQ35: 0 | AR35: 0 | AS35: 1 | AU35: 35 | AV35: 44 | AW35: 11
A36: 412 | B36: 412035189 | C36: ACADEMY OF THE PACIFIC RIM | D36: 0 | E36: 0 | F36: 0 | G36: 1 | H36: 1 | I36: 0 | J36: 0 | K36: 0.078 | M36: 0 | N36: 1 | O36: 0 | P36: 2 | Q36: 3 | R36: 2 | AA36: 412 | AB36: 412035189 | AC36: ACADEMY OF THE PACIFIC RIM | AD36: 0 | AE36: 0 | AF36: 0 | AG36: 1 | AH36: 1 | AI36: 0 | AJ36: 0 | AK36: 0 | AL36: 0 | AM36: 1 | AN36: 0 | AO36: 2 | AP36: 0 | AQ36: 0 | AR36: 0 | AS36: 0 | AU36: 35 | AV36: 189 | AW36: 3
A37: 412 | B37: 412035218 | C37: ACADEMY OF THE PACIFIC RIM | D37: 0 | E37: 0 | F37: 0 | G37: 1 | H37: 0 | I37: 0 | J37: 0 | K37: 0.039 | M37: 0 | N37: 0 | O37: 0 | P37: 0 | Q37: 6 | R37: 1 | AA37: 412 | AB37: 412035218 | AC37: ACADEMY OF THE PACIFIC RIM | AD37: 0 | AE37: 0 | AF37: 0 | AG37: 1 | AH37: 0 | AI37: 0 | AJ37: 0 | AK37: 0 | AL37: 0 | AM37: 0 | AN37: 0 | AO37: 0 | AP37: 0 | AQ37: 0 | AR37: 0 | AS37: 0 | AU37: 35 | AV37: 218 | AW37: 6
A38: 412 | B38: 412035220 | C38: ACADEMY OF THE PACIFIC RIM | D38: 0 | E38: 0 | F38: 0 | G38: 0 | H38: 1 | I38: 2 | J38: 0 | K38: 0.117 | M38: 0 | N38: 0 | O38: 0 | P38: 2 | Q38: 8 | R38: 3 | AA38: 412 | AB38: 412035220 | AC38: ACADEMY OF THE PACIFIC RIM | AD38: 0 | AE38: 0 | AF38: 0 | AG38: 0 | AH38: 1 | AI38: 2 | AJ38: 0 | AK38: 0 | AL38: 0 | AM38: 0 | AN38: 0 | AO38: 1 | AP38: 0 | AQ38: 0 | AR38: 0 | AS38: 1 | AU38: 35 | AV38: 220 | AW38: 8
A39: 412 | B39: 412035243 | C39: ACADEMY OF THE PACIFIC RIM | D39: 0 | E39: 0 | F39: 0 | G39: 1 | H39: 1 | I39: 0 | J39: 0 | K39: 0.078 | M39: 0 | N39: 0 | O39: 0 | P39: 0 | Q39: 10 | R39: 2 | AA39: 412 | AB39: 412035243 | AC39: ACADEMY OF THE PACIFIC RIM | AD39: 0 | AE39: 0 | AF39: 0 | AG39: 1 | AH39: 1 | AI39: 0 | AJ39: 0 | AK39: 0 | AL39: 0 | AM39: 0 | AN39: 0 | AO39: 0 | AP39: 0 | AQ39: 0 | AR39: 0 | AS39: 0 | AU39: 35 | AV39: 243 | AW39: 10
A40: 412 | B40: 412035244 | C40: ACADEMY OF THE PACIFIC RIM | D40: 0 | E40: 0 | F40: 0 | G40: 1 | H40: 3 | I40: 1 | J40: 0 | K40: 0.195 | M40: 0 | N40: 0 | O40: 0 | P40: 3 | Q40: 10 | R40: 5 | AA40: 412 | AB40: 412035244 | AC40: ACADEMY OF THE PACIFIC RIM | AD40: 0 | AE40: 0 | AF40: 0 | AG40: 1 | AH40: 3 | AI40: 1 | AJ40: 0 | AK40: 0 | AL40: 0 | AM40: 0 | AN40: 0 | AO40: 2 | AP40: 0 | AQ40: 0 | AR40: 0 | AS40: 1 | AU40: 35 | AV40: 244 | AW40: 10
A41: 412 | B41: 412035285 | C41: ACADEMY OF THE PACIFIC RIM | D41: 0 | E41: 0 | F41: 0 | G41: 0 | H41: 1 | I41: 2 | J41: 0 | K41: 0.117 | M41: 0 | N41: 0 | O41: 0 | P41: 1 | Q41: 9 | R41: 3 | AA41: 412 | AB41: 412035285 | AC41: ACADEMY OF THE PACIFIC RIM | AD41: 0 | AE41: 0 | AF41: 0 | AG41: 0 | AH41: 1 | AI41: 2 | AJ41: 0 | AK41: 0 | AL41: 0 | AM41: 0 | AN41: 0 | AO41: 1 | AP41: 0 | AQ41: 0 | AR41: 0 | AS41: 0 | AU41: 35 | AV41: 285 | AW41: 9
A42: 412 | B42: 412035293 | C42: ACADEMY OF THE PACIFIC RIM | D42: 0 | E42: 0 | F42: 0 | G42: 0 | H42: 0 | I42: 1 | J42: 0 | K42: 0.039 | M42: 0 | N42: 0 | O42: 0 | P42: 0 | Q42: 10 | R42: 1 | AA42: 412 | AB42: 412035293 | AC42: ACADEMY OF THE PACIFIC RIM | AD42: 0 | AE42: 0 | AF42: 0 | AG42: 0 | AH42: 0 | AI42: 1 | AJ42: 0 | AK42: 0 | AL42: 0 | AM42: 0 | AN42: 0 | AO42: 0 | AP42: 0 | AQ42: 0 | AR42: 0 | AS42: 0 | AU42: 35 | AV42: 293 | AW42: 10
A43: 412 | B43: 412035307 | C43: ACADEMY OF THE PACIFIC RIM | D43: 0 | E43: 0 | F43: 0 | G43: 1 | H43: 1 | I43: 0 | J43: 0 | K43: 0.078 | M43: 1 | N43: 1 | O43: 0 | P43: 1 | Q43: 4 | R43: 2 | AA43: 412 | AB43: 412035307 | AC43: ACADEMY OF THE PACIFIC RIM | AD43: 0 | AE43: 0 | AF43: 0 | AG43: 1 | AH43: 1 | AI43: 0 | AJ43: 0 | AK43: 0 | AL43: 1 | AM43: 1 | AN43: 0 | AO43: 1 | AP43: 0 | AQ43: 0 | AR43: 0 | AS43: 0 | AU43: 35 | AV43: 307 | AW43: 4
A44: 413 | B44: 413114091 | C44: FOUR RIVERS | D44: 0 | E44: 0 | F44: 0 | G44: 0 | H44: 0 | I44: 1 | J44: 0 | K44: 0.039 | M44: 0 | N44: 0 | O44: 0 | P44: 0 | Q44: 9 | R44: 1 | AA44: 413 | AB44: 413114091 | AC44: FOUR RIVERS | AD44: 0 | AE44: 0 | AF44: 0 | AG44: 0 | AH44: 0 | AI44: 1 | AJ44: 0 | AK44: 0 | AL44: 0 | AM44: 0 | AN44: 0 | AO44: 0 | AP44: 0 | AQ44: 0 | AR44: 0 | AS44: 0 | AU44: 114 | AV44: 91 | AW44: 9
A45: 413 | B45: 413114114 | C45: FOUR RIVERS | D45: 0 | E45: 0 | F45: 0 | G45: 0 | H45: 33 | I45: 51 | J45: 0 | K45: 3.276 | M45: 0 | N45: 0 | O45: 0 | P45: 33 | Q45: 10 | R45: 84 | AA45: 413 | AB45: 413114114 | AC45: FOUR RIVERS | AD45: 0 | AE45: 0 | AF45: 0 | AG45: 0 | AH45: 33 | AI45: 51 | AJ45: 0 | AK45: 0 | AL45: 0 | AM45: 0 | AN45: 0 | AO45: 14 | AP45: 0 | AQ45: 0 | AR45: 0 | AS45: 19 | AU45: 114 | AV45: 114 | AW45: 10
A46: 413 | B46: 413114127 | C46: FOUR RIVERS | D46: 0 | E46: 0 | F46: 0 | G46: 0 | H46: 0 | I46: 2 | J46: 0 | K46: 0.078 | M46: 0 | N46: 0 | O46: 0 | P46: 0 | Q46: 5 | R46: 2 | AA46: 413 | AB46: 413114127 | AC46: FOUR RIVERS | AD46: 0 | AE46: 0 | AF46: 0 | AG46: 0 | AH46: 0 | AI46: 2 | AJ46: 0 | AK46: 0 | AL46: 0 | AM46: 0 | AN46: 0 | AO46: 0 | AP46: 0 | AQ46: 0 | AR46: 0 | AS46: 0 | AU46: 114 | AV46: 127 | AW46: 5
A47: 413 | B47: 413114210 | C47: FOUR RIVERS | D47: 0 | E47: 0 | F47: 0 | G47: 0 | H47: 1 | I47: 0 | J47: 0 | K47: 0.039 | M47: 0 | N47: 0 | O47: 0 | P47: 0 | Q47: 6 | R47: 1 | AA47: 413 | AB47: 413114210 | AC47: FOUR RIVERS | AD47: 0 | AE47: 0 | AF47: 0 | AG47: 0 | AH47: 1 | AI47: 0 | AJ47: 0 | AK47: 0 | AL47: 0 | AM47: 0 | AN47: 0 | AO47: 0 | AP47: 0 | AQ47: 0 | AR47: 0 | AS47: 0 | AU47: 114 | AV47: 210 | AW47: 6
A48: 413 | B48: 413114253 | C48: FOUR RIVERS | D48: 0 | E48: 0 | F48: 0 | G48: 0 | H48: 0 | I48: 1 | J48: 0 | K48: 0.039 | M48: 0 | N48: 0 | O48: 0 | P48: 0 | Q48: 10 | R48: 1 | AA48: 413 | AB48: 413114253 | AC48: FOUR RIVERS | AD48: 0 | AE48: 0 | AF48: 0 | AG48: 0 | AH48: 0 | AI48: 1 | AJ48: 0 | AK48: 0 | AL48: 0 | AM48: 0 | AN48: 0 | AO48: 0 | AP48: 0 | AQ48: 0 | AR48: 0 | AS48: 0 | AU48: 114 | AV48: 253 | AW48: 10
A49: 413 | B49: 413114312 | C49: FOUR RIVERS | D49: 0 | E49: 0 | F49: 0 | G49: 0 | H49: 0 | I49: 2 | J49: 0 | K49: 0.078 | M49: 0 | N49: 0 | O49: 0 | P49: 1 | Q49: 10 | R49: 2 | AA49: 413 | AB49: 413114312 | AC49: FOUR RIVERS | AD49: 0 | AE49: 0 | AF49: 0 | AG49: 0 | AH49: 0 | AI49: 2 | AJ49: 0 | AK49: 0 | AL49: 0 | AM49: 0 | AN49: 0 | AO49: 0 | AP49: 0 | AQ49: 0 | AR49: 0 | AS49: 1 | AU49: 114 | AV49: 312 | AW49: 10
A50: 413 | B50: 413114605 | C50: FOUR RIVERS | D50: 0 | E50: 0 | F50: 0 | G50: 0 | H50: 1 | I50: 0 | J50: 0 | K50: 0.039 | M50: 0 | N50: 0 | O50: 0 | P50: 1 | Q50: 6 | R50: 1 | AA50: 413 | AB50: 413114605 | AC50: FOUR RIVERS | AD50: 0 | AE50: 0 | AF50: 0 | AG50: 0 | AH50: 1 | AI50: 0 | AJ50: 0 | AK50: 0 | AL50: 0 | AM50: 0 | AN50: 0 | AO50: 1 | AP50: 0 | AQ50: 0 | AR50: 0 | AS50: 0 | AU50: 114 | AV50: 605 | AW50: 6
A51: 413 | B51: 413114615 | C51: FOUR RIVERS | D51: 0 | E51: 0 | F51: 0 | G51: 0 | H51: 0 | I51: 1 | J51: 0 | K51: 0.039 | M51: 0 | N51: 0 | O51: 0 | P51: 0 | Q51: 11 | R51: 1 | AA51: 413 | AB51: 413114615 | AC51: FOUR RIVERS | AD51: 0 | AE51: 0 | AF51: 0 | AG51: 0 | AH51: 0 | AI51: 1 | AJ51: 0 | AK51: 0 | AL51: 0 | AM51: 0 | AN51: 0 | AO51: 0 | AP51: 0 | AQ51: 0 | AR51: 0 | AS51: 0 | AU51: 114 | AV51: 615 | AW51: 11
A52: 413 | B52: 413114670 | C52: FOUR RIVERS | D52: 0 | E52: 0 | F52: 0 | G52: 0 | H52: 3 | I52: 12 | J52: 0 | K52: 0.585 | M52: 0 | N52: 0 | O52: 0 | P52: 4 | Q52: 6 | R52: 15 | AA52: 413 | AB52: 413114670 | AC52: FOUR RIVERS | AD52: 0 | AE52: 0 | AF52: 0 | AG52: 0 | AH52: 3 | AI52: 12 | AJ52: 0 | AK52: 0 | AL52: 0 | AM52: 0 | AN52: 0 | AO52: 1 | AP52: 0 | AQ52: 0 | AR52: 0 | AS52: 3 | AU52: 114 | AV52: 670 | AW52: 6
A53: 413 | B53: 413114674 | C53: FOUR RIVERS | D53: 0 | E53: 0 | F53: 0 | G53: 0 | H53: 18 | I53: 30 | J53: 0 | K53: 1.872 | M53: 0 | N53: 0 | O53: 0 | P53: 19 | Q53: 10 | R53: 48 | AA53: 413 | AB53: 413114674 | AC53: FOUR RIVERS | AD53: 0 | AE53: 0 | AF53: 0 | AG53: 0 | AH53: 18 | AI53: 30 | AJ53: 0 | AK53: 0 | AL53: 0 | AM53: 0 | AN53: 0 | AO53: 8 | AP53: 0 | AQ53: 0 | AR53: 0 | AS53: 11 | AU53: 114 | AV53: 674 | AW53: 10
A54: 413 | B54: 413114717 | C54: FOUR RIVERS | D54: 0 | E54: 0 | F54: 0 | G54: 0 | H54: 7 | I54: 21 | J54: 0 | K54: 1.092 | M54: 0 | N54: 0 | O54: 0 | P54: 13 | Q54: 9 | R54: 28 | AA54: 413 | AB54: 413114717 | AC54: FOUR RIVERS | AD54: 0 | AE54: 0 | AF54: 0 | AG54: 0 | AH54: 7 | AI54: 21 | AJ54: 0 | AK54: 0 | AL54: 0 | AM54: 0 | AN54: 0 | AO54: 4 | AP54: 0 | AQ54: 0 | AR54: 0 | AS54: 9 | AU54: 114 | AV54: 717 | AW54: 9
A55: 413 | B55: 413114750 | C55: FOUR RIVERS | D55: 0 | E55: 0 | F55: 0 | G55: 0 | H55: 7 | I55: 17 | J55: 0 | K55: 0.936 | M55: 0 | N55: 0 | O55: 0 | P55: 9 | Q55: 7 | R55: 24 | AA55: 413 | AB55: 413114750 | AC55: FOUR RIVERS | AD55: 0 | AE55: 0 | AF55: 0 | AG55: 0 | AH55: 7 | AI55: 17 | AJ55: 0 | AK55: 0 | AL55: 0 | AM55: 0 | AN55: 0 | AO55: 4 | AP55: 0 | AQ55: 0 | AR55: 0 | AS55: 5 | AU55: 114 | AV55: 750 | AW55: 7
A56: 413 | B56: 413114755 | C56: FOUR RIVERS | D56: 0 | E56: 0 | F56: 0 | G56: 0 | H56: 6 | I56: 5 | J56: 0 | K56: 0.429 | M56: 0 | N56: 0 | O56: 0 | P56: 2 | Q56: 10 | R56: 11 | AA56: 413 | AB56: 413114755 | AC56: FOUR RIVERS | AD56: 0 | AE56: 0 | AF56: 0 | AG56: 0 | AH56: 6 | AI56: 5 | AJ56: 0 | AK56: 0 | AL56: 0 | AM56: 0 | AN56: 0 | AO56: 1 | AP56: 0 | AQ56: 0 | AR56: 0 | AS56: 1 | AU56: 114 | AV56: 755 | AW56: 10
A57: 414 | B57: 414603063 | C57: BERKSHIRE ARTS AND TECHNOLOGY | D57: 0 | E57: 0 | F57: 0 | G57: 0 | H57: 1 | I57: 1 | J57: 0 | K57: 0.078 | M57: 0 | N57: 0 | O57: 0 | P57: 0 | Q57: 8 | R57: 2 | AA57: 414 | AB57: 414603063 | AC57: BERKSHIRE ARTS AND TECHNOLOGY | AD57: 0 | AE57: 0 | AF57: 0 | AG57: 0 | AH57: 1 | AI57: 1 | AJ57: 0 | AK57: 0 | AL57: 0 | AM57: 0 | AN57: 0 | AO57: 0 | AP57: 0 | AQ57: 0 | AR57: 0 | AS57: 0 | AU57: 603 | AV57: 63 | AW57: 8
A58: 414 | B58: 414603098 | C58: BERKSHIRE ARTS AND TECHNOLOGY | D58: 0 | E58: 0 | F58: 0 | G58: 0 | H58: 1 | I58: 0 | J58: 0 | K58: 0.039 | M58: 0 | N58: 0 | O58: 0 | P58: 1 | Q58: 9 | R58: 1 | AA58: 414 | AB58: 414603098 | AC58: BERKSHIRE ARTS AND TECHNOLOGY | AD58: 0 | AE58: 0 | AF58: 0 | AG58: 0 | AH58: 1 | AI58: 0 | AJ58: 0 | AK58: 0 | AL58: 0 | AM58: 0 | AN58: 0 | AO58: 1 | AP58: 0 | AQ58: 0 | AR58: 0 | AS58: 0 | AU58: 603 | AV58: 98 | AW58: 9
A59: 414 | B59: 414603209 | C59: BERKSHIRE ARTS AND TECHNOLOGY | D59: 0 | E59: 0 | F59: 0 | G59: 0 | H59: 49 | I59: 36 | J59: 0 | K59: 3.315 | M59: 0 | N59: 0 | O59: 0 | P59: 63 | Q59: 11 | R59: 85 | AA59: 414 | AB59: 414603209 | AC59: BERKSHIRE ARTS AND TECHNOLOGY | AD59: 0 | AE59: 0 | AF59: 0 | AG59: 0 | AH59: 49 | AI59: 36 | AJ59: 0 | AK59: 0 | AL59: 0 | AM59: 0 | AN59: 0 | AO59: 40 | AP59: 0 | AQ59: 0 | AR59: 0 | AS59: 23 | AU59: 603 | AV59: 209 | AW59: 11
A60: 414 | B60: 414603236 | C60: BERKSHIRE ARTS AND TECHNOLOGY | D60: 0 | E60: 0 | F60: 0 | G60: 0 | H60: 103 | I60: 72 | J60: 0 | K60: 6.825 | M60: 0 | N60: 4 | O60: 0 | P60: 122 | Q60: 11 | R60: 175 | AA60: 414 | AB60: 414603236 | AC60: BERKSHIRE ARTS AND TECHNOLOGY | AD60: 0 | AE60: 0 | AF60: 0 | AG60: 0 | AH60: 103 | AI60: 72 | AJ60: 0 | AK60: 0 | AL60: 0 | AM60: 4 | AN60: 0 | AO60: 73 | AP60: 0 | AQ60: 0 | AR60: 0 | AS60: 49 | AU60: 603 | AV60: 236 | AW60: 11
A61: 414 | B61: 414603249 | C61: BERKSHIRE ARTS AND TECHNOLOGY | D61: 0 | E61: 0 | F61: 0 | G61: 0 | H61: 1 | I61: 0 | J61: 0 | K61: 0.039 | M61: 0 | N61: 0 | O61: 0 | P61: 0 | Q61: 6 | R61: 1 | AA61: 414 | AB61: 414603249 | AC61: BERKSHIRE ARTS AND TECHNOLOGY | AD61: 0 | AE61: 0 | AF61: 0 | AG61: 0 | AH61: 1 | AI61: 0 | AJ61: 0 | AK61: 0 | AL61: 0 | AM61: 0 | AN61: 0 | AO61: 0 | AP61: 0 | AQ61: 0 | AR61: 0 | AS61: 0 | AU61: 603 | AV61: 249 | AW61: 6
A62: 414 | B62: 414603263 | C62: BERKSHIRE ARTS AND TECHNOLOGY | D62: 0 | E62: 0 | F62: 0 | G62: 0 | H62: 0 | I62: 1 | J62: 0 | K62: 0.039 | M62: 0 | N62: 0 | O62: 0 | P62: 0 | Q62: 10 | R62: 1 | AA62: 414 | AB62: 414603263 | AC62: BERKSHIRE ARTS AND TECHNOLOGY | AD62: 0 | AE62: 0 | AF62: 0 | AG62: 0 | AH62: 0 | AI62: 1 | AJ62: 0 | AK62: 0 | AL62: 0 | AM62: 0 | AN62: 0 | AO62: 0 | AP62: 0 | AQ62: 0 | AR62: 0 | AS62: 0 | AU62: 603 | AV62: 263 | AW62: 10
A63: 414 | B63: 414603603 | C63: BERKSHIRE ARTS AND TECHNOLOGY | D63: 0 | E63: 0 | F63: 0 | G63: 0 | H63: 33 | I63: 34 | J63: 0 | K63: 2.613 | M63: 0 | N63: 0 | O63: 0 | P63: 34 | Q63: 10 | R63: 67 | AA63: 414 | AB63: 414603603 | AC63: BERKSHIRE ARTS AND TECHNOLOGY | AD63: 0 | AE63: 0 | AF63: 0 | AG63: 0 | AH63: 33 | AI63: 34 | AJ63: 0 | AK63: 0 | AL63: 0 | AM63: 0 | AN63: 0 | AO63: 18 | AP63: 0 | AQ63: 0 | AR63: 0 | AS63: 16 | AU63: 603 | AV63: 603 | AW63: 10
A64: 414 | B64: 414603635 | C64: BERKSHIRE ARTS AND TECHNOLOGY | D64: 0 | E64: 0 | F64: 0 | G64: 0 | H64: 10 | I64: 15 | J64: 0 | K64: 0.975 | M64: 0 | N64: 0 | O64: 0 | P64: 9 | Q64: 8 | R64: 25 | AA64: 414 | AB64: 414603635 | AC64: BERKSHIRE ARTS AND TECHNOLOGY | AD64: 0 | AE64: 0 | AF64: 0 | AG64: 0 | AH64: 10 | AI64: 15 | AJ64: 0 | AK64: 0 | AL64: 0 | AM64: 0 | AN64: 0 | AO64: 2 | AP64: 0 | AQ64: 0 | AR64: 0 | AS64: 7 | AU64: 603 | AV64: 635 | AW64: 8
A65: 414 | B65: 414603715 | C65: BERKSHIRE ARTS AND TECHNOLOGY | D65: 0 | E65: 0 | F65: 0 | G65: 0 | H65: 8 | I65: 2 | J65: 0 | K65: 0.39 | M65: 0 | N65: 1 | O65: 0 | P65: 2 | Q65: 6 | R65: 10 | AA65: 414 | AB65: 414603715 | AC65: BERKSHIRE ARTS AND TECHNOLOGY | AD65: 0 | AE65: 0 | AF65: 0 | AG65: 0 | AH65: 8 | AI65: 2 | AJ65: 0 | AK65: 0 | AL65: 0 | AM65: 1 | AN65: 0 | AO65: 1 | AP65: 0 | AQ65: 0 | AR65: 0 | AS65: 1 | AU65: 603 | AV65: 715 | AW65: 6
A66: 416 | B66: 416035018 | C66: BOSTON PREPARATORY | D66: 0 | E66: 0 | F66: 0 | G66: 0 | H66: 0 | I66: 1 | J66: 0 | K66: 0.039 | M66: 0 | N66: 0 | O66: 0 | P66: 1 | Q66: 10 | R66: 1 | AA66: 416 | AB66: 416035018 | AC66: BOSTON PREPARATORY | AD66: 0 | AE66: 0 | AF66: 0 | AG66: 0 | AH66: 0 | AI66: 1 | AJ66: 0 | AK66: 0 | AL66: 0 | AM66: 0 | AN66: 0 | AO66: 0 | AP66: 0 | AQ66: 0 | AR66: 0 | AS66: 1 | AU66: 35 | AV66: 18 | AW66: 10
A67: 416 | B67: 416035030 | C67: BOSTON PREPARATORY | D67: 0 | E67: 0 | F67: 0 | G67: 0 | H67: 1 | I67: 0 | J67: 0 | K67: 0.039 | M67: 0 | N67: 0 | O67: 0 | P67: 1 | Q67: 7 | R67: 1 | AA67: 416 | AB67: 416035030 | AC67: BOSTON PREPARATORY | AD67: 0 | AE67: 0 | AF67: 0 | AG67: 0 | AH67: 1 | AI67: 0 | AJ67: 0 | AK67: 0 | AL67: 0 | AM67: 0 | AN67: 0 | AO67: 1 | AP67: 0 | AQ67: 0 | AR67: 0 | AS67: 0 | AU67: 35 | AV67: 30 | AW67: 7
A68: 416 | B68: 416035035 | C68: BOSTON PREPARATORY | D68: 0 | E68: 0 | F68: 0 | G68: 0 | H68: 280 | I68: 394 | J68: 0 | K68: 26.286 | M68: 0 | N68: 69 | O68: 57 | P68: 524 | Q68: 11 | R68: 674 | AA68: 416 | AB68: 416035035 | AC68: BOSTON PREPARATORY | AD68: 0 | AE68: 0 | AF68: 0 | AG68: 0 | AH68: 280 | AI68: 394 | AJ68: 0 | AK68: 0 | AL68: 0 | AM68: 69 | AN68: 57 | AO68: 222 | AP68: 0 | AQ68: 0 | AR68: 0 | AS68: 302 | AU68: 35 | AV68: 35 | AW68: 11
A69: 416 | B69: 416035044 | C69: BOSTON PREPARATORY | D69: 0 | E69: 0 | F69: 0 | G69: 0 | H69: 0 | I69: 2 | J69: 0 | K69: 0.078 | M69: 0 | N69: 0 | O69: 0 | P69: 0 | Q69: 11 | R69: 2 | AA69: 416 | AB69: 416035044 | AC69: BOSTON PREPARATORY | AD69: 0 | AE69: 0 | AF69: 0 | AG69: 0 | AH69: 0 | AI69: 2 | AJ69: 0 | AK69: 0 | AL69: 0 | AM69: 0 | AN69: 0 | AO69: 0 | AP69: 0 | AQ69: 0 | AR69: 0 | AS69: 0 | AU69: 35 | AV69: 44 | AW69: 11
A70: 416 | B70: 416035073 | C70: BOSTON PREPARATORY | D70: 0 | E70: 0 | F70: 0 | G70: 0 | H70: 0 | I70: 2 | J70: 0 | K70: 0.078 | M70: 0 | N70: 0 | O70: 0 | P70: 0 | Q70: 6 | R70: 2 | AA70: 416 | AB70: 416035073 | AC70: BOSTON PREPARATORY | AD70: 0 | AE70: 0 | AF70: 0 | AG70: 0 | AH70: 0 | AI70: 2 | AJ70: 0 | AK70: 0 | AL70: 0 | AM70: 0 | AN70: 0 | AO70: 0 | AP70: 0 | AQ70: 0 | AR70: 0 | AS70: 0 | AU70: 35 | AV70: 73 | AW70: 6
A71: 416 | B71: 416035170 | C71: BOSTON PREPARATORY | D71: 0 | E71: 0 | F71: 0 | G71: 0 | H71: 0 | I71: 1 | J71: 0 | K71: 0.039 | M71: 0 | N71: 0 | O71: 0 | P71: 0 | Q71: 10 | R71: 1 | AA71: 416 | AB71: 416035170 | AC71: BOSTON PREPARATORY | AD71: 0 | AE71: 0 | AF71: 0 | AG71: 0 | AH71: 0 | AI71: 1 | AJ71: 0 | AK71: 0 | AL71: 0 | AM71: 0 | AN71: 0 | AO71: 0 | AP71: 0 | AQ71: 0 | AR71: 0 | AS71: 0 | AU71: 35 | AV71: 170 | AW71: 10
A72: 416 | B72: 416035189 | C72: BOSTON PREPARATORY | D72: 0 | E72: 0 | F72: 0 | G72: 0 | H72: 0 | I72: 1 | J72: 0 | K72: 0.039 | M72: 0 | N72: 0 | O72: 0 | P72: 1 | Q72: 3 | R72: 1 | AA72: 416 | AB72: 416035189 | AC72: BOSTON PREPARATORY | AD72: 0 | AE72: 0 | AF72: 0 | AG72: 0 | AH72: 0 | AI72: 1 | AJ72: 0 | AK72: 0 | AL72: 0 | AM72: 0 | AN72: 0 | AO72: 0 | AP72: 0 | AQ72: 0 | AR72: 0 | AS72: 1 | AU72: 35 | AV72: 189 | AW72: 3
A73: 416 | B73: 416035244 | C73: BOSTON PREPARATORY | D73: 0 | E73: 0 | F73: 0 | G73: 0 | H73: 2 | I73: 7 | J73: 0 | K73: 0.351 | M73: 0 | N73: 0 | O73: 0 | P73: 5 | Q73: 10 | R73: 9 | AA73: 416 | AB73: 416035244 | AC73: BOSTON PREPARATORY | AD73: 0 | AE73: 0 | AF73: 0 | AG73: 0 | AH73: 2 | AI73: 7 | AJ73: 0 | AK73: 0 | AL73: 0 | AM73: 0 | AN73: 0 | AO73: 1 | AP73: 0 | AQ73: 0 | AR73: 0 | AS73: 4 | AU73: 35 | AV73: 244 | AW73: 10
A74: 416 | B74: 416035274 | C74: BOSTON PREPARATORY | D74: 0 | E74: 0 | F74: 0 | G74: 0 | H74: 1 | I74: 1 | J74: 0 | K74: 0.078 | M74: 0 | N74: 1 | O74: 0 | P74: 2 | Q74: 10 | R74: 2 | AA74: 416 | AB74: 416035274 | AC74: BOSTON PREPARATORY | AD74: 0 | AE74: 0 | AF74: 0 | AG74: 0 | AH74: 1 | AI74: 1 | AJ74: 0 | AK74: 0 | AL74: 0 | AM74: 1 | AN74: 0 | AO74: 1 | AP74: 0 | AQ74: 0 | AR74: 0 | AS74: 1 | AU74: 35 | AV74: 274 | AW74: 10
A75: 416 | B75: 416035285 | C75: BOSTON PREPARATORY | D75: =ROUND(AD75,0) -> 0 | E75: =ROUND(AE75,0) -> 0 | F75: =ROUND(AF75,0) -> 0 | G75: =ROUND(AG75,0) -> 0 | H75: =ROUND(AH75,0) -> 1 | I75: =ROUND(AI75,0)-J75 -> 1 | J75: =ROUND(AJ75,0) -> 0 | K75: =ROUND(0.039*(SUM(AF75:AI75)+(AE75*0.5))+0.049*AJ75,4) -> 0.078 | M75: =ROUND(AL75+(AK75*0.5),0) -> 0 | N75: =ROUND(AM75,0) -> 0 | O75: =ROUND(AN75,0) -> 0 | P75: =ROUND(((AP75+AQ75)*0.5)+AO75+AR75+AS75,0) -> 1 | Q75: =AW75 -> 9 | R75: =SUM(F75:I75)+ROUND(D75*0.5,0)+ROUND(J75,0) -> 2 | AA75: 416 | AB75: 416035285 | AC75: BOSTON PREPARATORY | AD75: 0 | AE75: 0 | AF75: 0 | AG75: 0 | AH75: 1 | AI75: 1 | AJ75: 0 | AK75: 0 | AL75: 0 | AM75: 0 | AN75: 0 | AO75: 1 | AP75: 0 | AQ75: 0 | AR75: 0 | AS75: 0 | AU75: 35 | AV75: 285 | AW75: 9
A76: 417 | B76: 417035035 | C76: BRIDGE BOSTON | D76: 31 | E76: 0 | F76: 36 | G76: 173 | H76: 75 | I76: 0 | J76: 0 | K76: 11.076 | M76: 68 | N76: 8 | O76: 0 | P76: 248 | Q76: 11 | R76: 300 | AA76: 417 | AB76: 417035035 | AC76: BRIDGE BOSTON | AD76: 31 | AE76: 0 | AF76: 36 | AG76: 173 | AH76: 75 | AI76: 0 | AJ76: 0 | AK76: 11 | AL76: 62 | AM76: 8 | AN76: 0 | AO76: 203 | AP76: 30 | AQ76: 0 | AR76: 30 | AS76: 0 | AU76: 35 | AV76: 35 | AW76: 11
A77: 417 | B77: 417035040 | C77: BRIDGE BOSTON | D77: 0 | E77: 0 | F77: 0 | G77: 1 | H77: 0 | I77: 0 | J77: 0 | K77: 0.039 | M77: 0 | N77: 0 | O77: 0 | P77: 1 | Q77: 6 | R77: 1 | AA77: 417 | AB77: 417035040 | AC77: BRIDGE BOSTON | AD77: 0 | AE77: 0 | AF77: 0 | AG77: 1 | AH77: 0 | AI77: 0 | AJ77: 0 | AK77: 0 | AL77: 0 | AM77: 0 | AN77: 0 | AO77: 1 | AP77: 0 | AQ77: 0 | AR77: 0 | AS77: 0 | AU77: 35 | AV77: 40 | AW77: 6
A78: 417 | B78: 417035044 | C78: BRIDGE BOSTON | D78: 0 | E78: 0 | F78: 0 | G78: 1 | H78: 0 | I78: 0 | J78: 0 | K78: 0.039 | M78: 0 | N78: 0 | O78: 0 | P78: 1 | Q78: 11 | R78: 1 | AA78: 417 | AB78: 417035044 | AC78: BRIDGE BOSTON | AD78: 0 | AE78: 0 | AF78: 0 | AG78: 1 | AH78: 0 | AI78: 0 | AJ78: 0 | AK78: 0 | AL78: 0 | AM78: 0 | AN78: 0 | AO78: 1 | AP78: 0 | AQ78: 0 | AR78: 0 | AS78: 0 | AU78: 35 | AV78: 44 | AW78: 11
A79: 417 | B79: 417035100 | C79: BRIDGE BOSTON | D79: 0 | E79: 0 | F79: 0 | G79: 2 | H79: 2 | I79: 0 | J79: 0 | K79: 0.156 | M79: 0 | N79: 0 | O79: 0 | P79: 4 | Q79: 10 | R79: 4 | AA79: 417 | AB79: 417035100 | AC79: BRIDGE BOSTON | AD79: 0 | AE79: 0 | AF79: 0 | AG79: 2 | AH79: 2 | AI79: 0 | AJ79: 0 | AK79: 0 | AL79: 0 | AM79: 0 | AN79: 0 | AO79: 4 | AP79: 0 | AQ79: 0 | AR79: 0 | AS79: 0 | AU79: 35 | AV79: 100 | AW79: 10
A80: 417 | B80: 417035133 | C80: BRIDGE BOSTON | D80: 0 | E80: 0 | F80: 1 | G80: 1 | H80: 1 | I80: 0 | J80: 0 | K80: 0.117 | M80: 0 | N80: 0 | O80: 0 | P80: 1 | Q80: 9 | R80: 3 | AA80: 417 | AB80: 417035133 | AC80: BRIDGE BOSTON | AD80: 0 | AE80: 0 | AF80: 1 | AG80: 1 | AH80: 1 | AI80: 0 | AJ80: 0 | AK80: 0 | AL80: 0 | AM80: 0 | AN80: 0 | AO80: 0 | AP80: 0 | AQ80: 0 | AR80: 1 | AS80: 0 | AU80: 35 | AV80: 133 | AW80: 9
A81: 417 | B81: 417035244 | C81: BRIDGE BOSTON | D81: 0 | E81: 0 | F81: 0 | G81: 4 | H81: 1 | I81: 0 | J81: 0 | K81: 0.195 | M81: 3 | N81: 0 | O81: 0 | P81: 4 | Q81: 10 | R81: 5 | AA81: 417 | AB81: 417035244 | AC81: BRIDGE BOSTON | AD81: 0 | AE81: 0 | AF81: 0 | AG81: 4 | AH81: 1 | AI81: 0 | AJ81: 0 | AK81: 0 | AL81: 3 | AM81: 0 | AN81: 0 | AO81: 4 | AP81: 0 | AQ81: 0 | AR81: 0 | AS81: 0 | AU81: 35 | AV81: 244 | AW81: 10
A82: 417 | B82: 417035285 | C82: BRIDGE BOSTON | D82: 0 | E82: 0 | F82: 0 | G82: 4 | H82: 1 | I82: 0 | J82: 0 | K82: 0.195 | M82: 1 | N82: 0 | O82: 0 | P82: 3 | Q82: 9 | R82: 5 | AA82: 417 | AB82: 417035285 | AC82: BRIDGE BOSTON | AD82: 0 | AE82: 0 | AF82: 0 | AG82: 4 | AH82: 1 | AI82: 0 | AJ82: 0 | AK82: 0 | AL82: 1 | AM82: 0 | AN82: 0 | AO82: 3 | AP82: 0 | AQ82: 0 | AR82: 0 | AS82: 0 | AU82: 35 | AV82: 285 | AW82: 9
A83: 418 | B83: 418100014 | C83: CHRISTA MCAULIFFE | D83: 0 | E83: 0 | F83: 0 | G83: 0 | H83: 2 | I83: 0 | J83: 0 | K83: 0.078 | M83: 0 | N83: 0 | O83: 0 | P83: 1 | Q83: 5 | R83: 2 | AA83: 418 | AB83: 418100014 | AC83: CHRISTA MCAULIFFE | AD83: 0 | AE83: 0 | AF83: 0 | AG83: 0 | AH83: 2 | AI83: 0 | AJ83: 0 | AK83: 0 | AL83: 0 | AM83: 0 | AN83: 0 | AO83: 1 | AP83: 0 | AQ83: 0 | AR83: 0 | AS83: 0 | AU83: 100 | AV83: 14 | AW83: 5
A84: 418 | B84: 418100100 | C84: CHRISTA MCAULIFFE | D84: 0 | E84: 0 | F84: 0 | G84: 0 | H84: 300 | I84: 0 | J84: 0 | K84: 11.7 | M84: 0 | N84: 23 | O84: 0 | P84: 180 | Q84: 10 | R84: 300 | AA84: 418 | AB84: 418100100 | AC84: CHRISTA MCAULIFFE | AD84: 0 | AE84: 0 | AF84: 0 | AG84: 0 | AH84: 300 | AI84: 0 | AJ84: 0 | AK84: 0 | AL84: 0 | AM84: 23 | AN84: 0 | AO84: 180 | AP84: 0 | AQ84: 0 | AR84: 0 | AS84: 0 | AU84: 100 | AV84: 100 | AW84: 10
A85: 418 | B85: 418100136 | C85: CHRISTA MCAULIFFE | D85: 0 | E85: 0 | F85: 0 | G85: 0 | H85: 7 | I85: 0 | J85: 0 | K85: 0.273 | M85: 0 | N85: 0 | O85: 0 | P85: 2 | Q85: 3 | R85: 7 | AA85: 418 | AB85: 418100136 | AC85: CHRISTA MCAULIFFE | AD85: 0 | AE85: 0 | AF85: 0 | AG85: 0 | AH85: 7 | AI85: 0 | AJ85: 0 | AK85: 0 | AL85: 0 | AM85: 0 | AN85: 0 | AO85: 2 | AP85: 0 | AQ85: 0 | AR85: 0 | AS85: 0 | AU85: 100 | AV85: 136 | AW85: 3
A86: 418 | B86: 418100170 | C86: CHRISTA MCAULIFFE | D86: 0 | E86: 0 | F86: 0 | G86: 0 | H86: 3 | I86: 0 | J86: 0 | K86: 0.117 | M86: 0 | N86: 0 | O86: 0 | P86: 1 | Q86: 10 | R86: 3 | AA86: 418 | AB86: 418100170 | AC86: CHRISTA MCAULIFFE | AD86: 0 | AE86: 0 | AF86: 0 | AG86: 0 | AH86: 3 | AI86: 0 | AJ86: 0 | AK86: 0 | AL86: 0 | AM86: 0 | AN86: 0 | AO86: 1 | AP86: 0 | AQ86: 0 | AR86: 0 | AS86: 0 | AU86: 100 | AV86: 170 | AW86: 10
A87: 418 | B87: 418100198 | C87: CHRISTA MCAULIFFE | D87: 0 | E87: 0 | F87: 0 | G87: 0 | H87: 7 | I87: 0 | J87: 0 | K87: 0.273 | M87: 0 | N87: 0 | O87: 0 | P87: 0 | Q87: 3 | R87: 7 | AA87: 418 | AB87: 418100198 | AC87: CHRISTA MCAULIFFE | AD87: 0 | AE87: 0 | AF87: 0 | AG87: 0 | AH87: 7 | AI87: 0 | AJ87: 0 | AK87: 0 | AL87: 0 | AM87: 0 | AN87: 0 | AO87: 0 | AP87: 0 | AQ87: 0 | AR87: 0 | AS87: 0 | AU87: 100 | AV87: 198 | AW87: 3
A88: 418 | B88: 418100208 | C88: CHRISTA MCAULIFFE | D88: 0 | E88: 0 | F88: 0 | G88: 0 | H88: 2 | I88: 0 | J88: 0 | K88: 0.078 | M88: 0 | N88: 0 | O88: 0 | P88: 0 | Q88: 2 | R88: 2 | AA88: 418 | AB88: 418100208 | AC88: CHRISTA MCAULIFFE | AD88: 0 | AE88: 0 | AF88: 0 | AG88: 0 | AH88: 2 | AI88: 0 | AJ88: 0 | AK88: 0 | AL88: 0 | AM88: 0 | AN88: 0 | AO88: 0 | AP88: 0 | AQ88: 0 | AR88: 0 | AS88: 0 | AU88: 100 | AV88: 208 | AW88: 2
A89: 418 | B89: 418100276 | C89: CHRISTA MCAULIFFE | D89: 0 | E89: 0 | F89: 0 | G89: 0 | H89: 3 | I89: 0 | J89: 0 | K89: 0.117 | M89: 0 | N89: 0 | O89: 0 | P89: 0 | Q89: 2 | R89: 3 | AA89: 418 | AB89: 418100276 | AC89: CHRISTA MCAULIFFE | AD89: 0 | AE89: 0 | AF89: 0 | AG89: 0 | AH89: 3 | AI89: 0 | AJ89: 0 | AK89: 0 | AL89: 0 | AM89: 0 | AN89: 0 | AO89: 0 | AP89: 0 | AQ89: 0 | AR89: 0 | AS89: 0 | AU89: 100 | AV89: 276 | AW89: 2
A90: 418 | B90: 418100288 | C90: CHRISTA MCAULIFFE | D90: 0 | E90: 0 | F90: 0 | G90: 0 | H90: 1 | I90: 0 | J90: 0 | K90: 0.039 | M90: 0 | N90: 0 | O90: 0 | P90: 1 | Q90: 2 | R90: 1 | AA90: 418 | AB90: 418100288 | AC90: CHRISTA MCAULIFFE | AD90: 0 | AE90: 0 | AF90: 0 | AG90: 0 | AH90: 1 | AI90: 0 | AJ90: 0 | AK90: 0 | AL90: 0 | AM90: 0 | AN90: 0 | AO90: 1 | AP90: 0 | AQ90: 0 | AR90: 0 | AS90: 0 | AU90: 100 | AV90: 288 | AW90: 2
A91: 418 | B91: 418100308 | C91: CHRISTA MCAULIFFE | D91: 0 | E91: 0 | F91: 0 | G91: 0 | H91: 1 | I91: 0 | J91: 0 | K91: 0.039 | M91: 0 | N91: 0 | O91: 0 | P91: 0 | Q91: 10 | R91: 1 | AA91: 418 | AB91: 418100308 | AC91: CHRISTA MCAULIFFE | AD91: 0 | AE91: 0 | AF91: 0 | AG91: 0 | AH91: 1 | AI91: 0 | AJ91: 0 | AK91: 0 | AL91: 0 | AM91: 0 | AN91: 0 | AO91: 0 | AP91: 0 | AQ91: 0 | AR91: 0 | AS91: 0 | AU91: 100 | AV91: 308 | AW91: 10
A92: 418 | B92: 418100315 | C92: CHRISTA MCAULIFFE | D92: 0 | E92: 0 | F92: 0 | G92: 0 | H92: 1 | I92: 0 | J92: 0 | K92: 0.039 | M92: 0 | N92: 0 | O92: 0 | P92: 0 | Q92: 2 | R92: 1 | AA92: 418 | AB92: 418100315 | AC92: CHRISTA MCAULIFFE | AD92: 0 | AE92: 0 | AF92: 0 | AG92: 0 | AH92: 1 | AI92: 0 | AJ92: 0 | AK92: 0 | AL92: 0 | AM92: 0 | AN92: 0 | AO92: 0 | AP92: 0 | AQ92: 0 | AR92: 0 | AS92: 0 | AU92: 100 | AV92: 315 | AW92: 2
A93: 418 | B93: 418100321 | C93: CHRISTA MCAULIFFE | D93: 0 | E93: 0 | F93: 0 | G93: 0 | H93: 1 | I93: 0 | J93: 0 | K93: 0.039 | M93: 0 | N93: 0 | O93: 0 | P93: 0 | Q93: 4 | R93: 1 | AA93: 418 | AB93: 418100321 | AC93: CHRISTA MCAULIFFE | AD93: 0 | AE93: 0 | AF93: 0 | AG93: 0 | AH93: 1 | AI93: 0 | AJ93: 0 | AK93: 0 | AL93: 0 | AM93: 0 | AN93: 0 | AO93: 0 | AP93: 0 | AQ93: 0 | AR93: 0 | AS93: 0 | AU93: 100 | AV93: 321 | AW93: 4
A94: 418 | B94: 418100348 | C94: CHRISTA MCAULIFFE | D94: 0 | E94: 0 | F94: 0 | G94: 0 | H94: 1 | I94: 0 | J94: 0 | K94: 0.039 | M94: 0 | N94: 0 | O94: 0 | P94: 0 | Q94: 11 | R94: 1 | AA94: 418 | AB94: 418100348 | AC94: CHRISTA MCAULIFFE | AD94: 0 | AE94: 0 | AF94: 0 | AG94: 0 | AH94: 1 | AI94: 0 | AJ94: 0 | AK94: 0 | AL94: 0 | AM94: 0 | AN94: 0 | AO94: 0 | AP94: 0 | AQ94: 0 | AR94: 0 | AS94: 0 | AU94: 100 | AV94: 348 | AW94: 11
A95: 419 | B95: 419035035 | C95: HELEN Y. DAVIS LEADERSHIP ACADEMY | D95: 0 | E95: 0 | F95: 0 | G95: 0 | H95: 108 | I95: 0 | J95: 0 | K95: 4.212 | M95: 0 | N95: 8 | O95: 0 | P95: 93 | Q95: 11 | R95: 108 | AA95: 419 | AB95: 419035035 | AC95: HELEN Y. DAVIS LEADERSHIP ACADEMY | AD95: 0 | AE95: 0 | AF95: 0 | AG95: 0 | AH95: 108 | AI95: 0 | AJ95: 0 | AK95: 0 | AL95: 0 | AM95: 8 | AN95: 0 | AO95: 93 | AP95: 0 | AQ95: 0 | AR95: 0 | AS95: 0 | AU95: 35 | AV95: 35 | AW95: 11
A96: 419 | B96: 419035044 | C96: HELEN Y. DAVIS LEADERSHIP ACADEMY | D96: 0 | E96: 0 | F96: 0 | G96: 0 | H96: 2 | I96: 0 | J96: 0 | K96: 0.078 | M96: 0 | N96: 0 | O96: 0 | P96: 1 | Q96: 11 | R96: 2 | AA96: 419 | AB96: 419035044 | AC96: HELEN Y. DAVIS LEADERSHIP ACADEMY | AD96: 0 | AE96: 0 | AF96: 0 | AG96: 0 | AH96: 2 | AI96: 0 | AJ96: 0 | AK96: 0 | AL96: 0 | AM96: 0 | AN96: 0 | AO96: 1 | AP96: 0 | AQ96: 0 | AR96: 0 | AS96: 0 | AU96: 35 | AV96: 44 | AW96: 11
A97: 419 | B97: 419035176 | C97: HELEN Y. DAVIS LEADERSHIP ACADEMY | D97: 0 | E97: 0 | F97: 0 | G97: 0 | H97: 1 | I97: 0 | J97: 0 | K97: 0.039 | M97: 0 | N97: 0 | O97: 0 | P97: 1 | Q97: 8 | R97: 1 | AA97: 419 | AB97: 419035176 | AC97: HELEN Y. DAVIS LEADERSHIP ACADEMY | AD97: 0 | AE97: 0 | AF97: 0 | AG97: 0 | AH97: 1 | AI97: 0 | AJ97: 0 | AK97: 0 | AL97: 0 | AM97: 0 | AN97: 0 | AO97: 1 | AP97: 0 | AQ97: 0 | AR97: 0 | AS97: 0 | AU97: 35 | AV97: 176 | AW97: 8
A98: 419 | B98: 419035189 | C98: HELEN Y. DAVIS LEADERSHIP ACADEMY | D98: 0 | E98: 0 | F98: 0 | G98: 0 | H98: 1 | I98: 0 | J98: 0 | K98: 0.039 | M98: 0 | N98: 0 | O98: 0 | P98: 1 | Q98: 3 | R98: 1 | AA98: 419 | AB98: 419035189 | AC98: HELEN Y. DAVIS LEADERSHIP ACADEMY | AD98: 0 | AE98: 0 | AF98: 0 | AG98: 0 | AH98: 1 | AI98: 0 | AJ98: 0 | AK98: 0 | AL98: 0 | AM98: 0 | AN98: 0 | AO98: 1 | AP98: 0 | AQ98: 0 | AR98: 0 | AS98: 0 | AU98: 35 | AV98: 189 | AW98: 3
A99: 419 | B99: 419035244 | C99: HELEN Y. DAVIS LEADERSHIP ACADEMY | D99: 0 | E99: 0 | F99: 0 | G99: 0 | H99: 2 | I99: 0 | J99: 0 | K99: 0.078 | M99: 0 | N99: 0 | O99: 0 | P99: 1 | Q99: 10 | R99: 2 | AA99: 419 | AB99: 419035244 | AC99: HELEN Y. DAVIS LEADERSHIP ACADEMY | AD99: 0 | AE99: 0 | AF99: 0 | AG99: 0 | AH99: 2 | AI99: 0 | AJ99: 0 | AK99: 0 | AL99: 0 | AM99: 0 | AN99: 0 | AO99: 1 | AP99: 0 | AQ99: 0 | AR99: 0 | AS99: 0 | AU99: 35 | AV99: 244 | AW99: 10
A100: 420 | B100: 420049010 | C100: BENJAMIN BANNEKER | D100: 1 | E100: 0 | F100: 0 | G100: 3 | H100: 1 | I100: 0 | J100: 0 | K100: 0.156 | M100: 1 | N100: 0 | O100: 0 | P100: 4 | Q100: 3 | R100: 5 | AA100: 420 | AB100: 420049010 | AC100: BENJAMIN BANNEKER | AD100: 1 | AE100: 0 | AF100: 0 | AG100: 3 | AH100: 1 | AI100: 0 | AJ100: 0 | AK100: 0 | AL100: 1 | AM100: 0 | AN100: 0 | AO100: 3 | AP100: 1 | AQ100: 0 | AR100: 0 | AS100: 0 | AU100: 49 | AV100: 10 | AW100: 3
A101: 420 | B101: 420049026 | C101: BENJAMIN BANNEKER | D101: 0 | E101: 0 | F101: 2 | G101: 2 | H101: 1 | I101: 0 | J101: 0 | K101: 0.195 | M101: 0 | N101: 0 | O101: 0 | P101: 2 | Q101: 3 | R101: 5 | AA101: 420 | AB101: 420049026 | AC101: BENJAMIN BANNEKER | AD101: 0 | AE101: 0 | AF101: 2 | AG101: 2 | AH101: 1 | AI101: 0 | AJ101: 0 | AK101: 0 | AL101: 0 | AM101: 0 | AN101: 0 | AO101: 1 | AP101: 0 | AQ101: 0 | AR101: 1 | AS101: 0 | AU101: 49 | AV101: 26 | AW101: 3
A102: 420 | B102: 420049031 | C102: BENJAMIN BANNEKER | D102: 0 | E102: 0 | F102: 0 | G102: 1 | H102: 0 | I102: 0 | J102: 0 | K102: 0.039 | M102: 0 | N102: 0 | O102: 0 | P102: 0 | Q102: 6 | R102: 1 | AA102: 420 | AB102: 420049031 | AC102: BENJAMIN BANNEKER | AD102: 0 | AE102: 0 | AF102: 0 | AG102: 1 | AH102: 0 | AI102: 0 | AJ102: 0 | AK102: 0 | AL102: 0 | AM102: 0 | AN102: 0 | AO102: 0 | AP102: 0 | AQ102: 0 | AR102: 0 | AS102: 0 | AU102: 49 | AV102: 31 | AW102: 6
A103: 420 | B103: 420049035 | C103: BENJAMIN BANNEKER | D103: 1 | E103: 0 | F103: 5 | G103: 17 | H103: 4 | I103: 0 | J103: 0 | K103: 1.014 | M103: 1 | N103: 0 | O103: 0 | P103: 16 | Q103: 11 | R103: 27 | AA103: 420 | AB103: 420049035 | AC103: BENJAMIN BANNEKER | AD103: 1 | AE103: 0 | AF103: 5 | AG103: 17 | AH103: 4 | AI103: 0 | AJ103: 0 | AK103: 0 | AL103: 1 | AM103: 0 | AN103: 0 | AO103: 12 | AP103: 0 | AQ103: 0 | AR103: 4 | AS103: 0 | AU103: 49 | AV103: 35 | AW103: 11
A104: 420 | B104: 420049044 | C104: BENJAMIN BANNEKER | D104: 0 | E104: 0 | F104: 1 | G104: 4 | H104: 1 | I104: 0 | J104: 0 | K104: 0.234 | M104: 0 | N104: 0 | O104: 0 | P104: 4 | Q104: 11 | R104: 6 | AA104: 420 | AB104: 420049044 | AC104: BENJAMIN BANNEKER | AD104: 0 | AE104: 0 | AF104: 1 | AG104: 4 | AH104: 1 | AI104: 0 | AJ104: 0 | AK104: 0 | AL104: 0 | AM104: 0 | AN104: 0 | AO104: 4 | AP104: 0 | AQ104: 0 | AR104: 0 | AS104: 0 | AU104: 49 | AV104: 44 | AW104: 11
A105: 420 | B105: 420049049 | C105: BENJAMIN BANNEKER | D105: 13 | E105: 0 | F105: 25 | G105: 156 | H105: 18 | I105: 0 | J105: 0 | K105: 7.761 | M105: 13 | N105: 3 | O105: 0 | P105: 172 | Q105: 8 | R105: 206 | AA105: 420 | AB105: 420049049 | AC105: BENJAMIN BANNEKER | AD105: 13 | AE105: 0 | AF105: 25 | AG105: 156 | AH105: 18 | AI105: 0 | AJ105: 0 | AK105: 0 | AL105: 13 | AM105: 3 | AN105: 0 | AO105: 147 | AP105: 7 | AQ105: 0 | AR105: 21 | AS105: 0 | AU105: 49 | AV105: 49 | AW105: 8
A106: 420 | B106: 420049057 | C106: BENJAMIN BANNEKER | D106: 0 | E106: 0 | F106: 0 | G106: 3 | H106: 0 | I106: 0 | J106: 0 | K106: 0.117 | M106: 0 | N106: 0 | O106: 0 | P106: 0 | Q106: 12 | R106: 3 | AA106: 420 | AB106: 420049057 | AC106: BENJAMIN BANNEKER | AD106: 0 | AE106: 0 | AF106: 0 | AG106: 3 | AH106: 0 | AI106: 0 | AJ106: 0 | AK106: 0 | AL106: 0 | AM106: 0 | AN106: 0 | AO106: 0 | AP106: 0 | AQ106: 0 | AR106: 0 | AS106: 0 | AU106: 49 | AV106: 57 | AW106: 12
A107: 420 | B107: 420049067 | C107: BENJAMIN BANNEKER | D107: 0 | E107: 0 | F107: 0 | G107: 1 | H107: 0 | I107: 0 | J107: 0 | K107: 0.039 | M107: 0 | N107: 0 | O107: 0 | P107: 1 | Q107: 2 | R107: 1 | AA107: 420 | AB107: 420049067 | AC107: BENJAMIN BANNEKER | AD107: 0 | AE107: 0 | AF107: 0 | AG107: 1 | AH107: 0 | AI107: 0 | AJ107: 0 | AK107: 0 | AL107: 0 | AM107: 0 | AN107: 0 | AO107: 1 | AP107: 0 | AQ107: 0 | AR107: 0 | AS107: 0 | AU107: 49 | AV107: 67 | AW107: 2
A108: 420 | B108: 420049093 | C108: BENJAMIN BANNEKER | D108: 1 | E108: 0 | F108: 1 | G108: 8 | H108: 4 | I108: 0 | J108: 0 | K108: 0.507 | M108: 1 | N108: 0 | O108: 0 | P108: 9 | Q108: 11 | R108: 14 | AA108: 420 | AB108: 420049093 | AC108: BENJAMIN BANNEKER | AD108: 1 | AE108: 0 | AF108: 1 | AG108: 8 | AH108: 4 | AI108: 0 | AJ108: 0 | AK108: 1 | AL108: 0 | AM108: 0 | AN108: 0 | AO108: 8 | AP108: 1 | AQ108: 0 | AR108: 0 | AS108: 0 | AU108: 49 | AV108: 93 | AW108: 11
A109: 420 | B109: 420049097 | C109: BENJAMIN BANNEKER | D109: 1 | E109: 0 | F109: 0 | G109: 1 | H109: 0 | I109: 0 | J109: 0 | K109: 0.039 | M109: 0 | N109: 0 | O109: 0 | P109: 2 | Q109: 11 | R109: 2 | AA109: 420 | AB109: 420049097 | AC109: BENJAMIN BANNEKER | AD109: 1 | AE109: 0 | AF109: 0 | AG109: 1 | AH109: 0 | AI109: 0 | AJ109: 0 | AK109: 0 | AL109: 0 | AM109: 0 | AN109: 0 | AO109: 1 | AP109: 1 | AQ109: 0 | AR109: 0 | AS109: 0 | AU109: 49 | AV109: 97 | AW109: 11
A110: 420 | B110: 420049128 | C110: BENJAMIN BANNEKER | D110: 0 | E110: 0 | F110: 0 | G110: 1 | H110: 0 | I110: 0 | J110: 0 | K110: 0.039 | M110: 0 | N110: 0 | O110: 0 | P110: 1 | Q110: 10 | R110: 1 | AA110: 420 | AB110: 420049128 | AC110: BENJAMIN BANNEKER | AD110: 0 | AE110: 0 | AF110: 0 | AG110: 1 | AH110: 0 | AI110: 0 | AJ110: 0 | AK110: 0 | AL110: 0 | AM110: 0 | AN110: 0 | AO110: 1 | AP110: 0 | AQ110: 0 | AR110: 0 | AS110: 0 | AU110: 49 | AV110: 128 | AW110: 10
A111: 420 | B111: 420049163 | C111: BENJAMIN BANNEKER | D111: 0 | E111: 0 | F111: 0 | G111: 0 | H111: 1 | I111: 0 | J111: 0 | K111: 0.039 | M111: 0 | N111: 0 | O111: 0 | P111: 1 | Q111: 11 | R111: 1 | AA111: 420 | AB111: 420049163 | AC111: BENJAMIN BANNEKER | AD111: 0 | AE111: 0 | AF111: 0 | AG111: 0 | AH111: 1 | AI111: 0 | AJ111: 0 | AK111: 0 | AL111: 0 | AM111: 0 | AN111: 0 | AO111: 1 | AP111: 0 | AQ111: 0 | AR111: 0 | AS111: 0 | AU111: 49 | AV111: 163 | AW111: 11
A112: 420 | B112: 420049165 | C112: BENJAMIN BANNEKER | D112: 0 | E112: 0 | F112: 2 | G112: 6 | H112: 2 | I112: 0 | J112: 0 | K112: 0.39 | M112: 0 | N112: 0 | O112: 0 | P112: 8 | Q112: 10 | R112: 10 | AA112: 420 | AB112: 420049165 | AC112: BENJAMIN BANNEKER | AD112: 0 | AE112: 0 | AF112: 2 | AG112: 6 | AH112: 2 | AI112: 0 | AJ112: 0 | AK112: 0 | AL112: 0 | AM112: 0 | AN112: 0 | AO112: 6 | AP112: 0 | AQ112: 0 | AR112: 2 | AS112: 0 | AU112: 49 | AV112: 165 | AW112: 10
A113: 420 | B113: 420049174 | C113: BENJAMIN BANNEKER | D113: 0 | E113: 0 | F113: 0 | G113: 2 | H113: 0 | I113: 0 | J113: 0 | K113: 0.078 | M113: 0 | N113: 0 | O113: 0 | P113: 0 | Q113: 6 | R113: 2 | AA113: 420 | AB113: 420049174 | AC113: BENJAMIN BANNEKER | AD113: 0 | AE113: 0 | AF113: 0 | AG113: 2 | AH113: 0 | AI113: 0 | AJ113: 0 | AK113: 0 | AL113: 0 | AM113: 0 | AN113: 0 | AO113: 0 | AP113: 0 | AQ113: 0 | AR113: 0 | AS113: 0 | AU113: 49 | AV113: 174 | AW113: 6
A114: 420 | B114: 420049176 | C114: BENJAMIN BANNEKER | D114: 0 | E114: 0 | F114: 3 | G114: 10 | H114: 4 | I114: 0 | J114: 0 | K114: 0.663 | M114: 0 | N114: 0 | O114: 0 | P114: 6 | Q114: 8 | R114: 17 | AA114: 420 | AB114: 420049176 | AC114: BENJAMIN BANNEKER | AD114: 0 | AE114: 0 | AF114: 3 | AG114: 10 | AH114: 4 | AI114: 0 | AJ114: 0 | AK114: 0 | AL114: 0 | AM114: 0 | AN114: 0 | AO114: 5 | AP114: 0 | AQ114: 0 | AR114: 1 | AS114: 0 | AU114: 49 | AV114: 176 | AW114: 8
A115: 420 | B115: 420049199 | C115: BENJAMIN BANNEKER | D115: 0 | E115: 0 | F115: 1 | G115: 0 | H115: 1 | I115: 0 | J115: 0 | K115: 0.078 | M115: 0 | N115: 1 | O115: 0 | P115: 2 | Q115: 2 | R115: 2 | AA115: 420 | AB115: 420049199 | AC115: BENJAMIN BANNEKER | AD115: 0 | AE115: 0 | AF115: 1 | AG115: 0 | AH115: 1 | AI115: 0 | AJ115: 0 | AK115: 0 | AL115: 0 | AM115: 1 | AN115: 0 | AO115: 1 | AP115: 0 | AQ115: 0 | AR115: 1 | AS115: 0 | AU115: 49 | AV115: 199 | AW115: 2
A116: 420 | B116: 420049238 | C116: BENJAMIN BANNEKER | D116: 0 | E116: 0 | F116: 0 | G116: 0 | H116: 1 | I116: 0 | J116: 0 | K116: 0.039 | M116: 0 | N116: 0 | O116: 0 | P116: 0 | Q116: 6 | R116: 1 | AA116: 420 | AB116: 420049238 | AC116: BENJAMIN BANNEKER | AD116: 0 | AE116: 0 | AF116: 0 | AG116: 0 | AH116: 1 | AI116: 0 | AJ116: 0 | AK116: 0 | AL116: 0 | AM116: 0 | AN116: 0 | AO116: 0 | AP116: 0 | AQ116: 0 | AR116: 0 | AS116: 0 | AU116: 49 | AV116: 238 | AW116: 6
A117: 420 | B117: 420049243 | C117: BENJAMIN BANNEKER | D117: 1 | E117: 0 | F117: 0 | G117: 0 | H117: 0 | I117: 0 | J117: 0 | K117: 0 | M117: 0 | N117: 0 | O117: 0 | P117: 0 | Q117: 10 | R117: 1 | AA117: 420 | AB117: 420049243 | AC117: BENJAMIN BANNEKER | AD117: 1 | AE117: 0 | AF117: 0 | AG117: 0 | AH117: 0 | AI117: 0 | AJ117: 0 | AK117: 0 | AL117: 0 | AM117: 0 | AN117: 0 | AO117: 0 | AP117: 0 | AQ117: 0 | AR117: 0 | AS117: 0 | AU117: 49 | AV117: 243 | AW117: 10
A118: 420 | B118: 420049248 | C118: BENJAMIN BANNEKER | D118: 1 | E118: 0 | F118: 1 | G118: 5 | H118: 0 | I118: 0 | J118: 0 | K118: 0.234 | M118: 0 | N118: 0 | O118: 0 | P118: 3 | Q118: 11 | R118: 7 | AA118: 420 | AB118: 420049248 | AC118: BENJAMIN BANNEKER | AD118: 1 | AE118: 0 | AF118: 1 | AG118: 5 | AH118: 0 | AI118: 0 | AJ118: 0 | AK118: 0 | AL118: 0 | AM118: 0 | AN118: 0 | AO118: 1 | AP118: 1 | AQ118: 0 | AR118: 1 | AS118: 0 | AU118: 49 | AV118: 248 | AW118: 11
A119: 420 | B119: 420049262 | C119: BENJAMIN BANNEKER | D119: 0 | E119: 0 | F119: 1 | G119: 1 | H119: 0 | I119: 0 | J119: 0 | K119: 0.078 | M119: 0 | N119: 0 | O119: 0 | P119: 1 | Q119: 9 | R119: 2 | AA119: 420 | AB119: 420049262 | AC119: BENJAMIN BANNEKER | AD119: 0 | AE119: 0 | AF119: 1 | AG119: 1 | AH119: 0 | AI119: 0 | AJ119: 0 | AK119: 0 | AL119: 0 | AM119: 0 | AN119: 0 | AO119: 1 | AP119: 0 | AQ119: 0 | AR119: 0 | AS119: 0 | AU119: 49 | AV119: 262 | AW119: 9
A120: 420 | B120: 420049284 | C120: BENJAMIN BANNEKER | D120: 0 | E120: 0 | F120: 1 | G120: 1 | H120: 0 | I120: 0 | J120: 0 | K120: 0.078 | M120: 0 | N120: 0 | O120: 0 | P120: 0 | Q120: 5 | R120: 2 | AA120: 420 | AB120: 420049284 | AC120: BENJAMIN BANNEKER | AD120: 0 | AE120: 0 | AF120: 1 | AG120: 1 | AH120: 0 | AI120: 0 | AJ120: 0 | AK120: 0 | AL120: 0 | AM120: 0 | AN120: 0 | AO120: 0 | AP120: 0 | AQ120: 0 | AR120: 0 | AS120: 0 | AU120: 49 | AV120: 284 | AW120: 5
A121: 420 | B121: 420049295 | C121: BENJAMIN BANNEKER | D121: 0 | E121: 0 | F121: 0 | G121: 1 | H121: 0 | I121: 0 | J121: 0 | K121: 0.039 | M121: 0 | N121: 0 | O121: 0 | P121: 1 | Q121: 5 | R121: 1 | AA121: 420 | AB121: 420049295 | AC121: BENJAMIN BANNEKER | AD121: 0 | AE121: 0 | AF121: 0 | AG121: 1 | AH121: 0 | AI121: 0 | AJ121: 0 | AK121: 0 | AL121: 0 | AM121: 0 | AN121: 0 | AO121: 1 | AP121: 0 | AQ121: 0 | AR121: 0 | AS121: 0 | AU121: 49 | AV121: 295 | AW121: 5
A122: 420 | B122: 420049305 | C122: BENJAMIN BANNEKER | D122: 0 | E122: 0 | F122: 1 | G122: 0 | H122: 0 | I122: 0 | J122: 0 | K122: 0.039 | M122: 0 | N122: 0 | O122: 0 | P122: 0 | Q122: 4 | R122: 1 | AA122: 420 | AB122: 420049305 | AC122: BENJAMIN BANNEKER | AD122: 0 | AE122: 0 | AF122: 1 | AG122: 0 | AH122: 0 | AI122: 0 | AJ122: 0 | AK122: 0 | AL122: 0 | AM122: 0 | AN122: 0 | AO122: 0 | AP122: 0 | AQ122: 0 | AR122: 0 | AS122: 0 | AU122: 49 | AV122: 305 | AW122: 4
A123: 420 | B123: 420049314 | C123: BENJAMIN BANNEKER | D123: 0 | E123: 0 | F123: 0 | G123: 3 | H123: 0 | I123: 0 | J123: 0 | K123: 0.117 | M123: 0 | N123: 0 | O123: 0 | P123: 3 | Q123: 7 | R123: 3 | AA123: 420 | AB123: 420049314 | AC123: BENJAMIN BANNEKER | AD123: 0 | AE123: 0 | AF123: 0 | AG123: 3 | AH123: 0 | AI123: 0 | AJ123: 0 | AK123: 0 | AL123: 0 | AM123: 0 | AN123: 0 | AO123: 3 | AP123: 0 | AQ123: 0 | AR123: 0 | AS123: 0 | AU123: 49 | AV123: 314 | AW123: 7
A124: 420 | B124: 420049344 | C124: BENJAMIN BANNEKER | D124: 0 | E124: 0 | F124: 0 | G124: 1 | H124: 0 | I124: 0 | J124: 0 | K124: 0.039 | M124: 0 | N124: 0 | O124: 0 | P124: 1 | Q124: 2 | R124: 1 | AA124: 420 | AB124: 420049344 | AC124: BENJAMIN BANNEKER | AD124: 0 | AE124: 0 | AF124: 0 | AG124: 1 | AH124: 0 | AI124: 0 | AJ124: 0 | AK124: 0 | AL124: 0 | AM124: 0 | AN124: 0 | AO124: 1 | AP124: 0 | AQ124: 0 | AR124: 0 | AS124: 0 | AU124: 49 | AV124: 344 | AW124: 2
A125: 420 | B125: 420049616 | C125: BENJAMIN BANNEKER | D125: 1 | E125: 0 | F125: 0 | G125: 2 | H125: 1 | I125: 0 | J125: 0 | K125: 0.117 | M125: 0 | N125: 0 | O125: 0 | P125: 4 | Q125: 7 | R125: 4 | AA125: 420 | AB125: 420049616 | AC125: BENJAMIN BANNEKER | AD125: 1 | AE125: 0 | AF125: 0 | AG125: 2 | AH125: 1 | AI125: 0 | AJ125: 0 | AK125: 0 | AL125: 0 | AM125: 0 | AN125: 0 | AO125: 3 | AP125: 1 | AQ125: 0 | AR125: 0 | AS125: 0 | AU125: 49 | AV125: 616 | AW125: 7
A126: 428 | B126: 428035016 | C126: BROOKE | D126: 0 | E126: 0 | F126: 0 | G126: 1 | H126: 1 | I126: 3 | J126: 0 | K126: 0.195 | M126: 0 | N126: 0 | O126: 0 | P126: 1 | Q126: 8 | R126: 5 | AA126: 428 | AB126: 428035016 | AC126: BROOKE | AD126: 0 | AE126: 0 | AF126: 0 | AG126: 1 | AH126: 1 | AI126: 3 | AJ126: 0 | AK126: 0 | AL126: 0 | AM126: 0 | AN126: 0 | AO126: 0 | AP126: 0 | AQ126: 0 | AR126: 0 | AS126: 1 | AU126: 35 | AV126: 16 | AW126: 8
A127: 428 | B127: 428035018 | C127: BROOKE | D127: 0 | E127: 0 | F127: 1 | G127: 0 | H127: 0 | I127: 0 | J127: 0 | K127: 0.039 | M127: 0 | N127: 0 | O127: 0 | P127: 1 | Q127: 10 | R127: 1 | AA127: 428 | AB127: 428035018 | AC127: BROOKE | AD127: 0 | AE127: 0 | AF127: 1 | AG127: 0 | AH127: 0 | AI127: 0 | AJ127: 0 | AK127: 0 | AL127: 0 | AM127: 0 | AN127: 0 | AO127: 0 | AP127: 0 | AQ127: 0 | AR127: 1 | AS127: 0 | AU127: 35 | AV127: 18 | AW127: 10
A128: 428 | B128: 428035035 | C128: BROOKE | D128: 0 | E128: 0 | F128: 161 | G128: 818 | H128: 453 | I128: 429 | J128: 0 | K128: 72.579 | M128: 95 | N128: 13 | O128: 11 | P128: 1359 | Q128: 11 | R128: 1861 | AA128: 428 | AB128: 428035035 | AC128: BROOKE | AD128: 0 | AE128: 0 | AF128: 161 | AG128: 818 | AH128: 453 | AI128: 429 | AJ128: 0 | AK128: 0 | AL128: 95 | AM128: 13 | AN128: 11 | AO128: 937 | AP128: 0 | AQ128: 0 | AR128: 125 | AS128: 297 | AU128: 35 | AV128: 35 | AW128: 11
A129: 428 | B129: 428035044 | C129: BROOKE | D129: 0 | E129: 0 | F129: 1 | G129: 10 | H129: 4 | I129: 17 | J129: 0 | K129: 1.248 | M129: 2 | N129: 1 | O129: 0 | P129: 18 | Q129: 11 | R129: 32 | AA129: 428 | AB129: 428035044 | AC129: BROOKE | AD129: 0 | AE129: 0 | AF129: 1 | AG129: 10 | AH129: 4 | AI129: 17 | AJ129: 0 | AK129: 0 | AL129: 2 | AM129: 1 | AN129: 0 | AO129: 6 | AP129: 0 | AQ129: 0 | AR129: 1 | AS129: 11 | AU129: 35 | AV129: 44 | AW129: 11
A130: 428 | B130: 428035050 | C130: BROOKE | D130: 0 | E130: 0 | F130: 0 | G130: 0 | H130: 1 | I130: 0 | J130: 0 | K130: 0.039 | M130: 0 | N130: 0 | O130: 0 | P130: 1 | Q130: 5 | R130: 1 | AA130: 428 | AB130: 428035050 | AC130: BROOKE | AD130: 0 | AE130: 0 | AF130: 0 | AG130: 0 | AH130: 1 | AI130: 0 | AJ130: 0 | AK130: 0 | AL130: 0 | AM130: 0 | AN130: 0 | AO130: 1 | AP130: 0 | AQ130: 0 | AR130: 0 | AS130: 0 | AU130: 35 | AV130: 50 | AW130: 5
A131: 428 | B131: 428035057 | C131: BROOKE | D131: 0 | E131: 0 | F131: 21 | G131: 79 | H131: 44 | I131: 28 | J131: 0 | K131: 6.708 | M131: 29 | N131: 0 | O131: 0 | P131: 132 | Q131: 12 | R131: 172 | AA131: 428 | AB131: 428035057 | AC131: BROOKE | AD131: 0 | AE131: 0 | AF131: 21 | AG131: 79 | AH131: 44 | AI131: 28 | AJ131: 0 | AK131: 0 | AL131: 29 | AM131: 0 | AN131: 0 | AO131: 98 | AP131: 0 | AQ131: 0 | AR131: 12 | AS131: 22 | AU131: 35 | AV131: 57 | AW131: 12
A132: 428 | B132: 428035073 | C132: BROOKE | D132: 0 | E132: 0 | F132: 1 | G132: 5 | H132: 7 | I132: 3 | J132: 0 | K132: 0.624 | M132: 0 | N132: 0 | O132: 0 | P132: 7 | Q132: 6 | R132: 16 | AA132: 428 | AB132: 428035073 | AC132: BROOKE | AD132: 0 | AE132: 0 | AF132: 1 | AG132: 5 | AH132: 7 | AI132: 3 | AJ132: 0 | AK132: 0 | AL132: 0 | AM132: 0 | AN132: 0 | AO132: 6 | AP132: 0 | AQ132: 0 | AR132: 0 | AS132: 1 | AU132: 35 | AV132: 73 | AW132: 6
A133: 428 | B133: 428035093 | C133: BROOKE | D133: 0 | E133: 0 | F133: 0 | G133: 4 | H133: 1 | I133: 2 | J133: 0 | K133: 0.273 | M133: 1 | N133: 0 | O133: 0 | P133: 6 | Q133: 11 | R133: 7 | AA133: 428 | AB133: 428035093 | AC133: BROOKE | AD133: 0 | AE133: 0 | AF133: 0 | AG133: 4 | AH133: 1 | AI133: 2 | AJ133: 0 | AK133: 0 | AL133: 1 | AM133: 0 | AN133: 0 | AO133: 5 | AP133: 0 | AQ133: 0 | AR133: 0 | AS133: 1 | AU133: 35 | AV133: 93 | AW133: 11
A134: 428 | B134: 428035095 | C134: BROOKE | D134: 0 | E134: 0 | F134: 0 | G134: 1 | H134: 0 | I134: 0 | J134: 0 | K134: 0.039 | M134: 0 | N134: 0 | O134: 0 | P134: 1 | Q134: 12 | R134: 1 | AA134: 428 | AB134: 428035095 | AC134: BROOKE | AD134: 0 | AE134: 0 | AF134: 0 | AG134: 1 | AH134: 0 | AI134: 0 | AJ134: 0 | AK134: 0 | AL134: 0 | AM134: 0 | AN134: 0 | AO134: 1 | AP134: 0 | AQ134: 0 | AR134: 0 | AS134: 0 | AU134: 35 | AV134: 95 | AW134: 12
A135: 428 | B135: 428035128 | C135: BROOKE | D135: 0 | E135: 0 | F135: 0 | G135: 1 | H135: 0 | I135: 0 | J135: 0 | K135: 0.039 | M135: 0 | N135: 0 | O135: 0 | P135: 1 | Q135: 10 | R135: 1 | AA135: 428 | AB135: 428035128 | AC135: BROOKE | AD135: 0 | AE135: 0 | AF135: 0 | AG135: 1 | AH135: 0 | AI135: 0 | AJ135: 0 | AK135: 0 | AL135: 0 | AM135: 0 | AN135: 0 | AO135: 1 | AP135: 0 | AQ135: 0 | AR135: 0 | AS135: 0 | AU135: 35 | AV135: 128 | AW135: 10
A136: 428 | B136: 428035133 | C136: BROOKE | D136: 0 | E136: 0 | F136: 0 | G136: 0 | H136: 2 | I136: 2 | J136: 0 | K136: 0.156 | M136: 0 | N136: 0 | O136: 0 | P136: 2 | Q136: 9 | R136: 4 | AA136: 428 | AB136: 428035133 | AC136: BROOKE | AD136: 0 | AE136: 0 | AF136: 0 | AG136: 0 | AH136: 2 | AI136: 2 | AJ136: 0 | AK136: 0 | AL136: 0 | AM136: 0 | AN136: 0 | AO136: 1 | AP136: 0 | AQ136: 0 | AR136: 0 | AS136: 1 | AU136: 35 | AV136: 133 | AW136: 9
A137: 428 | B137: 428035163 | C137: BROOKE | D137: 0 | E137: 0 | F137: 0 | G137: 9 | H137: 4 | I137: 3 | J137: 0 | K137: 0.624 | M137: 0 | N137: 0 | O137: 0 | P137: 10 | Q137: 11 | R137: 16 | AA137: 428 | AB137: 428035163 | AC137: BROOKE | AD137: 0 | AE137: 0 | AF137: 0 | AG137: 9 | AH137: 4 | AI137: 3 | AJ137: 0 | AK137: 0 | AL137: 0 | AM137: 0 | AN137: 0 | AO137: 8 | AP137: 0 | AQ137: 0 | AR137: 0 | AS137: 2 | AU137: 35 | AV137: 163 | AW137: 11
A138: 428 | B138: 428035165 | C138: BROOKE | D138: 0 | E138: 0 | F138: 1 | G138: 4 | H138: 3 | I138: 0 | J138: 0 | K138: 0.312 | M138: 0 | N138: 0 | O138: 0 | P138: 7 | Q138: 10 | R138: 8 | AA138: 428 | AB138: 428035165 | AC138: BROOKE | AD138: 0 | AE138: 0 | AF138: 1 | AG138: 4 | AH138: 3 | AI138: 0 | AJ138: 0 | AK138: 0 | AL138: 0 | AM138: 0 | AN138: 0 | AO138: 7 | AP138: 0 | AQ138: 0 | AR138: 0 | AS138: 0 | AU138: 35 | AV138: 165 | AW138: 10
A139: 428 | B139: 428035189 | C139: BROOKE | D139: =ROUND(AD139,0) -> 0 | E139: =ROUND(AE139,0) -> 0 | F139: =ROUND(AF139,0) -> 0 | G139: =ROUND(AG139,0) -> 0 | H139: =ROUND(AH139,0) -> 0 | I139: =ROUND(AI139,0)-J139 -> 1 | J139: =ROUND(AJ139,0) -> 0 | K139: =ROUND(0.039*(SUM(AF139:AI139)+(AE139*0.5))+0.049*AJ139,4) -> 0.039 | M139: =ROUND(AL139+(AK139*0.5),0) -> 0 | N139: =ROUND(AM139,0) -> 0 | O139: =ROUND(AN139,0) -> 0 | P139: =ROUND(((AP139+AQ139)*0.5)+AO139+AR139+AS139,0) -> 0 | Q139: =AW139 -> 3 | R139: =SUM(F139:I139)+ROUND(D139*0.5,0)+ROUND(J139,0) -> 1 | AA139: 428 | AB139: 428035189 | AC139: BROOKE | AD139: 0 | AE139: 0 | AF139: 0 | AG139: 0 | AH139: 0 | AI139: 1 | AJ139: 0 | AK139: 0 | AL139: 0 | AM139: 0 | AN139: 0 | AO139: 0 | AP139: 0 | AQ139: 0 | AR139: 0 | AS139: 0 | AU139: 35 | AV139: 189 | AW139: 3
A140: 428 | B140: 428035220 | C140: BROOKE | D140: 0 | E140: 0 | F140: 0 | G140: 1 | H140: 2 | I140: 4 | J140: 0 | K140: 0.273 | M140: 0 | N140: 0 | O140: 0 | P140: 4 | Q140: 8 | R140: 7 | AA140: 428 | AB140: 428035220 | AC140: BROOKE | AD140: 0 | AE140: 0 | AF140: 0 | AG140: 1 | AH140: 2 | AI140: 4 | AJ140: 0 | AK140: 0 | AL140: 0 | AM140: 0 | AN140: 0 | AO140: 2 | AP140: 0 | AQ140: 0 | AR140: 0 | AS140: 2 | AU140: 35 | AV140: 220 | AW140: 8
A141: 428 | B141: 428035243 | C141: BROOKE | D141: 0 | E141: 0 | F141: 0 | G141: 2 | H141: 1 | I141: 1 | J141: 0 | K141: 0.156 | M141: 0 | N141: 0 | O141: 0 | P141: 4 | Q141: 10 | R141: 4 | AA141: 428 | AB141: 428035243 | AC141: BROOKE | AD141: 0 | AE141: 0 | AF141: 0 | AG141: 2 | AH141: 1 | AI141: 1 | AJ141: 0 | AK141: 0 | AL141: 0 | AM141: 0 | AN141: 0 | AO141: 3 | AP141: 0 | AQ141: 0 | AR141: 0 | AS141: 1 | AU141: 35 | AV141: 243 | AW141: 10
A142: 428 | B142: 428035244 | C142: BROOKE | D142: 0 | E142: 0 | F142: 1 | G142: 7 | H142: 8 | I142: 14 | J142: 0 | K142: 1.17 | M142: 1 | N142: 0 | O142: 0 | P142: 10 | Q142: 10 | R142: 30 | AA142: 428 | AB142: 428035244 | AC142: BROOKE | AD142: 0 | AE142: 0 | AF142: 1 | AG142: 7 | AH142: 8 | AI142: 14 | AJ142: 0 | AK142: 0 | AL142: 1 | AM142: 0 | AN142: 0 | AO142: 5 | AP142: 0 | AQ142: 0 | AR142: 0 | AS142: 5 | AU142: 35 | AV142: 244 | AW142: 10
A143: 428 | B143: 428035248 | C143: BROOKE | D143: 0 | E143: 0 | F143: 1 | G143: 11 | H143: 6 | I143: 7 | J143: 0 | K143: 0.975 | M143: 3 | N143: 0 | O143: 0 | P143: 14 | Q143: 11 | R143: 25 | AA143: 428 | AB143: 428035248 | AC143: BROOKE | AD143: 0 | AE143: 0 | AF143: 1 | AG143: 11 | AH143: 6 | AI143: 7 | AJ143: 0 | AK143: 0 | AL143: 3 | AM143: 0 | AN143: 0 | AO143: 8 | AP143: 0 | AQ143: 0 | AR143: 1 | AS143: 5 | AU143: 35 | AV143: 248 | AW143: 11
A144: 428 | B144: 428035258 | C144: BROOKE | D144: 0 | E144: 0 | F144: 0 | G144: 1 | H144: 1 | I144: 0 | J144: 0 | K144: 0.078 | M144: 0 | N144: 0 | O144: 0 | P144: 2 | Q144: 10 | R144: 2 | AA144: 428 | AB144: 428035258 | AC144: BROOKE | AD144: 0 | AE144: 0 | AF144: 0 | AG144: 1 | AH144: 1 | AI144: 0 | AJ144: 0 | AK144: 0 | AL144: 0 | AM144: 0 | AN144: 0 | AO144: 2 | AP144: 0 | AQ144: 0 | AR144: 0 | AS144: 0 | AU144: 35 | AV144: 258 | AW144: 10
A145: 428 | B145: 428035262 | C145: BROOKE | D145: 0 | E145: 0 | F145: 0 | G145: 1 | H145: 1 | I145: 1 | J145: 0 | K145: 0.117 | M145: 0 | N145: 0 | O145: 0 | P145: 3 | Q145: 9 | R145: 3 | AA145: 428 | AB145: 428035262 | AC145: BROOKE | AD145: 0 | AE145: 0 | AF145: 0 | AG145: 1 | AH145: 1 | AI145: 1 | AJ145: 0 | AK145: 0 | AL145: 0 | AM145: 0 | AN145: 0 | AO145: 2 | AP145: 0 | AQ145: 0 | AR145: 0 | AS145: 1 | AU145: 35 | AV145: 262 | AW145: 9
A146: 428 | B146: 428035285 | C146: BROOKE | D146: 0 | E146: 0 | F146: 0 | G146: 0 | H146: 1 | I146: 2 | J146: 0 | K146: 0.117 | M146: 0 | N146: 0 | O146: 0 | P146: 2 | Q146: 9 | R146: 3 | AA146: 428 | AB146: 428035285 | AC146: BROOKE | AD146: 0 | AE146: 0 | AF146: 0 | AG146: 0 | AH146: 1 | AI146: 2 | AJ146: 0 | AK146: 0 | AL146: 0 | AM146: 0 | AN146: 0 | AO146: 1 | AP146: 0 | AQ146: 0 | AR146: 0 | AS146: 1 | AU146: 35 | AV146: 285 | AW146: 9
A147: 428 | B147: 428035291 | C147: BROOKE | D147: 0 | E147: 0 | F147: 0 | G147: 0 | H147: 0 | I147: 1 | J147: 0 | K147: 0.039 | M147: 0 | N147: 0 | O147: 0 | P147: 1 | Q147: 5 | R147: 1 | AA147: 428 | AB147: 428035291 | AC147: BROOKE | AD147: 0 | AE147: 0 | AF147: 0 | AG147: 0 | AH147: 0 | AI147: 1 | AJ147: 0 | AK147: 0 | AL147: 0 | AM147: 0 | AN147: 0 | AO147: 0 | AP147: 0 | AQ147: 0 | AR147: 0 | AS147: 1 | AU147: 35 | AV147: 291 | AW147: 5
A148: 428 | B148: 428035293 | C148: BROOKE | D148: 0 | E148: 0 | F148: 0 | G148: 2 | H148: 1 | I148: 2 | J148: 0 | K148: 0.195 | M148: 0 | N148: 0 | O148: 0 | P148: 5 | Q148: 10 | R148: 5 | AA148: 428 | AB148: 428035293 | AC148: BROOKE | AD148: 0 | AE148: 0 | AF148: 0 | AG148: 2 | AH148: 1 | AI148: 2 | AJ148: 0 | AK148: 0 | AL148: 0 | AM148: 0 | AN148: 0 | AO148: 3 | AP148: 0 | AQ148: 0 | AR148: 0 | AS148: 2 | AU148: 35 | AV148: 293 | AW148: 10
A149: 428 | B149: 428035307 | C149: BROOKE | D149: 0 | E149: 0 | F149: 0 | G149: 1 | H149: 2 | I149: 0 | J149: 0 | K149: 0.117 | M149: 0 | N149: 0 | O149: 0 | P149: 3 | Q149: 4 | R149: 3 | AA149: 428 | AB149: 428035307 | AC149: BROOKE | AD149: 0 | AE149: 0 | AF149: 0 | AG149: 1 | AH149: 2 | AI149: 0 | AJ149: 0 | AK149: 0 | AL149: 0 | AM149: 0 | AN149: 0 | AO149: 3 | AP149: 0 | AQ149: 0 | AR149: 0 | AS149: 0 | AU149: 35 | AV149: 307 | AW149: 4
A150: 428 | B150: 428035314 | C150: BROOKE | D150: 0 | E150: 0 | F150: 0 | G150: 2 | H150: 0 | I150: 0 | J150: 0 | K150: 0.078 | M150: 0 | N150: 0 | O150: 0 | P150: 0 | Q150: 7 | R150: 2 | AA150: 428 | AB150: 428035314 | AC150: BROOKE | AD150: 0 | AE150: 0 | AF150: 0 | AG150: 2 | AH150: 0 | AI150: 0 | AJ150: 0 | AK150: 0 | AL150: 0 | AM150: 0 | AN150: 0 | AO150: 0 | AP150: 0 | AQ150: 0 | AR150: 0 | AS150: 0 | AU150: 35 | AV150: 314 | AW150: 7
A151: 428 | B151: 428035336 | C151: BROOKE | D151: 0 | E151: 0 | F151: 0 | G151: 2 | H151: 1 | I151: 0 | J151: 0 | K151: 0.117 | M151: 0 | N151: 0 | O151: 0 | P151: 0 | Q151: 8 | R151: 3 | AA151: 428 | AB151: 428035336 | AC151: BROOKE | AD151: 0 | AE151: 0 | AF151: 0 | AG151: 2 | AH151: 1 | AI151: 0 | AJ151: 0 | AK151: 0 | AL151: 0 | AM151: 0 | AN151: 0 | AO151: 0 | AP151: 0 | AQ151: 0 | AR151: 0 | AS151: 0 | AU151: 35 | AV151: 336 | AW151: 8
A152: 428 | B152: 428035346 | C152: BROOKE | D152: 0 | E152: 0 | F152: 0 | G152: 5 | H152: 1 | I152: 2 | J152: 0 | K152: 0.312 | M152: 2 | N152: 0 | O152: 0 | P152: 4 | Q152: 8 | R152: 8 | AA152: 428 | AB152: 428035346 | AC152: BROOKE | AD152: 0 | AE152: 0 | AF152: 0 | AG152: 5 | AH152: 1 | AI152: 2 | AJ152: 0 | AK152: 0 | AL152: 2 | AM152: 0 | AN152: 0 | AO152: 3 | AP152: 0 | AQ152: 0 | AR152: 0 | AS152: 1 | AU152: 35 | AV152: 346 | AW152: 8
A153: 428 | B153: 428035350 | C153: BROOKE | D153: 0 | E153: 0 | F153: 0 | G153: 1 | H153: 0 | I153: 0 | J153: 0 | K153: 0.039 | M153: 0 | N153: 0 | O153: 0 | P153: 1 | Q153: 3 | R153: 1 | AA153: 428 | AB153: 428035350 | AC153: BROOKE | AD153: 0 | AE153: 0 | AF153: 0 | AG153: 1 | AH153: 0 | AI153: 0 | AJ153: 0 | AK153: 0 | AL153: 0 | AM153: 0 | AN153: 0 | AO153: 1 | AP153: 0 | AQ153: 0 | AR153: 0 | AS153: 0 | AU153: 35 | AV153: 350 | AW153: 3
A154: 429 | B154: 429163030 | C154: KIPP ACADEMY LYNN | D154: 0 | E154: 0 | F154: 0 | G154: 0 | H154: 0 | I154: 4 | J154: 0 | K154: 0.156 | M154: 0 | N154: 0 | O154: 0 | P154: 4 | Q154: 7 | R154: 4 | AA154: 429 | AB154: 429163030 | AC154: KIPP ACADEMY LYNN | AD154: 0 | AE154: 0 | AF154: 0 | AG154: 0 | AH154: 0 | AI154: 4 | AJ154: 0 | AK154: 0 | AL154: 0 | AM154: 0 | AN154: 0 | AO154: 0 | AP154: 0 | AQ154: 0 | AR154: 0 | AS154: 4 | AU154: 163 | AV154: 30 | AW154: 7
A155: 429 | B155: 429163035 | C155: KIPP ACADEMY LYNN | D155: 0 | E155: 0 | F155: 0 | G155: 0 | H155: 1 | I155: 1 | J155: 0 | K155: 0.078 | M155: 0 | N155: 0 | O155: 0 | P155: 0 | Q155: 11 | R155: 2 | AA155: 429 | AB155: 429163035 | AC155: KIPP ACADEMY LYNN | AD155: 0 | AE155: 0 | AF155: 0 | AG155: 0 | AH155: 1 | AI155: 1 | AJ155: 0 | AK155: 0 | AL155: 0 | AM155: 0 | AN155: 0 | AO155: 0 | AP155: 0 | AQ155: 0 | AR155: 0 | AS155: 0 | AU155: 163 | AV155: 35 | AW155: 11
A156: 429 | B156: 429163049 | C156: KIPP ACADEMY LYNN | D156: 0 | E156: 0 | F156: 0 | G156: 0 | H156: 0 | I156: 1 | J156: 0 | K156: 0.039 | M156: 0 | N156: 0 | O156: 0 | P156: 1 | Q156: 8 | R156: 1 | AA156: 429 | AB156: 429163049 | AC156: KIPP ACADEMY LYNN | AD156: 0 | AE156: 0 | AF156: 0 | AG156: 0 | AH156: 0 | AI156: 1 | AJ156: 0 | AK156: 0 | AL156: 0 | AM156: 0 | AN156: 0 | AO156: 0 | AP156: 0 | AQ156: 0 | AR156: 0 | AS156: 1 | AU156: 163 | AV156: 49 | AW156: 8
A157: 429 | B157: 429163057 | C157: KIPP ACADEMY LYNN | D157: 0 | E157: 0 | F157: 0 | G157: 0 | H157: 0 | I157: 2 | J157: 0 | K157: 0.078 | M157: 0 | N157: 0 | O157: 1 | P157: 2 | Q157: 12 | R157: 2 | AA157: 429 | AB157: 429163057 | AC157: KIPP ACADEMY LYNN | AD157: 0 | AE157: 0 | AF157: 0 | AG157: 0 | AH157: 0 | AI157: 2 | AJ157: 0 | AK157: 0 | AL157: 0 | AM157: 0 | AN157: 1 | AO157: 0 | AP157: 0 | AQ157: 0 | AR157: 0 | AS157: 2 | AU157: 163 | AV157: 57 | AW157: 12
A158: 429 | B158: 429163071 | C158: KIPP ACADEMY LYNN | D158: 0 | E158: 0 | F158: 0 | G158: 1 | H158: 0 | I158: 4 | J158: 0 | K158: 0.195 | M158: 0 | N158: 0 | O158: 0 | P158: 3 | Q158: 5 | R158: 5 | AA158: 429 | AB158: 429163071 | AC158: KIPP ACADEMY LYNN | AD158: 0 | AE158: 0 | AF158: 0 | AG158: 1 | AH158: 0 | AI158: 4 | AJ158: 0 | AK158: 0 | AL158: 0 | AM158: 0 | AN158: 0 | AO158: 1 | AP158: 0 | AQ158: 0 | AR158: 0 | AS158: 2 | AU158: 163 | AV158: 71 | AW158: 5
A159: 429 | B159: 429163079 | C159: KIPP ACADEMY LYNN | D159: 0 | E159: 0 | F159: 0 | G159: 0 | H159: 0 | I159: 2 | J159: 0 | K159: 0.078 | M159: 0 | N159: 0 | O159: 0 | P159: 0 | Q159: 8 | R159: 2 | AA159: 429 | AB159: 429163079 | AC159: KIPP ACADEMY LYNN | AD159: 0 | AE159: 0 | AF159: 0 | AG159: 0 | AH159: 0 | AI159: 2 | AJ159: 0 | AK159: 0 | AL159: 0 | AM159: 0 | AN159: 0 | AO159: 0 | AP159: 0 | AQ159: 0 | AR159: 0 | AS159: 0 | AU159: 163 | AV159: 79 | AW159: 8
A160: 429 | B160: 429163160 | C160: KIPP ACADEMY LYNN | D160: 0 | E160: 0 | F160: 0 | G160: 0 | H160: 0 | I160: 1 | J160: 0 | K160: 0.039 | M160: 0 | N160: 0 | O160: 0 | P160: 0 | Q160: 11 | R160: 1 | AA160: 429 | AB160: 429163160 | AC160: KIPP ACADEMY LYNN | AD160: 0 | AE160: 0 | AF160: 0 | AG160: 0 | AH160: 0 | AI160: 1 | AJ160: 0 | AK160: 0 | AL160: 0 | AM160: 0 | AN160: 0 | AO160: 0 | AP160: 0 | AQ160: 0 | AR160: 0 | AS160: 0 | AU160: 163 | AV160: 160 | AW160: 11
A161: 429 | B161: 429163163 | C161: KIPP ACADEMY LYNN | D161: 0 | E161: 0 | F161: 121 | G161: 599 | H161: 357 | I161: 461 | J161: 0 | K161: 59.982 | M161: 166 | N161: 31 | O161: 25 | P161: 1182 | Q161: 11 | R161: 1538 | AA161: 429 | AB161: 429163163 | AC161: KIPP ACADEMY LYNN | AD161: 0 | AE161: 0 | AF161: 121 | AG161: 599 | AH161: 357 | AI161: 461 | AJ161: 0 | AK161: 0 | AL161: 166 | AM161: 31 | AN161: 25 | AO161: 735 | AP161: 0 | AQ161: 0 | AR161: 98 | AS161: 349 | AU161: 163 | AV161: 163 | AW161: 11
A162: 429 | B162: 429163165 | C162: KIPP ACADEMY LYNN | D162: 0 | E162: 0 | F162: 0 | G162: 0 | H162: 1 | I162: 0 | J162: 0 | K162: 0.039 | M162: 0 | N162: 0 | O162: 0 | P162: 1 | Q162: 10 | R162: 1 | AA162: 429 | AB162: 429163165 | AC162: KIPP ACADEMY LYNN | AD162: 0 | AE162: 0 | AF162: 0 | AG162: 0 | AH162: 1 | AI162: 0 | AJ162: 0 | AK162: 0 | AL162: 0 | AM162: 0 | AN162: 0 | AO162: 1 | AP162: 0 | AQ162: 0 | AR162: 0 | AS162: 0 | AU162: 163 | AV162: 165 | AW162: 10
A163: 429 | B163: 429163168 | C163: KIPP ACADEMY LYNN | D163: 0 | E163: 0 | F163: 1 | G163: 1 | H163: 1 | I163: 0 | J163: 0 | K163: 0.117 | M163: 1 | N163: 0 | O163: 0 | P163: 3 | Q163: 3 | R163: 3 | AA163: 429 | AB163: 429163168 | AC163: KIPP ACADEMY LYNN | AD163: 0 | AE163: 0 | AF163: 1 | AG163: 1 | AH163: 1 | AI163: 0 | AJ163: 0 | AK163: 0 | AL163: 1 | AM163: 0 | AN163: 0 | AO163: 2 | AP163: 0 | AQ163: 0 | AR163: 1 | AS163: 0 | AU163: 163 | AV163: 168 | AW163: 3
A164: 429 | B164: 429163229 | C164: KIPP ACADEMY LYNN | D164: 0 | E164: 0 | F164: 0 | G164: 2 | H164: 3 | I164: 3 | J164: 0 | K164: 0.312 | M164: 0 | N164: 0 | O164: 0 | P164: 7 | Q164: 9 | R164: 8 | AA164: 429 | AB164: 429163229 | AC164: KIPP ACADEMY LYNN | AD164: 0 | AE164: 0 | AF164: 0 | AG164: 2 | AH164: 3 | AI164: 3 | AJ164: 0 | AK164: 0 | AL164: 0 | AM164: 0 | AN164: 0 | AO164: 5 | AP164: 0 | AQ164: 0 | AR164: 0 | AS164: 2 | AU164: 163 | AV164: 229 | AW164: 9
A165: 429 | B165: 429163246 | C165: KIPP ACADEMY LYNN | D165: 0 | E165: 0 | F165: 0 | G165: 0 | H165: 0 | I165: 1 | J165: 0 | K165: 0.039 | M165: 0 | N165: 0 | O165: 0 | P165: 0 | Q165: 3 | R165: 1 | AA165: 429 | AB165: 429163246 | AC165: KIPP ACADEMY LYNN | AD165: 0 | AE165: 0 | AF165: 0 | AG165: 0 | AH165: 0 | AI165: 1 | AJ165: 0 | AK165: 0 | AL165: 0 | AM165: 0 | AN165: 0 | AO165: 0 | AP165: 0 | AQ165: 0 | AR165: 0 | AS165: 0 | AU165: 163 | AV165: 246 | AW165: 3
A166: 429 | B166: 429163248 | C166: KIPP ACADEMY LYNN | D166: 0 | E166: 0 | F166: 0 | G166: 1 | H166: 1 | I166: 0 | J166: 0 | K166: 0.078 | M166: 0 | N166: 0 | O166: 0 | P166: 2 | Q166: 11 | R166: 2 | AA166: 429 | AB166: 429163248 | AC166: KIPP ACADEMY LYNN | AD166: 0 | AE166: 0 | AF166: 0 | AG166: 1 | AH166: 1 | AI166: 0 | AJ166: 0 | AK166: 0 | AL166: 0 | AM166: 0 | AN166: 0 | AO166: 2 | AP166: 0 | AQ166: 0 | AR166: 0 | AS166: 0 | AU166: 163 | AV166: 248 | AW166: 11
A167: 429 | B167: 429163258 | C167: KIPP ACADEMY LYNN | D167: 0 | E167: 0 | F167: 1 | G167: 16 | H167: 4 | I167: 5 | J167: 0 | K167: 1.014 | M167: 2 | N167: 0 | O167: 0 | P167: 21 | Q167: 10 | R167: 26 | AA167: 429 | AB167: 429163258 | AC167: KIPP ACADEMY LYNN | AD167: 0 | AE167: 0 | AF167: 1 | AG167: 16 | AH167: 4 | AI167: 5 | AJ167: 0 | AK167: 0 | AL167: 2 | AM167: 0 | AN167: 0 | AO167: 17 | AP167: 0 | AQ167: 0 | AR167: 1 | AS167: 3 | AU167: 163 | AV167: 258 | AW167: 10
A168: 429 | B168: 429163262 | C168: KIPP ACADEMY LYNN | D168: 0 | E168: 0 | F168: 2 | G168: 2 | H168: 1 | I168: 4 | J168: 0 | K168: 0.351 | M168: 1 | N168: 0 | O168: 0 | P168: 9 | Q168: 9 | R168: 9 | AA168: 429 | AB168: 429163262 | AC168: KIPP ACADEMY LYNN | AD168: 0 | AE168: 0 | AF168: 2 | AG168: 2 | AH168: 1 | AI168: 4 | AJ168: 0 | AK168: 0 | AL168: 1 | AM168: 0 | AN168: 0 | AO168: 3 | AP168: 0 | AQ168: 0 | AR168: 2 | AS168: 4 | AU168: 163 | AV168: 262 | AW168: 9
A169: 429 | B169: 429163291 | C169: KIPP ACADEMY LYNN | D169: 0 | E169: 0 | F169: 0 | G169: 2 | H169: 3 | I169: 2 | J169: 0 | K169: 0.273 | M169: 1 | N169: 0 | O169: 0 | P169: 7 | Q169: 5 | R169: 7 | AA169: 429 | AB169: 429163291 | AC169: KIPP ACADEMY LYNN | AD169: 0 | AE169: 0 | AF169: 0 | AG169: 2 | AH169: 3 | AI169: 2 | AJ169: 0 | AK169: 0 | AL169: 1 | AM169: 0 | AN169: 0 | AO169: 5 | AP169: 0 | AQ169: 0 | AR169: 0 | AS169: 2 | AU169: 163 | AV169: 291 | AW169: 5
A170: 430 | B170: 430170025 | C170: ADVANCED MATH AND SCIENCE ACADEMY | D170: 0 | E170: 0 | F170: 0 | G170: 0 | H170: 1 | I170: 1 | J170: 0 | K170: 0.078 | M170: 0 | N170: 0 | O170: 0 | P170: 0 | Q170: 7 | R170: 2 | AA170: 430 | AB170: 430170025 | AC170: ADVANCED MATH AND SCIENCE ACADEMY | AD170: 0 | AE170: 0 | AF170: 0 | AG170: 0 | AH170: 1 | AI170: 1 | AJ170: 0 | AK170: 0 | AL170: 0 | AM170: 0 | AN170: 0 | AO170: 0 | AP170: 0 | AQ170: 0 | AR170: 0 | AS170: 0 | AU170: 170 | AV170: 25 | AW170: 7
A171: 430 | B171: 430170064 | C171: ADVANCED MATH AND SCIENCE ACADEMY | D171: 0 | E171: 0 | F171: 0 | G171: 0 | H171: 35 | I171: 43 | J171: 0 | K171: 3.042 | M171: 0 | N171: 0 | O171: 0 | P171: 20 | Q171: 10 | R171: 78 | AA171: 430 | AB171: 430170064 | AC171: ADVANCED MATH AND SCIENCE ACADEMY | AD171: 0 | AE171: 0 | AF171: 0 | AG171: 0 | AH171: 35 | AI171: 43 | AJ171: 0 | AK171: 0 | AL171: 0 | AM171: 0 | AN171: 0 | AO171: 8 | AP171: 0 | AQ171: 0 | AR171: 0 | AS171: 12 | AU171: 170 | AV171: 64 | AW171: 10
A172: 430 | B172: 430170097 | C172: ADVANCED MATH AND SCIENCE ACADEMY | D172: 0 | E172: 0 | F172: 0 | G172: 0 | H172: 0 | I172: 1 | J172: 0 | K172: 0.039 | M172: 0 | N172: 0 | O172: 0 | P172: 1 | Q172: 11 | R172: 1 | AA172: 430 | AB172: 430170097 | AC172: ADVANCED MATH AND SCIENCE ACADEMY | AD172: 0 | AE172: 0 | AF172: 0 | AG172: 0 | AH172: 0 | AI172: 1 | AJ172: 0 | AK172: 0 | AL172: 0 | AM172: 0 | AN172: 0 | AO172: 0 | AP172: 0 | AQ172: 0 | AR172: 0 | AS172: 1 | AU172: 170 | AV172: 97 | AW172: 11
A173: 430 | B173: 430170100 | C173: ADVANCED MATH AND SCIENCE ACADEMY | D173: 0 | E173: 0 | F173: 0 | G173: 0 | H173: 2 | I173: 8 | J173: 0 | K173: 0.39 | M173: 0 | N173: 0 | O173: 0 | P173: 0 | Q173: 10 | R173: 10 | AA173: 430 | AB173: 430170100 | AC173: ADVANCED MATH AND SCIENCE ACADEMY | AD173: 0 | AE173: 0 | AF173: 0 | AG173: 0 | AH173: 2 | AI173: 8 | AJ173: 0 | AK173: 0 | AL173: 0 | AM173: 0 | AN173: 0 | AO173: 0 | AP173: 0 | AQ173: 0 | AR173: 0 | AS173: 0 | AU173: 170 | AV173: 100 | AW173: 10
A174: 430 | B174: 430170101 | C174: ADVANCED MATH AND SCIENCE ACADEMY | D174: 0 | E174: 0 | F174: 0 | G174: 0 | H174: 2 | I174: 1 | J174: 0 | K174: 0.117 | M174: 0 | N174: 0 | O174: 0 | P174: 0 | Q174: 3 | R174: 3 | AA174: 430 | AB174: 430170101 | AC174: ADVANCED MATH AND SCIENCE ACADEMY | AD174: 0 | AE174: 0 | AF174: 0 | AG174: 0 | AH174: 2 | AI174: 1 | AJ174: 0 | AK174: 0 | AL174: 0 | AM174: 0 | AN174: 0 | AO174: 0 | AP174: 0 | AQ174: 0 | AR174: 0 | AS174: 0 | AU174: 170 | AV174: 101 | AW174: 3
A175: 430 | B175: 430170110 | C175: ADVANCED MATH AND SCIENCE ACADEMY | D175: 0 | E175: 0 | F175: 0 | G175: 0 | H175: 2 | I175: 7 | J175: 0 | K175: 0.351 | M175: 0 | N175: 0 | O175: 0 | P175: 1 | Q175: 4 | R175: 9 | AA175: 430 | AB175: 430170110 | AC175: ADVANCED MATH AND SCIENCE ACADEMY | AD175: 0 | AE175: 0 | AF175: 0 | AG175: 0 | AH175: 2 | AI175: 7 | AJ175: 0 | AK175: 0 | AL175: 0 | AM175: 0 | AN175: 0 | AO175: 0 | AP175: 0 | AQ175: 0 | AR175: 0 | AS175: 1 | AU175: 170 | AV175: 110 | AW175: 4
A176: 430 | B176: 430170136 | C176: ADVANCED MATH AND SCIENCE ACADEMY | D176: 0 | E176: 0 | F176: 0 | G176: 0 | H176: 1 | I176: 1 | J176: 0 | K176: 0.078 | M176: 0 | N176: 0 | O176: 0 | P176: 0 | Q176: 3 | R176: 2 | AA176: 430 | AB176: 430170136 | AC176: ADVANCED MATH AND SCIENCE ACADEMY | AD176: 0 | AE176: 0 | AF176: 0 | AG176: 0 | AH176: 1 | AI176: 1 | AJ176: 0 | AK176: 0 | AL176: 0 | AM176: 0 | AN176: 0 | AO176: 0 | AP176: 0 | AQ176: 0 | AR176: 0 | AS176: 0 | AU176: 170 | AV176: 136 | AW176: 3
A177: 430 | B177: 430170139 | C177: ADVANCED MATH AND SCIENCE ACADEMY | D177: 0 | E177: 0 | F177: 0 | G177: 0 | H177: 0 | I177: 3 | J177: 0 | K177: 0.117 | M177: 0 | N177: 0 | O177: 0 | P177: 0 | Q177: 2 | R177: 3 | AA177: 430 | AB177: 430170139 | AC177: ADVANCED MATH AND SCIENCE ACADEMY | AD177: 0 | AE177: 0 | AF177: 0 | AG177: 0 | AH177: 0 | AI177: 3 | AJ177: 0 | AK177: 0 | AL177: 0 | AM177: 0 | AN177: 0 | AO177: 0 | AP177: 0 | AQ177: 0 | AR177: 0 | AS177: 0 | AU177: 170 | AV177: 139 | AW177: 2
A178: 430 | B178: 430170141 | C178: ADVANCED MATH AND SCIENCE ACADEMY | D178: 0 | E178: 0 | F178: 0 | G178: 0 | H178: 99 | I178: 97 | J178: 0 | K178: 7.644 | M178: 0 | N178: 2 | O178: 0 | P178: 29 | Q178: 7 | R178: 196 | AA178: 430 | AB178: 430170141 | AC178: ADVANCED MATH AND SCIENCE ACADEMY | AD178: 0 | AE178: 0 | AF178: 0 | AG178: 0 | AH178: 99 | AI178: 97 | AJ178: 0 | AK178: 0 | AL178: 0 | AM178: 2 | AN178: 0 | AO178: 10 | AP178: 0 | AQ178: 0 | AR178: 0 | AS178: 19 | AU178: 170 | AV178: 141 | AW178: 7
A179: 430 | B179: 430170153 | C179: ADVANCED MATH AND SCIENCE ACADEMY | D179: 0 | E179: 0 | F179: 0 | G179: 0 | H179: 2 | I179: 1 | J179: 0 | K179: 0.117 | M179: 0 | N179: 0 | O179: 0 | P179: 2 | Q179: 10 | R179: 3 | AA179: 430 | AB179: 430170153 | AC179: ADVANCED MATH AND SCIENCE ACADEMY | AD179: 0 | AE179: 0 | AF179: 0 | AG179: 0 | AH179: 2 | AI179: 1 | AJ179: 0 | AK179: 0 | AL179: 0 | AM179: 0 | AN179: 0 | AO179: 1 | AP179: 0 | AQ179: 0 | AR179: 0 | AS179: 1 | AU179: 170 | AV179: 153 | AW179: 10
A180: 430 | B180: 430170158 | C180: ADVANCED MATH AND SCIENCE ACADEMY | D180: 0 | E180: 0 | F180: 0 | G180: 0 | H180: 0 | I180: 1 | J180: 0 | K180: 0.039 | M180: 0 | N180: 0 | O180: 0 | P180: 0 | Q180: 3 | R180: 1 | AA180: 430 | AB180: 430170158 | AC180: ADVANCED MATH AND SCIENCE ACADEMY | AD180: 0 | AE180: 0 | AF180: 0 | AG180: 0 | AH180: 0 | AI180: 1 | AJ180: 0 | AK180: 0 | AL180: 0 | AM180: 0 | AN180: 0 | AO180: 0 | AP180: 0 | AQ180: 0 | AR180: 0 | AS180: 0 | AU180: 170 | AV180: 158 | AW180: 3
A181: 430 | B181: 430170162 | C181: ADVANCED MATH AND SCIENCE ACADEMY | D181: 0 | E181: 0 | F181: 0 | G181: 0 | H181: 0 | I181: 1 | J181: 0 | K181: 0.039 | M181: 0 | N181: 0 | O181: 0 | P181: 0 | Q181: 5 | R181: 1 | AA181: 430 | AB181: 430170162 | AC181: ADVANCED MATH AND SCIENCE ACADEMY | AD181: 0 | AE181: 0 | AF181: 0 | AG181: 0 | AH181: 0 | AI181: 1 | AJ181: 0 | AK181: 0 | AL181: 0 | AM181: 0 | AN181: 0 | AO181: 0 | AP181: 0 | AQ181: 0 | AR181: 0 | AS181: 0 | AU181: 170 | AV181: 162 | AW181: 5
A182: 430 | B182: 430170170 | C182: ADVANCED MATH AND SCIENCE ACADEMY | D182: 0 | E182: 0 | F182: 0 | G182: 0 | H182: 218 | I182: 299 | J182: 0 | K182: 20.163 | M182: 0 | N182: 8 | O182: 4 | P182: 126 | Q182: 10 | R182: 517 | AA182: 430 | AB182: 430170170 | AC182: ADVANCED MATH AND SCIENCE ACADEMY | AD182: 0 | AE182: 0 | AF182: 0 | AG182: 0 | AH182: 218 | AI182: 299 | AJ182: 0 | AK182: 0 | AL182: 0 | AM182: 8 | AN182: 4 | AO182: 68 | AP182: 0 | AQ182: 0 | AR182: 0 | AS182: 58 | AU182: 170 | AV182: 170 | AW182: 10
A183: 430 | B183: 430170174 | C183: ADVANCED MATH AND SCIENCE ACADEMY | D183: 0 | E183: 0 | F183: 0 | G183: 0 | H183: 32 | I183: 27 | J183: 0 | K183: 2.301 | M183: 0 | N183: 0 | O183: 0 | P183: 2 | Q183: 6 | R183: 59 | AA183: 430 | AB183: 430170174 | AC183: ADVANCED MATH AND SCIENCE ACADEMY | AD183: 0 | AE183: 0 | AF183: 0 | AG183: 0 | AH183: 32 | AI183: 27 | AJ183: 0 | AK183: 0 | AL183: 0 | AM183: 0 | AN183: 0 | AO183: 1 | AP183: 0 | AQ183: 0 | AR183: 0 | AS183: 1 | AU183: 170 | AV183: 174 | AW183: 6
A184: 430 | B184: 430170198 | C184: ADVANCED MATH AND SCIENCE ACADEMY | D184: 0 | E184: 0 | F184: 0 | G184: 0 | H184: 2 | I184: 1 | J184: 0 | K184: 0.117 | M184: 0 | N184: 0 | O184: 0 | P184: 0 | Q184: 3 | R184: 3 | AA184: 430 | AB184: 430170198 | AC184: ADVANCED MATH AND SCIENCE ACADEMY | AD184: 0 | AE184: 0 | AF184: 0 | AG184: 0 | AH184: 2 | AI184: 1 | AJ184: 0 | AK184: 0 | AL184: 0 | AM184: 0 | AN184: 0 | AO184: 0 | AP184: 0 | AQ184: 0 | AR184: 0 | AS184: 0 | AU184: 170 | AV184: 198 | AW184: 3
A185: 430 | B185: 430170213 | C185: ADVANCED MATH AND SCIENCE ACADEMY | D185: 0 | E185: 0 | F185: 0 | G185: 0 | H185: 3 | I185: 0 | J185: 0 | K185: 0.117 | M185: 0 | N185: 0 | O185: 0 | P185: 0 | Q185: 4 | R185: 3 | AA185: 430 | AB185: 430170213 | AC185: ADVANCED MATH AND SCIENCE ACADEMY | AD185: 0 | AE185: 0 | AF185: 0 | AG185: 0 | AH185: 3 | AI185: 0 | AJ185: 0 | AK185: 0 | AL185: 0 | AM185: 0 | AN185: 0 | AO185: 0 | AP185: 0 | AQ185: 0 | AR185: 0 | AS185: 0 | AU185: 170 | AV185: 213 | AW185: 4
A186: 430 | B186: 430170271 | C186: ADVANCED MATH AND SCIENCE ACADEMY | D186: 0 | E186: 0 | F186: 0 | G186: 0 | H186: 9 | I186: 7 | J186: 0 | K186: 0.624 | M186: 0 | N186: 0 | O186: 0 | P186: 0 | Q186: 4 | R186: 16 | AA186: 430 | AB186: 430170271 | AC186: ADVANCED MATH AND SCIENCE ACADEMY | AD186: 0 | AE186: 0 | AF186: 0 | AG186: 0 | AH186: 9 | AI186: 7 | AJ186: 0 | AK186: 0 | AL186: 0 | AM186: 0 | AN186: 0 | AO186: 0 | AP186: 0 | AQ186: 0 | AR186: 0 | AS186: 0 | AU186: 170 | AV186: 271 | AW186: 4
A187: 430 | B187: 430170314 | C187: ADVANCED MATH AND SCIENCE ACADEMY | D187: 0 | E187: 0 | F187: 0 | G187: 0 | H187: 2 | I187: 0 | J187: 0 | K187: 0.078 | M187: 0 | N187: 0 | O187: 0 | P187: 0 | Q187: 7 | R187: 2 | AA187: 430 | AB187: 430170314 | AC187: ADVANCED MATH AND SCIENCE ACADEMY | AD187: 0 | AE187: 0 | AF187: 0 | AG187: 0 | AH187: 2 | AI187: 0 | AJ187: 0 | AK187: 0 | AL187: 0 | AM187: 0 | AN187: 0 | AO187: 0 | AP187: 0 | AQ187: 0 | AR187: 0 | AS187: 0 | AU187: 170 | AV187: 314 | AW187: 7
A188: 430 | B188: 430170321 | C188: ADVANCED MATH AND SCIENCE ACADEMY | D188: 0 | E188: 0 | F188: 0 | G188: 0 | H188: 1 | I188: 4 | J188: 0 | K188: 0.195 | M188: 0 | N188: 0 | O188: 0 | P188: 3 | Q188: 4 | R188: 5 | AA188: 430 | AB188: 430170321 | AC188: ADVANCED MATH AND SCIENCE ACADEMY | AD188: 0 | AE188: 0 | AF188: 0 | AG188: 0 | AH188: 1 | AI188: 4 | AJ188: 0 | AK188: 0 | AL188: 0 | AM188: 0 | AN188: 0 | AO188: 0 | AP188: 0 | AQ188: 0 | AR188: 0 | AS188: 3 | AU188: 170 | AV188: 321 | AW188: 4
A189: 430 | B189: 430170348 | C189: ADVANCED MATH AND SCIENCE ACADEMY | D189: 0 | E189: 0 | F189: 0 | G189: 0 | H189: 0 | I189: 6 | J189: 0 | K189: 0.234 | M189: 0 | N189: 0 | O189: 0 | P189: 2 | Q189: 11 | R189: 6 | AA189: 430 | AB189: 430170348 | AC189: ADVANCED MATH AND SCIENCE ACADEMY | AD189: 0 | AE189: 0 | AF189: 0 | AG189: 0 | AH189: 0 | AI189: 6 | AJ189: 0 | AK189: 0 | AL189: 0 | AM189: 0 | AN189: 0 | AO189: 0 | AP189: 0 | AQ189: 0 | AR189: 0 | AS189: 2 | AU189: 170 | AV189: 348 | AW189: 11
A190: 430 | B190: 430170600 | C190: ADVANCED MATH AND SCIENCE ACADEMY | D190: 0 | E190: 0 | F190: 0 | G190: 0 | H190: 1 | I190: 0 | J190: 0 | K190: 0.039 | M190: 0 | N190: 0 | O190: 0 | P190: 1 | Q190: 3 | R190: 1 | AA190: 430 | AB190: 430170600 | AC190: ADVANCED MATH AND SCIENCE ACADEMY | AD190: 0 | AE190: 0 | AF190: 0 | AG190: 0 | AH190: 1 | AI190: 0 | AJ190: 0 | AK190: 0 | AL190: 0 | AM190: 0 | AN190: 0 | AO190: 1 | AP190: 0 | AQ190: 0 | AR190: 0 | AS190: 0 | AU190: 170 | AV190: 600 | AW190: 3
A191: 430 | B191: 430170616 | C191: ADVANCED MATH AND SCIENCE ACADEMY | D191: 0 | E191: 0 | F191: 0 | G191: 0 | H191: 0 | I191: 1 | J191: 0 | K191: 0.039 | M191: 0 | N191: 0 | O191: 0 | P191: 0 | Q191: 7 | R191: 1 | AA191: 430 | AB191: 430170616 | AC191: ADVANCED MATH AND SCIENCE ACADEMY | AD191: 0 | AE191: 0 | AF191: 0 | AG191: 0 | AH191: 0 | AI191: 1 | AJ191: 0 | AK191: 0 | AL191: 0 | AM191: 0 | AN191: 0 | AO191: 0 | AP191: 0 | AQ191: 0 | AR191: 0 | AS191: 0 | AU191: 170 | AV191: 616 | AW191: 7
A192: 430 | B192: 430170620 | C192: ADVANCED MATH AND SCIENCE ACADEMY | D192: 0 | E192: 0 | F192: 0 | G192: 0 | H192: 1 | I192: 8 | J192: 0 | K192: 0.351 | M192: 0 | N192: 0 | O192: 0 | P192: 3 | Q192: 4 | R192: 9 | AA192: 430 | AB192: 430170620 | AC192: ADVANCED MATH AND SCIENCE ACADEMY | AD192: 0 | AE192: 0 | AF192: 0 | AG192: 0 | AH192: 1 | AI192: 8 | AJ192: 0 | AK192: 0 | AL192: 0 | AM192: 0 | AN192: 0 | AO192: 0 | AP192: 0 | AQ192: 0 | AR192: 0 | AS192: 3 | AU192: 170 | AV192: 620 | AW192: 4
A193: 430 | B193: 430170673 | C193: ADVANCED MATH AND SCIENCE ACADEMY | D193: 0 | E193: 0 | F193: 0 | G193: 0 | H193: 0 | I193: 1 | J193: 0 | K193: 0.039 | M193: 0 | N193: 0 | O193: 0 | P193: 0 | Q193: 2 | R193: 1 | AA193: 430 | AB193: 430170673 | AC193: ADVANCED MATH AND SCIENCE ACADEMY | AD193: 0 | AE193: 0 | AF193: 0 | AG193: 0 | AH193: 0 | AI193: 1 | AJ193: 0 | AK193: 0 | AL193: 0 | AM193: 0 | AN193: 0 | AO193: 0 | AP193: 0 | AQ193: 0 | AR193: 0 | AS193: 0 | AU193: 170 | AV193: 673 | AW193: 2
A194: 430 | B194: 430170690 | C194: ADVANCED MATH AND SCIENCE ACADEMY | D194: 0 | E194: 0 | F194: 0 | G194: 0 | H194: 1 | I194: 1 | J194: 0 | K194: 0.078 | M194: 0 | N194: 0 | O194: 0 | P194: 0 | Q194: 4 | R194: 2 | AA194: 430 | AB194: 430170690 | AC194: ADVANCED MATH AND SCIENCE ACADEMY | AD194: 0 | AE194: 0 | AF194: 0 | AG194: 0 | AH194: 1 | AI194: 1 | AJ194: 0 | AK194: 0 | AL194: 0 | AM194: 0 | AN194: 0 | AO194: 0 | AP194: 0 | AQ194: 0 | AR194: 0 | AS194: 0 | AU194: 170 | AV194: 690 | AW194: 4
A195: 430 | B195: 430170695 | C195: ADVANCED MATH AND SCIENCE ACADEMY | D195: 0 | E195: 0 | F195: 0 | G195: 0 | H195: 0 | I195: 1 | J195: 0 | K195: 0.039 | M195: 0 | N195: 0 | O195: 0 | P195: 0 | Q195: 2 | R195: 1 | AA195: 430 | AB195: 430170695 | AC195: ADVANCED MATH AND SCIENCE ACADEMY | AD195: 0 | AE195: 0 | AF195: 0 | AG195: 0 | AH195: 0 | AI195: 1 | AJ195: 0 | AK195: 0 | AL195: 0 | AM195: 0 | AN195: 0 | AO195: 0 | AP195: 0 | AQ195: 0 | AR195: 0 | AS195: 0 | AU195: 170 | AV195: 695 | AW195: 2
A196: 430 | B196: 430170710 | C196: ADVANCED MATH AND SCIENCE ACADEMY | D196: 0 | E196: 0 | F196: 0 | G196: 0 | H196: 1 | I196: 3 | J196: 0 | K196: 0.156 | M196: 0 | N196: 0 | O196: 0 | P196: 0 | Q196: 3 | R196: 4 | AA196: 430 | AB196: 430170710 | AC196: ADVANCED MATH AND SCIENCE ACADEMY | AD196: 0 | AE196: 0 | AF196: 0 | AG196: 0 | AH196: 1 | AI196: 3 | AJ196: 0 | AK196: 0 | AL196: 0 | AM196: 0 | AN196: 0 | AO196: 0 | AP196: 0 | AQ196: 0 | AR196: 0 | AS196: 0 | AU196: 170 | AV196: 710 | AW196: 3
A197: 430 | B197: 430170725 | C197: ADVANCED MATH AND SCIENCE ACADEMY | D197: 0 | E197: 0 | F197: 0 | G197: 0 | H197: 6 | I197: 9 | J197: 0 | K197: 0.585 | M197: 0 | N197: 0 | O197: 0 | P197: 1 | Q197: 3 | R197: 15 | AA197: 430 | AB197: 430170725 | AC197: ADVANCED MATH AND SCIENCE ACADEMY | AD197: 0 | AE197: 0 | AF197: 0 | AG197: 0 | AH197: 6 | AI197: 9 | AJ197: 0 | AK197: 0 | AL197: 0 | AM197: 0 | AN197: 0 | AO197: 0 | AP197: 0 | AQ197: 0 | AR197: 0 | AS197: 1 | AU197: 170 | AV197: 725 | AW197: 3
A198: 430 | B198: 430170730 | C198: ADVANCED MATH AND SCIENCE ACADEMY | D198: 0 | E198: 0 | F198: 0 | G198: 0 | H198: 0 | I198: 7 | J198: 0 | K198: 0.273 | M198: 0 | N198: 0 | O198: 0 | P198: 0 | Q198: 3 | R198: 7 | AA198: 430 | AB198: 430170730 | AC198: ADVANCED MATH AND SCIENCE ACADEMY | AD198: 0 | AE198: 0 | AF198: 0 | AG198: 0 | AH198: 0 | AI198: 7 | AJ198: 0 | AK198: 0 | AL198: 0 | AM198: 0 | AN198: 0 | AO198: 0 | AP198: 0 | AQ198: 0 | AR198: 0 | AS198: 0 | AU198: 170 | AV198: 730 | AW198: 3
A199: 430 | B199: 430170735 | C199: ADVANCED MATH AND SCIENCE ACADEMY | D199: 0 | E199: 0 | F199: 0 | G199: 0 | H199: 1 | I199: 1 | J199: 0 | K199: 0.078 | M199: 0 | N199: 0 | O199: 0 | P199: 0 | Q199: 6 | R199: 2 | AA199: 430 | AB199: 430170735 | AC199: ADVANCED MATH AND SCIENCE ACADEMY | AD199: 0 | AE199: 0 | AF199: 0 | AG199: 0 | AH199: 1 | AI199: 1 | AJ199: 0 | AK199: 0 | AL199: 0 | AM199: 0 | AN199: 0 | AO199: 0 | AP199: 0 | AQ199: 0 | AR199: 0 | AS199: 0 | AU199: 170 | AV199: 735 | AW199: 6
A200: 430 | B200: 430170775 | C200: ADVANCED MATH AND SCIENCE ACADEMY | D200: 0 | E200: 0 | F200: 0 | G200: 0 | H200: 2 | I200: 1 | J200: 0 | K200: 0.117 | M200: 0 | N200: 0 | O200: 0 | P200: 1 | Q200: 4 | R200: 3 | AA200: 430 | AB200: 430170775 | AC200: ADVANCED MATH AND SCIENCE ACADEMY | AD200: 0 | AE200: 0 | AF200: 0 | AG200: 0 | AH200: 2 | AI200: 1 | AJ200: 0 | AK200: 0 | AL200: 0 | AM200: 0 | AN200: 0 | AO200: 0 | AP200: 0 | AQ200: 0 | AR200: 0 | AS200: 1 | AU200: 170 | AV200: 775 | AW200: 4
A201: 432 | B201: 432712020 | C201: CAPE COD LIGHTHOUSE | D201: 0 | E201: 0 | F201: 0 | G201: 0 | H201: 86 | I201: 0 | J201: 0 | K201: 3.354 | M201: 0 | N201: 0 | O201: 0 | P201: 16 | Q201: 10 | R201: 86 | AA201: 432 | AB201: 432712020 | AC201: CAPE COD LIGHTHOUSE | AD201: 0 | AE201: 0 | AF201: 0 | AG201: 0 | AH201: 86 | AI201: 0 | AJ201: 0 | AK201: 0 | AL201: 0 | AM201: 0 | AN201: 0 | AO201: 16 | AP201: 0 | AQ201: 0 | AR201: 0 | AS201: 0 | AU201: 712 | AV201: 20 | AW201: 10
A202: 432 | B202: 432712172 | C202: CAPE COD LIGHTHOUSE | D202: 0 | E202: 0 | F202: 0 | G202: 0 | H202: 2 | I202: 0 | J202: 0 | K202: 0.078 | M202: 0 | N202: 0 | O202: 0 | P202: 0 | Q202: 8 | R202: 2 | AA202: 432 | AB202: 432712172 | AC202: CAPE COD LIGHTHOUSE | AD202: 0 | AE202: 0 | AF202: 0 | AG202: 0 | AH202: 2 | AI202: 0 | AJ202: 0 | AK202: 0 | AL202: 0 | AM202: 0 | AN202: 0 | AO202: 0 | AP202: 0 | AQ202: 0 | AR202: 0 | AS202: 0 | AU202: 712 | AV202: 172 | AW202: 8
A203: 432 | B203: 432712261 | C203: CAPE COD LIGHTHOUSE | D203: =ROUND(AD203,0) -> 0 | E203: =ROUND(AE203,0) -> 0 | F203: =ROUND(AF203,0) -> 0 | G203: =ROUND(AG203,0) -> 0 | H203: =ROUND(AH203,0) -> 19 | I203: =ROUND(AI203,0)-J203 -> 0 | J203: =ROUND(AJ203,0) -> 0 | K203: =ROUND(0.039*(SUM(AF203:AI203)+(AE203*0.5))+0.049*AJ203,4) -> 0.741 | M203: =ROUND(AL203+(AK203*0.5),0) -> 0 | N203: =ROUND(AM203,0) -> 0 | O203: =ROUND(AN203,0) -> 0 | P203: =ROUND(((AP203+AQ203)*0.5)+AO203+AR203+AS203,0) -> 3 | Q203: =AW203 -> 5 | R203: =SUM(F203:I203)+ROUND(D203*0.5,0)+ROUND(J203,0) -> 19 | AA203: 432 | AB203: 432712261 | AC203: CAPE COD LIGHTHOUSE | AD203: 0 | AE203: 0 | AF203: 0 | AG203: 0 | AH203: 19 | AI203: 0 | AJ203: 0 | AK203: 0 | AL203: 0 | AM203: 0 | AN203: 0 | AO203: 3 | AP203: 0 | AQ203: 0 | AR203: 0 | AS203: 0 | AU203: 712 | AV203: 261 | AW203: 5
A204: 432 | B204: 432712300 | C204: CAPE COD LIGHTHOUSE | D204: 0 | E204: 0 | F204: 0 | G204: 0 | H204: 1 | I204: 0 | J204: 0 | K204: 0.039 | M204: 0 | N204: 0 | O204: 0 | P204: 1 | Q204: 10 | R204: 1 | AA204: 432 | AB204: 432712300 | AC204: CAPE COD LIGHTHOUSE | AD204: 0 | AE204: 0 | AF204: 0 | AG204: 0 | AH204: 1 | AI204: 0 | AJ204: 0 | AK204: 0 | AL204: 0 | AM204: 0 | AN204: 0 | AO204: 1 | AP204: 0 | AQ204: 0 | AR204: 0 | AS204: 0 | AU204: 712 | AV204: 300 | AW204: 10
... 868 more rows

Sheet dist enro (hidden)
A1: Source: found24_updated.xlsm on 3/23/23 | AA1: Source: found24_updated.xlsm on 3/23/23 | BA1: compare
AB2: dist435
A4: 1 | B4: 2 | C4: 3 | D4: 4 | E4: 5 | F4: 6 | G4: 7 | H4: 8 | I4: 9 | J4: 10 | K4: 11 | L4: 12 | M4: 13 | N4: 14 | O4: 15 | P4: 16 | Q4: 17
A6: FOUNDATION ENROLLMENT | AA6: a | AB6: b | AC6: 4 | AD6: 5 | AE6: 6 | AF6: 7 | AG6: 8 | AH6: 9 | AI6: 10 | AJ6: 11 | AK6: 12 | AL6: 13 | AM6: 14 | AN6: 15 | AO6: 16 | AP6: 17 | AQ6: 18 | AR6: 19 | AS6: 20 | AT6: 21 | AU6: 22 | AV6: 23
C7: A l l P u p i l s | I7: Voke | J7: Sped | L7: ELL | O7: EcoDis | P7: Fnd Enro | BC7: A l l P u p i l s | BI7: Voke | BJ7: Sped | BL7: ELL | BO7: EcoDis | BP7: Fnd Enro
A8: LEA | B8: District | C8: PK | D8: K2 | E8: K | F8: G1-5 | G8: G6-8 | H8: G9-12 | I8: Reg | J8: In | K8: Tuit | L8: PK - 5 | M8: Middle | N8: High | O8: All | P8: Total | AA8: LEA | AB8: District Name | AC8: PK | AD8: K Half | AE8: K Full | AF8: Elem | AG8: Jr/Middle | AH8: High School | AI8: blank | AJ8: blank | AK8: blank | AL8: Vocational | AM8: Assumed Special Ed In-District | AN8: Assumed Special Ed Tuition | AO8: EL PK-5 | AP8: EL 6-8 | AQ8: EL high school | AR8: blank | AS8: blank | AT8: blank | AU8: Low Income | AV8: blank | AW8: Total Foundation Enrollment | AX8: WAF | BA8: LEA | BB8: District | BC8: PK | BD8: K2 | BE8: K | BF8: G1-5 | BG8: G6-8 | BH8: G9-12 | BI8: Reg | BJ8: In | BK8: Tuit | BL8: PK - 5 | BM8: Middle | BN8: High | BO8: All | BP8: Total
A10: 1 | B10: ABINGTON | C10: 30 | D10: 0 | E10: 169 | F10: 891 | G10: 519 | H10: 605 | I10: 7 | J10: 85 | K10: 22 | L10: 145 | M10: 40 | N10: 46 | O10: 834 | P10: 2206 | AA10: 1 | AB10: ABINGTON | AC10: 30 | AD10: 0 | AE10: 169 | AF10: 891 | AG10: 519 | AH10: 605 | AL10: 7 | AM10: 85 | AN10: 22 | AO10: 145 | AP10: 40 | AQ10: 46 | AU10: 834 | AW10: 2206 | AX10: 1.036 | BA10: =A10=AA10 -> TRUE | BB10: =B10=AB10 -> TRUE | BC10: TRUE | BD10: TRUE | BE10: TRUE | BF10: TRUE | BG10: TRUE | BH10: TRUE | BI10: =I10=AL10 -> TRUE | BJ10: TRUE | BK10: TRUE | BL10: TRUE | BM10: TRUE | BN10: TRUE | BO10: =O10=AU10 -> TRUE | BP10: =P10=AW10 -> TRUE
A11: 2 | B11: ACTON | C11: 0 | D11: 0 | E11: 0 | F11: 0 | G11: 0 | H11: 0 | I11: 0 | J11: 0 | K11: 0 | L11: 0 | M11: 0 | N11: 0 | O11: 0 | P11: 0 | AA11: 2 | AB11: ACTON | AC11: 0 | AD11: 0 | AE11: 0 | AF11: 0 | AG11: 0 | AH11: 0 | AL11: 0 | AM11: 0 | AN11: 0 | AO11: 0 | AP11: 0 | AQ11: 0 | AU11: 0 | AW11: 0 | AX11: 1.064 | BA11: =A11=AA11 -> TRUE | BB11: =B11=AB11 -> TRUE | BC11: =C11=AC11 -> TRUE | BD11: =D11=AD11 -> TRUE | BE11: =E11=AE11 -> TRUE | BF11: =F11=AF11 -> TRUE | BG11: =G11=AG11 -> TRUE | BH11: =H11=AH11 -> TRUE | BI11: =I11=AL11 -> TRUE | BJ11: =J11=AM11 -> TRUE | BK11: =K11=AN11 -> TRUE | BL11: =L11=AO11 -> TRUE | BM11: =M11=AP11 -> TRUE | BN11: =N11=AQ11 -> TRUE | BO11: =O11=AU11 -> TRUE | BP11: =P11=AW11 -> TRUE
A12: 3 | B12: ACUSHNET | C12: 56 | D12: 0 | E12: 95 | F12: 518 | G12: 317 | H12: 263 | I12: 0 | J12: 47 | K12: 12 | L12: 3 | M12: 3 | N12: 0 | O12: 384 | P12: 1221 | AA12: 3 | AB12: ACUSHNET | AC12: 56 | AD12: 0 | AE12: 95 | AF12: 518 | AG12: 317 | AH12: 263 | AL12: 0 | AM12: 47 | AN12: 12 | AO12: 3 | AP12: 3 | AQ12: 0 | AU12: 384 | AW12: 1221 | AX12: 1 | BA12: TRUE | BB12: TRUE | BC12: TRUE | BD12: TRUE | BE12: TRUE | BF12: TRUE | BG12: TRUE | BH12: TRUE | BI12: TRUE | BJ12: TRUE | BK12: TRUE | BL12: TRUE | BM12: TRUE | BN12: TRUE | BO12: TRUE | BP12: TRUE
A13: 4 | B13: ADAMS | C13: 0 | D13: 0 | E13: 0 | F13: 0 | G13: 0 | H13: 0 | I13: 0 | J13: 0 | K13: 0 | L13: 0 | M13: 0 | N13: 0 | O13: 0 | P13: 0 | AA13: 4 | AB13: ADAMS | AC13: 0 | AD13: 0 | AE13: 0 | AF13: 0 | AG13: 0 | AH13: 0 | AL13: 0 | AM13: 0 | AN13: 0 | AO13: 0 | AP13: 0 | AQ13: 0 | AU13: 0 | AW13: 0 | AX13: 1 | BA13: TRUE | BB13: TRUE | BC13: TRUE | BD13: TRUE | BE13: TRUE | BF13: TRUE | BG13: TRUE | BH13: TRUE | BI13: TRUE | BJ13: TRUE | BK13: TRUE | BL13: TRUE | BM13: TRUE | BN13: TRUE | BO13: TRUE | BP13: TRUE
A14: 5 | B14: AGAWAM | C14: 1 | D14: 0 | E14: 235 | F14: 1237 | G14: 825 | H14: 962 | I14: 161 | J14: 135 | K14: 33 | L14: 150 | M14: 30 | N14: 29 | O14: 1643 | P14: 3421 | AA14: 5 | AB14: AGAWAM | AC14: 1 | AD14: 0 | AE14: 235 | AF14: 1237 | AG14: 825 | AH14: 962 | AL14: 161 | AM14: 135 | AN14: 33 | AO14: 150 | AP14: 30 | AQ14: 29 | AU14: 1643 | AW14: 3421 | AX14: 1 | BA14: TRUE | BB14: TRUE | BC14: TRUE | BD14: TRUE | BE14: TRUE | BF14: TRUE | BG14: TRUE | BH14: TRUE | BI14: TRUE | BJ14: TRUE | BK14: TRUE | BL14: TRUE | BM14: TRUE | BN14: TRUE | BO14: TRUE | BP14: TRUE
A15: 6 | B15: ALFORD | C15: 0 | D15: 0 | E15: 0 | F15: 0 | G15: 0 | H15: 0 | I15: 0 | J15: 0 | K15: 0 | L15: 0 | M15: 0 | N15: 0 | O15: 0 | P15: 0 | AA15: 6 | AB15: ALFORD | AC15: 0 | AD15: 0 | AE15: 0 | AF15: 0 | AG15: 0 | AH15: 0 | AL15: 0 | AM15: 0 | AN15: 0 | AO15: 0 | AP15: 0 | AQ15: 0 | AU15: 0 | AW15: 0 | AX15: 1 | BA15: TRUE | BB15: TRUE | BC15: TRUE | BD15: TRUE | BE15: TRUE | BF15: TRUE | BG15: TRUE | BH15: TRUE | BI15: TRUE | BJ15: TRUE | BK15: TRUE | BL15: TRUE | BM15: TRUE | BN15: TRUE | BO15: TRUE | BP15: TRUE
A16: 7 | B16: AMESBURY | C16: 50 | D16: 0 | E16: 127 | F16: 704 | G16: 479 | H16: 503 | I16: 9 | J16: 71 | K16: 18 | L16: 34 | M16: 6 | N16: 7 | O16: 685 | P16: 1847 | AA16: 7 | AB16: AMESBURY | AC16: 50 | AD16: 0 | AE16: 127 | AF16: 704 | AG16: 479 | AH16: 503 | AL16: 9 | AM16: 71 | AN16: 18 | AO16: 34 | AP16: 6 | AQ16: 7 | AU16: 685 | AW16: 1847 | AX16: 1 | BA16: TRUE | BB16: TRUE | BC16: TRUE | BD16: TRUE | BE16: TRUE | BF16: TRUE | BG16: TRUE | BH16: TRUE | BI16: TRUE | BJ16: TRUE | BK16: TRUE | BL16: TRUE | BM16: TRUE | BN16: TRUE | BO16: TRUE | BP16: TRUE
A17: 8 | B17: AMHERST | C17: 60 | D17: 0 | E17: 135 | F17: 731 | G17: 159 | H17: 0 | I17: 0 | J17: 40 | K17: 10 | L17: 112 | M17: 16 | N17: 0 | O17: 416 | P17: 1055 | AA17: 8 | AB17: AMHERST | AC17: 60 | AD17: 0 | AE17: 135 | AF17: 731 | AG17: 159 | AH17: 0 | AL17: 0 | AM17: 40 | AN17: 10 | AO17: 112 | AP17: 16 | AQ17: 0 | AU17: 416 | AW17: 1055 | AX17: 1 | BA17: TRUE | BB17: TRUE | BC17: TRUE | BD17: TRUE | BE17: TRUE | BF17: TRUE | BG17: TRUE | BH17: TRUE | BI17: TRUE | BJ17: TRUE | BK17: TRUE | BL17: TRUE | BM17: TRUE | BN17: TRUE | BO17: TRUE | BP17: TRUE
A18: 9 | B18: ANDOVER | C18: 99 | D18: 0 | E18: 354 | F18: 2074 | G18: 1327 | H18: 1743 | I18: 6 | J18: 214 | K18: 55 | L18: 152 | M18: 20 | N18: 17 | O18: 784 | P18: 5554 | AA18: 9 | AB18: ANDOVER | AC18: 99 | AD18: 0 | AE18: 354 | AF18: 2074 | AG18: 1327 | AH18: 1743 | AL18: 6 | AM18: 214 | AN18: 55 | AO18: 152 | AP18: 20 | AQ18: 17 | AU18: 784 | AW18: 5554 | AX18: 1.088 | BA18: TRUE | BB18: TRUE | BC18: TRUE | BD18: TRUE | BE18: TRUE | BF18: TRUE | BG18: TRUE | BH18: TRUE | BI18: TRUE | BJ18: TRUE | BK18: TRUE | BL18: TRUE | BM18: TRUE | BN18: TRUE | BO18: TRUE | BP18: TRUE
A19: 10 | B19: ARLINGTON | C19: 52 | D19: 0 | E19: 490 | F19: 2470 | G19: 1457 | H19: 1559 | I19: 0 | J19: 233 | K19: 60 | L19: 228 | M19: 46 | N19: 29 | O19: 736 | P19: 6002 | AA19: 10 | AB19: ARLINGTON | AC19: 52 | AD19: 0 | AE19: 490 | AF19: 2470 | AG19: 1457 | AH19: 1559 | AL19: 0 | AM19: 233 | AN19: 60 | AO19: 228 | AP19: 46 | AQ19: 29 | AU19: 736 | AW19: 6002 | AX19: 1.045 | BA19: TRUE | BB19: TRUE | BC19: TRUE | BD19: TRUE | BE19: TRUE | BF19: TRUE | BG19: TRUE | BH19: TRUE | BI19: TRUE | BJ19: TRUE | BK19: TRUE | BL19: TRUE | BM19: TRUE | BN19: TRUE | BO19: TRUE | BP19: TRUE
A20: 11 | B20: ASHBURNHAM | C20: 0 | D20: 0 | E20: 0 | F20: 0 | G20: 0 | H20: 0 | I20: 0 | J20: 0 | K20: 0 | L20: 0 | M20: 0 | N20: 0 | O20: 0 | P20: 0 | AA20: 11 | AB20: ASHBURNHAM | AC20: 0 | AD20: 0 | AE20: 0 | AF20: 0 | AG20: 0 | AH20: 0 | AL20: 0 | AM20: 0 | AN20: 0 | AO20: 0 | AP20: 0 | AQ20: 0 | AU20: 0 | AW20: 0 | AX20: 1 | BA20: TRUE | BB20: TRUE | BC20: TRUE | BD20: TRUE | BE20: TRUE | BF20: TRUE | BG20: TRUE | BH20: TRUE | BI20: TRUE | BJ20: TRUE | BK20: TRUE | BL20: TRUE | BM20: TRUE | BN20: TRUE | BO20: TRUE | BP20: TRUE
A21: 12 | B21: ASHBY | C21: 0 | D21: 0 | E21: 0 | F21: 0 | G21: 0 | H21: 0 | I21: 0 | J21: 0 | K21: 0 | L21: 0 | M21: 0 | N21: 0 | O21: 0 | P21: 0 | AA21: 12 | AB21: ASHBY | AC21: 0 | AD21: 0 | AE21: 0 | AF21: 0 | AG21: 0 | AH21: 0 | AL21: 0 | AM21: 0 | AN21: 0 | AO21: 0 | AP21: 0 | AQ21: 0 | AU21: 0 | AW21: 0 | AX21: 1 | BA21: TRUE | BB21: TRUE | BC21: TRUE | BD21: TRUE | BE21: TRUE | BF21: TRUE | BG21: TRUE | BH21: TRUE | BI21: TRUE | BJ21: TRUE | BK21: TRUE | BL21: TRUE | BM21: TRUE | BN21: TRUE | BO21: TRUE | BP21: TRUE
A22: 13 | B22: ASHFIELD | C22: 0 | D22: 0 | E22: 0 | F22: 0 | G22: 0 | H22: 0 | I22: 13 | J22: 1 | K22: 0 | L22: 0 | M22: 0 | N22: 0 | O22: 0 | P22: 13 | AA22: 13 | AB22: ASHFIELD | AC22: 0 | AD22: 0 | AE22: 0 | AF22: 0 | AG22: 0 | AH22: 0 | AL22: 13 | AM22: 1 | AN22: 0 | AO22: 0 | AP22: 0 | AQ22: 0 | AU22: 0 | AW22: 13 | AX22: 1 | BA22: TRUE | BB22: TRUE | BC22: TRUE | BD22: TRUE | BE22: TRUE | BF22: TRUE | BG22: TRUE | BH22: TRUE | BI22: TRUE | BJ22: TRUE | BK22: TRUE | BL22: TRUE | BM22: TRUE | BN22: TRUE | BO22: TRUE | BP22: TRUE
A23: 14 | B23: ASHLAND | C23: 24 | D23: 0 | E23: 174 | F23: 1119 | G23: 694 | H23: 836 | I23: 4 | J23: 110 | K23: 28 | L23: 176 | M23: 43 | N23: 57 | O23: 751 | P23: 2839 | AA23: 14 | AB23: ASHLAND | AC23: 24 | AD23: 0 | AE23: 174 | AF23: 1119 | AG23: 694 | AH23: 836 | AL23: 4 | AM23: 110 | AN23: 28 | AO23: 176 | AP23: 43 | AQ23: 57 | AU23: 751 | AW23: 2839 | AX23: 1 | BA23: TRUE | BB23: TRUE | BC23: TRUE | BD23: TRUE | BE23: TRUE | BF23: TRUE | BG23: TRUE | BH23: TRUE | BI23: TRUE | BJ23: TRUE | BK23: TRUE | BL23: TRUE | BM23: TRUE | BN23: TRUE | BO23: TRUE | BP23: TRUE
A24: 15 | B24: ATHOL | C24: 0 | D24: 0 | E24: 0 | F24: 0 | G24: 0 | H24: 0 | I24: 0 | J24: 0 | K24: 0 | L24: 0 | M24: 0 | N24: 0 | O24: 0 | P24: 0 | AA24: 15 | AB24: ATHOL | AC24: 0 | AD24: 0 | AE24: 0 | AF24: 0 | AG24: 0 | AH24: 0 | AL24: 0 | AM24: 0 | AN24: 0 | AO24: 0 | AP24: 0 | AQ24: 0 | AU24: 0 | AW24: 0 | AX24: 1 | BA24: TRUE | BB24: TRUE | BC24: TRUE | BD24: TRUE | BE24: TRUE | BF24: TRUE | BG24: TRUE | BH24: TRUE | BI24: TRUE | BJ24: TRUE | BK24: TRUE | BL24: TRUE | BM24: TRUE | BN24: TRUE | BO24: TRUE | BP24: TRUE
A25: 16 | B25: ATTLEBORO | C25: 192 | D25: 0 | E25: 421 | F25: 2204 | G25: 1438 | H25: 600 | I25: 1479 | J25: 254 | K25: 47 | L25: 284 | M25: 47 | N25: 69 | O25: 2803 | P25: 6238 | AA25: 16 | AB25: ATTLEBORO | AC25: 192 | AD25: 0 | AE25: 421 | AF25: 2204 | AG25: 1438 | AH25: 600 | AL25: 1479 | AM25: 254 | AN25: 47 | AO25: 284 | AP25: 47 | AQ25: 69 | AU25: 2803 | AW25: 6238 | AX25: 1 | BA25: TRUE | BB25: TRUE | BC25: TRUE | BD25: TRUE | BE25: TRUE | BF25: TRUE | BG25: TRUE | BH25: TRUE | BI25: TRUE | BJ25: TRUE | BK25: TRUE | BL25: TRUE | BM25: TRUE | BN25: TRUE | BO25: TRUE | BP25: TRUE
A26: 17 | B26: AUBURN | C26: 27 | D26: 0 | E26: 169 | F26: 897 | G26: 639 | H26: 702 | I26: 1 | J26: 94 | K26: 24 | L26: 32 | M26: 16 | N26: 12 | O26: 847 | P26: 2422 | AA26: 17 | AB26: AUBURN | AC26: 27 | AD26: 0 | AE26: 169 | AF26: 897 | AG26: 639 | AH26: 702 | AL26: 1 | AM26: 94 | AN26: 24 | AO26: 32 | AP26: 16 | AQ26: 12 | AU26: 847 | AW26: 2422 | AX26: 1 | BA26: TRUE | BB26: TRUE | BC26: TRUE | BD26: TRUE | BE26: TRUE | BF26: TRUE | BG26: TRUE | BH26: TRUE | BI26: TRUE | BJ26: TRUE | BK26: TRUE | BL26: TRUE | BM26: TRUE | BN26: TRUE | BO26: TRUE | BP26: TRUE
A27: 18 | B27: AVON | C27: 23 | D27: 0 | E27: 51 | F27: 216 | G27: 154 | H27: 153 | I27: 0 | J27: 22 | K27: 6 | L27: 60 | M27: 18 | N27: 15 | O27: 401 | P27: 586 | AA27: 18 | AB27: AVON | AC27: 23 | AD27: 0 | AE27: 51 | AF27: 216 | AG27: 154 | AH27: 153 | AL27: 0 | AM27: 22 | AN27: 6 | AO27: 60 | AP27: 18 | AQ27: 15 | AU27: 401 | AW27: 586 | AX27: 1 | BA27: TRUE | BB27: TRUE | BC27: TRUE | BD27: TRUE | BE27: TRUE | BF27: TRUE | BG27: TRUE | BH27: TRUE | BI27: TRUE | BJ27: TRUE | BK27: TRUE | BL27: TRUE | BM27: TRUE | BN27: TRUE | BO27: TRUE | BP27: TRUE
A28: 19 | B28: AYER | C28: 0 | D28: 0 | E28: 0 | F28: 0 | G28: 0 | H28: 0 | I28: 0 | J28: 0 | K28: 0 | L28: 0 | M28: 0 | N28: 0 | O28: 0 | P28: 0 | AA28: 19 | AB28: AYER | AC28: 0 | AD28: 0 | AE28: 0 | AF28: 0 | AG28: 0 | AH28: 0 | AL28: 0 | AM28: 0 | AN28: 0 | AO28: 0 | AP28: 0 | AQ28: 0 | AU28: 0 | AW28: 0 | AX28: 1 | BA28: TRUE | BB28: TRUE | BC28: TRUE | BD28: TRUE | BE28: TRUE | BF28: TRUE | BG28: TRUE | BH28: TRUE | BI28: TRUE | BJ28: TRUE | BK28: TRUE | BL28: TRUE | BM28: TRUE | BN28: TRUE | BO28: TRUE | BP28: TRUE
A29: 20 | B29: BARNSTABLE | C29: 156 | D29: 0 | E29: 383 | F29: 1937 | G29: 1179 | H29: 1609 | I29: 116 | J29: 205 | K29: 51 | L29: 617 | M29: 172 | N29: 217 | O29: 3088 | P29: 5302 | AA29: 20 | AB29: BARNSTABLE | AC29: 156 | AD29: 0 | AE29: 383 | AF29: 1937 | AG29: 1179 | AH29: 1609 | AL29: 116 | AM29: 205 | AN29: 51 | AO29: 617 | AP29: 172 | AQ29: 217 | AU29: 3088 | AW29: 5302 | AX29: 1 | BA29: TRUE | BB29: TRUE | BC29: TRUE | BD29: TRUE | BE29: TRUE | BF29: TRUE | BG29: TRUE | BH29: TRUE | BI29: TRUE | BJ29: TRUE | BK29: TRUE | BL29: TRUE | BM29: TRUE | BN29: TRUE | BO29: TRUE | BP29: TRUE
A30: 21 | B30: BARRE | C30: 0 | D30: 0 | E30: 0 | F30: 0 | G30: 0 | H30: 0 | I30: 0 | J30: 0 | K30: 0 | L30: 0 | M30: 0 | N30: 0 | O30: 0 | P30: 0 | AA30: 21 | AB30: BARRE | AC30: 0 | AD30: 0 | AE30: 0 | AF30: 0 | AG30: 0 | AH30: 0 | AL30: 0 | AM30: 0 | AN30: 0 | AO30: 0 | AP30: 0 | AQ30: 0 | AU30: 0 | AW30: 0 | AX30: 1 | BA30: TRUE | BB30: TRUE | BC30: TRUE | BD30: TRUE | BE30: TRUE | BF30: TRUE | BG30: TRUE | BH30: TRUE | BI30: TRUE | BJ30: TRUE | BK30: TRUE | BL30: TRUE | BM30: TRUE | BN30: TRUE | BO30: TRUE | BP30: TRUE
A31: 22 | B31: BECKET | C31: 0 | D31: 0 | E31: 0 | F31: 0 | G31: 0 | H31: 0 | I31: 14 | J31: 1 | K31: 0 | L31: 0 | M31: 0 | N31: 0 | O31: 0 | P31: 14 | AA31: 22 | AB31: BECKET | AC31: 0 | AD31: 0 | AE31: 0 | AF31: 0 | AG31: 0 | AH31: 0 | AL31: 14 | AM31: 1 | AN31: 0 | AO31: 0 | AP31: 0 | AQ31: 0 | AU31: 0 | AW31: 14 | AX31: 1 | BA31: TRUE | BB31: TRUE | BC31: TRUE | BD31: TRUE | BE31: TRUE | BF31: TRUE | BG31: TRUE | BH31: TRUE | BI31: TRUE | BJ31: TRUE | BK31: TRUE | BL31: TRUE | BM31: TRUE | BN31: TRUE | BO31: TRUE | BP31: TRUE
A32: 23 | B32: BEDFORD | C32: 23 | D32: 0 | E32: 140 | F32: 921 | G32: 608 | H32: 867 | I32: 1 | J32: 99 | K32: 25 | L32: 80 | M32: 14 | N32: 9 | O32: 369 | P32: 2549 | AA32: 23 | AB32: BEDFORD | AC32: 23 | AD32: 0 | AE32: 140 | AF32: 921 | AG32: 608 | AH32: 867 | AL32: 1 | AM32: 99 | AN32: 25 | AO32: 80 | AP32: 14 | AQ32: 9 | AU32: 369 | AW32: 2549 | AX32: 1.084 | BA32: TRUE | BB32: TRUE | BC32: TRUE | BD32: TRUE | BE32: TRUE | BF32: TRUE | BG32: TRUE | BH32: TRUE | BI32: TRUE | BJ32: TRUE | BK32: TRUE | BL32: TRUE | BM32: TRUE | BN32: TRUE | BO32: TRUE | BP32: TRUE
A33: 24 | B33: BELCHERTOWN | C33: 67 | D33: 0 | E33: 139 | F33: 810 | G33: 505 | H33: 654 | I33: 10 | J33: 82 | K33: 21 | L33: 38 | M33: 5 | N33: 6 | O33: 626 | P33: 2152 | AA33: 24 | AB33: BELCHERTOWN | AC33: 67 | AD33: 0 | AE33: 139 | AF33: 810 | AG33: 505 | AH33: 654 | AL33: 10 | AM33: 82 | AN33: 21 | AO33: 38 | AP33: 5 | AQ33: 6 | AU33: 626 | AW33: 2152 | AX33: 1 | BA33: TRUE | BB33: TRUE | BC33: TRUE | BD33: TRUE | BE33: TRUE | BF33: TRUE | BG33: TRUE | BH33: TRUE | BI33: TRUE | BJ33: TRUE | BK33: TRUE | BL33: TRUE | BM33: TRUE | BN33: TRUE | BO33: TRUE | BP33: TRUE
A34: 25 | B34: BELLINGHAM | C34: 39 | D34: 0 | E34: 158 | F34: 812 | G34: 527 | H34: 641 | I34: 17 | J34: 84 | K34: 21 | L34: 76 | M34: 7 | N34: 16 | O34: 808 | P34: 2175 | AA34: 25 | AB34: BELLINGHAM | AC34: 39 | AD34: 0 | AE34: 158 | AF34: 812 | AG34: 527 | AH34: 641 | AL34: 17 | AM34: 84 | AN34: 21 | AO34: 76 | AP34: 7 | AQ34: 16 | AU34: 808 | AW34: 2175 | AX34: 1 | BA34: TRUE | BB34: TRUE | BC34: TRUE | BD34: TRUE | BE34: TRUE | BF34: TRUE | BG34: TRUE | BH34: TRUE | BI34: TRUE | BJ34: TRUE | BK34: TRUE | BL34: TRUE | BM34: TRUE | BN34: TRUE | BO34: TRUE | BP34: TRUE
A35: 26 | B35: BELMONT | C35: 29 | D35: 0 | E35: 287 | F35: 1693 | G35: 1057 | H35: 1426 | I35: 27 | J35: 175 | K35: 45 | L35: 346 | M35: 40 | N35: 34 | O35: 599 | P35: 4505 | AA35: 26 | AB35: BELMONT | AC35: 29 | AD35: 0 | AE35: 287 | AF35: 1693 | AG35: 1057 | AH35: 1426 | AL35: 27 | AM35: 175 | AN35: 45 | AO35: 346 | AP35: 40 | AQ35: 34 | AU35: 599 | AW35: 4505 | AX35: 1.041 | BA35: TRUE | BB35: TRUE | BC35: TRUE | BD35: TRUE | BE35: TRUE | BF35: TRUE | BG35: TRUE | BH35: TRUE | BI35: TRUE | BJ35: TRUE | BK35: TRUE | BL35: TRUE | BM35: TRUE | BN35: TRUE | BO35: TRUE | BP35: TRUE
A36: 27 | B36: BERKLEY | C36: 36 | D36: 0 | E36: 68 | F36: 357 | G36: 255 | H36: 0 | I36: 0 | J36: 27 | K36: 7 | L36: 7 | M36: 2 | N36: 0 | O36: 248 | P36: 698 | AA36: 27 | AB36: BERKLEY | AC36: 36 | AD36: 0 | AE36: 68 | AF36: 357 | AG36: 255 | AH36: 0 | AL36: 0 | AM36: 27 | AN36: 7 | AO36: 7 | AP36: 2 | AQ36: 0 | AU36: 248 | AW36: 698 | AX36: 1 | BA36: TRUE | BB36: TRUE | BC36: TRUE | BD36: TRUE | BE36: TRUE | BF36: TRUE | BG36: TRUE | BH36: TRUE | BI36: TRUE | BJ36: TRUE | BK36: TRUE | BL36: TRUE | BM36: TRUE | BN36: TRUE | BO36: TRUE | BP36: TRUE
A37: 28 | B37: BERLIN | C37: 0 | D37: 0 | E37: 0 | F37: 0 | G37: 0 | H37: 0 | I37: 0 | J37: 0 | K37: 0 | L37: 0 | M37: 0 | N37: 0 | O37: 0 | P37: 0 | AA37: 28 | AB37: BERLIN | AC37: 0 | AD37: 0 | AE37: 0 | AF37: 0 | AG37: 0 | AH37: 0 | AL37: 0 | AM37: 0 | AN37: 0 | AO37: 0 | AP37: 0 | AQ37: 0 | AU37: 0 | AW37: 0 | AX37: 1.028 | BA37: TRUE | BB37: TRUE | BC37: TRUE | BD37: TRUE | BE37: TRUE | BF37: TRUE | BG37: TRUE | BH37: TRUE | BI37: TRUE | BJ37: TRUE | BK37: TRUE | BL37: TRUE | BM37: TRUE | BN37: TRUE | BO37: TRUE | BP37: TRUE
A38: 29 | B38: BERNARDSTON | C38: 0 | D38: 0 | E38: 0 | F38: 0 | G38: 0 | H38: 0 | I38: 0 | J38: 0 | K38: 0 | L38: 0 | M38: 0 | N38: 0 | O38: 0 | P38: 0 | AA38: 29 | AB38: BERNARDSTON | AC38: 0 | AD38: 0 | AE38: 0 | AF38: 0 | AG38: 0 | AH38: 0 | AL38: 0 | AM38: 0 | AN38: 0 | AO38: 0 | AP38: 0 | AQ38: 0 | AU38: 0 | AW38: 0 | AX38: 1 | BA38: TRUE | BB38: TRUE | BC38: TRUE | BD38: TRUE | BE38: TRUE | BF38: TRUE | BG38: TRUE | BH38: TRUE | BI38: TRUE | BJ38: TRUE | BK38: TRUE | BL38: TRUE | BM38: TRUE | BN38: TRUE | BO38: TRUE | BP38: TRUE
A39: 30 | B39: BEVERLY | C39: 127 | D39: 0 | E39: 357 | F39: 1773 | G39: 1031 | H39: 1283 | I39: 33 | J39: 175 | K39: 44 | L39: 127 | M39: 23 | N39: 48 | O39: 1682 | P39: 4541 | AA39: 30 | AB39: BEVERLY | AC39: 127 | AD39: 0 | AE39: 357 | AF39: 1773 | AG39: 1031 | AH39: 1283 | AL39: 33 | AM39: 175 | AN39: 44 | AO39: 127 | AP39: 23 | AQ39: 48 | AU39: 1682 | AW39: 4541 | AX39: 1 | BA39: TRUE | BB39: TRUE | BC39: TRUE | BD39: TRUE | BE39: TRUE | BF39: TRUE | BG39: TRUE | BH39: TRUE | BI39: TRUE | BJ39: TRUE | BK39: TRUE | BL39: TRUE | BM39: TRUE | BN39: TRUE | BO39: TRUE | BP39: TRUE
A40: 31 | B40: BILLERICA | C40: 93 | D40: 0 | E40: 378 | F40: 1960 | G40: 1223 | H40: 1269 | I40: 2 | J40: 188 | K40: 48 | L40: 95 | M40: 17 | N40: 31 | O40: 1506 | P40: 4879 | AA40: 31 | AB40: BILLERICA | AC40: 93 | AD40: 0 | AE40: 378 | AF40: 1960 | AG40: 1223 | AH40: 1269 | AL40: 2 | AM40: 188 | AN40: 48 | AO40: 95 | AP40: 17 | AQ40: 31 | AU40: 1506 | AW40: 4879 | AX40: 1 | BA40: TRUE | BB40: TRUE | BC40: TRUE | BD40: TRUE | BE40: TRUE | BF40: TRUE | BG40: TRUE | BH40: TRUE | BI40: TRUE | BJ40: TRUE | BK40: TRUE | BL40: TRUE | BM40: TRUE | BN40: TRUE | BO40: TRUE | BP40: TRUE
A41: 32 | B41: BLACKSTONE | C41: 0 | D41: 0 | E41: 0 | F41: 0 | G41: 0 | H41: 0 | I41: 22 | J41: 1 | K41: 0 | L41: 0 | M41: 0 | N41: 0 | O41: 0 | P41: 22 | AA41: 32 | AB41: BLACKSTONE | AC41: 0 | AD41: 0 | AE41: 0 | AF41: 0 | AG41: 0 | AH41: 0 | AL41: 22 | AM41: 1 | AN41: 0 | AO41: 0 | AP41: 0 | AQ41: 0 | AU41: 0 | AW41: 22 | AX41: 1 | BA41: TRUE | BB41: TRUE | BC41: TRUE | BD41: TRUE | BE41: TRUE | BF41: TRUE | BG41: TRUE | BH41: TRUE | BI41: TRUE | BJ41: TRUE | BK41: TRUE | BL41: TRUE | BM41: TRUE | BN41: TRUE | BO41: TRUE | BP41: TRUE
A42: 33 | B42: BLANDFORD | C42: 0 | D42: 0 | E42: 0 | F42: 0 | G42: 0 | H42: 0 | I42: 13 | J42: 1 | K42: 0 | L42: 0 | M42: 0 | N42: 0 | O42: 0 | P42: 13 | AA42: 33 | AB42: BLANDFORD | AC42: 0 | AD42: 0 | AE42: 0 | AF42: 0 | AG42: 0 | AH42: 0 | AL42: 13 | AM42: 1 | AN42: 0 | AO42: 0 | AP42: 0 | AQ42: 0 | AU42: 0 | AW42: 13 | AX42: 1 | BA42: TRUE | BB42: TRUE | BC42: TRUE | BD42: TRUE | BE42: TRUE | BF42: TRUE | BG42: TRUE | BH42: TRUE | BI42: TRUE | BJ42: TRUE | BK42: TRUE | BL42: TRUE | BM42: TRUE | BN42: TRUE | BO42: TRUE | BP42: TRUE
A43: 34 | B43: BOLTON | C43: 0 | D43: 0 | E43: 0 | F43: 0 | G43: 0 | H43: 0 | I43: 0 | J43: 0 | K43: 0 | L43: 0 | M43: 0 | N43: 0 | O43: 0 | P43: 0 | AA43: 34 | AB43: BOLTON | AC43: 0 | AD43: 0 | AE43: 0 | AF43: 0 | AG43: 0 | AH43: 0 | AL43: 0 | AM43: 0 | AN43: 0 | AO43: 0 | AP43: 0 | AQ43: 0 | AU43: 0 | AW43: 0 | AX43: 1.043 | BA43: TRUE | BB43: TRUE | BC43: TRUE | BD43: TRUE | BE43: TRUE | BF43: TRUE | BG43: TRUE | BH43: TRUE | BI43: TRUE | BJ43: TRUE | BK43: TRUE | BL43: TRUE | BM43: TRUE | BN43: TRUE | BO43: TRUE | BP43: TRUE
A44: 35 | B44: BOSTON | C44: 3311 | D44: 0 | E44: 4019 | F44: 20175 | G44: 12694 | H44: 17358 | I44: 1836 | J44: 2206 | K44: 542 | L44: 9103 | M44: 2546 | N44: 4068 | O44: 43196 | P44: 57738 | AA44: 35 | AB44: BOSTON | AC44: 3311 | AD44: 0 | AE44: 4019 | AF44: 20175 | AG44: 12694 | AH44: 17358 | AL44: 1836 | AM44: 2206 | AN44: 542 | AO44: 9103 | AP44: 2546 | AQ44: 4068 | AU44: 43196 | AW44: 57738 | AX44: 1.09 | BA44: TRUE | BB44: TRUE | BC44: TRUE | BD44: TRUE | BE44: TRUE | BF44: TRUE | BG44: TRUE | BH44: TRUE | BI44: TRUE | BJ44: TRUE | BK44: TRUE | BL44: TRUE | BM44: TRUE | BN44: TRUE | BO44: TRUE | BP44: TRUE
A45: 36 | B45: BOURNE | C45: 64 | D45: 0 | E45: 116 | F45: 631 | G45: 438 | H45: 461 | I45: 0 | J45: 64 | K45: 16 | L45: 16 | M45: 2 | N45: 5 | O45: 679 | P45: 1678 | AA45: 36 | AB45: BOURNE | AC45: 64 | AD45: 0 | AE45: 116 | AF45: 631 | AG45: 438 | AH45: 461 | AL45: 0 | AM45: 64 | AN45: 16 | AO45: 16 | AP45: 2 | AQ45: 5 | AU45: 679 | AW45: 1678 | AX45: 1 | BA45: TRUE | BB45: TRUE | BC45: TRUE | BD45: TRUE | BE45: TRUE | BF45: TRUE | BG45: TRUE | BH45: TRUE | BI45: TRUE | BJ45: TRUE | BK45: TRUE | BL45: TRUE | BM45: TRUE | BN45: TRUE | BO45: TRUE | BP45: TRUE
A46: 37 | B46: BOXBOROUGH | C46: 0 | D46: 0 | E46: 0 | F46: 0 | G46: 0 | H46: 0 | I46: 6 | J46: 0 | K46: 0 | L46: 0 | M46: 0 | N46: 0 | O46: 0 | P46: 6 | AA46: 37 | AB46: BOXBOROUGH | AC46: 0 | AD46: 0 | AE46: 0 | AF46: 0 | AG46: 0 | AH46: 0 | AL46: 6 | AM46: 0 | AN46: 0 | AO46: 0 | AP46: 0 | AQ46: 0 | AU46: 0 | AW46: 6 | AX46: 1.108 | BA46: TRUE | BB46: TRUE | BC46: TRUE | BD46: TRUE | BE46: TRUE | BF46: TRUE | BG46: TRUE | BH46: TRUE | BI46: TRUE | BJ46: TRUE | BK46: TRUE | BL46: TRUE | BM46: TRUE | BN46: TRUE | BO46: TRUE | BP46: TRUE
A47: 38 | B47: BOXFORD | C47: 43 | D47: 0 | E47: 93 | F47: 510 | G47: 96 | H47: 0 | I47: 0 | J47: 27 | K47: 7 | L47: 10 | M47: 2 | N47: 0 | O47: 74 | P47: 721 | AA47: 38 | AB47: BOXFORD | AC47: 43 | AD47: 0 | AE47: 93 | AF47: 510 | AG47: 96 | AH47: 0 | AL47: 0 | AM47: 27 | AN47: 7 | AO47: 10 | AP47: 2 | AQ47: 0 | AU47: 74 | AW47: 721 | AX47: 1.044 | BA47: TRUE | BB47: TRUE | BC47: TRUE | BD47: TRUE | BE47: TRUE | BF47: TRUE | BG47: TRUE | BH47: TRUE | BI47: TRUE | BJ47: TRUE | BK47: TRUE | BL47: TRUE | BM47: TRUE | BN47: TRUE | BO47: TRUE | BP47: TRUE
A48: 39 | B48: BOYLSTON | C48: 0 | D48: 0 | E48: 0 | F48: 0 | G48: 0 | H48: 0 | I48: 21 | J48: 1 | K48: 0 | L48: 0 | M48: 0 | N48: 0 | O48: 0 | P48: 21 | AA48: 39 | AB48: BOYLSTON | AC48: 0 | AD48: 0 | AE48: 0 | AF48: 0 | AG48: 0 | AH48: 0 | AL48: 21 | AM48: 1 | AN48: 0 | AO48: 0 | AP48: 0 | AQ48: 0 | AU48: 0 | AW48: 21 | AX48: 1 | BA48: TRUE | BB48: TRUE | BC48: TRUE | BD48: TRUE | BE48: TRUE | BF48: TRUE | BG48: TRUE | BH48: TRUE | BI48: TRUE | BJ48: TRUE | BK48: TRUE | BL48: TRUE | BM48: TRUE | BN48: TRUE | BO48: TRUE | BP48: TRUE
A49: 40 | B49: BRAINTREE | C49: 102 | D49: 336 | E49: 17 | F49: 2033 | G49: 1273 | H49: 1702 | I49: 0 | J49: 203 | K49: 52 | L49: 277 | M49: 36 | N49: 53 | O49: 1674 | P49: 5244 | AA49: 40 | AB49: BRAINTREE | AC49: 102 | AD49: 336 | AE49: 17 | AF49: 2033 | AG49: 1273 | AH49: 1702 | AL49: 0 | AM49: 203 | AN49: 52 | AO49: 277 | AP49: 36 | AQ49: 53 | AU49: 1674 | AW49: 5244 | AX49: 1.049 | BA49: TRUE | BB49: TRUE | BC49: TRUE | BD49: TRUE | BE49: TRUE | BF49: TRUE | BG49: TRUE | BH49: TRUE | BI49: TRUE | BJ49: TRUE | BK49: TRUE | BL49: TRUE | BM49: TRUE | BN49: TRUE | BO49: TRUE | BP49: TRUE
A50: 41 | B50: BREWSTER | C50: 24 | D50: 0 | E50: 62 | F50: 344 | G50: 0 | H50: 0 | I50: 0 | J50: 16 | K50: 4 | L50: 13 | M50: 0 | N50: 0 | O50: 187 | P50: 418 | AA50: 41 | AB50: BREWSTER | AC50: 24 | AD50: 0 | AE50: 62 | AF50: 344 | AG50: 0 | AH50: 0 | AL50: 0 | AM50: 16 | AN50: 4 | AO50: 13 | AP50: 0 | AQ50: 0 | AU50: 187 | AW50: 418 | AX50: 1 | BA50: TRUE | BB50: TRUE | BC50: TRUE | BD50: TRUE | BE50: TRUE | BF50: TRUE | BG50: TRUE | BH50: TRUE | BI50: TRUE | BJ50: TRUE | BK50: TRUE | BL50: TRUE | BM50: TRUE | BN50: TRUE | BO50: TRUE | BP50: TRUE
A51: 42 | B51: BRIDGEWATER | C51: 0 | D51: 0 | E51: 0 | F51: 0 | G51: 0 | H51: 0 | I51: 12 | J51: 1 | K51: 0 | L51: 0 | M51: 0 | N51: 0 | O51: 0 | P51: 12 | AA51: 42 | AB51: BRIDGEWATER | AC51: 0 | AD51: 0 | AE51: 0 | AF51: 0 | AG51: 0 | AH51: 0 | AL51: 12 | AM51: 1 | AN51: 0 | AO51: 0 | AP51: 0 | AQ51: 0 | AU51: 0 | AW51: 12 | AX51: 1 | BA51: TRUE | BB51: TRUE | BC51: TRUE | BD51: TRUE | BE51: TRUE | BF51: TRUE | BG51: TRUE | BH51: TRUE | BI51: TRUE | BJ51: TRUE | BK51: TRUE | BL51: TRUE | BM51: TRUE | BN51: TRUE | BO51: TRUE | BP51: TRUE
A52: 43 | B52: BRIMFIELD | C52: 0 | D52: 0 | E52: 33 | F52: 187 | G52: 41 | H52: 0 | I52: 3 | J52: 10 | K52: 3 | L52: 2 | M52: 0 | N52: 0 | O52: 104 | P52: 264 | AA52: 43 | AB52: BRIMFIELD | AC52: 0 | AD52: 0 | AE52: 33 | AF52: 187 | AG52: 41 | AH52: 0 | AL52: 3 | AM52: 10 | AN52: 3 | AO52: 2 | AP52: 0 | AQ52: 0 | AU52: 104 | AW52: 264 | AX52: 1 | BA52: TRUE | BB52: TRUE | BC52: TRUE | BD52: TRUE | BE52: TRUE | BF52: TRUE | BG52: TRUE | BH52: TRUE | BI52: TRUE | BJ52: TRUE | BK52: TRUE | BL52: TRUE | BM52: TRUE | BN52: TRUE | BO52: TRUE | BP52: TRUE
A53: 44 | B53: BROCKTON | C53: 489 | D53: 0 | E53: 1214 | F53: 6089 | G53: 4035 | H53: 4653 | I53: 383 | J53: 643 | K53: 160 | L53: 2359 | M53: 862 | N53: 1216 | O53: 12896 | P53: 16619 | AA53: 44 | AB53: BROCKTON | AC53: 489 | AD53: 0 | AE53: 1214 | AF53: 6089 | AG53: 4035 | AH53: 4653 | AL53: 383 | AM53: 643 | AN53: 160 | AO53: 2359 | AP53: 862 | AQ53: 1216 | AU53: 12896 | AW53: 16619 | AX53: 1 | BA53: TRUE | BB53: TRUE | BC53: TRUE | BD53: TRUE | BE53: TRUE | BF53: TRUE | BG53: TRUE | BH53: TRUE | BI53: TRUE | BJ53: TRUE | BK53: TRUE | BL53: TRUE | BM53: TRUE | BN53: TRUE | BO53: TRUE | BP53: TRUE
A54: 45 | B54: BROOKFIELD | C54: 2 | D54: 0 | E54: 24 | F54: 166 | G54: 32 | H54: 0 | I54: 0 | J54: 9 | K54: 2 | L54: 1 | M54: 0 | N54: 0 | O54: 133 | P54: 223 | AA54: 45 | AB54: BROOKFIELD | AC54: 2 | AD54: 0 | AE54: 24 | AF54: 166 | AG54: 32 | AH54: 0 | AL54: 0 | AM54: 9 | AN54: 2 | AO54: 1 | AP54: 0 | AQ54: 0 | AU54: 133 | AW54: 223 | AX54: 1 | BA54: TRUE | BB54: TRUE | BC54: TRUE | BD54: TRUE | BE54: TRUE | BF54: TRUE | BG54: TRUE | BH54: TRUE | BI54: TRUE | BJ54: TRUE | BK54: TRUE | BL54: TRUE | BM54: TRUE | BN54: TRUE | BO54: TRUE | BP54: TRUE
A55: 46 | B55: BROOKLINE | C55: 73 | D55: 0 | E55: 509 | F55: 2666 | G55: 1566 | H55: 2135 | I55: 0 | J55: 268 | K55: 69 | L55: 609 | M55: 127 | N55: 56 | O55: 1100 | P55: 6913 | AA55: 46 | AB55: BROOKLINE | AC55: 73 | AD55: 0 | AE55: 509 | AF55: 2666 | AG55: 1566 | AH55: 2135 | AL55: 0 | AM55: 268 | AN55: 69 | AO55: 609 | AP55: 127 | AQ55: 56 | AU55: 1100 | AW55: 6913 | AX55: 1.047 | BA55: TRUE | BB55: TRUE | BC55: TRUE | BD55: TRUE | BE55: TRUE | BF55: TRUE | BG55: TRUE | BH55: TRUE | BI55: TRUE | BJ55: TRUE | BK55: TRUE | BL55: TRUE | BM55: TRUE | BN55: TRUE | BO55: TRUE | BP55: TRUE
A56: 47 | B56: BUCKLAND | C56: 0 | D56: 0 | E56: 0 | F56: 0 | G56: 0 | H56: 0 | I56: 1 | J56: 0 | K56: 0 | L56: 0 | M56: 0 | N56: 0 | O56: 0 | P56: 1 | AA56: 47 | AB56: BUCKLAND | AC56: 0 | AD56: 0 | AE56: 0 | AF56: 0 | AG56: 0 | AH56: 0 | AL56: 1 | AM56: 0 | AN56: 0 | AO56: 0 | AP56: 0 | AQ56: 0 | AU56: 0 | AW56: 1 | AX56: 1 | BA56: TRUE | BB56: TRUE | BC56: TRUE | BD56: TRUE | BE56: TRUE | BF56: TRUE | BG56: TRUE | BH56: TRUE | BI56: TRUE | BJ56: TRUE | BK56: TRUE | BL56: TRUE | BM56: TRUE | BN56: TRUE | BO56: TRUE | BP56: TRUE
A57: 48 | B57: BURLINGTON | C57: 49 | D57: 0 | E57: 252 | F57: 1386 | G57: 843 | H57: 915 | I57: 3 | J57: 132 | K57: 34 | L57: 153 | M57: 33 | N57: 52 | O57: 713 | P57: 3424 | AA57: 48 | AB57: BURLINGTON | AC57: 49 | AD57: 0 | AE57: 252 | AF57: 1386 | AG57: 843 | AH57: 915 | AL57: 3 | AM57: 132 | AN57: 34 | AO57: 153 | AP57: 33 | AQ57: 52 | AU57: 713 | AW57: 3424 | AX57: 1.096 | BA57: TRUE | BB57: TRUE | BC57: TRUE | BD57: TRUE | BE57: TRUE | BF57: TRUE | BG57: TRUE | BH57: TRUE | BI57: TRUE | BJ57: TRUE | BK57: TRUE | BL57: TRUE | BM57: TRUE | BN57: TRUE | BO57: TRUE | BP57: TRUE
A58: 49 | B58: CAMBRIDGE | C58: 488 | D58: 0 | E58: 577 | F58: 2780 | G58: 1349 | H58: 1492 | I58: 588 | J58: 271 | K58: 62 | L58: 431 | M58: 81 | N58: 84 | O58: 2962 | P58: 7030 | AA58: 49 | AB58: CAMBRIDGE | AC58: 488 | AD58: 0 | AE58: 577 | AF58: 2780 | AG58: 1349 | AH58: 1492 | AL58: 588 | AM58: 271 | AN58: 62 | AO58: 431 | AP58: 81 | AQ58: 84 | AU58: 2962 | AW58: 7030 | AX58: 1.127 | BA58: TRUE | BB58: TRUE | BC58: TRUE | BD58: TRUE | BE58: TRUE | BF58: TRUE | BG58: TRUE | BH58: TRUE | BI58: TRUE | BJ58: TRUE | BK58: TRUE | BL58: TRUE | BM58: TRUE | BN58: TRUE | BO58: TRUE | BP58: TRUE
A59: 50 | B59: CANTON | C59: 89 | D59: 0 | E59: 238 | F59: 1255 | G59: 764 | H59: 958 | I59: 0 | J59: 125 | K59: 32 | L59: 84 | M59: 15 | N59: 13 | O59: 802 | P59: 3260 | AA59: 50 | AB59: CANTON | AC59: 89 | AD59: 0 | AE59: 238 | AF59: 1255 | AG59: 764 | AH59: 958 | AL59: 0 | AM59: 125 | AN59: 32 | AO59: 84 | AP59: 15 | AQ59: 13 | AU59: 802 | AW59: 3260 | AX59: 1.064 | BA59: TRUE | BB59: TRUE | BC59: TRUE | BD59: TRUE | BE59: TRUE | BF59: TRUE | BG59: TRUE | BH59: TRUE | BI59: TRUE | BJ59: TRUE | BK59: TRUE | BL59: TRUE | BM59: TRUE | BN59: TRUE | BO59: TRUE | BP59: TRUE
A60: 51 | B60: CARLISLE | C60: 9 | D60: 61 | E60: 0 | F60: 327 | G60: 202 | H60: 0 | I60: 2 | J60: 22 | K60: 6 | L60: 9 | M60: 5 | N60: 0 | O60: 29 | P60: 567 | AA60: 51 | AB60: CARLISLE | AC60: 9 | AD60: 61 | AE60: 0 | AF60: 327 | AG60: 202 | AH60: 0 | AL60: 2 | AM60: 22 | AN60: 6 | AO60: 9 | AP60: 5 | AQ60: 0 | AU60: 29 | AW60: 567 | AX60: 1.054 | BA60: TRUE | BB60: TRUE | BC60: TRUE | BD60: TRUE | BE60: TRUE | BF60: TRUE | BG60: TRUE | BH60: TRUE | BI60: TRUE | BJ60: TRUE | BK60: TRUE | BL60: TRUE | BM60: TRUE | BN60: TRUE | BO60: TRUE | BP60: TRUE
A61: 52 | B61: CARVER | C61: 54 | D61: 0 | E61: 119 | F61: 583 | G61: 395 | H61: 405 | I61: 6 | J61: 59 | K61: 15 | L61: 21 | M61: 6 | N61: 5 | O61: 568 | P61: 1535 | AA61: 52 | AB61: CARVER | AC61: 54 | AD61: 0 | AE61: 119 | AF61: 583 | AG61: 395 | AH61: 405 | AL61: 6 | AM61: 59 | AN61: 15 | AO61: 21 | AP61: 6 | AQ61: 5 | AU61: 568 | AW61: 1535 | AX61: 1.036 | BA61: TRUE | BB61: TRUE | BC61: TRUE | BD61: TRUE | BE61: TRUE | BF61: TRUE | BG61: TRUE | BH61: TRUE | BI61: TRUE | BJ61: TRUE | BK61: TRUE | BL61: TRUE | BM61: TRUE | BN61: TRUE | BO61: TRUE | BP61: TRUE
A62: 53 | B62: CHARLEMONT | C62: 0 | D62: 0 | E62: 0 | F62: 0 | G62: 0 | H62: 0 | I62: 8 | J62: 0 | K62: 0 | L62: 0 | M62: 0 | N62: 0 | O62: 0 | P62: 8 | AA62: 53 | AB62: CHARLEMONT | AC62: 0 | AD62: 0 | AE62: 0 | AF62: 0 | AG62: 0 | AH62: 0 | AL62: 8 | AM62: 0 | AN62: 0 | AO62: 0 | AP62: 0 | AQ62: 0 | AU62: 0 | AW62: 8 | AX62: 1 | BA62: TRUE | BB62: TRUE | BC62: TRUE | BD62: TRUE | BE62: TRUE | BF62: TRUE | BG62: TRUE | BH62: TRUE | BI62: TRUE | BJ62: TRUE | BK62: TRUE | BL62: TRUE | BM62: TRUE | BN62: TRUE | BO62: TRUE | BP62: TRUE
A63: 54 | B63: CHARLTON | C63: 0 | D63: 0 | E63: 0 | F63: 0 | G63: 0 | H63: 0 | I63: 0 | J63: 0 | K63: 0 | L63: 0 | M63: 0 | N63: 0 | O63: 0 | P63: 0 | AA63: 54 | AB63: CHARLTON | AC63: 0 | AD63: 0 | AE63: 0 | AF63: 0 | AG63: 0 | AH63: 0 | AL63: 0 | AM63: 0 | AN63: 0 | AO63: 0 | AP63: 0 | AQ63: 0 | AU63: 0 | AW63: 0 | AX63: 1 | BA63: TRUE | BB63: TRUE | BC63: TRUE | BD63: TRUE | BE63: TRUE | BF63: TRUE | BG63: TRUE | BH63: TRUE | BI63: TRUE | BJ63: TRUE | BK63: TRUE | BL63: TRUE | BM63: TRUE | BN63: TRUE | BO63: TRUE | BP63: TRUE
A64: 55 | B64: CHATHAM | C64: 0 | D64: 0 | E64: 0 | F64: 0 | G64: 0 | H64: 0 | I64: 0 | J64: 0 | K64: 0 | L64: 0 | M64: 0 | N64: 0 | O64: 0 | P64: 0 | AA64: 55 | AB64: CHATHAM | AC64: 0 | AD64: 0 | AE64: 0 | AF64: 0 | AG64: 0 | AH64: 0 | AL64: 0 | AM64: 0 | AN64: 0 | AO64: 0 | AP64: 0 | AQ64: 0 | AU64: 0 | AW64: 0 | AX64: 1 | BA64: TRUE | BB64: TRUE | BC64: TRUE | BD64: TRUE | BE64: TRUE | BF64: TRUE | BG64: TRUE | BH64: TRUE | BI64: TRUE | BJ64: TRUE | BK64: TRUE | BL64: TRUE | BM64: TRUE | BN64: TRUE | BO64: TRUE | BP64: TRUE
A65: 56 | B65: CHELMSFORD | C65: 201 | D65: 0 | E65: 354 | F65: 1976 | G65: 1226 | H65: 1451 | I65: 0 | J65: 195 | K65: 50 | L65: 182 | M65: 32 | N65: 19 | O65: 1100 | P65: 5108 | AA65: 56 | AB65: CHELMSFORD | AC65: 201 | AD65: 0 | AE65: 354 | AF65: 1976 | AG65: 1226 | AH65: 1451 | AL65: 0 | AM65: 195 | AN65: 50 | AO65: 182 | AP65: 32 | AQ65: 19 | AU65: 1100 | AW65: 5108 | AX65: 1 | BA65: TRUE | BB65: TRUE | BC65: TRUE | BD65: TRUE | BE65: TRUE | BF65: TRUE | BG65: TRUE | BH65: TRUE | BI65: TRUE | BJ65: TRUE | BK65: TRUE | BL65: TRUE | BM65: TRUE | BN65: TRUE | BO65: TRUE | BP65: TRUE
A66: 57 | B66: CHELSEA | C66: 272 | D66: 0 | E66: 484 | F66: 2629 | G66: 1611 | H66: 2249 | I66: 1 | J66: 272 | K66: 70 | L66: 1665 | M66: 426 | N66: 690 | O66: 5968 | P66: 7110 | AA66: 57 | AB66: CHELSEA | AC66: 272 | AD66: 0 | AE66: 484 | AF66: 2629 | AG66: 1611 | AH66: 2249 | AL66: 1 | AM66: 272 | AN66: 70 | AO66: 1665 | AP66: 426 | AQ66: 690 | AU66: 5968 | AW66: 7110 | AX66: 1.041 | BA66: TRUE | BB66: TRUE | BC66: TRUE | BD66: TRUE | BE66: TRUE | BF66: TRUE | BG66: TRUE | BH66: TRUE | BI66: TRUE | BJ66: TRUE | BK66: TRUE | BL66: TRUE | BM66: TRUE | BN66: TRUE | BO66: TRUE | BP66: TRUE
A67: 58 | B67: CHESHIRE | C67: 0 | D67: 0 | E67: 0 | F67: 0 | G67: 0 | H67: 0 | I67: 2 | J67: 0 | K67: 0 | L67: 0 | M67: 0 | N67: 0 | O67: 0 | P67: 2 | AA67: 58 | AB67: CHESHIRE | AC67: 0 | AD67: 0 | AE67: 0 | AF67: 0 | AG67: 0 | AH67: 0 | AL67: 2 | AM67: 0 | AN67: 0 | AO67: 0 | AP67: 0 | AQ67: 0 | AU67: 0 | AW67: 2 | AX67: 1 | BA67: TRUE | BB67: TRUE | BC67: TRUE | BD67: TRUE | BE67: TRUE | BF67: TRUE | BG67: TRUE | BH67: TRUE | BI67: TRUE | BJ67: TRUE | BK67: TRUE | BL67: TRUE | BM67: TRUE | BN67: TRUE | BO67: TRUE | BP67: TRUE
A68: 59 | B68: CHESTER | C68: 0 | D68: 0 | E68: 0 | F68: 0 | G68: 0 | H68: 0 | I68: 6 | J68: 0 | K68: 0 | L68: 0 | M68: 0 | N68: 0 | O68: 0 | P68: 6 | AA68: 59 | AB68: CHESTER | AC68: 0 | AD68: 0 | AE68: 0 | AF68: 0 | AG68: 0 | AH68: 0 | AL68: 6 | AM68: 0 | AN68: 0 | AO68: 0 | AP68: 0 | AQ68: 0 | AU68: 0 | AW68: 6 | AX68: 1 | BA68: TRUE | BB68: TRUE | BC68: TRUE | BD68: TRUE | BE68: TRUE | BF68: TRUE | BG68: TRUE | BH68: TRUE | BI68: TRUE | BJ68: TRUE | BK68: TRUE | BL68: TRUE | BM68: TRUE | BN68: TRUE | BO68: TRUE | BP68: TRUE
A69: 60 | B69: CHESTERFIELD | C69: 0 | D69: 0 | E69: 0 | F69: 0 | G69: 0 | H69: 0 | I69: 16 | J69: 1 | K69: 0 | L69: 0 | M69: 0 | N69: 0 | O69: 0 | P69: 16 | AA69: 60 | AB69: CHESTERFIELD | AC69: 0 | AD69: 0 | AE69: 0 | AF69: 0 | AG69: 0 | AH69: 0 | AL69: 16 | AM69: 1 | AN69: 0 | AO69: 0 | AP69: 0 | AQ69: 0 | AU69: 0 | AW69: 16 | AX69: 1 | BA69: TRUE | BB69: TRUE | BC69: TRUE | BD69: TRUE | BE69: TRUE | BF69: TRUE | BG69: TRUE | BH69: TRUE | BI69: TRUE | BJ69: TRUE | BK69: TRUE | BL69: TRUE | BM69: TRUE | BN69: TRUE | BO69: TRUE | BP69: TRUE
A70: 61 | B70: CHICOPEE | C70: 262 | D70: 0 | E70: 424 | F70: 2478 | G70: 1699 | H70: 1784 | I70: 650 | J70: 281 | K70: 64 | L70: 250 | M70: 83 | N70: 102 | O70: 5047 | P70: 7166 | AA70: 61 | AB70: CHICOPEE | AC70: 262 | AD70: 0 | AE70: 424 | AF70: 2478 | AG70: 1699 | AH70: 1784 | AL70: 650 | AM70: 281 | AN70: 64 | AO70: 250 | AP70: 83 | AQ70: 102 | AU70: 5047 | AW70: 7166 | AX70: 1 | BA70: TRUE | BB70: TRUE | BC70: TRUE | BD70: TRUE | BE70: TRUE | BF70: TRUE | BG70: TRUE | BH70: TRUE | BI70: TRUE | BJ70: TRUE | BK70: TRUE | BL70: TRUE | BM70: TRUE | BN70: TRUE | BO70: TRUE | BP70: TRUE
A71: 62 | B71: CHILMARK | C71: 0 | D71: 0 | E71: 0 | F71: 0 | G71: 0 | H71: 0 | I71: 0 | J71: 0 | K71: 0 | L71: 0 | M71: 0 | N71: 0 | O71: 0 | P71: 0 | AA71: 62 | AB71: CHILMARK | AC71: 0 | AD71: 0 | AE71: 0 | AF71: 0 | AG71: 0 | AH71: 0 | AL71: 0 | AM71: 0 | AN71: 0 | AO71: 0 | AP71: 0 | AQ71: 0 | AU71: 0 | AW71: 0 | AX71: 1 | BA71: TRUE | BB71: TRUE | BC71: TRUE | BD71: TRUE | BE71: TRUE | BF71: TRUE | BG71: TRUE | BH71: TRUE | BI71: TRUE | BJ71: TRUE | BK71: TRUE | BL71: TRUE | BM71: TRUE | BN71: TRUE | BO71: TRUE | BP71: TRUE
A72: 63 | B72: CLARKSBURG | C72: 14 | D72: 0 | E72: 15 | F72: 83 | G72: 40 | H72: 26 | I72: 0 | J72: 6 | K72: 2 | L72: 0 | M72: 0 | N72: 0 | O72: 83 | P72: 171 | AA72: 63 | AB72: CLARKSBURG | AC72: 14 | AD72: 0 | AE72: 15 | AF72: 83 | AG72: 40 | AH72: 26 | AL72: 0 | AM72: 6 | AN72: 2 | AO72: 0 | AP72: 0 | AQ72: 0 | AU72: 83 | AW72: 171 | AX72: 1 | BA72: TRUE | BB72: TRUE | BC72: TRUE | BD72: TRUE | BE72: TRUE | BF72: TRUE | BG72: TRUE | BH72: TRUE | BI72: TRUE | BJ72: TRUE | BK72: TRUE | BL72: TRUE | BM72: TRUE | BN72: TRUE | BO72: TRUE | BP72: TRUE
A73: 64 | B73: CLINTON | C73: 107 | D73: 0 | E73: 129 | F73: 762 | G73: 442 | H73: 612 | I73: 63 | J73: 79 | K73: 19 | L73: 201 | M73: 65 | N73: 79 | O73: 1160 | P73: 2062 | AA73: 64 | AB73: CLINTON | AC73: 107 | AD73: 0 | AE73: 129 | AF73: 762 | AG73: 442 | AH73: 612 | AL73: 63 | AM73: 79 | AN73: 19 | AO73: 201 | AP73: 65 | AQ73: 79 | AU73: 1160 | AW73: 2062 | AX73: 1 | BA73: TRUE | BB73: TRUE | BC73: TRUE | BD73: TRUE | BE73: TRUE | BF73: TRUE | BG73: TRUE | BH73: TRUE | BI73: TRUE | BJ73: TRUE | BK73: TRUE | BL73: TRUE | BM73: TRUE | BN73: TRUE | BO73: TRUE | BP73: TRUE
A74: 65 | B74: COHASSET | C74: 27 | D74: 113 | E74: 3 | F74: 544 | G74: 301 | H74: 448 | I74: 0 | J74: 53 | K74: 14 | L74: 0 | M74: 0 | N74: 0 | O74: 109 | P74: 1367 | AA74: 65 | AB74: COHASSET | AC74: 27 | AD74: 113 | AE74: 3 | AF74: 544 | AG74: 301 | AH74: 448 | AL74: 0 | AM74: 53 | AN74: 14 | AO74: 0 | AP74: 0 | AQ74: 0 | AU74: 109 | AW74: 1367 | AX74: 1.041 | BA74: TRUE | BB74: TRUE | BC74: TRUE | BD74: TRUE | BE74: TRUE | BF74: TRUE | BG74: TRUE | BH74: TRUE | BI74: TRUE | BJ74: TRUE | BK74: TRUE | BL74: TRUE | BM74: TRUE | BN74: TRUE | BO74: TRUE | BP74: TRUE
A75: 66 | B75: COLRAIN | C75: 0 | D75: 0 | E75: 0 | F75: 0 | G75: 0 | H75: 0 | I75: 0 | J75: 0 | K75: 0 | L75: 0 | M75: 0 | N75: 0 | O75: 0 | P75: 0 | AA75: 66 | AB75: COLRAIN | AC75: 0 | AD75: 0 | AE75: 0 | AF75: 0 | AG75: 0 | AH75: 0 | AL75: 0 | AM75: 0 | AN75: 0 | AO75: 0 | AP75: 0 | AQ75: 0 | AU75: 0 | AW75: 0 | AX75: 1 | BA75: =A75=AA75 -> TRUE | BB75: =B75=AB75 -> TRUE | BC75: =C75=AC75 -> TRUE | BD75: =D75=AD75 -> TRUE | BE75: =E75=AE75 -> TRUE | BF75: =F75=AF75 -> TRUE | BG75: =G75=AG75 -> TRUE | BH75: =H75=AH75 -> TRUE | BI75: =I75=AL75 -> TRUE | BJ75: =J75=AM75 -> TRUE | BK75: =K75=AN75 -> TRUE | BL75: =L75=AO75 -> TRUE | BM75: =M75=AP75 -> TRUE | BN75: =N75=AQ75 -> TRUE | BO75: =O75=AU75 -> TRUE | BP75: =P75=AW75 -> TRUE
A76: 67 | B76: CONCORD | C76: 24 | D76: 0 | E76: 187 | F76: 1061 | G76: 665 | H76: 0 | I76: 0 | J76: 75 | K76: 19 | L76: 34 | M76: 11 | N76: 0 | O76: 205 | P76: 1925 | AA76: 67 | AB76: CONCORD | AC76: 24 | AD76: 0 | AE76: 187 | AF76: 1061 | AG76: 665 | AH76: 0 | AL76: 0 | AM76: 75 | AN76: 19 | AO76: 34 | AP76: 11 | AQ76: 0 | AU76: 205 | AW76: 1925 | AX76: 1.06 | BA76: TRUE | BB76: TRUE | BC76: TRUE | BD76: TRUE | BE76: TRUE | BF76: TRUE | BG76: TRUE | BH76: TRUE | BI76: TRUE | BJ76: TRUE | BK76: TRUE | BL76: TRUE | BM76: TRUE | BN76: TRUE | BO76: TRUE | BP76: TRUE
A77: 68 | B77: CONWAY | C77: 2 | D77: 0 | E77: 7 | F77: 45 | G77: 11 | H77: 0 | I77: 2 | J77: 2 | K77: 1 | L77: 0 | M77: 0 | N77: 0 | O77: 40 | P77: 66 | AA77: 68 | AB77: CONWAY | AC77: 2 | AD77: 0 | AE77: 7 | AF77: 45 | AG77: 11 | AH77: 0 | AL77: 2 | AM77: 2 | AN77: 1 | AO77: 0 | AP77: 0 | AQ77: 0 | AU77: 40 | AW77: 66 | AX77: 1 | BA77: TRUE | BB77: TRUE | BC77: TRUE | BD77: TRUE | BE77: TRUE | BF77: TRUE | BG77: TRUE | BH77: TRUE | BI77: TRUE | BJ77: TRUE | BK77: TRUE | BL77: TRUE | BM77: TRUE | BN77: TRUE | BO77: TRUE | BP77: TRUE
A78: 69 | B78: CUMMINGTON | C78: 0 | D78: 0 | E78: 0 | F78: 0 | G78: 0 | H78: 0 | I78: 6 | J78: 0 | K78: 0 | L78: 0 | M78: 0 | N78: 0 | O78: 0 | P78: 6 | AA78: 69 | AB78: CUMMINGTON | AC78: 0 | AD78: 0 | AE78: 0 | AF78: 0 | AG78: 0 | AH78: 0 | AL78: 6 | AM78: 0 | AN78: 0 | AO78: 0 | AP78: 0 | AQ78: 0 | AU78: 0 | AW78: 6 | AX78: 1 | BA78: TRUE | BB78: TRUE | BC78: TRUE | BD78: TRUE | BE78: TRUE | BF78: TRUE | BG78: TRUE | BH78: TRUE | BI78: TRUE | BJ78: TRUE | BK78: TRUE | BL78: TRUE | BM78: TRUE | BN78: TRUE | BO78: TRUE | BP78: TRUE
A79: 70 | B79: DALTON | C79: 0 | D79: 0 | E79: 0 | F79: 0 | G79: 0 | H79: 0 | I79: 11 | J79: 1 | K79: 0 | L79: 0 | M79: 0 | N79: 0 | O79: 0 | P79: 11 | AA79: 70 | AB79: DALTON | AC79: 0 | AD79: 0 | AE79: 0 | AF79: 0 | AG79: 0 | AH79: 0 | AL79: 11 | AM79: 1 | AN79: 0 | AO79: 0 | AP79: 0 | AQ79: 0 | AU79: 0 | AW79: 11 | AX79: 1 | BA79: TRUE | BB79: TRUE | BC79: TRUE | BD79: TRUE | BE79: TRUE | BF79: TRUE | BG79: TRUE | BH79: TRUE | BI79: TRUE | BJ79: TRUE | BK79: TRUE | BL79: TRUE | BM79: TRUE | BN79: TRUE | BO79: TRUE | BP79: TRUE
A80: 71 | B80: DANVERS | C80: 112 | D80: 0 | E80: 254 | F80: 1356 | G80: 804 | H80: 845 | I80: 0 | J80: 127 | K80: 33 | L80: 64 | M80: 8 | N80: 11 | O80: 951 | P80: 3315 | AA80: 71 | AB80: DANVERS | AC80: 112 | AD80: 0 | AE80: 254 | AF80: 1356 | AG80: 804 | AH80: 845 | AL80: 0 | AM80: 127 | AN80: 33 | AO80: 64 | AP80: 8 | AQ80: 11 | AU80: 951 | AW80: 3315 | AX80: 1 | BA80: TRUE | BB80: TRUE | BC80: TRUE | BD80: TRUE | BE80: TRUE | BF80: TRUE | BG80: TRUE | BH80: TRUE | BI80: TRUE | BJ80: TRUE | BK80: TRUE | BL80: TRUE | BM80: TRUE | BN80: TRUE | BO80: TRUE | BP80: TRUE
A81: 72 | B81: DARTMOUTH | C81: 91 | D81: 0 | E81: 229 | F81: 1302 | G81: 827 | H81: 899 | I81: 0 | J81: 127 | K81: 33 | L81: 51 | M81: 6 | N81: 8 | O81: 1193 | P81: 3303 | AA81: 72 | AB81: DARTMOUTH | AC81: 91 | AD81: 0 | AE81: 229 | AF81: 1302 | AG81: 827 | AH81: 899 | AL81: 0 | AM81: 127 | AN81: 33 | AO81: 51 | AP81: 6 | AQ81: 8 | AU81: 1193 | AW81: 3303 | AX81: 1 | BA81: TRUE | BB81: TRUE | BC81: TRUE | BD81: TRUE | BE81: TRUE | BF81: TRUE | BG81: TRUE | BH81: TRUE | BI81: TRUE | BJ81: TRUE | BK81: TRUE | BL81: TRUE | BM81: TRUE | BN81: TRUE | BO81: TRUE | BP81: TRUE
A82: 73 | B82: DEDHAM | C82: 65 | D82: 28 | E82: 175 | F82: 1010 | G82: 557 | H82: 739 | I82: 1 | J82: 97 | K82: 25 | L82: 94 | M82: 25 | N82: 37 | O82: 805 | P82: 2529 | AA82: 73 | AB82: DEDHAM | AC82: 65 | AD82: 28 | AE82: 175 | AF82: 1010 | AG82: 557 | AH82: 739 | AL82: 1 | AM82: 97 | AN82: 25 | AO82: 94 | AP82: 25 | AQ82: 37 | AU82: 805 | AW82: 2529 | AX82: 1.045 | BA82: TRUE | BB82: TRUE | BC82: TRUE | BD82: TRUE | BE82: TRUE | BF82: TRUE | BG82: TRUE | BH82: TRUE | BI82: TRUE | BJ82: TRUE | BK82: TRUE | BL82: TRUE | BM82: TRUE | BN82: TRUE | BO82: TRUE | BP82: TRUE
A83: 74 | B83: DEERFIELD | C83: 11 | D83: 0 | E83: 28 | F83: 200 | G83: 45 | H83: 0 | I83: 2 | J83: 11 | K83: 3 | L83: 3 | M83: 0 | N83: 0 | O83: 82 | P83: 281 | AA83: 74 | AB83: DEERFIELD | AC83: 11 | AD83: 0 | AE83: 28 | AF83: 200 | AG83: 45 | AH83: 0 | AL83: 2 | AM83: 11 | AN83: 3 | AO83: 3 | AP83: 0 | AQ83: 0 | AU83: 82 | AW83: 281 | AX83: 1 | BA83: TRUE | BB83: TRUE | BC83: TRUE | BD83: TRUE | BE83: TRUE | BF83: TRUE | BG83: TRUE | BH83: TRUE | BI83: TRUE | BJ83: TRUE | BK83: TRUE | BL83: TRUE | BM83: TRUE | BN83: TRUE | BO83: TRUE | BP83: TRUE
A84: 75 | B84: DENNIS | C84: 0 | D84: 0 | E84: 0 | F84: 0 | G84: 0 | H84: 0 | I84: 0 | J84: 0 | K84: 0 | L84: 0 | M84: 0 | N84: 0 | O84: 0 | P84: 0 | AA84: 75 | AB84: DENNIS | AC84: 0 | AD84: 0 | AE84: 0 | AF84: 0 | AG84: 0 | AH84: 0 | AL84: 0 | AM84: 0 | AN84: 0 | AO84: 0 | AP84: 0 | AQ84: 0 | AU84: 0 | AW84: 0 | AX84: 1 | BA84: TRUE | BB84: TRUE | BC84: TRUE | BD84: TRUE | BE84: TRUE | BF84: TRUE | BG84: TRUE | BH84: TRUE | BI84: TRUE | BJ84: TRUE | BK84: TRUE | BL84: TRUE | BM84: TRUE | BN84: TRUE | BO84: TRUE | BP84: TRUE
A85: 76 | B85: DIGHTON | C85: 0 | D85: 0 | E85: 0 | F85: 0 | G85: 0 | H85: 0 | I85: 0 | J85: 0 | K85: 0 | L85: 0 | M85: 0 | N85: 0 | O85: 0 | P85: 0 | AA85: 76 | AB85: DIGHTON | AC85: 0 | AD85: 0 | AE85: 0 | AF85: 0 | AG85: 0 | AH85: 0 | AL85: 0 | AM85: 0 | AN85: 0 | AO85: 0 | AP85: 0 | AQ85: 0 | AU85: 0 | AW85: 0 | AX85: 1 | BA85: TRUE | BB85: TRUE | BC85: TRUE | BD85: TRUE | BE85: TRUE | BF85: TRUE | BG85: TRUE | BH85: TRUE | BI85: TRUE | BJ85: TRUE | BK85: TRUE | BL85: TRUE | BM85: TRUE | BN85: TRUE | BO85: TRUE | BP85: TRUE
A86: 77 | B86: DOUGLAS | C86: 60 | D86: 0 | E86: 73 | F86: 424 | G86: 288 | H86: 304 | I86: 13 | J86: 43 | K86: 11 | L86: 8 | M86: 1 | N86: 1 | O86: 342 | P86: 1132 | AA86: 77 | AB86: DOUGLAS | AC86: 60 | AD86: 0 | AE86: 73 | AF86: 424 | AG86: 288 | AH86: 304 | AL86: 13 | AM86: 43 | AN86: 11 | AO86: 8 | AP86: 1 | AQ86: 1 | AU86: 342 | AW86: 1132 | AX86: 1 | BA86: TRUE | BB86: TRUE | BC86: TRUE | BD86: TRUE | BE86: TRUE | BF86: TRUE | BG86: TRUE | BH86: TRUE | BI86: TRUE | BJ86: TRUE | BK86: TRUE | BL86: TRUE | BM86: TRUE | BN86: TRUE | BO86: TRUE | BP86: TRUE
A87: 78 | B87: DOVER | C87: 11 | D87: 0 | E87: 76 | F87: 417 | G87: 0 | H87: 0 | I87: 1 | J87: 19 | K87: 5 | L87: 10 | M87: 0 | N87: 0 | O87: 22 | P87: 500 | AA87: 78 | AB87: DOVER | AC87: 11 | AD87: 0 | AE87: 76 | AF87: 417 | AG87: 0 | AH87: 0 | AL87: 1 | AM87: 19 | AN87: 5 | AO87: 10 | AP87: 0 | AQ87: 0 | AU87: 22 | AW87: 500 | AX87: 1.06 | BA87: TRUE | BB87: TRUE | BC87: TRUE | BD87: TRUE | BE87: TRUE | BF87: TRUE | BG87: TRUE | BH87: TRUE | BI87: TRUE | BJ87: TRUE | BK87: TRUE | BL87: TRUE | BM87: TRUE | BN87: TRUE | BO87: TRUE | BP87: TRUE
A88: 79 | B88: DRACUT | C88: 68 | D88: 0 | E88: 279 | F88: 1641 | G88: 962 | H88: 983 | I88: 1 | J88: 151 | K88: 39 | L88: 140 | M88: 43 | N88: 47 | O88: 1634 | P88: 3900 | AA88: 79 | AB88: DRACUT | AC88: 68 | AD88: 0 | AE88: 279 | AF88: 1641 | AG88: 962 | AH88: 983 | AL88: 1 | AM88: 151 | AN88: 39 | AO88: 140 | AP88: 43 | AQ88: 47 | AU88: 1634 | AW88: 3900 | AX88: 1 | BA88: TRUE | BB88: TRUE | BC88: TRUE | BD88: TRUE | BE88: TRUE | BF88: TRUE | BG88: TRUE | BH88: TRUE | BI88: TRUE | BJ88: TRUE | BK88: TRUE | BL88: TRUE | BM88: TRUE | BN88: TRUE | BO88: TRUE | BP88: TRUE
A89: 80 | B89: DUDLEY | C89: 0 | D89: 0 | E89: 0 | F89: 0 | G89: 0 | H89: 0 | I89: 1 | J89: 0 | K89: 0 | L89: 0 | M89: 0 | N89: 0 | O89: 0 | P89: 1 | AA89: 80 | AB89: DUDLEY | AC89: 0 | AD89: 0 | AE89: 0 | AF89: 0 | AG89: 0 | AH89: 0 | AL89: 1 | AM89: 0 | AN89: 0 | AO89: 0 | AP89: 0 | AQ89: 0 | AU89: 0 | AW89: 1 | AX89: 1 | BA89: TRUE | BB89: TRUE | BC89: TRUE | BD89: TRUE | BE89: TRUE | BF89: TRUE | BG89: TRUE | BH89: TRUE | BI89: TRUE | BJ89: TRUE | BK89: TRUE | BL89: TRUE | BM89: TRUE | BN89: TRUE | BO89: TRUE | BP89: TRUE
A90: 81 | B90: DUNSTABLE | C90: 0 | D90: 0 | E90: 0 | F90: 0 | G90: 0 | H90: 0 | I90: 0 | J90: 0 | K90: 0 | L90: 0 | M90: 0 | N90: 0 | O90: 0 | P90: 0 | AA90: 81 | AB90: DUNSTABLE | AC90: 0 | AD90: 0 | AE90: 0 | AF90: 0 | AG90: 0 | AH90: 0 | AL90: 0 | AM90: 0 | AN90: 0 | AO90: 0 | AP90: 0 | AQ90: 0 | AU90: 0 | AW90: 0 | AX90: 1 | BA90: TRUE | BB90: TRUE | BC90: TRUE | BD90: TRUE | BE90: TRUE | BF90: TRUE | BG90: TRUE | BH90: TRUE | BI90: TRUE | BJ90: TRUE | BK90: TRUE | BL90: TRUE | BM90: TRUE | BN90: TRUE | BO90: TRUE | BP90: TRUE
A91: 82 | B91: DUXBURY | C91: 49 | D91: 203 | E91: 0 | F91: 1007 | G91: 631 | H91: 956 | I91: 8 | J91: 105 | K91: 27 | L91: 11 | M91: 1 | N91: 3 | O91: 259 | P91: 2729 | AA91: 82 | AB91: DUXBURY | AC91: 49 | AD91: 203 | AE91: 0 | AF91: 1007 | AG91: 631 | AH91: 956 | AL91: 8 | AM91: 105 | AN91: 27 | AO91: 11 | AP91: 1 | AQ91: 3 | AU91: 259 | AW91: 2729 | AX91: 1.042 | BA91: TRUE | BB91: TRUE | BC91: TRUE | BD91: TRUE | BE91: TRUE | BF91: TRUE | BG91: TRUE | BH91: TRUE | BI91: TRUE | BJ91: TRUE | BK91: TRUE | BL91: TRUE | BM91: TRUE | BN91: TRUE | BO91: TRUE | BP91: TRUE
A92: 83 | B92: EAST BRIDGEWATER | C92: 12 | D92: 0 | E92: 126 | F92: 780 | G92: 495 | H92: 604 | I92: 11 | J92: 79 | K92: 20 | L92: 42 | M92: 4 | N92: 11 | O92: 679 | P92: 2022 | AA92: 83 | AB92: EAST BRIDGEWATER | AC92: 12 | AD92: 0 | AE92: 126 | AF92: 780 | AG92: 495 | AH92: 604 | AL92: 11 | AM92: 79 | AN92: 20 | AO92: 42 | AP92: 4 | AQ92: 11 | AU92: 679 | AW92: 2022 | AX92: 1 | BA92: TRUE | BB92: TRUE | BC92: TRUE | BD92: TRUE | BE92: TRUE | BF92: TRUE | BG92: TRUE | BH92: TRUE | BI92: TRUE | BJ92: TRUE | BK92: TRUE | BL92: TRUE | BM92: TRUE | BN92: TRUE | BO92: TRUE | BP92: TRUE
A93: 84 | B93: EAST BROOKFIELD | C93: 0 | D93: 0 | E93: 0 | F93: 0 | G93: 0 | H93: 0 | I93: 15 | J93: 1 | K93: 0 | L93: 0 | M93: 0 | N93: 0 | O93: 0 | P93: 15 | AA93: 84 | AB93: EAST BROOKFIELD | AC93: 0 | AD93: 0 | AE93: 0 | AF93: 0 | AG93: 0 | AH93: 0 | AL93: 15 | AM93: 1 | AN93: 0 | AO93: 0 | AP93: 0 | AQ93: 0 | AU93: 0 | AW93: 15 | AX93: 1 | BA93: TRUE | BB93: TRUE | BC93: TRUE | BD93: TRUE | BE93: TRUE | BF93: TRUE | BG93: TRUE | BH93: TRUE | BI93: TRUE | BJ93: TRUE | BK93: TRUE | BL93: TRUE | BM93: TRUE | BN93: TRUE | BO93: TRUE | BP93: TRUE
A94: 85 | B94: EASTHAM | C94: 2 | D94: 0 | E94: 31 | F94: 165 | G94: 0 | H94: 0 | I94: 0 | J94: 8 | K94: 2 | L94: 10 | M94: 0 | N94: 0 | O94: 103 | P94: 197 | AA94: 85 | AB94: EASTHAM | AC94: 2 | AD94: 0 | AE94: 31 | AF94: 165 | AG94: 0 | AH94: 0 | AL94: 0 | AM94: 8 | AN94: 2 | AO94: 10 | AP94: 0 | AQ94: 0 | AU94: 103 | AW94: 197 | AX94: 1 | BA94: TRUE | BB94: TRUE | BC94: TRUE | BD94: TRUE | BE94: TRUE | BF94: TRUE | BG94: TRUE | BH94: TRUE | BI94: TRUE | BJ94: TRUE | BK94: TRUE | BL94: TRUE | BM94: TRUE | BN94: TRUE | BO94: TRUE | BP94: TRUE
A95: 86 | B95: EASTHAMPTON | C95: 31 | D95: 0 | E95: 115 | F95: 613 | G95: 375 | H95: 392 | I95: 80 | J95: 62 | K95: 15 | L95: 24 | M95: 11 | N95: 9 | O95: 654 | P95: 1591 | AA95: 86 | AB95: EASTHAMPTON | AC95: 31 | AD95: 0 | AE95: 115 | AF95: 613 | AG95: 375 | AH95: 392 | AL95: 80 | AM95: 62 | AN95: 15 | AO95: 24 | AP95: 11 | AQ95: 9 | AU95: 654 | AW95: 1591 | AX95: 1 | BA95: TRUE | BB95: TRUE | BC95: TRUE | BD95: TRUE | BE95: TRUE | BF95: TRUE | BG95: TRUE | BH95: TRUE | BI95: TRUE | BJ95: TRUE | BK95: TRUE | BL95: TRUE | BM95: TRUE | BN95: TRUE | BO95: TRUE | BP95: TRUE
A96: 87 | B96: EAST LONGMEADOW | C96: 68 | D96: 0 | E96: 163 | F96: 911 | G96: 592 | H96: 807 | I96: 45 | J96: 98 | K96: 25 | L96: 31 | M96: 7 | N96: 4 | O96: 822 | P96: 2552 | AA96: 87 | AB96: EAST LONGMEADOW | AC96: 68 | AD96: 0 | AE96: 163 | AF96: 911 | AG96: 592 | AH96: 807 | AL96: 45 | AM96: 98 | AN96: 25 | AO96: 31 | AP96: 7 | AQ96: 4 | AU96: 822 | AW96: 2552 | AX96: 1 | BA96: TRUE | BB96: TRUE | BC96: TRUE | BD96: TRUE | BE96: TRUE | BF96: TRUE | BG96: TRUE | BH96: TRUE | BI96: TRUE | BJ96: TRUE | BK96: TRUE | BL96: TRUE | BM96: TRUE | BN96: TRUE | BO96: TRUE | BP96: TRUE
A97: 88 | B97: EASTON | C97: 32 | D97: 0 | E97: 201 | F97: 1237 | G97: 838 | H97: 1126 | I97: 0 | J97: 133 | K97: 34 | L97: 70 | M97: 6 | N97: 14 | O97: 810 | P97: 3418 | AA97: 88 | AB97: EASTON | AC97: 32 | AD97: 0 | AE97: 201 | AF97: 1237 | AG97: 838 | AH97: 1126 | AL97: 0 | AM97: 133 | AN97: 34 | AO97: 70 | AP97: 6 | AQ97: 14 | AU97: 810 | AW97: 3418 | AX97: 1 | BA97: TRUE | BB97: TRUE | BC97: TRUE | BD97: TRUE | BE97: TRUE | BF97: TRUE | BG97: TRUE | BH97: TRUE | BI97: TRUE | BJ97: TRUE | BK97: TRUE | BL97: TRUE | BM97: TRUE | BN97: TRUE | BO97: TRUE | BP97: TRUE
A98: 89 | B98: EDGARTOWN | C98: 12 | D98: 0 | E98: 43 | F98: 228 | G98: 161 | H98: 0 | I98: 0 | J98: 17 | K98: 4 | L98: 71 | M98: 22 | N98: 0 | O98: 248 | P98: 438 | AA98: 89 | AB98: EDGARTOWN | AC98: 12 | AD98: 0 | AE98: 43 | AF98: 228 | AG98: 161 | AH98: 0 | AL98: 0 | AM98: 17 | AN98: 4 | AO98: 71 | AP98: 22 | AQ98: 0 | AU98: 248 | AW98: 438 | AX98: 1 | BA98: TRUE | BB98: TRUE | BC98: TRUE | BD98: TRUE | BE98: TRUE | BF98: TRUE | BG98: TRUE | BH98: TRUE | BI98: TRUE | BJ98: TRUE | BK98: TRUE | BL98: TRUE | BM98: TRUE | BN98: TRUE | BO98: TRUE | BP98: TRUE
A99: 90 | B99: EGREMONT | C99: 0 | D99: 0 | E99: 0 | F99: 0 | G99: 0 | H99: 0 | I99: 0 | J99: 0 | K99: 0 | L99: 0 | M99: 0 | N99: 0 | O99: 0 | P99: 0 | AA99: 90 | AB99: EGREMONT | AC99: 0 | AD99: 0 | AE99: 0 | AF99: 0 | AG99: 0 | AH99: 0 | AL99: 0 | AM99: 0 | AN99: 0 | AO99: 0 | AP99: 0 | AQ99: 0 | AU99: 0 | AW99: 0 | AX99: 1 | BA99: TRUE | BB99: TRUE | BC99: TRUE | BD99: TRUE | BE99: TRUE | BF99: TRUE | BG99: TRUE | BH99: TRUE | BI99: TRUE | BJ99: TRUE | BK99: TRUE | BL99: TRUE | BM99: TRUE | BN99: TRUE | BO99: TRUE | BP99: TRUE
A100: 91 | B100: ERVING | C100: 23 | D100: 0 | E100: 13 | F100: 85 | G100: 45 | H100: 48 | I100: 0 | J100: 7 | K100: 2 | L100: 0 | M100: 1 | N100: 0 | O100: 64 | P100: 203 | AA100: 91 | AB100: ERVING | AC100: 23 | AD100: 0 | AE100: 13 | AF100: 85 | AG100: 45 | AH100: 48 | AL100: 0 | AM100: 7 | AN100: 2 | AO100: 0 | AP100: 1 | AQ100: 0 | AU100: 64 | AW100: 203 | AX100: 1 | BA100: TRUE | BB100: TRUE | BC100: TRUE | BD100: TRUE | BE100: TRUE | BF100: TRUE | BG100: TRUE | BH100: TRUE | BI100: TRUE | BJ100: TRUE | BK100: TRUE | BL100: TRUE | BM100: TRUE | BN100: TRUE | BO100: TRUE | BP100: TRUE
A101: 92 | B101: ESSEX | C101: 0 | D101: 0 | E101: 0 | F101: 0 | G101: 0 | H101: 0 | I101: 0 | J101: 0 | K101: 0 | L101: 0 | M101: 0 | N101: 0 | O101: 0 | P101: 0 | AA101: 92 | AB101: ESSEX | AC101: 0 | AD101: 0 | AE101: 0 | AF101: 0 | AG101: 0 | AH101: 0 | AL101: 0 | AM101: 0 | AN101: 0 | AO101: 0 | AP101: 0 | AQ101: 0 | AU101: 0 | AW101: 0 | AX101: 1.041 | BA101: TRUE | BB101: TRUE | BC101: TRUE | BD101: TRUE | BE101: TRUE | BF101: TRUE | BG101: TRUE | BH101: TRUE | BI101: TRUE | BJ101: TRUE | BK101: TRUE | BL101: TRUE | BM101: TRUE | BN101: TRUE | BO101: TRUE | BP101: TRUE
A102: 93 | B102: EVERETT | C102: 364 | D102: 0 | E102: 519 | F102: 2931 | G102: 1783 | H102: 1573 | I102: 949 | J102: 312 | K102: 68 | L102: 1653 | M102: 509 | N102: 639 | O102: 6179 | P102: 7937 | AA102: 93 | AB102: EVERETT | AC102: 364 | AD102: 0 | AE102: 519 | AF102: 2931 | AG102: 1783 | AH102: 1573 | AL102: 949 | AM102: 312 | AN102: 68 | AO102: 1653 | AP102: 509 | AQ102: 639 | AU102: 6179 | AW102: 7937 | AX102: 1.043 | BA102: TRUE | BB102: TRUE | BC102: TRUE | BD102: TRUE | BE102: TRUE | BF102: TRUE | BG102: TRUE | BH102: TRUE | BI102: TRUE | BJ102: TRUE | BK102: TRUE | BL102: TRUE | BM102: TRUE | BN102: TRUE | BO102: TRUE | BP102: TRUE
A103: 94 | B103: FAIRHAVEN | C103: 37 | D103: 0 | E103: 109 | F103: 613 | G103: 453 | H103: 465 | I103: 0 | J103: 64 | K103: 16 | L103: 23 | M103: 0 | N103: 3 | O103: 823 | P103: 1659 | AA103: 94 | AB103: FAIRHAVEN | AC103: 37 | AD103: 0 | AE103: 109 | AF103: 613 | AG103: 453 | AH103: 465 | AL103: 0 | AM103: 64 | AN103: 16 | AO103: 23 | AP103: 0 | AQ103: 3 | AU103: 823 | AW103: 1659 | AX103: 1 | BA103: TRUE | BB103: TRUE | BC103: TRUE | BD103: TRUE | BE103: TRUE | BF103: TRUE | BG103: TRUE | BH103: TRUE | BI103: TRUE | BJ103: TRUE | BK103: TRUE | BL103: TRUE | BM103: TRUE | BN103: TRUE | BO103: TRUE | BP103: TRUE
A104: 95 | B104: FALL RIVER | C104: 315 | D104: 0 | E104: 931 | F104: 4863 | G104: 3030 | H104: 2452 | I104: 804 | J104: 479 | K104: 113 | L104: 1396 | M104: 512 | N104: 647 | O104: 10024 | P104: 12238 | AA104: 95 | AB104: FALL RIVER | AC104: 315 | AD104: 0 | AE104: 931 | AF104: 4863 | AG104: 3030 | AH104: 2452 | AL104: 804 | AM104: 479 | AN104: 113 | AO104: 1396 | AP104: 512 | AQ104: 647 | AU104: 10024 | AW104: 12238 | AX104: 1 | BA104: TRUE | BB104: TRUE | BC104: TRUE | BD104: TRUE | BE104: TRUE | BF104: TRUE | BG104: TRUE | BH104: TRUE | BI104: TRUE | BJ104: TRUE | BK104: TRUE | BL104: TRUE | BM104: TRUE | BN104: TRUE | BO104: TRUE | BP104: TRUE
A105: 96 | B105: FALMOUTH | C105: 66 | D105: 0 | E105: 199 | F105: 1127 | G105: 707 | H105: 781 | I105: 112 | J105: 115 | K105: 28 | L105: 103 | M105: 32 | N105: 36 | O105: 1356 | P105: 2959 | AA105: 96 | AB105: FALMOUTH | AC105: 66 | AD105: 0 | AE105: 199 | AF105: 1127 | AG105: 707 | AH105: 781 | AL105: 112 | AM105: 115 | AN105: 28 | AO105: 103 | AP105: 32 | AQ105: 36 | AU105: 1356 | AW105: 2959 | AX105: 1 | BA105: TRUE | BB105: TRUE | BC105: TRUE | BD105: TRUE | BE105: TRUE | BF105: TRUE | BG105: TRUE | BH105: TRUE | BI105: TRUE | BJ105: TRUE | BK105: TRUE | BL105: TRUE | BM105: TRUE | BN105: TRUE | BO105: TRUE | BP105: TRUE
A106: 97 | B106: FITCHBURG | C106: 157 | D106: 0 | E106: 418 | F106: 2107 | G106: 1390 | H106: 1667 | I106: 0 | J106: 218 | K106: 56 | L106: 567 | M106: 156 | N106: 174 | O106: 4178 | P106: 5661 | AA106: 97 | AB106: FITCHBURG | AC106: 157 | AD106: 0 | AE106: 418 | AF106: 2107 | AG106: 1390 | AH106: 1667 | AL106: 0 | AM106: 218 | AN106: 56 | AO106: 567 | AP106: 156 | AQ106: 174 | AU106: 4178 | AW106: 5661 | AX106: 1 | BA106: TRUE | BB106: TRUE | BC106: TRUE | BD106: TRUE | BE106: TRUE | BF106: TRUE | BG106: TRUE | BH106: TRUE | BI106: TRUE | BJ106: TRUE | BK106: TRUE | BL106: TRUE | BM106: TRUE | BN106: TRUE | BO106: TRUE | BP106: TRUE
A107: 98 | B107: FLORIDA | C107: 7 | D107: 0 | E107: 4 | F107: 25 | G107: 18 | H107: 6 | I107: 0 | J107: 2 | K107: 1 | L107: 0 | M107: 0 | N107: 0 | O107: 45 | P107: 57 | AA107: 98 | AB107: FLORIDA | AC107: 7 | AD107: 0 | AE107: 4 | AF107: 25 | AG107: 18 | AH107: 6 | AL107: 0 | AM107: 2 | AN107: 1 | AO107: 0 | AP107: 0 | AQ107: 0 | AU107: 45 | AW107: 57 | AX107: 1 | BA107: TRUE | BB107: TRUE | BC107: TRUE | BD107: TRUE | BE107: TRUE | BF107: TRUE | BG107: TRUE | BH107: TRUE | BI107: TRUE | BJ107: TRUE | BK107: TRUE | BL107: TRUE | BM107: TRUE | BN107: TRUE | BO107: TRUE | BP107: TRUE
A108: 99 | B108: FOXBOROUGH | C108: 39 | D108: 0 | E108: 170 | F108: 931 | G108: 591 | H108: 825 | I108: 0 | J108: 98 | K108: 25 | L108: 44 | M108: 13 | N108: 14 | O108: 666 | P108: 2537 | AA108: 99 | AB108: FOXBOROUGH | AC108: 39 | AD108: 0 | AE108: 170 | AF108: 931 | AG108: 591 | AH108: 825 | AL108: 0 | AM108: 98 | AN108: 25 | AO108: 44 | AP108: 13 | AQ108: 14 | AU108: 666 | AW108: 2537 | AX108: 1.062 | BA108: TRUE | BB108: TRUE | BC108: TRUE | BD108: TRUE | BE108: TRUE | BF108: TRUE | BG108: TRUE | BH108: TRUE | BI108: TRUE | BJ108: TRUE | BK108: TRUE | BL108: TRUE | BM108: TRUE | BN108: TRUE | BO108: TRUE | BP108: TRUE
A109: 100 | B109: FRAMINGHAM | C109: 254 | D109: 1 | E109: 731 | F109: 3820 | G109: 2308 | H109: 2759 | I109: 13 | J109: 376 | K109: 96 | L109: 1982 | M109: 599 | N109: 657 | O109: 5734 | P109: 9759 | AA109: 100 | AB109: FRAMINGHAM | AC109: 254 | AD109: 1 | AE109: 731 | AF109: 3820 | AG109: 2308 | AH109: 2759 | AL109: 13 | AM109: 376 | AN109: 96 | AO109: 1982 | AP109: 599 | AQ109: 657 | AU109: 5734 | AW109: 9759 | AX109: 1.01 | BA109: TRUE | BB109: TRUE | BC109: TRUE | BD109: TRUE | BE109: TRUE | BF109: TRUE | BG109: TRUE | BH109: TRUE | BI109: TRUE | BJ109: TRUE | BK109: TRUE | BL109: TRUE | BM109: TRUE | BN109: TRUE | BO109: TRUE | BP109: TRUE
A110: 101 | B110: FRANKLIN | C110: 151 | D110: 1 | E110: 328 | F110: 1787 | G110: 1209 | H110: 1703 | I110: 0 | J110: 196 | K110: 50 | L110: 82 | M110: 14 | N110: 17 | O110: 825 | P110: 5104 | AA110: 101 | AB110: FRANKLIN | AC110: 151 | AD110: 1 | AE110: 328 | AF110: 1787 | AG110: 1209 | AH110: 1703 | AL110: 0 | AM110: 196 | AN110: 50 | AO110: 82 | AP110: 14 | AQ110: 17 | AU110: 825 | AW110: 5104 | AX110: 1.057 | BA110: TRUE | BB110: TRUE | BC110: TRUE | BD110: TRUE | BE110: TRUE | BF110: TRUE | BG110: TRUE | BH110: TRUE | BI110: TRUE | BJ110: TRUE | BK110: TRUE | BL110: TRUE | BM110: TRUE | BN110: TRUE | BO110: TRUE | BP110: TRUE
A111: 102 | B111: FREETOWN | C111: 0 | D111: 0 | E111: 0 | F111: 0 | G111: 0 | H111: 0 | I111: 53 | J111: 3 | K111: 0 | L111: 0 | M111: 0 | N111: 0 | O111: 0 | P111: 53 | AA111: 102 | AB111: FREETOWN | AC111: 0 | AD111: 0 | AE111: 0 | AF111: 0 | AG111: 0 | AH111: 0 | AL111: 53 | AM111: 3 | AN111: 0 | AO111: 0 | AP111: 0 | AQ111: 0 | AU111: 0 | AW111: 53 | AX111: 1 | BA111: TRUE | BB111: TRUE | BC111: TRUE | BD111: TRUE | BE111: TRUE | BF111: TRUE | BG111: TRUE | BH111: TRUE | BI111: TRUE | BJ111: TRUE | BK111: TRUE | BL111: TRUE | BM111: TRUE | BN111: TRUE | BO111: TRUE | BP111: TRUE
A112: 103 | B112: GARDNER | C112: 39 | D112: 0 | E112: 194 | F112: 935 | G112: 564 | H112: 684 | I112: 0 | J112: 93 | K112: 24 | L112: 128 | M112: 27 | N112: 18 | O112: 1649 | P112: 2397 | AA112: 103 | AB112: GARDNER | AC112: 39 | AD112: 0 | AE112: 194 | AF112: 935 | AG112: 564 | AH112: 684 | AL112: 0 | AM112: 93 | AN112: 24 | AO112: 128 | AP112: 27 | AQ112: 18 | AU112: 1649 | AW112: 2397 | AX112: 1 | BA112: TRUE | BB112: TRUE | BC112: TRUE | BD112: TRUE | BE112: TRUE | BF112: TRUE | BG112: TRUE | BH112: TRUE | BI112: TRUE | BJ112: TRUE | BK112: TRUE | BL112: TRUE | BM112: TRUE | BN112: TRUE | BO112: TRUE | BP112: TRUE
A113: 104 | B113: AQUINNAH | C113: 0 | D113: 0 | E113: 0 | F113: 0 | G113: 0 | H113: 0 | I113: 0 | J113: 0 | K113: 0 | L113: 0 | M113: 0 | N113: 0 | O113: 0 | P113: 0 | AA113: 104 | AB113: AQUINNAH | AC113: 0 | AD113: 0 | AE113: 0 | AF113: 0 | AG113: 0 | AH113: 0 | AL113: 0 | AM113: 0 | AN113: 0 | AO113: 0 | AP113: 0 | AQ113: 0 | AU113: 0 | AW113: 0 | AX113: 1 | BA113: TRUE | BB113: TRUE | BC113: TRUE | BD113: TRUE | BE113: TRUE | BF113: TRUE | BG113: TRUE | BH113: TRUE | BI113: TRUE | BJ113: TRUE | BK113: TRUE | BL113: TRUE | BM113: TRUE | BN113: TRUE | BO113: TRUE | BP113: TRUE
A114: 105 | B114: GEORGETOWN | C114: 6 | D114: 0 | E114: 106 | F114: 519 | G114: 284 | H114: 304 | I114: 13 | J114: 48 | K114: 12 | L114: 9 | M114: 1 | N114: 7 | O114: 207 | P114: 1229 | AA114: 105 | AB114: GEORGETOWN | AC114: 6 | AD114: 0 | AE114: 106 | AF114: 519 | AG114: 284 | AH114: 304 | AL114: 13 | AM114: 48 | AN114: 12 | AO114: 9 | AP114: 1 | AQ114: 7 | AU114: 207 | AW114: 1229 | AX114: 1 | BA114: TRUE | BB114: TRUE | BC114: TRUE | BD114: TRUE | BE114: TRUE | BF114: TRUE | BG114: TRUE | BH114: TRUE | BI114: TRUE | BJ114: TRUE | BK114: TRUE | BL114: TRUE | BM114: TRUE | BN114: TRUE | BO114: TRUE | BP114: TRUE
A115: 106 | B115: GILL | C115: 0 | D115: 0 | E115: 0 | F115: 0 | G115: 0 | H115: 0 | I115: 0 | J115: 0 | K115: 0 | L115: 0 | M115: 0 | N115: 0 | O115: 0 | P115: 0 | AA115: 106 | AB115: GILL | AC115: 0 | AD115: 0 | AE115: 0 | AF115: 0 | AG115: 0 | AH115: 0 | AL115: 0 | AM115: 0 | AN115: 0 | AO115: 0 | AP115: 0 | AQ115: 0 | AU115: 0 | AW115: 0 | AX115: 1 | BA115: TRUE | BB115: TRUE | BC115: TRUE | BD115: TRUE | BE115: TRUE | BF115: TRUE | BG115: TRUE | BH115: TRUE | BI115: TRUE | BJ115: TRUE | BK115: TRUE | BL115: TRUE | BM115: TRUE | BN115: TRUE | BO115: TRUE | BP115: TRUE
A116: 107 | B116: GLOUCESTER | C116: 105 | D116: 0 | E116: 205 | F116: 1155 | G116: 700 | H116: 771 | I116: 151 | J116: 117 | K116: 28 | L116: 132 | M116: 43 | N116: 73 | O116: 1466 | P116: 3035 | AA116: 107 | AB116: GLOUCESTER | AC116: 105 | AD116: 0 | AE116: 205 | AF116: 1155 | AG116: 700 | AH116: 771 | AL116: 151 | AM116: 117 | AN116: 28 | AO116: 132 | AP116: 43 | AQ116: 73 | AU116: 1466 | AW116: 3035 | AX116: 1.049 | BA116: TRUE | BB116: TRUE | BC116: TRUE | BD116: TRUE | BE116: TRUE | BF116: TRUE | BG116: TRUE | BH116: TRUE | BI116: TRUE | BJ116: TRUE | BK116: TRUE | BL116: TRUE | BM116: TRUE | BN116: TRUE | BO116: TRUE | BP116: TRUE
A117: 108 | B117: GOSHEN | C117: 0 | D117: 0 | E117: 0 | F117: 0 | G117: 0 | H117: 0 | I117: 9 | J117: 0 | K117: 0 | L117: 0 | M117: 0 | N117: 0 | O117: 0 | P117: 9 | AA117: 108 | AB117: GOSHEN | AC117: 0 | AD117: 0 | AE117: 0 | AF117: 0 | AG117: 0 | AH117: 0 | AL117: 9 | AM117: 0 | AN117: 0 | AO117: 0 | AP117: 0 | AQ117: 0 | AU117: 0 | AW117: 9 | AX117: 1 | BA117: TRUE | BB117: TRUE | BC117: TRUE | BD117: TRUE | BE117: TRUE | BF117: TRUE | BG117: TRUE | BH117: TRUE | BI117: TRUE | BJ117: TRUE | BK117: TRUE | BL117: TRUE | BM117: TRUE | BN117: TRUE | BO117: TRUE | BP117: TRUE
A118: 109 | B118: GOSNOLD | C118: 0 | D118: 0 | E118: 0 | F118: 0 | G118: 0 | H118: 0 | I118: 0 | J118: 0 | K118: 0 | L118: 0 | M118: 0 | N118: 0 | O118: 0 | P118: 0 | AA118: 109 | AB118: GOSNOLD | AC118: 0 | AD118: 0 | AE118: 0 | AF118: 0 | AG118: 0 | AH118: 0 | AL118: 0 | AM118: 0 | AN118: 0 | AO118: 0 | AP118: 0 | AQ118: 0 | AU118: 0 | AW118: 0 | AX118: 1 | BA118: TRUE | BB118: TRUE | BC118: TRUE | BD118: TRUE | BE118: TRUE | BF118: TRUE | BG118: TRUE | BH118: TRUE | BI118: TRUE | BJ118: TRUE | BK118: TRUE | BL118: TRUE | BM118: TRUE | BN118: TRUE | BO118: TRUE | BP118: TRUE
A119: 110 | B119: GRAFTON | C119: 36 | D119: 0 | E119: 201 | F119: 1116 | G119: 742 | H119: 867 | I119: 6 | J119: 114 | K119: 29 | L119: 52 | M119: 15 | N119: 12 | O119: 642 | P119: 2950 | AA119: 110 | AB119: GRAFTON | AC119: 36 | AD119: 0 | AE119: 201 | AF119: 1116 | AG119: 742 | AH119: 867 | AL119: 6 | AM119: 114 | AN119: 29 | AO119: 52 | AP119: 15 | AQ119: 12 | AU119: 642 | AW119: 2950 | AX119: 1 | BA119: TRUE | BB119: TRUE | BC119: TRUE | BD119: TRUE | BE119: TRUE | BF119: TRUE | BG119: TRUE | BH119: TRUE | BI119: TRUE | BJ119: TRUE | BK119: TRUE | BL119: TRUE | BM119: TRUE | BN119: TRUE | BO119: TRUE | BP119: TRUE
A120: 111 | B120: GRANBY | C120: 33 | D120: 0 | E120: 38 | F120: 279 | G120: 143 | H120: 193 | I120: 2 | J120: 25 | K120: 7 | L120: 25 | M120: 10 | N120: 4 | O120: 309 | P120: 672 | AA120: 111 | AB120: GRANBY | AC120: 33 | AD120: 0 | AE120: 38 | AF120: 279 | AG120: 143 | AH120: 193 | AL120: 2 | AM120: 25 | AN120: 7 | AO120: 25 | AP120: 10 | AQ120: 4 | AU120: 309 | AW120: 672 | AX120: 1 | BA120: TRUE | BB120: TRUE | BC120: TRUE | BD120: TRUE | BE120: TRUE | BF120: TRUE | BG120: TRUE | BH120: TRUE | BI120: TRUE | BJ120: TRUE | BK120: TRUE | BL120: TRUE | BM120: TRUE | BN120: TRUE | BO120: TRUE | BP120: TRUE
A121: 112 | B121: GRANVILLE | C121: 0 | D121: 0 | E121: 0 | F121: 0 | G121: 0 | H121: 0 | I121: 0 | J121: 0 | K121: 0 | L121: 0 | M121: 0 | N121: 0 | O121: 0 | P121: 0 | AA121: 112 | AB121: GRANVILLE | AC121: 0 | AD121: 0 | AE121: 0 | AF121: 0 | AG121: 0 | AH121: 0 | AL121: 0 | AM121: 0 | AN121: 0 | AO121: 0 | AP121: 0 | AQ121: 0 | AU121: 0 | AW121: 0 | AX121: 1 | BA121: TRUE | BB121: TRUE | BC121: TRUE | BD121: TRUE | BE121: TRUE | BF121: TRUE | BG121: TRUE | BH121: TRUE | BI121: TRUE | BJ121: TRUE | BK121: TRUE | BL121: TRUE | BM121: TRUE | BN121: TRUE | BO121: TRUE | BP121: TRUE
A122: 113 | B122: GREAT BARRINGTON | C122: 0 | D122: 0 | E122: 0 | F122: 0 | G122: 0 | H122: 0 | I122: 0 | J122: 0 | K122: 0 | L122: 0 | M122: 0 | N122: 0 | O122: 0 | P122: 0 | AA122: 113 | AB122: GREAT BARRINGTON | AC122: 0 | AD122: 0 | AE122: 0 | AF122: 0 | AG122: 0 | AH122: 0 | AL122: 0 | AM122: 0 | AN122: 0 | AO122: 0 | AP122: 0 | AQ122: 0 | AU122: 0 | AW122: 0 | AX122: 1 | BA122: TRUE | BB122: TRUE | BC122: TRUE | BD122: TRUE | BE122: TRUE | BF122: TRUE | BG122: TRUE | BH122: TRUE | BI122: TRUE | BJ122: TRUE | BK122: TRUE | BL122: TRUE | BM122: TRUE | BN122: TRUE | BO122: TRUE | BP122: TRUE
A123: 114 | B123: GREENFIELD | C123: 37 | D123: 0 | E123: 146 | F123: 710 | G123: 414 | H123: 502 | I123: 0 | J123: 69 | K123: 18 | L123: 44 | M123: 17 | N123: 21 | O123: 1010 | P123: 1791 | AA123: 114 | AB123: GREENFIELD | AC123: 37 | AD123: 0 | AE123: 146 | AF123: 710 | AG123: 414 | AH123: 502 | AL123: 0 | AM123: 69 | AN123: 18 | AO123: 44 | AP123: 17 | AQ123: 21 | AU123: 1010 | AW123: 1791 | AX123: 1 | BA123: TRUE | BB123: TRUE | BC123: TRUE | BD123: TRUE | BE123: TRUE | BF123: TRUE | BG123: TRUE | BH123: TRUE | BI123: TRUE | BJ123: TRUE | BK123: TRUE | BL123: TRUE | BM123: TRUE | BN123: TRUE | BO123: TRUE | BP123: TRUE
A124: 115 | B124: GROTON | C124: 0 | D124: 0 | E124: 0 | F124: 0 | G124: 0 | H124: 0 | I124: 0 | J124: 0 | K124: 0 | L124: 0 | M124: 0 | N124: 0 | O124: 0 | P124: 0 | AA124: 115 | AB124: GROTON | AC124: 0 | AD124: 0 | AE124: 0 | AF124: 0 | AG124: 0 | AH124: 0 | AL124: 0 | AM124: 0 | AN124: 0 | AO124: 0 | AP124: 0 | AQ124: 0 | AU124: 0 | AW124: 0 | AX124: 1 | BA124: TRUE | BB124: TRUE | BC124: TRUE | BD124: TRUE | BE124: TRUE | BF124: TRUE | BG124: TRUE | BH124: TRUE | BI124: TRUE | BJ124: TRUE | BK124: TRUE | BL124: TRUE | BM124: TRUE | BN124: TRUE | BO124: TRUE | BP124: TRUE
A125: 116 | B125: GROVELAND | C125: 0 | D125: 0 | E125: 0 | F125: 0 | G125: 0 | H125: 0 | I125: 9 | J125: 0 | K125: 0 | L125: 0 | M125: 0 | N125: 0 | O125: 0 | P125: 9 | AA125: 116 | AB125: GROVELAND | AC125: 0 | AD125: 0 | AE125: 0 | AF125: 0 | AG125: 0 | AH125: 0 | AL125: 9 | AM125: 0 | AN125: 0 | AO125: 0 | AP125: 0 | AQ125: 0 | AU125: 0 | AW125: 9 | AX125: 1 | BA125: TRUE | BB125: TRUE | BC125: TRUE | BD125: TRUE | BE125: TRUE | BF125: TRUE | BG125: TRUE | BH125: TRUE | BI125: TRUE | BJ125: TRUE | BK125: TRUE | BL125: TRUE | BM125: TRUE | BN125: TRUE | BO125: TRUE | BP125: TRUE
A126: 117 | B126: HADLEY | C126: 6 | D126: 0 | E126: 29 | F126: 136 | G126: 106 | H126: 166 | I126: 16 | J126: 18 | K126: 4 | L126: 11 | M126: 4 | N126: 4 | O126: 167 | P126: 456 | AA126: 117 | AB126: HADLEY | AC126: 6 | AD126: 0 | AE126: 29 | AF126: 136 | AG126: 106 | AH126: 166 | AL126: 16 | AM126: 18 | AN126: 4 | AO126: 11 | AP126: 4 | AQ126: 4 | AU126: 167 | AW126: 456 | AX126: 1 | BA126: TRUE | BB126: TRUE | BC126: TRUE | BD126: TRUE | BE126: TRUE | BF126: TRUE | BG126: TRUE | BH126: TRUE | BI126: TRUE | BJ126: TRUE | BK126: TRUE | BL126: TRUE | BM126: TRUE | BN126: TRUE | BO126: TRUE | BP126: TRUE
A127: 118 | B127: HALIFAX | C127: 28 | D127: 0 | E127: 76 | F127: 396 | G127: 114 | H127: 10 | I127: 3 | J127: 23 | K127: 6 | L127: 5 | M127: 0 | N127: 0 | O127: 175 | P127: 613 | AA127: 118 | AB127: HALIFAX | AC127: 28 | AD127: 0 | AE127: 76 | AF127: 396 | AG127: 114 | AH127: 10 | AL127: 3 | AM127: 23 | AN127: 6 | AO127: 5 | AP127: 0 | AQ127: 0 | AU127: 175 | AW127: 613 | AX127: 1.031 | BA127: TRUE | BB127: TRUE | BC127: TRUE | BD127: TRUE | BE127: TRUE | BF127: TRUE | BG127: TRUE | BH127: TRUE | BI127: TRUE | BJ127: TRUE | BK127: TRUE | BL127: TRUE | BM127: TRUE | BN127: TRUE | BO127: TRUE | BP127: TRUE
A128: 119 | B128: HAMILTON | C128: 0 | D128: 0 | E128: 0 | F128: 0 | G128: 0 | H128: 0 | I128: 0 | J128: 0 | K128: 0 | L128: 0 | M128: 0 | N128: 0 | O128: 0 | P128: 0 | AA128: 119 | AB128: HAMILTON | AC128: 0 | AD128: 0 | AE128: 0 | AF128: 0 | AG128: 0 | AH128: 0 | AL128: 0 | AM128: 0 | AN128: 0 | AO128: 0 | AP128: 0 | AQ128: 0 | AU128: 0 | AW128: 0 | AX128: 1.044 | BA128: TRUE | BB128: TRUE | BC128: TRUE | BD128: TRUE | BE128: TRUE | BF128: TRUE | BG128: TRUE | BH128: TRUE | BI128: TRUE | BJ128: TRUE | BK128: TRUE | BL128: TRUE | BM128: TRUE | BN128: TRUE | BO128: TRUE | BP128: TRUE
A129: 120 | B129: HAMPDEN | C129: 0 | D129: 0 | E129: 0 | F129: 0 | G129: 0 | H129: 0 | I129: 0 | J129: 0 | K129: 0 | L129: 0 | M129: 0 | N129: 0 | O129: 0 | P129: 0 | AA129: 120 | AB129: HAMPDEN | AC129: 0 | AD129: 0 | AE129: 0 | AF129: 0 | AG129: 0 | AH129: 0 | AL129: 0 | AM129: 0 | AN129: 0 | AO129: 0 | AP129: 0 | AQ129: 0 | AU129: 0 | AW129: 0 | AX129: 1 | BA129: TRUE | BB129: TRUE | BC129: TRUE | BD129: TRUE | BE129: TRUE | BF129: TRUE | BG129: TRUE | BH129: TRUE | BI129: TRUE | BJ129: TRUE | BK129: TRUE | BL129: TRUE | BM129: TRUE | BN129: TRUE | BO129: TRUE | BP129: TRUE
A130: 121 | B130: HANCOCK | C130: 4 | D130: 0 | E130: 4 | F130: 30 | G130: 23 | H130: 15 | I130: 12 | J130: 4 | K130: 1 | L130: 0 | M130: 0 | N130: 0 | O130: 24 | P130: 86 | AA130: 121 | AB130: HANCOCK | AC130: 4 | AD130: 0 | AE130: 4 | AF130: 30 | AG130: 23 | AH130: 15 | AL130: 12 | AM130: 4 | AN130: 1 | AO130: 0 | AP130: 0 | AQ130: 0 | AU130: 24 | AW130: 86 | AX130: 1 | BA130: TRUE | BB130: TRUE | BC130: TRUE | BD130: TRUE | BE130: TRUE | BF130: TRUE | BG130: TRUE | BH130: TRUE | BI130: TRUE | BJ130: TRUE | BK130: TRUE | BL130: TRUE | BM130: TRUE | BN130: TRUE | BO130: TRUE | BP130: TRUE
A131: 122 | B131: HANOVER | C131: 45 | D131: 179 | E131: 1 | F131: 1029 | G131: 635 | H131: 699 | I131: 4 | J131: 96 | K131: 25 | L131: 28 | M131: 3 | N131: 3 | O131: 326 | P131: 2481 | AA131: 122 | AB131: HANOVER | AC131: 45 | AD131: 179 | AE131: 1 | AF131: 1029 | AG131: 635 | AH131: 699 | AL131: 4 | AM131: 96 | AN131: 25 | AO131: 28 | AP131: 3 | AQ131: 3 | AU131: 326 | AW131: 2481 | AX131: 1.041 | BA131: TRUE | BB131: TRUE | BC131: TRUE | BD131: TRUE | BE131: TRUE | BF131: TRUE | BG131: TRUE | BH131: TRUE | BI131: TRUE | BJ131: TRUE | BK131: TRUE | BL131: TRUE | BM131: TRUE | BN131: TRUE | BO131: TRUE | BP131: TRUE
A132: 123 | B132: HANSON | C132: 0 | D132: 0 | E132: 0 | F132: 0 | G132: 0 | H132: 0 | I132: 5 | J132: 0 | K132: 0 | L132: 0 | M132: 0 | N132: 0 | O132: 0 | P132: 5 | AA132: 123 | AB132: HANSON | AC132: 0 | AD132: 0 | AE132: 0 | AF132: 0 | AG132: 0 | AH132: 0 | AL132: 5 | AM132: 0 | AN132: 0 | AO132: 0 | AP132: 0 | AQ132: 0 | AU132: 0 | AW132: 5 | AX132: 1 | BA132: TRUE | BB132: TRUE | BC132: TRUE | BD132: TRUE | BE132: TRUE | BF132: TRUE | BG132: TRUE | BH132: TRUE | BI132: TRUE | BJ132: TRUE | BK132: TRUE | BL132: TRUE | BM132: TRUE | BN132: TRUE | BO132: TRUE | BP132: TRUE
A133: 124 | B133: HARDWICK | C133: 0 | D133: 0 | E133: 0 | F133: 0 | G133: 0 | H133: 0 | I133: 0 | J133: 0 | K133: 0 | L133: 0 | M133: 0 | N133: 0 | O133: 0 | P133: 0 | AA133: 124 | AB133: HARDWICK | AC133: 0 | AD133: 0 | AE133: 0 | AF133: 0 | AG133: 0 | AH133: 0 | AL133: 0 | AM133: 0 | AN133: 0 | AO133: 0 | AP133: 0 | AQ133: 0 | AU133: 0 | AW133: 0 | AX133: 1 | BA133: TRUE | BB133: TRUE | BC133: TRUE | BD133: TRUE | BE133: TRUE | BF133: TRUE | BG133: TRUE | BH133: TRUE | BI133: TRUE | BJ133: TRUE | BK133: TRUE | BL133: TRUE | BM133: TRUE | BN133: TRUE | BO133: TRUE | BP133: TRUE
A134: 125 | B134: HARVARD | C134: 7 | D134: 54 | E134: 5 | F134: 326 | G134: 220 | H134: 293 | I134: 0 | J134: 34 | K134: 9 | L134: 16 | M134: 2 | N134: 7 | O134: 105 | P134: 875 | AA134: 125 | AB134: HARVARD | AC134: 7 | AD134: 54 | AE134: 5 | AF134: 326 | AG134: 220 | AH134: 293 | AL134: 0 | AM134: 34 | AN134: 9 | AO134: 16 | AP134: 2 | AQ134: 7 | AU134: 105 | AW134: 875 | AX134: 1 | BA134: TRUE | BB134: TRUE | BC134: TRUE | BD134: TRUE | BE134: TRUE | BF134: TRUE | BG134: TRUE | BH134: TRUE | BI134: TRUE | BJ134: TRUE | BK134: TRUE | BL134: TRUE | BM134: TRUE | BN134: TRUE | BO134: TRUE | BP134: TRUE
A135: 126 | B135: HARWICH | C135: 0 | D135: 0 | E135: 0 | F135: 0 | G135: 0 | H135: 0 | I135: 0 | J135: 0 | K135: 0 | L135: 0 | M135: 0 | N135: 0 | O135: 0 | P135: 0 | AA135: 126 | AB135: HARWICH | AC135: 0 | AD135: 0 | AE135: 0 | AF135: 0 | AG135: 0 | AH135: 0 | AL135: 0 | AM135: 0 | AN135: 0 | AO135: 0 | AP135: 0 | AQ135: 0 | AU135: 0 | AW135: 0 | AX135: 1 | BA135: TRUE | BB135: TRUE | BC135: TRUE | BD135: TRUE | BE135: TRUE | BF135: TRUE | BG135: TRUE | BH135: TRUE | BI135: TRUE | BJ135: TRUE | BK135: TRUE | BL135: TRUE | BM135: TRUE | BN135: TRUE | BO135: TRUE | BP135: TRUE
A136: 127 | B136: HATFIELD | C136: 21 | D136: 0 | E136: 20 | F136: 105 | G136: 70 | H136: 83 | I136: 28 | J136: 12 | K136: 3 | L136: 1 | M136: 0 | N136: 0 | O136: 91 | P136: 317 | AA136: 127 | AB136: HATFIELD | AC136: 21 | AD136: 0 | AE136: 20 | AF136: 105 | AG136: 70 | AH136: 83 | AL136: 28 | AM136: 12 | AN136: 3 | AO136: 1 | AP136: 0 | AQ136: 0 | AU136: 91 | AW136: 317 | AX136: 1 | BA136: TRUE | BB136: TRUE | BC136: TRUE | BD136: TRUE | BE136: TRUE | BF136: TRUE | BG136: TRUE | BH136: TRUE | BI136: TRUE | BJ136: TRUE | BK136: TRUE | BL136: TRUE | BM136: TRUE | BN136: TRUE | BO136: TRUE | BP136: TRUE
A137: 128 | B137: HAVERHILL | C137: 285 | D137: 0 | E137: 591 | F137: 3171 | G137: 2178 | H137: 2072 | I137: 132 | J137: 318 | K137: 80 | L137: 541 | M137: 175 | N137: 201 | O137: 5352 | P137: 8287 | AA137: 128 | AB137: HAVERHILL | AC137: 285 | AD137: 0 | AE137: 591 | AF137: 3171 | AG137: 2178 | AH137: 2072 | AL137: 132 | AM137: 318 | AN137: 80 | AO137: 541 | AP137: 175 | AQ137: 201 | AU137: 5352 | AW137: 8287 | AX137: 1 | BA137: TRUE | BB137: TRUE | BC137: TRUE | BD137: TRUE | BE137: TRUE | BF137: TRUE | BG137: TRUE | BH137: TRUE | BI137: TRUE | BJ137: TRUE | BK137: TRUE | BL137: TRUE | BM137: TRUE | BN137: TRUE | BO137: TRUE | BP137: TRUE
A138: 129 | B138: HAWLEY | C138: 0 | D138: 0 | E138: 0 | F138: 0 | G138: 0 | H138: 0 | I138: 4 | J138: 0 | K138: 0 | L138: 0 | M138: 0 | N138: 0 | O138: 0 | P138: 4 | AA138: 129 | AB138: HAWLEY | AC138: 0 | AD138: 0 | AE138: 0 | AF138: 0 | AG138: 0 | AH138: 0 | AL138: 4 | AM138: 0 | AN138: 0 | AO138: 0 | AP138: 0 | AQ138: 0 | AU138: 0 | AW138: 4 | AX138: 1 | BA138: TRUE | BB138: TRUE | BC138: TRUE | BD138: TRUE | BE138: TRUE | BF138: TRUE | BG138: TRUE | BH138: TRUE | BI138: TRUE | BJ138: TRUE | BK138: TRUE | BL138: TRUE | BM138: TRUE | BN138: TRUE | BO138: TRUE | BP138: TRUE
A139: 130 | B139: HEATH | C139: 0 | D139: 0 | E139: 0 | F139: 0 | G139: 0 | H139: 0 | I139: 0 | J139: 0 | K139: 0 | L139: 0 | M139: 0 | N139: 0 | O139: 0 | P139: 0 | AA139: 130 | AB139: HEATH | AC139: 0 | AD139: 0 | AE139: 0 | AF139: 0 | AG139: 0 | AH139: 0 | AL139: 0 | AM139: 0 | AN139: 0 | AO139: 0 | AP139: 0 | AQ139: 0 | AU139: 0 | AW139: 0 | AX139: 1 | BA139: =A139=AA139 -> TRUE | BB139: =B139=AB139 -> TRUE | BC139: =C139=AC139 -> TRUE | BD139: =D139=AD139 -> TRUE | BE139: =E139=AE139 -> TRUE | BF139: =F139=AF139 -> TRUE | BG139: =G139=AG139 -> TRUE | BH139: =H139=AH139 -> TRUE | BI139: =I139=AL139 -> TRUE | BJ139: =J139=AM139 -> TRUE | BK139: =K139=AN139 -> TRUE | BL139: =L139=AO139 -> TRUE | BM139: =M139=AP139 -> TRUE | BN139: =N139=AQ139 -> TRUE | BO139: =O139=AU139 -> TRUE | BP139: =P139=AW139 -> TRUE
A140: 131 | B140: HINGHAM | C140: 45 | D140: 2 | E140: 281 | F140: 1430 | G140: 859 | H140: 1206 | I140: 7 | J140: 147 | K140: 38 | L140: 15 | M140: 4 | N140: 2 | O140: 333 | P140: 3807 | AA140: 131 | AB140: HINGHAM | AC140: 45 | AD140: 2 | AE140: 281 | AF140: 1430 | AG140: 859 | AH140: 1206 | AL140: 7 | AM140: 147 | AN140: 38 | AO140: 15 | AP140: 4 | AQ140: 2 | AU140: 333 | AW140: 3807 | AX140: 1.054 | BA140: TRUE | BB140: TRUE | BC140: TRUE | BD140: TRUE | BE140: TRUE | BF140: TRUE | BG140: TRUE | BH140: TRUE | BI140: TRUE | BJ140: TRUE | BK140: TRUE | BL140: TRUE | BM140: TRUE | BN140: TRUE | BO140: TRUE | BP140: TRUE
A141: 132 | B141: HINSDALE | C141: 0 | D141: 0 | E141: 0 | F141: 0 | G141: 0 | H141: 0 | I141: 8 | J141: 0 | K141: 0 | L141: 0 | M141: 0 | N141: 0 | O141: 0 | P141: 8 | AA141: 132 | AB141: HINSDALE | AC141: 0 | AD141: 0 | AE141: 0 | AF141: 0 | AG141: 0 | AH141: 0 | AL141: 8 | AM141: 0 | AN141: 0 | AO141: 0 | AP141: 0 | AQ141: 0 | AU141: 0 | AW141: 8 | AX141: 1 | BA141: TRUE | BB141: TRUE | BC141: TRUE | BD141: TRUE | BE141: TRUE | BF141: TRUE | BG141: TRUE | BH141: TRUE | BI141: TRUE | BJ141: TRUE | BK141: TRUE | BL141: TRUE | BM141: TRUE | BN141: TRUE | BO141: TRUE | BP141: TRUE
A142: 133 | B142: HOLBROOK | C142: 24 | D142: 0 | E142: 118 | F142: 547 | G142: 351 | H142: 324 | I142: 0 | J142: 52 | K142: 13 | L142: 62 | M142: 15 | N142: 21 | O142: 682 | P142: 1352 | AA142: 133 | AB142: HOLBROOK | AC142: 24 | AD142: 0 | AE142: 118 | AF142: 547 | AG142: 351 | AH142: 324 | AL142: 0 | AM142: 52 | AN142: 13 | AO142: 62 | AP142: 15 | AQ142: 21 | AU142: 682 | AW142: 1352 | AX142: 1.043 | BA142: TRUE | BB142: TRUE | BC142: TRUE | BD142: TRUE | BE142: TRUE | BF142: TRUE | BG142: TRUE | BH142: TRUE | BI142: TRUE | BJ142: TRUE | BK142: TRUE | BL142: TRUE | BM142: TRUE | BN142: TRUE | BO142: TRUE | BP142: TRUE
A143: 134 | B143: HOLDEN | C143: 0 | D143: 0 | E143: 0 | F143: 0 | G143: 0 | H143: 0 | I143: 1 | J143: 0 | K143: 0 | L143: 0 | M143: 0 | N143: 0 | O143: 0 | P143: 1 | AA143: 134 | AB143: HOLDEN | AC143: 0 | AD143: 0 | AE143: 0 | AF143: 0 | AG143: 0 | AH143: 0 | AL143: 1 | AM143: 0 | AN143: 0 | AO143: 0 | AP143: 0 | AQ143: 0 | AU143: 0 | AW143: 1 | AX143: 1 | BA143: TRUE | BB143: TRUE | BC143: TRUE | BD143: TRUE | BE143: TRUE | BF143: TRUE | BG143: TRUE | BH143: TRUE | BI143: TRUE | BJ143: TRUE | BK143: TRUE | BL143: TRUE | BM143: TRUE | BN143: TRUE | BO143: TRUE | BP143: TRUE
A144: 135 | B144: HOLLAND | C144: 1 | D144: 0 | E144: 21 | F144: 125 | G144: 28 | H144: 0 | I144: 0 | J144: 7 | K144: 2 | L144: 0 | M144: 0 | N144: 0 | O144: 101 | P144: 175 | AA144: 135 | AB144: HOLLAND | AC144: 1 | AD144: 0 | AE144: 21 | AF144: 125 | AG144: 28 | AH144: 0 | AL144: 0 | AM144: 7 | AN144: 2 | AO144: 0 | AP144: 0 | AQ144: 0 | AU144: 101 | AW144: 175 | AX144: 1 | BA144: TRUE | BB144: TRUE | BC144: TRUE | BD144: TRUE | BE144: TRUE | BF144: TRUE | BG144: TRUE | BH144: TRUE | BI144: TRUE | BJ144: TRUE | BK144: TRUE | BL144: TRUE | BM144: TRUE | BN144: TRUE | BO144: TRUE | BP144: TRUE
A145: 136 | B145: HOLLISTON | C145: 14 | D145: 1 | E145: 181 | F145: 1007 | G145: 667 | H145: 804 | I145: 19 | J145: 105 | K145: 27 | L145: 55 | M145: 15 | N145: 7 | O145: 361 | P145: 2686 | AA145: 136 | AB145: HOLLISTON | AC145: 14 | AD145: 1 | AE145: 181 | AF145: 1007 | AG145: 667 | AH145: 804 | AL145: 19 | AM145: 105 | AN145: 27 | AO145: 55 | AP145: 15 | AQ145: 7 | AU145: 361 | AW145: 2686 | AX145: 1.006 | BA145: TRUE | BB145: TRUE | BC145: TRUE | BD145: TRUE | BE145: TRUE | BF145: TRUE | BG145: TRUE | BH145: TRUE | BI145: TRUE | BJ145: TRUE | BK145: TRUE | BL145: TRUE | BM145: TRUE | BN145: TRUE | BO145: TRUE | BP145: TRUE
A146: 137 | B146: HOLYOKE | C146: 319 | D146: 0 | E146: 385 | F146: 2142 | G146: 1364 | H146: 1491 | I146: 384 | J146: 229 | K146: 54 | L146: 402 | M146: 244 | N146: 324 | O146: 4866 | P146: 5926 | AA146: 137 | AB146: HOLYOKE | AC146: 319 | AD146: 0 | AE146: 385 | AF146: 2142 | AG146: 1364 | AH146: 1491 | AL146: 384 | AM146: 229 | AN146: 54 | AO146: 402 | AP146: 244 | AQ146: 324 | AU146: 4866 | AW146: 5926 | AX146: 1 | BA146: TRUE | BB146: TRUE | BC146: TRUE | BD146: TRUE | BE146: TRUE | BF146: TRUE | BG146: TRUE | BH146: TRUE | BI146: TRUE | BJ146: TRUE | BK146: TRUE | BL146: TRUE | BM146: TRUE | BN146: TRUE | BO146: TRUE | BP146: TRUE
A147: 138 | B147: HOPEDALE | C147: 17 | D147: 0 | E147: 74 | F147: 343 | G147: 206 | H147: 241 | I147: 2 | J147: 34 | K147: 9 | L147: 51 | M147: 5 | N147: 6 | O147: 281 | P147: 875 | AA147: 138 | AB147: HOPEDALE | AC147: 17 | AD147: 0 | AE147: 74 | AF147: 343 | AG147: 206 | AH147: 241 | AL147: 2 | AM147: 34 | AN147: 9 | AO147: 51 | AP147: 5 | AQ147: 6 | AU147: 281 | AW147: 875 | AX147: 1 | BA147: TRUE | BB147: TRUE | BC147: TRUE | BD147: TRUE | BE147: TRUE | BF147: TRUE | BG147: TRUE | BH147: TRUE | BI147: TRUE | BJ147: TRUE | BK147: TRUE | BL147: TRUE | BM147: TRUE | BN147: TRUE | BO147: TRUE | BP147: TRUE
A148: 139 | B148: HOPKINTON | C148: 45 | D148: 0 | E148: 298 | F148: 1569 | G148: 982 | H148: 1264 | I148: 3 | J148: 160 | K148: 41 | L148: 209 | M148: 10 | N148: 17 | O148: 346 | P148: 4139 | AA148: 139 | AB148: HOPKINTON | AC148: 45 | AD148: 0 | AE148: 298 | AF148: 1569 | AG148: 982 | AH148: 1264 | AL148: 3 | AM148: 160 | AN148: 41 | AO148: 209 | AP148: 10 | AQ148: 17 | AU148: 346 | AW148: 4139 | AX148: 1.036 | BA148: TRUE | BB148: TRUE | BC148: TRUE | BD148: TRUE | BE148: TRUE | BF148: TRUE | BG148: TRUE | BH148: TRUE | BI148: TRUE | BJ148: TRUE | BK148: TRUE | BL148: TRUE | BM148: TRUE | BN148: TRUE | BO148: TRUE | BP148: TRUE
A149: 140 | B149: HUBBARDSTON | C149: 0 | D149: 0 | E149: 0 | F149: 0 | G149: 0 | H149: 0 | I149: 0 | J149: 0 | K149: 0 | L149: 0 | M149: 0 | N149: 0 | O149: 0 | P149: 0 | AA149: 140 | AB149: HUBBARDSTON | AC149: 0 | AD149: 0 | AE149: 0 | AF149: 0 | AG149: 0 | AH149: 0 | AL149: 0 | AM149: 0 | AN149: 0 | AO149: 0 | AP149: 0 | AQ149: 0 | AU149: 0 | AW149: 0 | AX149: 1 | BA149: TRUE | BB149: TRUE | BC149: TRUE | BD149: TRUE | BE149: TRUE | BF149: TRUE | BG149: TRUE | BH149: TRUE | BI149: TRUE | BJ149: TRUE | BK149: TRUE | BL149: TRUE | BM149: TRUE | BN149: TRUE | BO149: TRUE | BP149: TRUE
A150: 141 | B150: HUDSON | C150: 21 | D150: 0 | E150: 182 | F150: 911 | G150: 590 | H150: 723 | I150: 0 | J150: 94 | K150: 24 | L150: 244 | M150: 60 | N150: 65 | O150: 1006 | P150: 2417 | AA150: 141 | AB150: HUDSON | AC150: 21 | AD150: 0 | AE150: 182 | AF150: 911 | AG150: 590 | AH150: 723 | AL150: 0 | AM150: 94 | AN150: 24 | AO150: 244 | AP150: 60 | AQ150: 65 | AU150: 1006 | AW150: 2417 | AX150: 1 | BA150: TRUE | BB150: TRUE | BC150: TRUE | BD150: TRUE | BE150: TRUE | BF150: TRUE | BG150: TRUE | BH150: TRUE | BI150: TRUE | BJ150: TRUE | BK150: TRUE | BL150: TRUE | BM150: TRUE | BN150: TRUE | BO150: TRUE | BP150: TRUE
A151: 142 | B151: HULL | C151: 46 | D151: 0 | E151: 48 | F151: 277 | G151: 179 | H151: 261 | I151: 3 | J151: 30 | K151: 8 | L151: 2 | M151: 1 | N151: 6 | O151: 290 | P151: 791 | AA151: 142 | AB151: HULL | AC151: 46 | AD151: 0 | AE151: 48 | AF151: 277 | AG151: 179 | AH151: 261 | AL151: 3 | AM151: 30 | AN151: 8 | AO151: 2 | AP151: 1 | AQ151: 6 | AU151: 290 | AW151: 791 | AX151: 1.032 | BA151: TRUE | BB151: TRUE | BC151: TRUE | BD151: TRUE | BE151: TRUE | BF151: TRUE | BG151: TRUE | BH151: TRUE | BI151: TRUE | BJ151: TRUE | BK151: TRUE | BL151: TRUE | BM151: TRUE | BN151: TRUE | BO151: TRUE | BP151: TRUE
A152: 143 | B152: HUNTINGTON | C152: 0 | D152: 0 | E152: 0 | F152: 0 | G152: 0 | H152: 0 | I152: 31 | J152: 2 | K152: 0 | L152: 0 | M152: 0 | N152: 0 | O152: 0 | P152: 31 | AA152: 143 | AB152: HUNTINGTON | AC152: 0 | AD152: 0 | AE152: 0 | AF152: 0 | AG152: 0 | AH152: 0 | AL152: 31 | AM152: 2 | AN152: 0 | AO152: 0 | AP152: 0 | AQ152: 0 | AU152: 0 | AW152: 31 | AX152: 1 | BA152: TRUE | BB152: TRUE | BC152: TRUE | BD152: TRUE | BE152: TRUE | BF152: TRUE | BG152: TRUE | BH152: TRUE | BI152: TRUE | BJ152: TRUE | BK152: TRUE | BL152: TRUE | BM152: TRUE | BN152: TRUE | BO152: TRUE | BP152: TRUE
A153: 144 | B153: IPSWICH | C153: 43 | D153: 0 | E153: 97 | F153: 575 | G153: 348 | H153: 501 | I153: 14 | J153: 60 | K153: 15 | L153: 31 | M153: 3 | N153: 12 | O153: 357 | P153: 1557 | AA153: 144 | AB153: IPSWICH | AC153: 43 | AD153: 0 | AE153: 97 | AF153: 575 | AG153: 348 | AH153: 501 | AL153: 14 | AM153: 60 | AN153: 15 | AO153: 31 | AP153: 3 | AQ153: 12 | AU153: 357 | AW153: 1557 | AX153: 1.057 | BA153: TRUE | BB153: TRUE | BC153: TRUE | BD153: TRUE | BE153: TRUE | BF153: TRUE | BG153: TRUE | BH153: TRUE | BI153: TRUE | BJ153: TRUE | BK153: TRUE | BL153: TRUE | BM153: TRUE | BN153: TRUE | BO153: TRUE | BP153: TRUE
A154: 145 | B154: KINGSTON | C154: 0 | D154: 0 | E154: 175 | F154: 777 | G154: 153 | H154: 15 | I154: 5 | J154: 44 | K154: 11 | L154: 49 | M154: 5 | N154: 0 | O154: 291 | P154: 1125 | AA154: 145 | AB154: KINGSTON | AC154: 0 | AD154: 0 | AE154: 175 | AF154: 777 | AG154: 153 | AH154: 15 | AL154: 5 | AM154: 44 | AN154: 11 | AO154: 49 | AP154: 5 | AQ154: 0 | AU154: 291 | AW154: 1125 | AX154: 1.037 | BA154: TRUE | BB154: TRUE | BC154: TRUE | BD154: TRUE | BE154: TRUE | BF154: TRUE | BG154: TRUE | BH154: TRUE | BI154: TRUE | BJ154: TRUE | BK154: TRUE | BL154: TRUE | BM154: TRUE | BN154: TRUE | BO154: TRUE | BP154: TRUE
A155: 146 | B155: LAKEVILLE | C155: 0 | D155: 0 | E155: 0 | F155: 0 | G155: 0 | H155: 0 | I155: 11 | J155: 1 | K155: 0 | L155: 0 | M155: 0 | N155: 0 | O155: 0 | P155: 11 | AA155: 146 | AB155: LAKEVILLE | AC155: 0 | AD155: 0 | AE155: 0 | AF155: 0 | AG155: 0 | AH155: 0 | AL155: 11 | AM155: 1 | AN155: 0 | AO155: 0 | AP155: 0 | AQ155: 0 | AU155: 0 | AW155: 11 | AX155: 1 | BA155: TRUE | BB155: TRUE | BC155: TRUE | BD155: TRUE | BE155: TRUE | BF155: TRUE | BG155: TRUE | BH155: TRUE | BI155: TRUE | BJ155: TRUE | BK155: TRUE | BL155: TRUE | BM155: TRUE | BN155: TRUE | BO155: TRUE | BP155: TRUE
A156: 147 | B156: LANCASTER | C156: 0 | D156: 0 | E156: 0 | F156: 0 | G156: 0 | H156: 0 | I156: 2 | J156: 0 | K156: 0 | L156: 0 | M156: 0 | N156: 0 | O156: 0 | P156: 2 | AA156: 147 | AB156: LANCASTER | AC156: 0 | AD156: 0 | AE156: 0 | AF156: 0 | AG156: 0 | AH156: 0 | AL156: 2 | AM156: 0 | AN156: 0 | AO156: 0 | AP156: 0 | AQ156: 0 | AU156: 0 | AW156: 2 | AX156: 1 | BA156: TRUE | BB156: TRUE | BC156: TRUE | BD156: TRUE | BE156: TRUE | BF156: TRUE | BG156: TRUE | BH156: TRUE | BI156: TRUE | BJ156: TRUE | BK156: TRUE | BL156: TRUE | BM156: TRUE | BN156: TRUE | BO156: TRUE | BP156: TRUE
A157: 148 | B157: LANESBOROUGH | C157: 0 | D157: 0 | E157: 0 | F157: 0 | G157: 0 | H157: 0 | I157: 0 | J157: 0 | K157: 0 | L157: 0 | M157: 0 | N157: 0 | O157: 0 | P157: 0 | AA157: 148 | AB157: LANESBOROUGH | AC157: 0 | AD157: 0 | AE157: 0 | AF157: 0 | AG157: 0 | AH157: 0 | AL157: 0 | AM157: 0 | AN157: 0 | AO157: 0 | AP157: 0 | AQ157: 0 | AU157: 0 | AW157: 0 | AX157: 1 | BA157: TRUE | BB157: TRUE | BC157: TRUE | BD157: TRUE | BE157: TRUE | BF157: TRUE | BG157: TRUE | BH157: TRUE | BI157: TRUE | BJ157: TRUE | BK157: TRUE | BL157: TRUE | BM157: TRUE | BN157: TRUE | BO157: TRUE | BP157: TRUE
A158: 149 | B158: LAWRENCE | C158: 699 | D158: 0 | E158: 1058 | F158: 5804 | G158: 3710 | H158: 3548 | I158: 96 | J158: 556 | K158: 141 | L158: 2873 | M158: 1080 | N158: 1405 | O158: 13121 | P158: 14566 | AA158: 149 | AB158: LAWRENCE | AC158: 699 | AD158: 0 | AE158: 1058 | AF158: 5804 | AG158: 3710 | AH158: 3548 | AL158: 96 | AM158: 556 | AN158: 141 | AO158: 2873 | AP158: 1080 | AQ158: 1405 | AU158: 13121 | AW158: 14566 | AX158: 1 | BA158: TRUE | BB158: TRUE | BC158: TRUE | BD158: TRUE | BE158: TRUE | BF158: TRUE | BG158: TRUE | BH158: TRUE | BI158: TRUE | BJ158: TRUE | BK158: TRUE | BL158: TRUE | BM158: TRUE | BN158: TRUE | BO158: TRUE | BP158: TRUE
A159: 150 | B159: LEE | C159: 16 | D159: 0 | E159: 37 | F159: 202 | G159: 128 | H159: 190 | I159: 5 | J159: 22 | K159: 6 | L159: 21 | M159: 5 | N159: 11 | O159: 328 | P159: 570 | AA159: 150 | AB159: LEE | AC159: 16 | AD159: 0 | AE159: 37 | AF159: 202 | AG159: 128 | AH159: 190 | AL159: 5 | AM159: 22 | AN159: 6 | AO159: 21 | AP159: 5 | AQ159: 11 | AU159: 328 | AW159: 570 | AX159: 1 | BA159: TRUE | BB159: TRUE | BC159: TRUE | BD159: TRUE | BE159: TRUE | BF159: TRUE | BG159: TRUE | BH159: TRUE | BI159: TRUE | BJ159: TRUE | BK159: TRUE | BL159: TRUE | BM159: TRUE | BN159: TRUE | BO159: TRUE | BP159: TRUE
A160: 151 | B160: LEICESTER | C160: 21 | D160: 0 | E160: 96 | F160: 547 | G160: 291 | H160: 420 | I160: 78 | J160: 57 | K160: 14 | L160: 50 | M160: 10 | N160: 12 | O160: 596 | P160: 1443 | AA160: 151 | AB160: LEICESTER | AC160: 21 | AD160: 0 | AE160: 96 | AF160: 547 | AG160: 291 | AH160: 420 | AL160: 78 | AM160: 57 | AN160: 14 | AO160: 50 | AP160: 10 | AQ160: 12 | AU160: 596 | AW160: 1443 | AX160: 1 | BA160: TRUE | BB160: TRUE | BC160: TRUE | BD160: TRUE | BE160: TRUE | BF160: TRUE | BG160: TRUE | BH160: TRUE | BI160: TRUE | BJ160: TRUE | BK160: TRUE | BL160: TRUE | BM160: TRUE | BN160: TRUE | BO160: TRUE | BP160: TRUE
A161: 152 | B161: LENOX | C161: 23 | D161: 0 | E161: 38 | F161: 148 | G161: 119 | H161: 162 | I161: 10 | J161: 18 | K161: 5 | L161: 13 | M161: 3 | N161: 4 | O161: 214 | P161: 489 | AA161: 152 | AB161: LENOX | AC161: 23 | AD161: 0 | AE161: 38 | AF161: 148 | AG161: 119 | AH161: 162 | AL161: 10 | AM161: 18 | AN161: 5 | AO161: 13 | AP161: 3 | AQ161: 4 | AU161: 214 | AW161: 489 | AX161: 1 | BA161: TRUE | BB161: TRUE | BC161: TRUE | BD161: TRUE | BE161: TRUE | BF161: TRUE | BG161: TRUE | BH161: TRUE | BI161: TRUE | BJ161: TRUE | BK161: TRUE | BL161: TRUE | BM161: TRUE | BN161: TRUE | BO161: TRUE | BP161: TRUE
A162: 153 | B162: LEOMINSTER | C162: 126 | D162: 0 | E162: 385 | F162: 2194 | G162: 1407 | H162: 1272 | I162: 699 | J162: 239 | K162: 53 | L162: 505 | M162: 152 | N162: 173 | O162: 3716 | P162: 6020 | AA162: 153 | AB162: LEOMINSTER | AC162: 126 | AD162: 0 | AE162: 385 | AF162: 2194 | AG162: 1407 | AH162: 1272 | AL162: 699 | AM162: 239 | AN162: 53 | AO162: 505 | AP162: 152 | AQ162: 173 | AU162: 3716 | AW162: 6020 | AX162: 1 | BA162: TRUE | BB162: TRUE | BC162: TRUE | BD162: TRUE | BE162: TRUE | BF162: TRUE | BG162: TRUE | BH162: TRUE | BI162: TRUE | BJ162: TRUE | BK162: TRUE | BL162: TRUE | BM162: TRUE | BN162: TRUE | BO162: TRUE | BP162: TRUE
A163: 154 | B163: LEVERETT | C163: 6 | D163: 0 | E163: 13 | F163: 70 | G163: 15 | H163: 0 | I163: 0 | J163: 4 | K163: 1 | L163: 0 | M163: 0 | N163: 0 | O163: 31 | P163: 101 | AA163: 154 | AB163: LEVERETT | AC163: 6 | AD163: 0 | AE163: 13 | AF163: 70 | AG163: 15 | AH163: 0 | AL163: 0 | AM163: 4 | AN163: 1 | AO163: 0 | AP163: 0 | AQ163: 0 | AU163: 31 | AW163: 101 | AX163: 1 | BA163: TRUE | BB163: TRUE | BC163: TRUE | BD163: TRUE | BE163: TRUE | BF163: TRUE | BG163: TRUE | BH163: TRUE | BI163: TRUE | BJ163: TRUE | BK163: TRUE | BL163: TRUE | BM163: TRUE | BN163: TRUE | BO163: TRUE | BP163: TRUE
A164: 155 | B164: LEXINGTON | C164: 36 | D164: 0 | E164: 347 | F164: 2369 | G164: 1784 | H164: 2375 | I164: 0 | J164: 268 | K164: 69 | L164: 408 | M164: 90 | N164: 70 | O164: 643 | P164: 6893 | AA164: 155 | AB164: LEXINGTON | AC164: 36 | AD164: 0 | AE164: 347 | AF164: 2369 | AG164: 1784 | AH164: 2375 | AL164: 0 | AM164: 268 | AN164: 69 | AO164: 408 | AP164: 90 | AQ164: 70 | AU164: 643 | AW164: 6893 | AX164: 1.108 | BA164: TRUE | BB164: TRUE | BC164: TRUE | BD164: TRUE | BE164: TRUE | BF164: TRUE | BG164: TRUE | BH164: TRUE | BI164: TRUE | BJ164: TRUE | BK164: TRUE | BL164: TRUE | BM164: TRUE | BN164: TRUE | BO164: TRUE | BP164: TRUE
A165: 156 | B165: LEYDEN | C165: 0 | D165: 0 | E165: 0 | F165: 0 | G165: 0 | H165: 0 | I165: 0 | J165: 0 | K165: 0 | L165: 0 | M165: 0 | N165: 0 | O165: 0 | P165: 0 | AA165: 156 | AB165: LEYDEN | AC165: 0 | AD165: 0 | AE165: 0 | AF165: 0 | AG165: 0 | AH165: 0 | AL165: 0 | AM165: 0 | AN165: 0 | AO165: 0 | AP165: 0 | AQ165: 0 | AU165: 0 | AW165: 0 | AX165: 1 | BA165: TRUE | BB165: TRUE | BC165: TRUE | BD165: TRUE | BE165: TRUE | BF165: TRUE | BG165: TRUE | BH165: TRUE | BI165: TRUE | BJ165: TRUE | BK165: TRUE | BL165: TRUE | BM165: TRUE | BN165: TRUE | BO165: TRUE | BP165: TRUE
A166: 157 | B166: LINCOLN | C166: 19 | D166: 0 | E166: 48 | F166: 337 | G166: 190 | H166: 0 | I166: 1 | J166: 22 | K166: 6 | L166: 26 | M166: 4 | N166: 0 | O166: 129 | P166: 586 | AA166: 157 | AB166: LINCOLN | AC166: 19 | AD166: 0 | AE166: 48 | AF166: 337 | AG166: 190 | AH166: 0 | AL166: 1 | AM166: 22 | AN166: 6 | AO166: 26 | AP166: 4 | AQ166: 0 | AU166: 129 | AW166: 586 | AX166: 1.052 | BA166: TRUE | BB166: TRUE | BC166: TRUE | BD166: TRUE | BE166: TRUE | BF166: TRUE | BG166: TRUE | BH166: TRUE | BI166: TRUE | BJ166: TRUE | BK166: TRUE | BL166: TRUE | BM166: TRUE | BN166: TRUE | BO166: TRUE | BP166: TRUE
A167: 158 | B167: LITTLETON | C167: 59 | D167: 0 | E167: 127 | F167: 615 | G167: 387 | H167: 506 | I167: 0 | J167: 64 | K167: 16 | L167: 32 | M167: 3 | N167: 4 | O167: 213 | P167: 1665 | AA167: 158 | AB167: LITTLETON | AC167: 59 | AD167: 0 | AE167: 127 | AF167: 615 | AG167: 387 | AH167: 506 | AL167: 0 | AM167: 64 | AN167: 16 | AO167: 32 | AP167: 3 | AQ167: 4 | AU167: 213 | AW167: 1665 | AX167: 1 | BA167: TRUE | BB167: TRUE | BC167: TRUE | BD167: TRUE | BE167: TRUE | BF167: TRUE | BG167: TRUE | BH167: TRUE | BI167: TRUE | BJ167: TRUE | BK167: TRUE | BL167: TRUE | BM167: TRUE | BN167: TRUE | BO167: TRUE | BP167: TRUE
A168: 159 | B168: LONGMEADOW | C168: 29 | D168: 0 | E168: 190 | F168: 989 | G168: 612 | H168: 899 | I168: 20 | J168: 106 | K168: 27 | L168: 15 | M168: 5 | N168: 3 | O168: 382 | P168: 2725 | AA168: 159 | AB168: LONGMEADOW | AC168: 29 | AD168: 0 | AE168: 190 | AF168: 989 | AG168: 612 | AH168: 899 | AL168: 20 | AM168: 106 | AN168: 27 | AO168: 15 | AP168: 5 | AQ168: 3 | AU168: 382 | AW168: 2725 | AX168: 1 | BA168: TRUE | BB168: TRUE | BC168: TRUE | BD168: TRUE | BE168: TRUE | BF168: TRUE | BG168: TRUE | BH168: TRUE | BI168: TRUE | BJ168: TRUE | BK168: TRUE | BL168: TRUE | BM168: TRUE | BN168: TRUE | BO168: TRUE | BP168: TRUE
A169: 160 | B169: LOWELL | C169: 631 | D169: 0 | E169: 1236 | F169: 6690 | G169: 4173 | H169: 3551 | I169: 357 | J169: 627 | K169: 157 | L169: 2824 | M169: 994 | N169: 890 | O169: 12584 | P169: 16323 | AA169: 160 | AB169: LOWELL | AC169: 631 | AD169: 0 | AE169: 1236 | AF169: 6690 | AG169: 4173 | AH169: 3551 | AL169: 357 | AM169: 627 | AN169: 157 | AO169: 2824 | AP169: 994 | AQ169: 890 | AU169: 12584 | AW169: 16323 | AX169: 1 | BA169: TRUE | BB169: TRUE | BC169: TRUE | BD169: TRUE | BE169: TRUE | BF169: TRUE | BG169: TRUE | BH169: TRUE | BI169: TRUE | BJ169: TRUE | BK169: TRUE | BL169: TRUE | BM169: TRUE | BN169: TRUE | BO169: TRUE | BP169: TRUE
A170: 161 | B170: LUDLOW | C170: 39 | D170: 0 | E170: 109 | F170: 795 | G170: 494 | H170: 732 | I170: 98 | J170: 88 | K170: 21 | L170: 94 | M170: 24 | N170: 22 | O170: 983 | P170: 2248 | AA170: 161 | AB170: LUDLOW | AC170: 39 | AD170: 0 | AE170: 109 | AF170: 795 | AG170: 494 | AH170: 732 | AL170: 98 | AM170: 88 | AN170: 21 | AO170: 94 | AP170: 24 | AQ170: 22 | AU170: 983 | AW170: 2248 | AX170: 1 | BA170: TRUE | BB170: TRUE | BC170: TRUE | BD170: TRUE | BE170: TRUE | BF170: TRUE | BG170: TRUE | BH170: TRUE | BI170: TRUE | BJ170: TRUE | BK170: TRUE | BL170: TRUE | BM170: TRUE | BN170: TRUE | BO170: TRUE | BP170: TRUE
A171: 162 | B171: LUNENBURG | C171: 44 | D171: 0 | E171: 108 | F171: 607 | G171: 397 | H171: 480 | I171: 1 | J171: 62 | K171: 16 | L171: 26 | M171: 4 | N171: 4 | O171: 451 | P171: 1615 | AA171: 162 | AB171: LUNENBURG | AC171: 44 | AD171: 0 | AE171: 108 | AF171: 607 | AG171: 397 | AH171: 480 | AL171: 1 | AM171: 62 | AN171: 16 | AO171: 26 | AP171: 4 | AQ171: 4 | AU171: 451 | AW171: 1615 | AX171: 1 | BA171: TRUE | BB171: TRUE | BC171: TRUE | BD171: TRUE | BE171: TRUE | BF171: TRUE | BG171: TRUE | BH171: TRUE | BI171: TRUE | BJ171: TRUE | BK171: TRUE | BL171: TRUE | BM171: TRUE | BN171: TRUE | BO171: TRUE | BP171: TRUE
A172: 163 | B172: LYNN | C172: 250 | D172: 0 | E172: 1218 | F172: 6478 | G172: 3862 | H172: 5027 | I172: 1185 | J172: 705 | K172: 166 | L172: 4096 | M172: 860 | N172: 1633 | O172: 14005 | P172: 17895 | AA172: 163 | AB172: LYNN | AC172: 250 | AD172: 0 | AE172: 1218 | AF172: 6478 | AG172: 3862 | AH172: 5027 | AL172: 1185 | AM172: 705 | AN172: 166 | AO172: 4096 | AP172: 860 | AQ172: 1633 | AU172: 14005 | AW172: 17895 | AX172: 1 | BA172: TRUE | BB172: TRUE | BC172: TRUE | BD172: TRUE | BE172: TRUE | BF172: TRUE | BG172: TRUE | BH172: TRUE | BI172: TRUE | BJ172: TRUE | BK172: TRUE | BL172: TRUE | BM172: TRUE | BN172: TRUE | BO172: TRUE | BP172: TRUE
A173: 164 | B173: LYNNFIELD | C173: 16 | D173: 0 | E173: 169 | F173: 905 | G173: 536 | H173: 589 | I173: 0 | J173: 86 | K173: 22 | L173: 26 | M173: 6 | N173: 12 | O173: 277 | P173: 2207 | AA173: 164 | AB173: LYNNFIELD | AC173: 16 | AD173: 0 | AE173: 169 | AF173: 905 | AG173: 536 | AH173: 589 | AL173: 0 | AM173: 86 | AN173: 22 | AO173: 26 | AP173: 6 | AQ173: 12 | AU173: 277 | AW173: 2207 | AX173: 1.047 | BA173: TRUE | BB173: TRUE | BC173: TRUE | BD173: TRUE | BE173: TRUE | BF173: TRUE | BG173: TRUE | BH173: TRUE | BI173: TRUE | BJ173: TRUE | BK173: TRUE | BL173: TRUE | BM173: TRUE | BN173: TRUE | BO173: TRUE | BP173: TRUE
A174: 165 | B174: MALDEN | C174: 243 | D174: 0 | E174: 460 | F174: 2541 | G174: 1667 | H174: 2139 | I174: 11 | J174: 266 | K174: 68 | L174: 918 | M174: 253 | N174: 305 | O174: 4639 | P174: 6940 | AA174: 165 | AB174: MALDEN | AC174: 243 | AD174: 0 | AE174: 460 | AF174: 2541 | AG174: 1667 | AH174: 2139 | AL174: 11 | AM174: 266 | AN174: 68 | AO174: 918 | AP174: 253 | AQ174: 305 | AU174: 4639 | AW174: 6940 | AX174: 1.039 | BA174: TRUE | BB174: TRUE | BC174: TRUE | BD174: TRUE | BE174: TRUE | BF174: TRUE | BG174: TRUE | BH174: TRUE | BI174: TRUE | BJ174: TRUE | BK174: TRUE | BL174: TRUE | BM174: TRUE | BN174: TRUE | BO174: TRUE | BP174: TRUE
A175: 166 | B175: MANCHESTER | C175: 0 | D175: 0 | E175: 0 | F175: 0 | G175: 0 | H175: 0 | I175: 0 | J175: 0 | K175: 0 | L175: 0 | M175: 0 | N175: 0 | O175: 0 | P175: 0 | AA175: 166 | AB175: MANCHESTER | AC175: 0 | AD175: 0 | AE175: 0 | AF175: 0 | AG175: 0 | AH175: 0 | AL175: 0 | AM175: 0 | AN175: 0 | AO175: 0 | AP175: 0 | AQ175: 0 | AU175: 0 | AW175: 0 | AX175: 1.043 | BA175: TRUE | BB175: TRUE | BC175: TRUE | BD175: TRUE | BE175: TRUE | BF175: TRUE | BG175: TRUE | BH175: TRUE | BI175: TRUE | BJ175: TRUE | BK175: TRUE | BL175: TRUE | BM175: TRUE | BN175: TRUE | BO175: TRUE | BP175: TRUE
A176: 167 | B176: MANSFIELD | C176: 93 | D176: 0 | E176: 239 | F176: 1262 | G176: 815 | H176: 1122 | I176: 0 | J176: 134 | K176: 34 | L176: 54 | M176: 11 | N176: 9 | O176: 829 | P176: 3485 | AA176: 167 | AB176: MANSFIELD | AC176: 93 | AD176: 0 | AE176: 239 | AF176: 1262 | AG176: 815 | AH176: 1122 | AL176: 0 | AM176: 134 | AN176: 34 | AO176: 54 | AP176: 11 | AQ176: 9 | AU176: 829 | AW176: 3485 | AX176: 1.061 | BA176: TRUE | BB176: TRUE | BC176: TRUE | BD176: TRUE | BE176: TRUE | BF176: TRUE | BG176: TRUE | BH176: TRUE | BI176: TRUE | BJ176: TRUE | BK176: TRUE | BL176: TRUE | BM176: TRUE | BN176: TRUE | BO176: TRUE | BP176: TRUE
A177: 168 | B177: MARBLEHEAD | C177: 67 | D177: 161 | E177: 11 | F177: 927 | G177: 693 | H177: 903 | I177: 9 | J177: 102 | K177: 26 | L177: 67 | M177: 31 | N177: 27 | O177: 405 | P177: 2658 | AA177: 168 | AB177: MARBLEHEAD | AC177: 67 | AD177: 161 | AE177: 11 | AF177: 927 | AG177: 693 | AH177: 903 | AL177: 9 | AM177: 102 | AN177: 26 | AO177: 67 | AP177: 31 | AQ177: 27 | AU177: 405 | AW177: 2658 | AX177: 1 | BA177: TRUE | BB177: TRUE | BC177: TRUE | BD177: TRUE | BE177: TRUE | BF177: TRUE | BG177: TRUE | BH177: TRUE | BI177: TRUE | BJ177: TRUE | BK177: TRUE | BL177: TRUE | BM177: TRUE | BN177: TRUE | BO177: TRUE | BP177: TRUE
A178: 169 | B178: MARION | C178: 24 | D178: 0 | E178: 47 | F178: 275 | G178: 64 | H178: 3 | I178: 0 | J178: 15 | K178: 4 | L178: 4 | M178: 1 | N178: 0 | O178: 127 | P178: 401 | AA178: 169 | AB178: MARION | AC178: 24 | AD178: 0 | AE178: 47 | AF178: 275 | AG178: 64 | AH178: 3 | AL178: 0 | AM178: 15 | AN178: 4 | AO178: 4 | AP178: 1 | AQ178: 0 | AU178: 127 | AW178: 401 | AX178: 1 | BA178: TRUE | BB178: TRUE | BC178: TRUE | BD178: TRUE | BE178: TRUE | BF178: TRUE | BG178: TRUE | BH178: TRUE | BI178: TRUE | BJ178: TRUE | BK178: TRUE | BL178: TRUE | BM178: TRUE | BN178: TRUE | BO178: TRUE | BP178: TRUE
A179: 170 | B179: MARLBOROUGH | C179: 190 | D179: 0 | E179: 395 | F179: 2117 | G179: 1302 | H179: 1460 | I179: 1 | J179: 206 | K179: 53 | L179: 936 | M179: 240 | N179: 286 | O179: 3153 | P179: 5370 | AA179: 170 | AB179: MARLBOROUGH | AC179: 190 | AD179: 0 | AE179: 395 | AF179: 2117 | AG179: 1302 | AH179: 1460 | AL179: 1 | AM179: 206 | AN179: 53 | AO179: 936 | AP179: 240 | AQ179: 286 | AU179: 3153 | AW179: 5370 | AX179: 1.019 | BA179: TRUE | BB179: TRUE | BC179: TRUE | BD179: TRUE | BE179: TRUE | BF179: TRUE | BG179: TRUE | BH179: TRUE | BI179: TRUE | BJ179: TRUE | BK179: TRUE | BL179: TRUE | BM179: TRUE | BN179: TRUE | BO179: TRUE | BP179: TRUE
A180: 171 | B180: MARSHFIELD | C180: 147 | D180: 0 | E180: 262 | F180: 1297 | G180: 885 | H180: 1062 | I180: 203 | J180: 147 | K180: 35 | L180: 62 | M180: 17 | N180: 10 | O180: 820 | P180: 3783 | AA180: 171 | AB180: MARSHFIELD | AC180: 147 | AD180: 0 | AE180: 262 | AF180: 1297 | AG180: 885 | AH180: 1062 | AL180: 203 | AM180: 147 | AN180: 35 | AO180: 62 | AP180: 17 | AQ180: 10 | AU180: 820 | AW180: 3783 | AX180: 1.039 | BA180: TRUE | BB180: TRUE | BC180: TRUE | BD180: TRUE | BE180: TRUE | BF180: TRUE | BG180: TRUE | BH180: TRUE | BI180: TRUE | BJ180: TRUE | BK180: TRUE | BL180: TRUE | BM180: TRUE | BN180: TRUE | BO180: TRUE | BP180: TRUE
A181: 172 | B181: MASHPEE | C181: 82 | D181: 0 | E181: 102 | F181: 488 | G181: 337 | H181: 454 | I181: 0 | J181: 54 | K181: 14 | L181: 56 | M181: 16 | N181: 3 | O181: 686 | P181: 1422 | AA181: 172 | AB181: MASHPEE | AC181: 82 | AD181: 0 | AE181: 102 | AF181: 488 | AG181: 337 | AH181: 454 | AL181: 0 | AM181: 54 | AN181: 14 | AO181: 56 | AP181: 16 | AQ181: 3 | AU181: 686 | AW181: 1422 | AX181: 1 | BA181: TRUE | BB181: TRUE | BC181: TRUE | BD181: TRUE | BE181: TRUE | BF181: TRUE | BG181: TRUE | BH181: TRUE | BI181: TRUE | BJ181: TRUE | BK181: TRUE | BL181: TRUE | BM181: TRUE | BN181: TRUE | BO181: TRUE | BP181: TRUE
A182: 173 | B182: MATTAPOISETT | C182: 25 | D182: 0 | E182: 52 | F182: 279 | G182: 64 | H182: 4 | I182: 2 | J182: 16 | K182: 4 | L182: 1 | M182: 0 | N182: 0 | O182: 109 | P182: 414 | AA182: 173 | AB182: MATTAPOISETT | AC182: 25 | AD182: 0 | AE182: 52 | AF182: 279 | AG182: 64 | AH182: 4 | AL182: 2 | AM182: 16 | AN182: 4 | AO182: 1 | AP182: 0 | AQ182: 0 | AU182: 109 | AW182: 414 | AX182: 1 | BA182: TRUE | BB182: TRUE | BC182: TRUE | BD182: TRUE | BE182: TRUE | BF182: TRUE | BG182: TRUE | BH182: TRUE | BI182: TRUE | BJ182: TRUE | BK182: TRUE | BL182: TRUE | BM182: TRUE | BN182: TRUE | BO182: TRUE | BP182: TRUE
A183: 174 | B183: MAYNARD | C183: 24 | D183: 0 | E183: 91 | F183: 474 | G183: 300 | H183: 300 | I183: 63 | J183: 48 | K183: 12 | L183: 53 | M183: 13 | N183: 18 | O183: 373 | P183: 1240 | AA183: 174 | AB183: MAYNARD | AC183: 24 | AD183: 0 | AE183: 91 | AF183: 474 | AG183: 300 | AH183: 300 | AL183: 63 | AM183: 48 | AN183: 12 | AO183: 53 | AP183: 13 | AQ183: 18 | AU183: 373 | AW183: 1240 | AX183: 1.085 | BA183: TRUE | BB183: TRUE | BC183: TRUE | BD183: TRUE | BE183: TRUE | BF183: TRUE | BG183: TRUE | BH183: TRUE | BI183: TRUE | BJ183: TRUE | BK183: TRUE | BL183: TRUE | BM183: TRUE | BN183: TRUE | BO183: TRUE | BP183: TRUE
A184: 175 | B184: MEDFIELD | C184: 28 | D184: 161 | E184: 8 | F184: 979 | G184: 589 | H184: 756 | I184: 0 | J184: 94 | K184: 24 | L184: 17 | M184: 8 | N184: 3 | O184: 238 | P184: 2427 | AA184: 175 | AB184: MEDFIELD | AC184: 28 | AD184: 161 | AE184: 8 | AF184: 979 | AG184: 589 | AH184: 756 | AL184: 0 | AM184: 94 | AN184: 24 | AO184: 17 | AP184: 8 | AQ184: 3 | AU184: 238 | AW184: 2427 | AX184: 1.04 | BA184: TRUE | BB184: TRUE | BC184: TRUE | BD184: TRUE | BE184: TRUE | BF184: TRUE | BG184: TRUE | BH184: TRUE | BI184: TRUE | BJ184: TRUE | BK184: TRUE | BL184: TRUE | BM184: TRUE | BN184: TRUE | BO184: TRUE | BP184: TRUE
A185: 176 | B185: MEDFORD | C185: 107 | D185: 0 | E185: 325 | F185: 1783 | G185: 1017 | H185: 718 | I185: 662 | J185: 182 | K185: 38 | L185: 331 | M185: 93 | N185: 135 | O185: 2008 | P185: 4559 | AA185: 176 | AB185: MEDFORD | AC185: 107 | AD185: 0 | AE185: 325 | AF185: 1783 | AG185: 1017 | AH185: 718 | AL185: 662 | AM185: 182 | AN185: 38 | AO185: 331 | AP185: 93 | AQ185: 135 | AU185: 2008 | AW185: 4559 | AX185: 1.052 | BA185: TRUE | BB185: TRUE | BC185: TRUE | BD185: TRUE | BE185: TRUE | BF185: TRUE | BG185: TRUE | BH185: TRUE | BI185: TRUE | BJ185: TRUE | BK185: TRUE | BL185: TRUE | BM185: TRUE | BN185: TRUE | BO185: TRUE | BP185: TRUE
A186: 177 | B186: MEDWAY | C186: 47 | D186: 1 | E186: 160 | F186: 820 | G186: 493 | H186: 622 | I186: 0 | J186: 82 | K186: 21 | L186: 61 | M186: 13 | N186: 9 | O186: 358 | P186: 2120 | AA186: 177 | AB186: MEDWAY | AC186: 47 | AD186: 1 | AE186: 160 | AF186: 820 | AG186: 493 | AH186: 622 | AL186: 0 | AM186: 82 | AN186: 21 | AO186: 61 | AP186: 13 | AQ186: 9 | AU186: 358 | AW186: 2120 | AX186: 1.043 | BA186: TRUE | BB186: TRUE | BC186: TRUE | BD186: TRUE | BE186: TRUE | BF186: TRUE | BG186: TRUE | BH186: TRUE | BI186: TRUE | BJ186: TRUE | BK186: TRUE | BL186: TRUE | BM186: TRUE | BN186: TRUE | BO186: TRUE | BP186: TRUE
A187: 178 | B187: MELROSE | C187: 241 | D187: 0 | E187: 302 | F187: 1685 | G187: 936 | H187: 1009 | I187: 9 | J187: 153 | K187: 39 | L187: 144 | M187: 28 | N187: 24 | O187: 724 | P187: 4062 | AA187: 178 | AB187: MELROSE | AC187: 241 | AD187: 0 | AE187: 302 | AF187: 1685 | AG187: 936 | AH187: 1009 | AL187: 9 | AM187: 153 | AN187: 39 | AO187: 144 | AP187: 28 | AQ187: 24 | AU187: 724 | AW187: 4062 | AX187: 1.038 | BA187: TRUE | BB187: TRUE | BC187: TRUE | BD187: TRUE | BE187: TRUE | BF187: TRUE | BG187: TRUE | BH187: TRUE | BI187: TRUE | BJ187: TRUE | BK187: TRUE | BL187: TRUE | BM187: TRUE | BN187: TRUE | BO187: TRUE | BP187: TRUE
A188: 179 | B188: MENDON | C188: 0 | D188: 0 | E188: 0 | F188: 0 | G188: 0 | H188: 0 | I188: 10 | J188: 0 | K188: 0 | L188: 0 | M188: 0 | N188: 0 | O188: 0 | P188: 10 | AA188: 179 | AB188: MENDON | AC188: 0 | AD188: 0 | AE188: 0 | AF188: 0 | AG188: 0 | AH188: 0 | AL188: 10 | AM188: 0 | AN188: 0 | AO188: 0 | AP188: 0 | AQ188: 0 | AU188: 0 | AW188: 10 | AX188: 1 | BA188: TRUE | BB188: TRUE | BC188: TRUE | BD188: TRUE | BE188: TRUE | BF188: TRUE | BG188: TRUE | BH188: TRUE | BI188: TRUE | BJ188: TRUE | BK188: TRUE | BL188: TRUE | BM188: TRUE | BN188: TRUE | BO188: TRUE | BP188: TRUE
A189: 180 | B189: MERRIMAC | C189: 0 | D189: 0 | E189: 0 | F189: 0 | G189: 0 | H189: 0 | I189: 10 | J189: 0 | K189: 0 | L189: 0 | M189: 0 | N189: 0 | O189: 0 | P189: 10 | AA189: 180 | AB189: MERRIMAC | AC189: 0 | AD189: 0 | AE189: 0 | AF189: 0 | AG189: 0 | AH189: 0 | AL189: 10 | AM189: 0 | AN189: 0 | AO189: 0 | AP189: 0 | AQ189: 0 | AU189: 0 | AW189: 10 | AX189: 1 | BA189: TRUE | BB189: TRUE | BC189: TRUE | BD189: TRUE | BE189: TRUE | BF189: TRUE | BG189: TRUE | BH189: TRUE | BI189: TRUE | BJ189: TRUE | BK189: TRUE | BL189: TRUE | BM189: TRUE | BN189: TRUE | BO189: TRUE | BP189: TRUE
A190: 181 | B190: METHUEN | C190: 141 | D190: 0 | E190: 433 | F190: 2550 | G190: 1660 | H190: 1508 | I190: 553 | J190: 267 | K190: 62 | L190: 685 | M190: 170 | N190: 236 | O190: 3923 | P190: 6775 | AA190: 181 | AB190: METHUEN | AC190: 141 | AD190: 0 | AE190: 433 | AF190: 2550 | AG190: 1660 | AH190: 1508 | AL190: 553 | AM190: 267 | AN190: 62 | AO190: 685 | AP190: 170 | AQ190: 236 | AU190: 3923 | AW190: 6775 | AX190: 1 | BA190: TRUE | BB190: TRUE | BC190: TRUE | BD190: TRUE | BE190: TRUE | BF190: TRUE | BG190: TRUE | BH190: TRUE | BI190: TRUE | BJ190: TRUE | BK190: TRUE | BL190: TRUE | BM190: TRUE | BN190: TRUE | BO190: TRUE | BP190: TRUE
A191: 182 | B191: MIDDLEBOROUGH | C191: 56 | D191: 0 | E191: 233 | F191: 1214 | G191: 732 | H191: 906 | I191: 24 | J191: 121 | K191: 31 | L191: 42 | M191: 9 | N191: 20 | O191: 1392 | P191: 3137 | AA191: 182 | AB191: MIDDLEBOROUGH | AC191: 56 | AD191: 0 | AE191: 233 | AF191: 1214 | AG191: 732 | AH191: 906 | AL191: 24 | AM191: 121 | AN191: 31 | AO191: 42 | AP191: 9 | AQ191: 20 | AU191: 1392 | AW191: 3137 | AX191: 1 | BA191: TRUE | BB191: TRUE | BC191: TRUE | BD191: TRUE | BE191: TRUE | BF191: TRUE | BG191: TRUE | BH191: TRUE | BI191: TRUE | BJ191: TRUE | BK191: TRUE | BL191: TRUE | BM191: TRUE | BN191: TRUE | BO191: TRUE | BP191: TRUE
A192: 183 | B192: MIDDLEFIELD | C192: 0 | D192: 0 | E192: 0 | F192: 0 | G192: 0 | H192: 0 | I192: 3 | J192: 0 | K192: 0 | L192: 0 | M192: 0 | N192: 0 | O192: 0 | P192: 3 | AA192: 183 | AB192: MIDDLEFIELD | AC192: 0 | AD192: 0 | AE192: 0 | AF192: 0 | AG192: 0 | AH192: 0 | AL192: 3 | AM192: 0 | AN192: 0 | AO192: 0 | AP192: 0 | AQ192: 0 | AU192: 0 | AW192: 3 | AX192: 1 | BA192: TRUE | BB192: TRUE | BC192: TRUE | BD192: TRUE | BE192: TRUE | BF192: TRUE | BG192: TRUE | BH192: TRUE | BI192: TRUE | BJ192: TRUE | BK192: TRUE | BL192: TRUE | BM192: TRUE | BN192: TRUE | BO192: TRUE | BP192: TRUE
A193: 184 | B193: MIDDLETON | C193: 54 | D193: 0 | E193: 106 | F193: 482 | G193: 88 | H193: 0 | I193: 0 | J193: 26 | K193: 7 | L193: 27 | M193: 0 | N193: 0 | O193: 104 | P193: 703 | AA193: 184 | AB193: MIDDLETON | AC193: 54 | AD193: 0 | AE193: 106 | AF193: 482 | AG193: 88 | AH193: 0 | AL193: 0 | AM193: 26 | AN193: 7 | AO193: 27 | AP193: 0 | AQ193: 0 | AU193: 104 | AW193: 703 | AX193: 1.048 | BA193: TRUE | BB193: TRUE | BC193: TRUE | BD193: TRUE | BE193: TRUE | BF193: TRUE | BG193: TRUE | BH193: TRUE | BI193: TRUE | BJ193: TRUE | BK193: TRUE | BL193: TRUE | BM193: TRUE | BN193: TRUE | BO193: TRUE | BP193: TRUE
A194: 185 | B194: MILFORD | C194: 79 | D194: 1 | E194: 366 | F194: 1749 | G194: 1116 | H194: 1420 | I194: 12 | J194: 182 | K194: 47 | L194: 895 | M194: 221 | N194: 273 | O194: 2689 | P194: 4704 | AA194: 185 | AB194: MILFORD | AC194: 79 | AD194: 1 | AE194: 366 | AF194: 1749 | AG194: 1116 | AH194: 1420 | AL194: 12 | AM194: 182 | AN194: 47 | AO194: 895 | AP194: 221 | AQ194: 273 | AU194: 2689 | AW194: 4704 | AX194: 1 | BA194: TRUE | BB194: TRUE | BC194: TRUE | BD194: TRUE | BE194: TRUE | BF194: TRUE | BG194: TRUE | BH194: TRUE | BI194: TRUE | BJ194: TRUE | BK194: TRUE | BL194: TRUE | BM194: TRUE | BN194: TRUE | BO194: TRUE | BP194: TRUE
A195: 186 | B195: MILLBURY | C195: 67 | D195: 0 | E195: 125 | F195: 609 | G195: 378 | H195: 489 | I195: 3 | J195: 62 | K195: 16 | L195: 43 | M195: 17 | N195: 19 | O195: 639 | P195: 1638 | AA195: 186 | AB195: MILLBURY | AC195: 67 | AD195: 0 | AE195: 125 | AF195: 609 | AG195: 378 | AH195: 489 | AL195: 3 | AM195: 62 | AN195: 16 | AO195: 43 | AP195: 17 | AQ195: 19 | AU195: 639 | AW195: 1638 | AX195: 1 | BA195: TRUE | BB195: TRUE | BC195: TRUE | BD195: TRUE | BE195: TRUE | BF195: TRUE | BG195: TRUE | BH195: TRUE | BI195: TRUE | BJ195: TRUE | BK195: TRUE | BL195: TRUE | BM195: TRUE | BN195: TRUE | BO195: TRUE | BP195: TRUE
A196: 187 | B196: MILLIS | C196: 23 | D196: 83 | E196: 3 | F196: 439 | G196: 273 | H196: 320 | I196: 0 | J196: 42 | K196: 11 | L196: 27 | M196: 4 | N196: 1 | O196: 248 | P196: 1089 | AA196: 187 | AB196: MILLIS | AC196: 23 | AD196: 83 | AE196: 3 | AF196: 439 | AG196: 273 | AH196: 320 | AL196: 0 | AM196: 42 | AN196: 11 | AO196: 27 | AP196: 4 | AQ196: 1 | AU196: 248 | AW196: 1089 | AX196: 1.038 | BA196: TRUE | BB196: TRUE | BC196: TRUE | BD196: TRUE | BE196: TRUE | BF196: TRUE | BG196: TRUE | BH196: TRUE | BI196: TRUE | BJ196: TRUE | BK196: TRUE | BL196: TRUE | BM196: TRUE | BN196: TRUE | BO196: TRUE | BP196: TRUE
A197: 188 | B197: MILLVILLE | C197: 0 | D197: 0 | E197: 0 | F197: 0 | G197: 0 | H197: 0 | I197: 6 | J197: 0 | K197: 0 | L197: 0 | M197: 0 | N197: 0 | O197: 0 | P197: 6 | AA197: 188 | AB197: MILLVILLE | AC197: 0 | AD197: 0 | AE197: 0 | AF197: 0 | AG197: 0 | AH197: 0 | AL197: 6 | AM197: 0 | AN197: 0 | AO197: 0 | AP197: 0 | AQ197: 0 | AU197: 0 | AW197: 6 | AX197: 1 | BA197: TRUE | BB197: TRUE | BC197: TRUE | BD197: TRUE | BE197: TRUE | BF197: TRUE | BG197: TRUE | BH197: TRUE | BI197: TRUE | BJ197: TRUE | BK197: TRUE | BL197: TRUE | BM197: TRUE | BN197: TRUE | BO197: TRUE | BP197: TRUE
A198: 189 | B198: MILTON | C198: 60 | D198: 0 | E198: 344 | F198: 1844 | G198: 971 | H198: 1105 | I198: 0 | J198: 166 | K198: 43 | L198: 77 | M198: 15 | N198: 23 | O198: 682 | P198: 4294 | AA198: 189 | AB198: MILTON | AC198: 60 | AD198: 0 | AE198: 344 | AF198: 1844 | AG198: 971 | AH198: 1105 | AL198: 0 | AM198: 166 | AN198: 43 | AO198: 77 | AP198: 15 | AQ198: 23 | AU198: 682 | AW198: 4294 | AX198: 1.044 | BA198: TRUE | BB198: TRUE | BC198: TRUE | BD198: TRUE | BE198: TRUE | BF198: TRUE | BG198: TRUE | BH198: TRUE | BI198: TRUE | BJ198: TRUE | BK198: TRUE | BL198: TRUE | BM198: TRUE | BN198: TRUE | BO198: TRUE | BP198: TRUE
A199: 190 | B199: MONROE | C199: 0 | D199: 0 | E199: 1 | F199: 10 | G199: 5 | H199: 2 | I199: 0 | J199: 1 | K199: 0 | L199: 0 | M199: 0 | N199: 0 | O199: 0 | P199: 18 | AA199: 190 | AB199: MONROE | AC199: 0 | AD199: 0 | AE199: 1 | AF199: 10 | AG199: 5 | AH199: 2 | AL199: 0 | AM199: 1 | AN199: 0 | AO199: 0 | AP199: 0 | AQ199: 0 | AU199: 0 | AW199: 18 | AX199: 1 | BA199: TRUE | BB199: TRUE | BC199: TRUE | BD199: TRUE | BE199: TRUE | BF199: TRUE | BG199: TRUE | BH199: TRUE | BI199: TRUE | BJ199: TRUE | BK199: TRUE | BL199: TRUE | BM199: TRUE | BN199: TRUE | BO199: TRUE | BP199: TRUE
A200: 191 | B200: MONSON | C200: 72 | D200: 0 | E200: 58 | F200: 336 | G200: 209 | H200: 171 | I200: 0 | J200: 30 | K200: 8 | L200: 1 | M200: 0 | N200: 2 | O200: 384 | P200: 810 | AA200: 191 | AB200: MONSON | AC200: 72 | AD200: 0 | AE200: 58 | AF200: 336 | AG200: 209 | AH200: 171 | AL200: 0 | AM200: 30 | AN200: 8 | AO200: 1 | AP200: 0 | AQ200: 2 | AU200: 384 | AW200: 810 | AX200: 1 | BA200: TRUE | BB200: TRUE | BC200: TRUE | BD200: TRUE | BE200: TRUE | BF200: TRUE | BG200: TRUE | BH200: TRUE | BI200: TRUE | BJ200: TRUE | BK200: TRUE | BL200: TRUE | BM200: TRUE | BN200: TRUE | BO200: TRUE | BP200: TRUE
A201: 192 | B201: MONTAGUE | C201: 0 | D201: 0 | E201: 0 | F201: 0 | G201: 0 | H201: 0 | I201: 1 | J201: 0 | K201: 0 | L201: 0 | M201: 0 | N201: 0 | O201: 0 | P201: 1 | AA201: 192 | AB201: MONTAGUE | AC201: 0 | AD201: 0 | AE201: 0 | AF201: 0 | AG201: 0 | AH201: 0 | AL201: 1 | AM201: 0 | AN201: 0 | AO201: 0 | AP201: 0 | AQ201: 0 | AU201: 0 | AW201: 1 | AX201: 1 | BA201: TRUE | BB201: TRUE | BC201: TRUE | BD201: TRUE | BE201: TRUE | BF201: TRUE | BG201: TRUE | BH201: TRUE | BI201: TRUE | BJ201: TRUE | BK201: TRUE | BL201: TRUE | BM201: TRUE | BN201: TRUE | BO201: TRUE | BP201: TRUE
A202: 193 | B202: MONTEREY | C202: 0 | D202: 0 | E202: 0 | F202: 0 | G202: 0 | H202: 0 | I202: 0 | J202: 0 | K202: 0 | L202: 0 | M202: 0 | N202: 0 | O202: 0 | P202: 0 | AA202: 193 | AB202: MONTEREY | AC202: 0 | AD202: 0 | AE202: 0 | AF202: 0 | AG202: 0 | AH202: 0 | AL202: 0 | AM202: 0 | AN202: 0 | AO202: 0 | AP202: 0 | AQ202: 0 | AU202: 0 | AW202: 0 | AX202: 1 | BA202: TRUE | BB202: TRUE | BC202: TRUE | BD202: TRUE | BE202: TRUE | BF202: TRUE | BG202: TRUE | BH202: TRUE | BI202: TRUE | BJ202: TRUE | BK202: TRUE | BL202: TRUE | BM202: TRUE | BN202: TRUE | BO202: TRUE | BP202: TRUE
A203: 194 | B203: MONTGOMERY | C203: 0 | D203: 0 | E203: 0 | F203: 0 | G203: 0 | H203: 0 | I203: 3 | J203: 0 | K203: 0 | L203: 0 | M203: 0 | N203: 0 | O203: 0 | P203: 3 | AA203: 194 | AB203: MONTGOMERY | AC203: 0 | AD203: 0 | AE203: 0 | AF203: 0 | AG203: 0 | AH203: 0 | AL203: 3 | AM203: 0 | AN203: 0 | AO203: 0 | AP203: 0 | AQ203: 0 | AU203: 0 | AW203: 3 | AX203: 1 | BA203: =A203=AA203 -> TRUE | BB203: =B203=AB203 -> TRUE | BC203: =C203=AC203 -> TRUE | BD203: =D203=AD203 -> TRUE | BE203: =E203=AE203 -> TRUE | BF203: =F203=AF203 -> TRUE | BG203: =G203=AG203 -> TRUE | BH203: =H203=AH203 -> TRUE | BI203: =I203=AL203 -> TRUE | BJ203: =J203=AM203 -> TRUE | BK203: =K203=AN203 -> TRUE | BL203: =L203=AO203 -> TRUE | BM203: =M203=AP203 -> TRUE | BN203: =N203=AQ203 -> TRUE | BO203: =O203=AU203 -> TRUE | BP203: =P203=AW203 -> TRUE
... 247 more rows

Sheet abvfnd24 (hidden)
D1: 3 | E1: 4 | F1: 5 | G1: 6 | H1: 7 | I1: 8 | J1: 9 | K1: 10 | L1: 11 | M1: 12 | N1: 13 | O1: 14 | P1: 0 | Q1: 0 | R1: 15 | S1: 0 | T1: 23 - RTHI | U1: updated | X1: c70fy24_web | Y1: 24 - Q4a projnss | AF1: 24 - Q2 pre chasum | AG1: 24- Q2 projnss | AH1: 34 | AI1: 35 | AJ1: 36 | AK1: 37 | AL1: 38 | AM1: 39 | AN1: 40 | AO1: 41 | AP1: 42 | AQ1: 43 | AR1: 44 | AS1: 45 | AT1: 46 | AU1: 47 | AV1: 48 | AW1: 49 | AX1: 50 | AY1: 51 | AZ1: 52 | BA1: 53 | BB1: 54 | BC1: 55 | BD1: 56 | BE1: 57
A4: 6/6/24 extract | D4: 1 | E4: 2 | F4: 3 | G4: 4 | H4: 5 | I4: 6 | J4: 7 | K4: 8 | L4: 9 | M4: 10 | N4: 11 | O4: 12 | P4: 13 | Q4: 14 | R4: 15 | S4: 16 | T4: 17 | U4: 18 | V4: 19 | X4: 20 | Y4: 21 | Z4: 22 | AA4: 23 | AC4: 24 | AD4: 25 | AE4: 26 | AF4: 27 | AG4: 28 | AH4: 29 | AK4: Above NSS History
D5: School Committee | L5: Municipal | V5: spending | AD5: FY24 | AL5: gov | AM5: hwm | AN5: Budget | AW5: Neg | AX5: =COUNTIF($AT$10:$AT$448,"<0") -> 70
D6: Total | E6: Sped | F6: Sped | G6: Sped Tuit | H6: Sped | I6: Sped | J6: Sped | K6: Sped | L6: Total | M6: Sped | N6: Sped | O6: Sped Tuit | P6: Sped | Q6: Sped | R6: Sped | S6: Sped | T6: count | V6: as % of | Y6: FY24 | Z6: above | AA6: amt of | AC6: FY23 | AD6: Budg NSS | AW6: Pos | AX6: =COUNTIF($AT$10:$AT$448,">0") -> 65
D7: Retired | E7: Tuition to | F7: Tuition | G7: Comm | H7: Tuition | I7: Tuition | J7: Tuition | K7: Tuition | L7: Retired | M7: Tuition to | N7: Tuition | O7: Comm | P7: Tuition | Q7: Tuition | R7: Tuition | S7: Tuition | T7: ret tchrs | U7: TOTAL | V7: budgeted | X7: FY24 | Y7: adj budgeted | Z7: found | AA7: sped/ret ins | AC7: Budg NSS | AD7: as % of | AG7: NSS | AH7: Above | BC7: FY of
D8: Teach Ins | E8: Mass Schs | F8: Sch Choice | G8: Charter | H8: HM Charter | I8: out of State | J8: Non Public | K8: Collabs | L8: Teach Ins | M8: Mass Schs | N8: Sch Choice | O8: Charter | P8: HM Charter | Q8: out of State | R8: Non Public | S8: Collabs | T8: heath ins | U8: spending | V8: nss | X8: foundation | Y8: net school | Z8: nss | AA8: to remove | AC8: as % of | AD8: Foundation | AE8: diff | AF8: Q2 | AG8: Okay | AH8: Fnd % | AT8: latest | AV8: Δ in Fnd | AW8: Δ in Budg | BC8: District
A9: LEA | B9: District | C9: OP | D9: J1111 | E9: F1124 | F9: F1125 | G9: F1126 | H9: F1127 | I9: F1129 | J9: F1130 | K9: F1131 | L9: J1154 | M9: F1167 | N9: F1168 | O9: F1169 | P9: F1170 | Q9: F1172 | R9: F1173 | S9: F1174 | T9: x = yes | U9: to remove | V9: (18/21) | W9: x | X9: budget | Y9: spending | Z9: (21 - 20) | AA9: (19 * 22) | AB9: x | AC9: Foundation | AD9: (21 - 23)/20 | AE9: (25-24) | AF9: FTE | AG9: 1 = good | AH9: Used | AJ9: x | AK9: FY23Q4 | AL9: PROJa | AM9: PROJb | AN9: PROJe/f | AO9: Q2 | AP9: Q3 | AQ9: Q4 | AT9: diff | AV9: budget over prior FY | AW9: NSS over prior FY | AX9: diff | BC9: Change | BE9: diff
A10: 1 | B10: ABINGTON | C10: 1 | D10: 0 | E10: 0 | F10: 0 | G10: 0 | H10: 0 | I10: 0 | J10: 1990941 | K10: 2196286 | L10: 946163 | M10: 17567 | N10: 0 | O10: 60764.9 | P10: 0 | Q10: 0 | R10: 0 | S10: 0 | T10: X | U10: =IF(OR(T10="X",T10="X16",T10="X17"),SUM(D10:S10), IF(T10="x18",SUM(D10:S10)-D10*0.7-L10*0.7,SUM(D10:S10)-D10-L10)) -> 5211721.9 | V10: =IF(AND(C10=1,U10>0),U10/Y10*100,0) -> 14.67579074 | X10: 31287579.08 | Y10: 35512375.4 | Z10: =IF(Y10-X10>0,Y10-X10,0) -> 4224796.321 | AA10: =V10*0.01*Z10 -> 620022.2672 | AC10: 110.02819 | AD10: =IFERROR(IF(C10=1,(Y10-AA10)/X10*100,0),"") -> 111.5214221 | AE10: =AD10-AC10 -> 1.493232128 | AF10: 56 | AG10: 1 | AH10: =IF(AG10=1,AD10,AC10) -> 111.5214221 | AK10: 110.02819 | AL10: 109.9133258 | AM10: 110.02819 | AN10: 110.02819 | AO10: 110.02819 | AP10: 111.5214221 | AQ10: =+AH10 -> 111.5214221 | AT10: =+AQ10-AP10 -> 0 | AV10: 5.83296077 | AW10: 7.511156485 | AX10: =IFERROR(AW10-AV10,"") -> 1.678195715 | BE10: =BF10-A10 -> -1
A11: 2 | B11: ACTON | C11: 0 | D11: 0 | E11: 0 | F11: 0 | G11: 0 | H11: 0 | I11: 0 | J11: 0 | K11: 0 | L11: 0 | M11: 0 | N11: 0 | O11: 0 | P11: 0 | Q11: 0 | R11: 0 | S11: 0 | T11: 0 | U11: =IF(OR(T11="X",T11="X16",T11="X17"),SUM(D11:S11), IF(T11="x18",SUM(D11:S11)-D11*0.7-L11*0.7,SUM(D11:S11)-D11-L11)) -> 0 | V11: 0 | X11: 0 | Y11: 0 | Z11: 0 | AA11: 0 | AC11: 0 | AD11: 0 | AE11: 0 | AF11: 0 | AG11: Non-op | AH11: 0 | AK11: 0 | AL11: 0 | AM11: 0 | AN11: 0 | AO11: 0 | AP11: 0 | AQ11: =+AH11 -> 0 | AT11: =+AQ11-AP11 -> 0 | AX11: =IFERROR(AW11-AV11,"") ->  | BC11: fy15 | BE11: =BF11-A11 -> -2
A12: 3 | B12: ACUSHNET | C12: 1 | D12: 0 | E12: 557346 | F12: 0 | G12: 0 | H12: 0 | I12: 0 | J12: 0 | K12: 389688 | L12: 297938 | M12: 0 | N12: 0 | O12: 2237.62 | P12: 0 | Q12: 0 | R12: 0 | S12: 0 | T12: X | U12: 1247209.62 | V12: 7.372523305 | X12: 15911255.39 | Y12: 16916998 | Z12: 1005742.61 | AA12: 74148.60831 | AC12: 113.5345143 | AD12: 105.8549371 | AE12: -7.679577187 | AF12: 3 | AG12: 1 | AH12: 105.8549371 | AK12: 113.5345143 | AL12: 116.4760622 | AM12: 116.4581127 | AN12: 113.5345143 | AO12: 113.5345143 | AP12: 105.8549371 | AQ12: 105.8549371 | AT12: 0 | AV12: 10.41094254 | AW12: 2.49266058 | AX12: -7.918281963 | BE12: -3
A13: 4 | B13: ADAMS | C13: 0 | D13: 0 | E13: 0 | F13: 0 | G13: 0 | H13: 0 | I13: 0 | J13: 0 | K13: 0 | L13: 0 | M13: 0 | N13: 0 | O13: 0 | P13: 0 | Q13: 0 | R13: 0 | S13: 0 | T13: 0 | U13: 0 | V13: 0 | X13: 0 | Y13: 0 | Z13: 0 | AA13: 0 | AC13: 0 | AD13: 0 | AE13: 0 | AF13: 0 | AG13: Non-op | AH13: 0 | AK13: 0 | AL13: 0 | AM13: 0 | AN13: 0 | AO13: 0 | AP13: 0 | AQ13: 0 | AT13: 0 | BE13: -4
A14: 5 | B14: AGAWAM | C14: 1 | D14: 0 | E14: 0 | F14: 0 | G14: 0 | H14: 0 | I14: 403608 | J14: 1707161 | K14: 466256 | L14: 1598865 | M14: 4266 | N14: 82763 | O14: 110131.77 | P14: 0 | Q14: 0 | R14: 0 | S14: 0 | T14: X | U14: 4373050.77 | V14: 6.31819206 | X14: 50397491.3 | Y14: 69213641 | Z14: 18816149.7 | AA14: 1188840.476 | AC14: 142.7066758 | AD14: 134.9765609 | AE14: -7.730114972 | AF14: 66 | AG14: 0 | AH14: 142.7066758 | AK14: 142.7066758 | AL14: 142.6451413 | AM14: 142.7066758 | AN14: 142.7066758 | AO14: 135.2156937 | AP14: 142.7066758 | AQ14: 142.7066758 | AT14: 0 | AV14: 8.437074775 | AW14: 2.308316262 | AX14: -6.128758512 | BE14: -5
A15: 6 | B15: ALFORD | C15: 0 | D15: 0 | E15: 0 | F15: 0 | G15: 0 | H15: 0 | I15: 0 | J15: 0 | K15: 0 | L15: 0 | M15: 0 | N15: 0 | O15: 0 | P15: 0 | Q15: 0 | R15: 0 | S15: 0 | T15: 0 | U15: 0 | V15: 0 | X15: 0 | Y15: 0 | Z15: 0 | AA15: 0 | AC15: 0 | AD15: 0 | AE15: 0 | AF15: 0 | AG15: Non-op | AH15: 0 | AK15: 0 | AL15: 0 | AM15: 0 | AN15: 0 | AO15: 0 | AP15: 0 | AQ15: 0 | AT15: 0 | BE15: -6
A16: 7 | B16: AMESBURY | C16: 1 | D16: 400345 | E16: 105449 | F16: 0 | G16: 0 | H16: 0 | I16: 247799 | J16: 1187044 | K16: 722579 | L16: 1640673 | M16: 0 | N16: 85241 | O16: 124948.04 | P16: 0 | Q16: 0 | R16: 0 | S16: 0 | T16: X | U16: 4514078.04 | V16: 11.59871562 | X16: 24965747.03 | Y16: 38918775.03 | Z16: 13953028 | AA16: 1618372.039 | AC16: 150.498835 | AD16: 149.4063164 | AE16: -1.092518603 | AF16: 99 | AG16: 1 | AH16: 149.4063164 | AK16: 150.498835 | AL16: 150.4986065 | AM16: 150.498835 | AN16: 150.498835 | AO16: 149.4570331 | AP16: 149.4063164 | AQ16: 149.4063164 | AT16: 0 | AV16: 6.213435335 | AW16: 5.558214173 | AX16: -0.6552211622 | BE16: -7
A17: 8 | B17: AMHERST | C17: 1 | D17: 1550590 | E17: 0 | F17: 0 | G17: 0 | H17: 0 | I17: 0 | J17: 16661 | K17: 0 | L17: 0 | M17: 0 | N17: 122119 | O17: 127034.95 | P17: 0 | Q17: 0 | R17: 0 | S17: 0 | T17: X | U17: 1816404.95 | V17: 6.333513745 | X17: 14207190.94 | Y17: 28679261.2 | Z17: 14472070.26 | AA17: 916590.5591 | AC17: 200.7758181 | AD17: 195.4128072 | AE17: -5.363010866 | AF17: 72 | AG17: 1 | AH17: 195.4128072 | AK17: 200.7758181 | AL17: 203.4559027 | AM17: 200.7758181 | AN17: 200.7758181 | AO17: 195.3632829 | AP17: 195.4128072 | AQ17: 195.4128072 | AT17: 0 | AV17: 5.788894613 | AW17: 2.674923948 | AX17: -3.113970665 | BE17: -8
A18: 9 | B18: ANDOVER | C18: 1 | D18: 0 | E18: 570332 | F18: 0 | G18: 0 | H18: 0 | I18: 179915 | J18: 2623159 | K18: 358689 | L18: 2902499 | M18: 12017 | N18: 0 | O18: 29450.26 | P18: 0 | Q18: 0 | R18: 0 | S18: 0 | T18: x18 | U18: 4644311.96 | V18: 3.841335762 | X18: 72244408.49 | Y18: 120903567.1 | Z18: 48659158.61 | AA18: 1869161.661 | AC18: 170.0891351 | AD18: 164.7662538 | AE18: -5.322881297 | AF18: 8 | AG18: 1 | AH18: 164.7662538 | AK18: 170.0891351 | AL18: 170.1680868 | AM18: 170.0893215 | AN18: 170.0891351 | AO18: 164.5441868 | AP18: 164.7658967 | AQ18: 164.7662538 | AT18: 0.0003570384053 | AV18: 7.255187093 | AW18: 4.084505364 | AX18: -3.170681729 | BE18: -9
A19: 10 | B19: ARLINGTON | C19: 1 | D19: 0 | E19: 0 | F19: 0 | G19: 0 | H19: 0 | I19: 0 | J19: 2237771 | K19: 1408461 | L19: 2952259 | M19: 27104 | N19: 0 | O19: 29848.35 | P19: 0 | Q19: 0 | R19: 0 | S19: 0 | T19: X | U19: 6655443.35 | V19: 6.140369097 | X19: 74896748.64 | Y19: 108388327.2 | Z19: 33491578.59 | AA19: 2056506.542 | AC19: 143.2295667 | AD19: 141.9712105 | AE19: -1.258356195 | AF19: 18 | AG19: 1 | AH19: 141.9712105 | AK19: 143.2295667 | AL19: 142.0255113 | AM19: 142.0255599 | AN19: 143.2295667 | AO19: 143.2295667 | AP19: 141.9752379 | AQ19: 141.9712105 | AT19: -0.004027342783 | AV19: 7.769913615 | AW19: 6.673488644 | AX19: -1.096424972 | BE19: -10
A20: 11 | B20: ASHBURNHAM | C20: 0 | D20: 0 | E20: 0 | F20: 0 | G20: 0 | H20: 0 | I20: 0 | J20: 0 | K20: 0 | L20: 0 | M20: 0 | N20: 0 | O20: 0 | P20: 0 | Q20: 0 | R20: 0 | S20: 0 | T20: 0 | U20: 0 | V20: 0 | X20: 0 | Y20: 0 | Z20: 0 | AA20: 0 | AC20: 0 | AD20: 0 | AE20: 0 | AF20: 0 | AG20: Non-op | AH20: 0 | AK20: 0 | AL20: 0 | AM20: 0 | AN20: 0 | AO20: 0 | AP20: 0 | AQ20: 0 | AT20: 0 | BE20: -11
A21: 12 | B21: ASHBY | C21: 0 | D21: 0 | E21: 0 | F21: 0 | G21: 0 | H21: 0 | I21: 0 | J21: 0 | K21: 0 | L21: 0 | M21: 0 | N21: 0 | O21: 0 | P21: 0 | Q21: 0 | R21: 0 | S21: 0 | T21: 0 | U21: 0 | V21: 0 | X21: 0 | Y21: 0 | Z21: 0 | AA21: 0 | AC21: 0 | AD21: 0 | AE21: 0 | AF21: 0 | AG21: Non-op | AH21: 0 | AK21: 0 | AL21: 0 | AM21: 0 | AN21: 0 | AO21: 0 | AP21: 0 | AQ21: 0 | AT21: 0 | BE21: -12
A22: 13 | B22: ASHFIELD | C22: 0 | D22: 0 | E22: 0 | F22: 0 | G22: 0 | H22: 0 | I22: 0 | J22: 0 | K22: 0 | L22: 0 | M22: 0 | N22: 0 | O22: 0 | P22: 0 | Q22: 0 | R22: 0 | S22: 0 | T22: 0 | U22: 0 | V22: 0 | X22: 245151 | Y22: 357690 | Z22: 112539 | AA22: 0 | AC22: 0 | AD22: 0 | AE22: 0 | AF22: 0 | AG22: Non-op | AH22: 0 | AK22: 0 | AL22: 0 | AM22: 0 | AN22: 0 | AO22: 0 | AP22: 0 | AQ22: 0 | AT22: 0 | BE22: -13
A23: 14 | B23: ASHLAND | C23: 1 | D23: 0 | E23: 0 | F23: 0 | G23: 0 | H23: 0 | I23: 0 | J23: 0 | K23: 0 | L23: 926506 | M23: 11033 | N23: 25798 | O23: 2393.86 | P23: 0 | Q23: 0 | R23: 0 | S23: 0 | T23: X | U23: 965730.86 | V23: 2.127776564 | X23: 36758230.61 | Y23: 45386854.82 | Z23: 8628624.21 | AA23: 183597.8437 | AC23: 124.420477 | AD23: 122.9745182 | AE23: -1.445958873 | AF23: 1 | AG23: 1 | AH23: 122.9745182 | AK23: 124.420477 | AL23: 124.4255775 | AM23: 124.4204825 | AN23: 124.420477 | AO23: 122.9190361 | AP23: 122.9744994 | AQ23: 122.9745182 | AT23: 1.871518771e-05 | AV23: 8.296385879 | AW23: 5.597215739 | AX23: -2.69917014 | BE23: -14
A24: 15 | B24: ATHOL | C24: 0 | D24: 0 | E24: 0 | F24: 0 | G24: 0 | H24: 0 | I24: 0 | J24: 0 | K24: 0 | L24: 0 | M24: 0 | N24: 0 | O24: 0 | P24: 0 | Q24: 0 | R24: 0 | S24: 0 | T24: 0 | U24: 0 | V24: 0 | X24: 0 | Y24: 796.808 | Z24: 796.808 | AA24: 0 | AC24: 0 | AD24: 0 | AE24: 0 | AF24: 0 | AG24: Non-op | AH24: 0 | AK24: 0 | AL24: 0 | AM24: 0 | AN24: 0 | AO24: 0 | AP24: 0 | AQ24: 0 | AT24: 0 | BE24: -15
A25: 16 | B25: ATTLEBORO | C25: 1 | D25: 0 | E25: 0 | F25: 0 | G25: 0 | H25: 0 | I25: 0 | J25: 1843840 | K25: 1100000 | L25: 698948.55 | M25: 26968 | N25: 198605 | O25: 274239.84 | P25: 0 | Q25: 0 | R25: 0 | S25: 0 | T25: X | U25: 4142601.39 | V25: 4.218243786 | X25: 97105120.72 | Y25: 98206779.89 | Z25: 1101659.17 | AA25: 46470.66948 | AC25: 102.1403214 | AD25: 101.0866456 | AE25: -1.053675816 | AF25: 209 | AG25: 1 | AH25: 101.0866456 | AK25: 102.1403214 | AL25: 102.4672666 | AM25: 102.1523008 | AN25: 102.1403214 | AO25: 101.4673686 | AP25: 101.0974281 | AQ25: 101.0866456 | AT25: -0.01078247511 | AV25: 8.727029429 | AW25: 7.549380405 | AX25: -1.177649024 | BE25: -16
A26: 17 | B26: AUBURN | C26: 1 | D26: 0 | E26: 0 | F26: 0 | G26: 0 | H26: 0 | I26: 0 | J26: 162200.09 | K26: 310194.94 | L26: 2451293.95 | M26: 7963 | N26: 8813 | O26: 9127.79 | P26: 0 | Q26: 0 | R26: 0 | S26: 0 | T26: X | U26: 2949592.77 | V26: 7.648936257 | X26: 32176028.36 | Y26: 38562130.35 | Z26: 6386101.99 | AA26: 488468.8706 | AC26: 122.1979097 | AD26: 118.3292762 | AE26: -3.86863343 | AF26: 6 | AG26: 1 | AH26: 118.3292762 | AK26: 122.1979097 | AL26: 122.3475575 | AM26: 122.1982188 | AN26: 122.1979097 | AO26: 118.3863913 | AP26: 118.3292762 | AQ26: 118.3292762 | AT26: 0 | AV26: 6.357718015 | AW26: 2.678649791 | AX26: -3.679068224 | BE26: -17
A27: 18 | B27: AVON | C27: 1 | D27: 0 | E27: 0 | F27: 0 | G27: 0 | H27: 0 | I27: 0 | J27: 146501 | K27: 76042 | L27: 458018 | M27: 0 | N27: 7175 | O27: 37599.94 | P27: 0 | Q27: 0 | R27: 0 | S27: 0 | T27: X | U27: 725335.94 | V27: 5.63853953 | X27: 9536788.92 | Y27: 12863897.4 | Z27: 3327108.48 | AA27: 187600.3269 | AC27: 148.4122447 | AD27: 132.9199711 | AE27: -15.49227359 | AF27: 12 | AG27: 1 | AH27: 132.9199711 | AK27: 148.4122447 | AL27: 148.4104106 | AM27: 148.4122447 | AN27: 148.4122447 | AO27: 134.9377425 | AP27: 132.9605329 | AQ27: 132.9199711 | AT27: -0.04056185602 | AV27: 15.05019773 | AW27: 2.209434231 | AX27: -12.8407635 | BE27: -18
A28: 19 | B28: AYER | C28: 0 | D28: 0 | E28: 0 | F28: 0 | G28: 0 | H28: 0 | I28: 0 | J28: 0 | K28: 0 | L28: 0 | M28: 0 | N28: 0 | O28: 0 | P28: 0 | Q28: 0 | R28: 0 | S28: 0 | T28: 0 | U28: 0 | V28: 0 | X28: 0 | Y28: 0 | Z28: 0 | AA28: 0 | AC28: 0 | AD28: 0 | AE28: 0 | AF28: 0 | AG28: Non-op | AH28: 0 | AK28: 0 | AL28: 0 | AM28: 0 | AN28: 0 | AO28: 0 | AP28: 0 | AQ28: 0 | AT28: 0 | BC28: fy12 | BE28: -19
A29: 20 | B29: BARNSTABLE | C29: 1 | D29: 0 | E29: 1771365 | F29: 0 | G29: 0 | H29: 0 | I29: 0 | J29: 0 | K29: 0 | L29: 4019976.94 | M29: 12214 | N29: 202188 | O29: 469382.9 | P29: 0 | Q29: 0 | R29: 0 | S29: 0 | T29: x18 | U29: 3661142.982 | V29: 3.696944178 | X29: 84542110.14 | Y29: 99031600.32 | Z29: 14489490.18 | AA29: 535668.3635 | AC29: 123.0692061 | AD29: 116.5051733 | AE29: -6.564032771 | AF29: 371 | AG29: 1 | AH29: 116.5051733 | AK29: 123.0692061 | AL29: 123.0195343 | AM29: 123.0692061 | AN29: 123.0692061 | AO29: 116.2323569 | AP29: 116.5051733 | AQ29: 116.5051733 | AT29: 0 | AV29: 11.83591026 | AW29: 5.134652126 | AX29: -6.70125813 | BE29: -20
A30: 21 | B30: BARRE | C30: 0 | D30: 0 | E30: 0 | F30: 0 | G30: 0 | H30: 0 | I30: 0 | J30: 0 | K30: 0 | L30: 0 | M30: 0 | N30: 0 | O30: 0 | P30: 0 | Q30: 0 | R30: 0 | S30: 0 | T30: 0 | U30: 0 | V30: 0 | X30: 0 | Y30: 0 | Z30: 0 | AA30: 0 | AC30: 0 | AD30: 0 | AE30: 0 | AF30: 0 | AG30: Non-op | AH30: 0 | AK30: 0 | AL30: 0 | AM30: 0 | AN30: 0 | AO30: 0 | AP30: 0 | AQ30: 0 | AT30: 0 | BE30: -21
A31: 22 | B31: BECKET | C31: 0 | D31: 0 | E31: 0 | F31: 0 | G31: 0 | H31: 0 | I31: 0 | J31: 0 | K31: 0 | L31: 0 | M31: 0 | N31: 0 | O31: 0 | P31: 0 | Q31: 0 | R31: 0 | S31: 0 | T31: 0 | U31: 0 | V31: 0 | X31: 261641.76 | Y31: 266284 | Z31: 4642.24 | AA31: 0 | AC31: 0 | AD31: 0 | AE31: 0 | AF31: 0 | AG31: Non-op | AH31: 0 | AK31: 0 | AL31: 0 | AM31: 0 | AN31: 0 | AO31: 0 | AP31: 0 | AQ31: 0 | AT31: 0 | BE31: -22
A32: 23 | B32: BEDFORD | C32: 1 | D32: 0 | E32: 13236 | F32: 0 | G32: 0 | H32: 0 | I32: 0 | J32: 1993653 | K32: 1051908 | L32: 1035794 | M32: 17893 | N32: 0 | O32: 0 | P32: 0 | Q32: 0 | R32: 0 | S32: 0 | T32: X | U32: 4112484 | V32: 7.602390034 | X32: 33265363.04 | Y32: 54094620 | Z32: 20829256.96 | AA32: 1583521.355 | AC32: 156.7388579 | AD32: 157.8551798 | AE32: 1.116321921 | AF32: 0 | AG32: 1 | AH32: 157.8551798 | AK32: 156.7388579 | AL32: 158.1382476 | AM32: 156.7388579 | AN32: 156.7388579 | AO32: 156.7388579 | AP32: 157.8551798 | AQ32: 157.8551798 | AT32: 0 | AV32: 3.159429782 | AW32: 3.818505327 | AX32: 0.6590755454 | BE32: -23
A33: 24 | B33: BELCHERTOWN | C33: 1 | D33: 0 | E33: 75160 | F33: 26134 | G33: 0 | H33: 0 | I33: 0 | J33: 0 | K33: 0 | L33: 0 | M33: 0 | N33: 189185 | O33: 41318.69 | P33: 0 | Q33: 0 | R33: 0 | S33: 0 | T33: X | U33: 331797.69 | V33: 1.001806078 | X33: 27713334.38 | Y33: 33119951.8 | Z33: 5406617.42 | AA33: 54163.8219 | AC33: 125.7910562 | AD33: 119.3136399 | AE33: -6.477416369 | AF33: 35 | AG33: 1 | AH33: 119.3136399 | AK33: 125.7910562 | AL33: 125.8417684 | AM33: 125.7919633 | AN33: 125.7910562 | AO33: 119.0889501 | AP33: 119.3101798 | AQ33: 119.3136399 | AT33: 0.003460044545 | AV33: 5.037621509 | AW33: -0.4959785073 | AX33: -5.533600016 | BE33: -24
A34: 25 | B34: BELLINGHAM | C34: 1 | D34: 0 | E34: 401630 | F34: 0 | G34: 0 | H34: 0 | I34: 245066 | J34: 896566 | K34: 739774 | L34: 597751 | M34: 0 | N34: 68758 | O34: 242493.3 | P34: 0 | Q34: 0 | R34: 0 | S34: 0 | T34: x18 | U34: 2773612.6 | V34: 6.625274226 | X34: 29660512.23 | Y34: 41864117.7 | Z34: 12203605.47 | AA34: 808522.3279 | AC34: 142.5093623 | AD34: 138.4183626 | AE34: -4.090999734 | AF34: 181 | AG34: 1 | AH34: 138.4183626 | AK34: 142.5093623 | AL34: 142.5057428 | AM34: 142.5093623 | AN34: 142.5093623 | AO34: 142.5093623 | AP34: 138.4183626 | AQ34: 138.4183626 | AT34: 0 | AV34: 9.788724026 | AW34: 6.495983468 | AX34: -3.292740557 | BE34: -25
A35: 26 | B35: BELMONT | C35: 1 | D35: 0 | E35: 47250 | F35: 0 | G35: 0 | H35: 0 | I35: 158414 | J35: 4598686 | K35: 4472993 | L35: 187440 | M35: 27991 | N35: 0 | O35: 12649.63 | P35: 0 | Q35: 0 | R35: 0 | S35: 0 | T35: x18 | U35: 9374215.63 | V35: 11.95651404 | X35: 57423975.88 | Y35: 78402581.2 | Z35: 20978605.32 | AA35: 2508309.89 | AC35: 135.6139165 | AD35: 132.1647799 | AE35: -3.449136694 | AF35: 7 | AG35: 1 | AH35: 132.1647799 | AK35: 135.6139165 | AL35: 135.5892773 | AM35: 135.6139165 | AN35: 135.6139165 | AO35: 132.1186033 | AP35: 132.1647799 | AQ35: 132.1647799 | AT35: 0 | AV35: 7.826134103 | AW35: 6.293044401 | AX35: -1.533089702 | BE35: -26
A36: 27 | B36: BERKLEY | C36: 1 | D36: 0 | E36: 0 | F36: 0 | G36: 0 | H36: 0 | I36: 0 | J36: 0 | K36: 180000 | L36: 176995 | M36: 0 | N36: 12092 | O36: 0 | P36: 0 | Q36: 0 | R36: 0 | S36: 0 | T36: X | U36: 369087 | V36: 3.614261393 | X36: 8929788.14 | Y36: 10211962 | Z36: 1282173.86 | AA36: 46341.11481 | AC36: 116.7510653 | AD36: 113.8394408 | AE36: -2.911624476 | AF36: 0 | AG36: 1 | AH36: 113.8394408 | AK36: 116.7510653 | AL36: 112.5779495 | AM36: 112.4425039 | AN36: 116.7510653 | AO36: 113.6255347 | AP36: 113.8394408 | AQ36: 113.8394408 | AT36: 0 | AV36: 3.817344337 | AW36: 1.185011126 | AX36: -2.632333211 | BC36: fy12 | BE36: -27
A37: 28 | B37: BERLIN | C37: 0 | D37: 0 | E37: 0 | F37: 0 | G37: 0 | H37: 0 | I37: 0 | J37: 0 | K37: 0 | L37: 0 | M37: 0 | N37: 0 | O37: 0 | P37: 0 | Q37: 0 | R37: 0 | S37: 0 | T37: x18 | U37: 0 | V37: 0 | X37: 0 | Y37: 0 | Z37: 0 | AA37: 0 | AC37: 0 | AD37: 0 | AE37: 0 | AF37: 0 | AG37: Non-op | AH37: 0 | AK37: 0 | AL37: 0 | AM37: 0 | AN37: 0 | AO37: 0 | AP37: 0 | AQ37: 0 | AT37: 0 | BC37: fy20 | BE37: -28
A38: 29 | B38: BERNARDSTON | C38: 0 | D38: 0 | E38: 0 | F38: 0 | G38: 0 | H38: 0 | I38: 0 | J38: 0 | K38: 0 | L38: 0 | M38: 0 | N38: 0 | O38: 0 | P38: 0 | Q38: 0 | R38: 0 | S38: 0 | T38: 0 | U38: 0 | V38: 0 | X38: 0 | Y38: 335648.23 | Z38: 335648.23 | AA38: 0 | AC38: 0 | AD38: 0 | AE38: 0 | AF38: 0 | AG38: Non-op | AH38: 0 | AK38: 0 | AL38: 0 | AM38: 0 | AN38: 0 | AO38: 0 | AP38: 0 | AQ38: 0 | AT38: 0 | BE38: -29
A39: 30 | B39: BEVERLY | C39: 1 | D39: 0 | E39: 0 | F39: 0 | G39: 0 | H39: 0 | I39: 0 | J39: 2453303.98 | K39: 1395352.02 | L39: 2387742 | M39: 3184 | N39: 149889 | O39: 25194.68 | P39: 0 | Q39: 0 | R39: 0 | S39: 0 | T39: X | U39: 6414665.68 | V39: 8.493113516 | X39: 61798815.26 | Y39: 75527845.8 | Z39: 13729030.54 | AA39: 1166022.148 | AC39: 122.1677281 | AD39: 120.3288823 | AE39: -1.838845825 | AF39: 17 | AG39: 1 | AH39: 120.3288823 | AK39: 122.1677281 | AL39: 122.8033956 | AM39: 122.803395 | AN39: 122.1677281 | AO39: 118.5801568 | AP39: 120.3253996 | AQ39: 120.3288823 | AT39: 0.00348268516 | AV39: 5.439704389 | AW39: 3.328604653 | AX39: -2.111099736 | BE39: -30
A40: 31 | B40: BILLERICA | C40: 1 | D40: 0 | E40: 0 | F40: 0 | G40: 0 | H40: 0 | I40: 0 | J40: 0 | K40: 0 | L40: 3254963.77 | M40: 24802 | N40: 0 | O40: 124305.02 | P40: 0 | Q40: 0 | R40: 0 | S40: 0 | T40: X | U40: 3404070.79 | V40: 3.738291677 | X40: 63590856.68 | Y40: 91059528.9 | Z40: 27468672.22 | AA40: 1026859.087 | AC40: 144.8845911 | AD40: 141.5811557 | AE40: -3.303435361 | AF40: 90 | AG40: 0 | AH40: 144.8845911 | AK40: 144.8845911 | AL40: 144.8521775 | AM40: 144.8845911 | AN40: 144.8845911 | AO40: 144.8845911 | AP40: 144.8845911 | AQ40: 144.8845911 | AT40: 0 | AV40: 10.19830788 | AW40: 5.950504685 | AX40: -4.247803191 | BE40: -31
A41: 32 | B41: BLACKSTONE | C41: 0 | D41: 0 | E41: 0 | F41: 0 | G41: 0 | H41: 0 | I41: 0 | J41: 0 | K41: 0 | L41: 0 | M41: 0 | N41: 0 | O41: 0 | P41: 0 | Q41: 0 | R41: 0 | S41: 0 | T41: 0 | U41: 0 | V41: 0 | X41: 393567.84 | Y41: 432068 | Z41: 38500.16 | AA41: 0 | AC41: 0 | AD41: 0 | AE41: 0 | AF41: 0 | AG41: Non-op | AH41: 0 | AK41: 0 | AL41: 0 | AM41: 0 | AN41: 0 | AO41: 0 | AP41: 0 | AQ41: 0 | AT41: 0 | BE41: -32
A42: 33 | B42: BLANDFORD | C42: 0 | D42: 0 | E42: 0 | F42: 0 | G42: 0 | H42: 0 | I42: 0 | J42: 0 | K42: 0 | L42: 0 | M42: 0 | N42: 0 | O42: 0 | P42: 0 | Q42: 0 | R42: 0 | S42: 0 | T42: 0 | U42: 0 | V42: 0 | X42: 245151 | Y42: 245151 | Z42: 0 | AA42: 0 | AC42: 0 | AD42: 0 | AE42: 0 | AF42: 0 | AG42: Non-op | AH42: 0 | AK42: 0 | AL42: 0 | AM42: 0 | AN42: 0 | AO42: 0 | AP42: 0 | AQ42: 0 | AT42: 0 | BE42: -33
A43: 34 | B43: BOLTON | C43: 0 | D43: 0 | E43: 0 | F43: 0 | G43: 0 | H43: 0 | I43: 0 | J43: 0 | K43: 0 | L43: 0 | M43: 0 | N43: 0 | O43: 0 | P43: 0 | Q43: 0 | R43: 0 | S43: 0 | T43: 0 | U43: 0 | V43: 0 | X43: 0 | Y43: 848.4 | Z43: 848.4 | AA43: 0 | AC43: 0 | AD43: 0 | AE43: 0 | AF43: 0 | AG43: Non-op | AH43: 0 | AK43: 0 | AL43: 0 | AM43: 0 | AN43: 0 | AO43: 0 | AP43: 0 | AQ43: 0 | AT43: 0 | BE43: -34
A44: 35 | B44: BOSTON | C44: 1 | D44: 0 | E44: 297219.4961 | F44: 0 | G44: 0 | H44: 7619188 | I44: 8526755.28 | J44: 7430886.878 | K44: 1162522.346 | L44: 37911084.24 | M44: 680780 | N44: 0 | O44: 19655628.87 | P44: 0 | Q44: 0 | R44: 0 | S44: 0 | T44: x18 | U44: 56746306.14 | V44: 3.717143267 | X44: 1095713386 | Y44: 1526610681 | Z44: 430897294.9 | AA44: 16017069.79 | AC44: 141.5059234 | AD44: 137.8639369 | AE44: -3.641986527 | AF44: 10270 | AG44: 1 | AH44: 137.8639369 | AK44: 141.5059234 | AL44: 141.6919776 | AM44: 141.5059234 | AN44: 141.5059234 | AO44: 141.5059234 | AP44: 137.8639369 | AQ44: 137.8639369 | AT44: 0 | AV44: 8.197737387 | AW44: 5.109317053 | AX44: -3.088420333 | BE44: -35
A45: 36 | B45: BOURNE | C45: 1 | D45: 0 | E45: 27975 | F45: 0 | G45: 0 | H45: 0 | I45: 0 | J45: 197602 | K45: 236902 | L45: 1416351 | M45: 0 | N45: 110175 | O45: 178572.52 | P45: 0 | Q45: 0 | R45: 0 | S45: 0 | T45: x18 | U45: 1176131.82 | V45: 3.439463365 | X45: 22858350.51 | Y45: 34195212.89 | Z45: 11336862.38 | AA45: 389927.2283 | AC45: 147.3164016 | AD45: 147.890311 | AE45: 0.5739093641 | AF45: 110 | AG45: 1 | AH45: 147.890311 | AK45: 147.3164016 | AL45: 147.5088726 | AM45: 147.3277139 | AN45: 147.3164016 | AO45: 146.780513 | AP45: 147.890311 | AQ45: 147.890311 | AT45: 0 | AV45: 4.589291398 | AW45: 4.855260302 | AX45: 0.2659689039 | BE45: -36
A46: 37 | B46: BOXBOROUGH | C46: 0 | D46: 0 | E46: 0 | F46: 0 | G46: 0 | H46: 0 | I46: 0 | J46: 0 | K46: 0 | L46: 0 | M46: 0 | N46: 0 | O46: 0 | P46: 0 | Q46: 0 | R46: 0 | S46: 0 | T46: 0 | U46: 0 | V46: 0 | X46: 107478.8431 | Y46: 123583.25 | Z46: 16104.40688 | AA46: 0 | AC46: 0 | AD46: 0 | AE46: 0 | AF46: 0 | AG46: Non-op | AH46: 0 | AK46: 0 | AL46: 0 | AM46: 0 | AN46: 0 | AO46: 0 | AP46: 0 | AQ46: 0 | AT46: 0 | BC46: fy15 | BE46: -37
A47: 38 | B47: BOXFORD | C47: 1 | D47: 416740 | E47: 70000 | F47: 0 | G47: 0 | H47: 0 | I47: 0 | J47: 108011 | K47: 2033 | L47: 133474 | M47: 0 | N47: 0 | O47: 1347.71 | P47: 0 | Q47: 0 | R47: 0 | S47: 0 | T47: X | U47: 731605.71 | V47: 4.968446334 | X47: 8528050.268 | Y47: 14725040 | Z47: 6196989.732 | AA47: 307894.1091 | AC47: 168.7532154 | AD47: 169.0555923 | AE47: 0.3023768522 | AF47: 1 | AG47: 1 | AH47: 169.0555923 | AK47: 168.7532154 | AL47: 168.7600913 | AM47: 168.7532273 | AN47: 168.7532154 | AO47: 169.1478984 | AP47: 169.0555923 | AQ47: 169.0555923 | AT47: 0 | AV47: 5.204811077 | AW47: 4.746378619 | AX47: -0.4584324582 | BE47: -38
A48: 39 | B48: BOYLSTON | C48: 0 | D48: 0 | E48: 0 | F48: 0 | G48: 0 | H48: 0 | I48: 0 | J48: 0 | K48: 0 | L48: 0 | M48: 0 | N48: 0 | O48: 0 | P48: 0 | Q48: 0 | R48: 0 | S48: 0 | T48: x18 | U48: 0 | V48: 0 | X48: 377077.08 | Y48: 450874.05 | Z48: 73796.97 | AA48: 0 | AC48: 0 | AD48: 0 | AE48: 0 | AF48: 0 | AG48: Non-op | AH48: 0 | AK48: 0 | AL48: 0 | AM48: 0 | AN48: 0 | AO48: 0 | AP48: 0 | AQ48: 0 | AT48: 0 | BC48: fy20 | BE48: -39
A49: 40 | B49: BRAINTREE | C49: 1 | D49: 0 | E49: 0 | F49: 0 | G49: 0 | H49: 0 | I49: 0 | J49: 2701133 | K49: 2203918 | L49: 3121140.43 | M49: 4600 | N49: 0 | O49: 35158.9 | P49: 0 | Q49: 0 | R49: 0 | S49: 0 | T49: x18 | U49: 5881152.029 | V49: 6.326149868 | X49: 72501248.64 | Y49: 92965739.85 | Z49: 20464491.21 | AA49: 1294614.384 | AC49: 123.8864118 | AD49: 126.440754 | AE49: 2.554342194 | AF49: 26 | AG49: 1 | AH49: 126.440754 | AK49: 123.8864118 | AL49: 123.8605576 | AM49: 123.8864118 | AN49: 123.8864118 | AO49: 125.9353683 | AP49: 126.440754 | AQ49: 126.440754 | AT49: 0 | AV49: 6.137192289 | AW49: 8.554356011 | AX49: 2.417163723 | BE49: -40
A50: 41 | B50: BREWSTER | C50: 1 | D50: 0 | E50: 293085 | F50: 0 | G50: 0 | H50: 0 | I50: 0 | J50: 0 | K50: 439 | L50: 327944.02 | M50: 0 | N50: 0 | O50: 0 | P50: 0 | Q50: 0 | R50: 0 | S50: 0 | T50: x18 | U50: 391907.206 | V50: 3.683671417 | X50: 5743102.11 | Y50: 10639038.11 | Z50: 4895936.004 | AA50: 180350.1952 | AC50: 175.5911376 | AD50: 182.1086883 | AE50: 6.517550637 | AF50: 0 | AG50: 1 | AH50: 182.1086883 | AK50: 175.5911376 | AL50: 175.5911306 | AM50: 175.5911376 | AN50: 175.5911376 | AO50: 181.73741 | AP50: 182.1086883 | AQ50: 182.1086883 | AT50: 0 | AV50: 2.912378382 | AW50: 6.732775615 | AX50: 3.820397233 | BE50: -41
A51: 42 | B51: BRIDGEWATER | C51: 0 | D51: 0 | E51: 0 | F51: 0 | G51: 0 | H51: 0 | I51: 0 | J51: 0 | K51: 0 | L51: 0 | M51: 0 | N51: 0 | O51: 0 | P51: 0 | Q51: 0 | R51: 0 | S51: 0 | T51: 0 | U51: 0 | V51: 0 | X51: 228660.24 | Y51: 2165404 | Z51: 1936743.76 | AA51: 0 | AC51: 0 | AD51: 0 | AE51: 0 | AF51: 0 | AG51: Non-op | AH51: 0 | AK51: 0 | AL51: 0 | AM51: 0 | AN51: 0 | AO51: 0 | AP51: 0 | AQ51: 0 | AT51: 0 | BE51: -42
A52: 43 | B52: BRIMFIELD | C52: 1 | D52: 0 | E52: 241050 | F52: 0 | G52: 0 | H52: 0 | I52: 0 | J52: 49545 | K52: 800 | L52: 42055 | M52: 0 | N52: 0 | O52: 4548.6 | P52: 0 | Q52: 0 | R52: 0 | S52: 0 | T52: x18 | U52: 308560.1 | V52: 6.698767595 | X52: 3511281.75 | Y52: 4606221.9 | Z52: 1094940.15 | AA52: 73347.49595 | AC52: 140.8776742 | AD52: 129.0945793 | AE52: -11.7830949 | AF52: 4 | AG52: 1 | AH52: 129.0945793 | AK52: 140.8776742 | AL52: 140.8766284 | AM52: 140.8776742 | AN52: 140.8776742 | AO52: 129.5224017 | AP52: 129.0994439 | AQ52: 129.0945793 | AT52: -0.00486457175 | AV52: 12.03468889 | AW52: 1.576186923 | AX52: -10.45850196 | BE52: -43
A53: 44 | B53: BROCKTON | C53: 1 | D53: 0 | E53: 0 | F53: 0 | G53: 0 | H53: 0 | I53: 0 | J53: 7250400 | K53: 2625000 | L53: 8513508 | M53: 92431 | N53: 167817 | O53: 2131608.08 | P53: 0 | Q53: 0 | R53: 0 | S53: 0 | T53: X17 | U53: 20780764.08 | V53: 6.617120448 | X53: 295646847.7 | Y53: 314045425.7 | Z53: 18398577.96 | AA53: 1217456.064 | AC53: 103.4876437 | AD53: 105.8113665 | AE53: 2.323722854 | AF53: 1634 | AG53: 0 | AH53: 103.4876437 | AK53: 103.4876437 | AL53: 101.7390623 | AM53: 101.7431167 | AN53: 103.4876437 | AO53: 103.4876437 | AP53: 103.4876437 | AQ53: 103.4876437 | AT53: 0 | AV53: 7.021114085 | AW53: 9.623300861 | AX53: 2.602186777 | BE53: -44
A54: 45 | B54: BROOKFIELD | C54: 1 | D54: 0 | E54: 190100 | F54: 0 | G54: 0 | H54: 0 | I54: 0 | J54: 0 | K54: 83965 | L54: 42771.18 | M54: 0 | N54: 53797 | O54: 6332.2 | P54: 0 | Q54: 0 | R54: 0 | S54: 0 | T54: x18 | U54: 347025.554 | V54: 8.520531466 | X54: 3240938.55 | Y54: 4072815.826 | Z54: 831877.276 | AA54: 70880.36506 | AC54: 125.2122321 | AD54: 123.4807572 | AE54: -1.731474938 | AF54: 4 | AG54: 1 | AH54: 123.4807572 | AK54: 125.2122321 | AL54: 125.113652 | AM54: 125.2122321 | AN54: 125.2122321 | AO54: 124.3976114 | AP54: 123.4947937 | AQ54: 123.4807572 | AT54: -0.01403656889 | AV54: 9.859366464 | AW54: 8.814054289 | AX54: -1.045312174 | BE54: -45
A55: 46 | B55: BROOKLINE | C55: 1 | D55: 0 | E55: 0 | F55: 0 | G55: 0 | H55: 0 | I55: 104175 | J55: 4060633 | K55: 0 | L55: 2702438.567 | M55: 53668 | N55: 0 | O55: 9457.77 | P55: 0 | Q55: 0 | R55: 0 | S55: 0 | T55: x18 | U55: 5038665.34 | V55: 2.890346551 | X55: 89394640.06 | Y55: 174327377.4 | Z55: 84932737.37 | AA55: 2454850.445 | AC55: 202.4146585 | AD55: 192.2626758 | AE55: -10.15198268 | AF55: 1 | AG55: 1 | AH55: 192.2626758 | AK55: 202.4146585 | AL55: 202.4421631 | AM55: 202.4146585 | AN55: 202.4146585 | AO55: 192.002756 | AP55: 192.2626383 | AQ55: 192.2626758 | AT55: 3.746988034e-05 | AV55: 8.679710701 | AW55: 2.658576887 | AX55: -6.021133815 | BE55: -46
A56: 47 | B56: BUCKLAND | C56: 0 | D56: 0 | E56: 0 | F56: 0 | G56: 0 | H56: 0 | I56: 0 | J56: 0 | K56: 0 | L56: 0 | M56: 0 | N56: 0 | O56: 0 | P56: 0 | Q56: 0 | R56: 0 | S56: 0 | T56: 0 | U56: 0 | V56: 0 | X56: 16490.76 | Y56: 40806 | Z56: 24315.24 | AA56: 0 | AC56: 0 | AD56: 0 | AE56: 0 | AF56: 0 | AG56: Non-op | AH56: 0 | AK56: 0 | AL56: 0 | AM56: 0 | AN56: 0 | AO56: 0 | AP56: 0 | AQ56: 0 | AT56: 0 | BE56: -47
A57: 48 | B57: BURLINGTON | C57: 1 | D57: 0 | E57: 0 | F57: 0 | G57: 0 | H57: 0 | I57: 0 | J57: 3935857 | K57: 2353480 | L57: 2968676 | M57: 7893 | N57: 73331 | O57: 3290.14 | P57: 0 | Q57: 0 | R57: 0 | S57: 0 | T57: X | U57: 9342527.14 | V57: 10.59055824 | X57: 46103747.99 | Y57: 88215625 | Z57: 42111877.01 | AA57: 4459882.86 | AC57: 180.924368 | AD57: 181.667968 | AE57: 0.7436000426 | AF57: 2 | AG57: 1 | AH57: 181.667968 | AK57: 180.924368 | AL57: 181.0715804 | AM57: 180.9244924 | AN57: 180.924368 | AO57: 181.6561988 | AP57: 181.6679598 | AQ57: 181.667968 | AT57: 8.195871885e-06 | AV57: 4.382378869 | AW57: 5.219619206 | AX57: 0.8372403372 | BE57: -48
A58: 49 | B58: CAMBRIDGE | C58: 1 | D58: 0 | E58: 0 | F58: 0 | G58: 0 | H58: 0 | I58: 0 | J58: 6715537 | K58: 0 | L58: 5756287.66 | M58: 102324 | N58: 0 | O58: 1656061.61 | P58: 0 | Q58: 0 | R58: 0 | S58: 0 | T58: X | U58: 14230210.27 | V58: 5.431526493 | X58: 112732473.5 | Y58: 261992835.5 | Z58: 149260362 | AA58: 8107116.105 | AC58: 226.333819 | AD58: 225.2108124 | AE58: -1.123006662 | AF58: 483 | AG58: 1 | AH58: 225.2108124 | AK58: 226.333819 | AL58: 226.3324835 | AM58: 226.333819 | AN58: 226.333819 | AO58: 225.4813233 | AP58: 225.2108124 | AQ58: 225.2108124 | AT58: 0 | AV58: 6.415348026 | AW58: 5.404404393 | AX58: -1.010943634 | BE58: -49
A59: 50 | B59: CANTON | C59: 1 | D59: 0 | E59: 0 | F59: 0 | G59: 0 | H59: 0 | I59: 0 | J59: 1974307 | K59: 1418896 | L59: 2025797 | M59: 0 | N59: 0 | O59: 30709.21 | P59: 0 | Q59: 0 | R59: 0 | S59: 0 | T59: X | U59: 5449709.21 | V59: 8.603025164 | X59: 43350134.77 | Y59: 63346428.8 | Z59: 19996294.03 | AA59: 1720286.207 | AC59: 145.6088892 | AD59: 142.1590565 | AE59: -3.449832649 | AF59: 17 | AG59: 1 | AH59: 142.1590565 | AK59: 145.6088892 | AL59: 145.6821992 | AM59: 145.6093362 | AN59: 145.6088892 | AO59: 142.2280802 | AP59: 142.1594734 | AQ59: 142.1590565 | AT59: -0.0004168299182 | AV59: 5.832121317 | AW59: 3.241929432 | AX59: -2.590191886 | BE59: -50
A60: 51 | B60: CARLISLE | C60: 1 | D60: 0 | E60: 0 | F60: 0 | G60: 0 | H60: 0 | I60: 0 | J60: 207480 | K60: 0 | L60: 373379 | M60: 0 | N60: 0 | O60: 0 | P60: 0 | Q60: 0 | R60: 0 | S60: 0 | T60: X | U60: 580859 | V60: 4.257761324 | X60: 6639945.163 | Y60: 13642357 | Z60: 7002411.837 | AA60: 298145.9829 | AC60: 198.8438386 | AD60: 200.9686931 | AE60: 2.124854532 | AF60: 0 | AG60: 1 | AH60: 200.9686931 | AK60: 198.8438386 | AL60: 198.8438386 | AM60: 198.8438386 | AN60: 198.8438386 | AO60: 200.9686931 | AP60: 200.9686931 | AQ60: 200.9686931 | AT60: 0 | AV60: 3.423626263 | AW60: 3.78861911 | AX60: 0.3649928463 | BE60: -51
A61: 52 | B61: CARVER | C61: 1 | D61: 47000 | E61: 0 | F61: 0 | G61: 0 | H61: 0 | I61: 0 | J61: 995591 | K61: 679541 | L61: 978524 | M61: 0 | N61: 0 | O61: 91612.78 | P61: 0 | Q61: 0 | R61: 0 | S61: 0 | T61: X | U61: 2792268.78 | V61: 9.36259791 | X61: 21283331.5 | Y61: 29823653.72 | Z61: 8540322.221 | AA61: 799596.0298 | AC61: 139.7838095 | AD61: 136.3698991 | AE61: -3.413910443 | AF61: 71 | AG61: 1 | AH61: 136.3698991 | AK61: 139.7838095 | AL61: 139.7826031 | AM61: 139.7838095 | AN61: 139.7838095 | AO61: 136.3765917 | AP61: 136.3698991 | AQ61: 136.3698991 | AT61: 0 | AV61: 7.814498772 | AW61: 5.351120673 | AX61: -2.463378098 | BE61: -52
A62: 53 | B62: CHARLEMONT | C62: 0 | D62: 0 | E62: 0 | F62: 0 | G62: 0 | H62: 0 | I62: 0 | J62: 0 | K62: 0 | L62: 0 | M62: 0 | N62: 0 | O62: 0 | P62: 0 | Q62: 0 | R62: 0 | S62: 0 | T62: 0 | U62: 0 | V62: 0 | X62: 131926.08 | Y62: 213216 | Z62: 81289.92 | AA62: 0 | AC62: 0 | AD62: 0 | AE62: 0 | AF62: 0 | AG62: Non-op | AH62: 0 | AK62: 0 | AL62: 0 | AM62: 0 | AN62: 0 | AO62: 0 | AP62: 0 | AQ62: 0 | AT62: 0 | BE62: -53
A63: 54 | B63: CHARLTON | C63: 0 | D63: 0 | E63: 0 | F63: 0 | G63: 0 | H63: 0 | I63: 0 | J63: 0 | K63: 0 | L63: 0 | M63: 0 | N63: 0 | O63: 0 | P63: 0 | Q63: 0 | R63: 0 | S63: 0 | T63: 0 | U63: 0 | V63: 0 | X63: 0 | Y63: 25000 | Z63: 25000 | AA63: 0 | AC63: 0 | AD63: 0 | AE63: 0 | AF63: 0 | AG63: Non-op | AH63: 0 | AK63: 0 | AL63: 0 | AM63: 0 | AN63: 0 | AO63: 0 | AP63: 0 | AQ63: 0 | AT63: 0 | BE63: -54
A64: 55 | B64: CHATHAM | C64: 0 | D64: 0 | E64: 0 | F64: 0 | G64: 0 | H64: 0 | I64: 0 | J64: 0 | K64: 0 | L64: 196027 | M64: 0 | N64: 0 | O64: 0 | P64: 0 | Q64: 0 | R64: 0 | S64: 0 | T64: 0 | U64: 0 | V64: 0 | X64: 0 | Y64: 0 | Z64: 0 | AA64: 0 | AC64: 0 | AD64: 0 | AE64: 0 | AF64: 0 | AG64: Non-op | AH64: 0 | AK64: 0 | AL64: 0 | AM64: 0 | AN64: 0 | AO64: 0 | AP64: 0 | AQ64: 0 | AT64: 0 | BC64: fy13 | BE64: -55
A65: 56 | B65: CHELMSFORD | C65: 1 | D65: 0 | E65: 0 | F65: 0 | G65: 0 | H65: 0 | I65: 0 | J65: 1624845 | K65: 2554741 | L65: 2299990 | M65: 15383 | N65: 88859 | O65: 117277.65 | P65: 0 | Q65: 0 | R65: 0 | S65: 0 | T65: X | U65: 6701095.65 | V65: 7.962142938 | X65: 63812307.76 | Y65: 84161961.2 | Z65: 20349653.44 | AA65: 1620268.494 | AC65: 132.8425962 | AD65: 129.3507406 | AE65: -3.491855517 | AF65: 101 | AG65: 1 | AH65: 129.3507406 | AK65: 132.8425962 | AL65: 133.1017827 | AM65: 132.8475443 | AN65: 132.8425962 | AO65: 129.4989236 | AP65: 129.3507406 | AQ65: 129.3507406 | AT65: 0 | AV65: 7.541101733 | AW65: 4.934405428 | AX65: -2.606696304 | BE65: -56
A66: 57 | B66: CHELSEA | C66: 1 | D66: 2028527 | E66: 500000 | F66: 0 | G66: 0 | H66: 0 | I66: 0 | J66: 4764000 | K66: 6824159 | L66: 12260 | M66: 19110 | N66: 0 | O66: 1295210.84 | P66: 0 | Q66: 0 | R66: 0 | S66: 0 | T66: X | U66: 15443266.84 | V66: 10.90810686 | X66: 138863180.5 | Y66: 141576050.2 | Z66: 2712869.741 | AA66: 295922.7302 | AC66: 102.1675229 | AD66: 101.740524 | AE66: -0.4269988875 | AF66: 901 | AG66: 1 | AH66: 101.740524 | AK66: 102.1675229 | AL66: 102.8954557 | AM66: 102.1675229 | AN66: 102.1675229 | AO66: 102.1675229 | AP66: 101.740524 | AQ66: 101.740524 | AT66: 0 | AV66: 11.00734426 | AW66: 10.45331346 | AX66: -0.5540308008 | BE66: -57
A67: 58 | B67: CHESHIRE | C67: 0 | D67: 0 | E67: 0 | F67: 0 | G67: 0 | H67: 0 | I67: 0 | J67: 0 | K67: 0 | L67: 0 | M67: 0 | N67: 0 | O67: 0 | P67: 0 | Q67: 0 | R67: 0 | S67: 0 | T67: 0 | U67: 0 | V67: 0 | X67: 32981.52 | Y67: 32982 | Z67: 0.48 | AA67: 0 | AC67: 0 | AD67: 0 | AE67: 0 | AF67: 0 | AG67: Non-op | AH67: 0 | AK67: 0 | AL67: 0 | AM67: 0 | AN67: 0 | AO67: 0 | AP67: 0 | AQ67: 0 | AT67: 0 | BE67: -58
A68: 59 | B68: CHESTER | C68: 0 | D68: 0 | E68: 0 | F68: 0 | G68: 0 | H68: 0 | I68: 0 | J68: 0 | K68: 0 | L68: 0 | M68: 0 | N68: 0 | O68: 0 | P68: 0 | Q68: 0 | R68: 0 | S68: 0 | T68: 0 | U68: 0 | V68: 0 | X68: 98944.56 | Y68: 154400 | Z68: 55455.44 | AA68: 0 | AC68: 0 | AD68: 0 | AE68: 0 | AF68: 0 | AG68: Non-op | AH68: 0 | AK68: 0 | AL68: 0 | AM68: 0 | AN68: 0 | AO68: 0 | AP68: 0 | AQ68: 0 | AT68: 0 | BE68: -59
A69: 60 | B69: CHESTERFIELD | C69: 0 | D69: 0 | E69: 0 | F69: 0 | G69: 0 | H69: 0 | I69: 0 | J69: 0 | K69: 0 | L69: 0 | M69: 0 | N69: 0 | O69: 0 | P69: 0 | Q69: 0 | R69: 0 | S69: 0 | T69: 0 | U69: 0 | V69: 0 | X69: 294623.28 | Y69: 398550 | Z69: 103926.72 | AA69: 0 | AC69: 0 | AD69: 0 | AE69: 0 | AF69: 0 | AG69: Non-op | AH69: 0 | AK69: 0 | AL69: 0 | AM69: 0 | AN69: 0 | AO69: 0 | AP69: 0 | AQ69: 0 | AT69: 0 | BE69: -60
A70: 61 | B70: CHICOPEE | C70: 1 | D70: 0 | E70: 3000000 | F70: 0 | G70: 0 | H70: 0 | I70: 0 | J70: 0 | K70: 0 | L70: 2770743 | M70: 31063 | N70: 296842 | O70: 423398.43 | P70: 0 | Q70: 0 | R70: 0 | S70: 0 | T70: X | U70: 6522046.43 | V70: 5.160773839 | X70: 122693363.2 | Y70: 126377296 | Z70: 3683932.8 | AA70: 190119.4402 | AC70: 104.2369779 | AD70: 102.8475977 | AE70: -1.389380206 | AF70: 357 | AG70: 1 | AH70: 102.8475977 | AK70: 104.2369779 | AL70: 104.163792 | AM70: 104.2369779 | AN70: 104.2369779 | AO70: 79.35606835 | AP70: 102.8475977 | AQ70: 102.8475977 | AT70: 0 | AV70: 8.680683907 | AW70: 7.16018361 | AX70: -1.520500297 | BE70: -61
A71: 62 | B71: CHILMARK | C71: 0 | D71: 0 | E71: 0 | F71: 0 | G71: 0 | H71: 0 | I71: 0 | J71: 0 | K71: 0 | L71: 0 | M71: 0 | N71: 0 | O71: 0 | P71: 0 | Q71: 0 | R71: 0 | S71: 0 | T71: 0 | U71: 0 | V71: 0 | X71: 0 | Y71: 0 | Z71: 0 | AA71: 0 | AC71: 0 | AD71: 0 | AE71: 0 | AF71: 0 | AG71: Non-op | AH71: 0 | AK71: 0 | AL71: 0 | AM71: 0 | AN71: 0 | AO71: 0 | AP71: 0 | AQ71: 0 | AT71: 0 | BE71: -62
A72: 63 | B72: CLARKSBURG | C72: 1 | D72: 108526 | E72: 0 | F72: 0 | G72: 0 | H72: 0 | I72: 0 | J72: 296450 | K72: 0 | L72: 0 | M72: 0 | N72: 16720 | O72: 3064.74 | P72: 0 | Q72: 0 | R72: 0 | S72: 0 | T72: x18 | U72: 348792.54 | V72: 10.43197732 | X72: 2395286.75 | Y72: 3343494.04 | Z72: 948207.29 | AA72: 98916.76945 | AC72: 118.7711209 | AD72: 135.4567369 | AE72: 16.68561603 | AF72: 3 | AG72: 1 | AH72: 135.4567369 | AK72: 118.7711209 | AL72: 132.3335663 | AM72: 132.3335663 | AN72: 118.7711209 | AO72: 136.1115703 | AP72: 135.4567369 | AQ72: 135.4567369 | AT72: 0 | AV72: -6.639460752 | AW72: 8.604235901 | AX72: 15.24369665 | BE72: -63
A73: 64 | B73: CLINTON | C73: 1 | D73: 0 | E73: 0 | F73: 0 | G73: 0 | H73: 0 | I73: 0 | J73: 1694227 | K73: 842360 | L73: 832818 | M73: 3197 | N73: 75391 | O73: 83627.95 | P73: 0 | Q73: 0 | R73: 0 | S73: 0 | T73: X | U73: 3531620.95 | V73: 9.773278794 | X73: 32534279.41 | Y73: 36135477.4 | Z73: 3601197.99 | AA73: 351955.1195 | AC73: 109.5427818 | AD73: 109.9871364 | AE73: 0.4443546321 | AF73: 78 | AG73: 1 | AH73: 109.9871364 | AK73: 109.5427818 | AL73: 109.542715 | AM73: 109.5427818 | AN73: 109.5427818 | AO73: 109.8556534 | AP73: 109.9871364 | AQ73: 109.9871364 | AT73: 0 | AV73: 8.742122447 | AW73: 9.249705973 | AX73: 0.5075835258 | BE73: -64
A74: 65 | B74: COHASSET | C74: 1 | D74: 0 | E74: 161511 | F74: 0 | G74: 0 | H74: 0 | I74: 0 | J74: 224127 | K74: 554637 | L74: 725575 | M74: 0 | N74: 0 | O74: 14442.75 | P74: 0 | Q74: 0 | R74: 0 | S74: 0 | T74: x18 | U74: 1172390.25 | V74: =IF(AND(C74=1,U74>0),U74/Y74*100,0) -> 4.006636252 | X74: 16687439.72 | Y74: 29261210.06 | Z74: =IF(Y74-X74>0,Y74-X74,0) -> 12573770.34 | AA74: =V74*0.01*Z74 -> 503785.2407 | AC74: 173.6307236 | AD74: =IFERROR(IF(C74=1,(Y74-AA74)/X74*100,0),"") -> 172.32976 | AE74: =AD74-AC74 -> -1.300963587 | AF74: 9 | AG74: 1 | AH74: =IF(AG74=1,AD74,AC74) -> 172.32976 | AK74: 173.6307236 | AL74: 173.6307258 | AM74: 173.6307236 | AN74: 173.6307236 | AO74: 172.0057191 | AP74: 172.3275993 | AQ74: 172.32976 | AT74: 0.002160717413 | AV74: 4.876667245 | AW74: 3.472341547 | AX74: -1.404325698 | BE74: -65
A75: 66 | B75: COLRAIN | C75: 0 | D75: 0 | E75: 0 | F75: 0 | G75: 0 | H75: 0 | I75: 0 | J75: 0 | K75: 0 | L75: 0 | M75: 0 | N75: 0 | O75: 0 | P75: 0 | Q75: 0 | R75: 0 | S75: 0 | T75: 0 | U75: =IF(OR(T75="X",T75="X16",T75="X17"),SUM(D75:S75), IF(T75="x18",SUM(D75:S75)-D75*0.7-L75*0.7,SUM(D75:S75)-D75-L75)) -> 0 | V75: 0 | X75: 0 | Y75: 379865 | Z75: 379865 | AA75: 0 | AC75: 0 | AD75: 0 | AE75: 0 | AF75: 0 | AG75: Non-op | AH75: 0 | AK75: 0 | AL75: 0 | AM75: 0 | AN75: 0 | AO75: 0 | AP75: 0 | AQ75: =+AH75 -> 0 | AT75: =+AQ75-AP75 -> 0 | AX75: =IFERROR(AW75-AV75,"") ->  | BE75: =BF75-A75 -> -66
A76: 67 | B76: CONCORD | C76: 1 | D76: 0 | E76: 0 | F76: 0 | G76: 0 | H76: 0 | I76: 0 | J76: 136952 | K76: 274350 | L76: 532343 | M76: 0 | N76: 0 | O76: 8649.34 | P76: 0 | Q76: 0 | R76: 0 | S76: 0 | T76: x18 | U76: 579654.24 | V76: 1.21182702 | X76: 23075622.33 | Y76: 47833084.3 | Z76: 24757461.97 | AA76: 300017.6136 | AC76: 203.2635861 | AD76: 205.988233 | AE76: 2.724646801 | AF76: 4 | AG76: 1 | AH76: 205.988233 | AK76: 203.2635861 | AL76: 203.2635868 | AM76: 203.2635861 | AN76: 203.2635861 | AO76: 205.7629931 | AP76: 205.988233 | AQ76: 205.988233 | AT76: 0 | AV76: 3.309540585 | AW76: 4.785224626 | AX76: 1.475684041 | BE76: -67
A77: 68 | B77: CONWAY | C77: 1 | D77: 0 | E77: 0 | F77: 0 | G77: 0 | H77: 0 | I77: 0 | J77: 0 | K77: 0 | L77: 56643 | M77: 0 | N77: 4796 | O77: 0 | P77: 0 | Q77: 0 | R77: 0 | S77: 0 | T77: x18 | U77: 21788.9 | V77: 0.9139504354 | X77: 941811.15 | Y77: 2384035.19 | Z77: 1442224.04 | AA77: 13181.21289 | AC77: 226.7712281 | AD77: 251.7334794 | AE77: 24.96225132 | AF77: 0 | AG77: 1 | AH77: 251.7334794 | AK77: 226.7712281 | AL77: 226.7711902 | AM77: 226.7712281 | AN77: 226.7712281 | AO77: 253.2501581 | AP77: 251.7334794 | AQ77: 251.7334794 | AT77: 0 | AV77: -10.41433062 | AW77: -0.4804423579 | AX77: 9.933888265 | BE77: -68
A78: 69 | B78: CUMMINGTON | C78: 0 | D78: 0 | E78: 0 | F78: 0 | G78: 0 | H78: 0 | I78: 0 | J78: 0 | K78: 0 | L78: 0 | M78: 102252.42 | N78: 0 | O78: 0 | P78: 0 | Q78: 0 | R78: 0 | S78: 0 | T78: 0 | U78: 102252.42 | V78: 0 | X78: 98944.56 | Y78: 147287.326 | Z78: 48342.766 | AA78: 0 | AC78: 0 | AD78: 0 | AE78: 0 | AF78: 0 | AG78: Non-op | AH78: 0 | AK78: 0 | AL78: 0 | AM78: 0 | AN78: 0 | AO78: 0 | AP78: 0 | AQ78: 0 | AT78: 0 | BE78: -69
A79: 70 | B79: DALTON | C79: 0 | D79: 0 | E79: 0 | F79: 0 | G79: 0 | H79: 0 | I79: 0 | J79: 0 | K79: 0 | L79: 0 | M79: 0 | N79: 0 | O79: 0 | P79: 0 | Q79: 0 | R79: 0 | S79: 0 | T79: 0 | U79: 0 | V79: 0 | X79: 212169.48 | Y79: 349300 | Z79: 137130.52 | AA79: 0 | AC79: 0 | AD79: 0 | AE79: 0 | AF79: 0 | AG79: Non-op | AH79: 0 | AK79: 0 | AL79: 0 | AM79: 0 | AN79: 0 | AO79: 0 | AP79: 0 | AQ79: 0 | AT79: 0 | BE79: -70
A80: 71 | B80: DANVERS | C80: 1 | D80: 0 | E80: 116698 | F80: 0 | G80: 0 | H80: 0 | I80: 0 | J80: 2446222 | K80: 1042739 | L80: 1905682 | M80: 12928 | N80: 0 | O80: 37327.71 | P80: 0 | Q80: 0 | R80: 0 | S80: 0 | T80: X | U80: 5561596.71 | V80: 9.020782646 | X80: 42331707.48 | Y80: 61653150.6 | Z80: 19321443.12 | AA80: 1742945.388 | AC80: 143.602374 | AD80: 141.5256052 | AE80: -2.0767688 | AF80: 20 | AG80: 1 | AH80: 141.5256052 | AK80: 143.602374 | AL80: 143.4976343 | AM80: 143.4976498 | AN80: 143.602374 | AO80: 141.4644972 | AP80: 141.525264 | AQ80: 141.5256052 | AT80: 0.0003412609283 | AV80: 6.93451411 | AW80: 5.235848439 | AX80: -1.698665672 | BE80: -71
A81: 72 | B81: DARTMOUTH | C81: 1 | D81: 0 | E81: 245500 | F81: 0 | G81: 0 | H81: 0 | I81: 438933 | J81: 1064000 | K81: 455000 | L81: 1090919.11 | M81: 0 | N81: 21259 | O81: 9433.34 | P81: 0 | Q81: 0 | R81: 0 | S81: 0 | T81: X | U81: 3325044.45 | V81: 5.969291931 | X81: 43916766.76 | Y81: 55702493.5 | Z81: 11785726.74 | AA81: 703524.4353 | AC81: 124.4755516 | AD81: 125.2345587 | AE81: 0.7590071202 | AF81: 8 | AG81: 1 | AH81: 125.2345587 | AK81: 124.4755516 | AL81: 124.4755114 | AM81: 124.4755516 | AN81: 124.4755516 | AO81: 125.3224135 | AP81: 125.2963213 | AQ81: 125.2345587 | AT81: -0.06176259151 | AV81: 4.22244933 | AW81: 4.836760907 | AX81: 0.6143115768 | BE81: -72
A82: 73 | B82: DEDHAM | C82: 1 | D82: 0 | E82: 57000 | F82: 0 | G82: 0 | H82: 0 | I82: 0 | J82: 1785416 | K82: 1189278 | L82: 1619851 | M82: 14619 | N82: 0 | O82: 55219.64 | P82: 0 | Q82: 0 | R82: 0 | S82: 0 | T82: x18 | U82: 3587487.94 | V82: 5.728165916 | X82: 34648058.13 | Y82: 62628911.11 | Z82: 27980852.98 | AA82: 1602789.684 | AC82: 173.4667206 | AD82: 176.1314334 | AE82: 2.664712773 | AF82: 32 | AG82: 1 | AH82: 176.1314334 | AK82: 173.4667206 | AL82: 173.5096441 | AM82: 173.4672663 | AN82: 173.4667206 | AO82: 175.8405426 | AP82: 176.1314334 | AQ82: 176.1314334 | AT82: 0 | AV82: 4.835797245 | AW82: 6.668423501 | AX82: 1.832626255 | BE82: -73
A83: 74 | B83: DEERFIELD | C83: 1 | D83: 0 | E83: 0 | F83: 0 | G83: 0 | H83: 0 | I83: 0 | J83: 0 | K83: 0 | L83: 94000 | M83: 0 | N83: 30406 | O83: 13832 | P83: 0 | Q83: 0 | R83: 0 | S83: 0 | T83: x18 | U83: 72438 | V83: 1.109949034 | X83: 3505682.31 | Y83: 6526245.6 | Z83: 3020563.29 | AA83: 33526.71306 | AC83: 192.5656756 | AD83: 185.2055695 | AE83: -7.360106101 | AF83: 6 | AG83: 1 | AH83: 185.2055695 | AK83: 192.5656756 | AL83: 192.5656631 | AM83: 192.5656756 | AN83: 192.5656756 | AO83: 186.8271496 | AP83: 185.2385748 | AQ83: 185.2055695 | AT83: -0.03300530523 | AV83: 5.890954318 | AW83: 1.662145998 | AX83: -4.22880832 | BE83: -74
A84: 75 | B84: DENNIS | C84: 0 | D84: 0 | E84: 0 | F84: 0 | G84: 0 | H84: 0 | I84: 0 | J84: 0 | K84: 0 | L84: 0 | M84: 0 | N84: 0 | O84: 0 | P84: 0 | Q84: 0 | R84: 0 | S84: 0 | T84: 0 | U84: 0 | V84: 0 | X84: 0 | Y84: 0 | Z84: 0 | AA84: 0 | AC84: 0 | AD84: 0 | AE84: 0 | AF84: 0 | AG84: Non-op | AH84: 0 | AK84: 0 | AL84: 0 | AM84: 0 | AN84: 0 | AO84: 0 | AP84: 0 | AQ84: 0 | AT84: 0 | BE84: -75
A85: 76 | B85: DIGHTON | C85: 0 | D85: 0 | E85: 0 | F85: 0 | G85: 0 | H85: 0 | I85: 0 | J85: 0 | K85: 0 | L85: 0 | M85: 0 | N85: 0 | O85: 0 | P85: 0 | Q85: 0 | R85: 0 | S85: 0 | T85: 0 | U85: 0 | V85: 0 | X85: 0 | Y85: 0 | Z85: 0 | AA85: 0 | AC85: 0 | AD85: 0 | AE85: 0 | AF85: 0 | AG85: Non-op | AH85: 0 | AK85: 0 | AL85: 0 | AM85: 0 | AN85: 0 | AO85: 0 | AP85: 0 | AQ85: 0 | AT85: 0 | BE85: -76
A86: 77 | B86: DOUGLAS | C86: 1 | D86: 0 | E86: 47658 | F86: 0 | G86: 0 | H86: 0 | I86: 0 | J86: 363440 | K86: 299691 | L86: 135706 | M86: 2017 | N86: 12935 | O86: 0 | P86: 0 | Q86: 0 | R86: 0 | S86: 0 | T86: X | U86: 861447 | V86: 4.6429887 | X86: 14574247.94 | Y86: 18553717.35 | Z86: 3979469.41 | AA86: 184766.315 | AC86: 134.1346046 | AD86: 126.0370423 | AE86: -8.097562385 | AF86: 0 | AG86: 1 | AH86: 126.0370423 | AK86: 134.1346046 | AL86: 134.0628559 | AM86: 134.1346046 | AN86: 134.1346046 | AO86: 125.0899114 | AP86: 126.0370423 | AQ86: 126.0370423 | AT86: 0 | AV86: 8.35252306 | AW86: 1.544926059 | AX86: -6.807597001 | BE86: -77
A87: 78 | B87: DOVER | C87: 1 | D87: 0 | E87: 0 | F87: 0 | G87: 0 | H87: 0 | I87: 180000 | J87: 1695000 | K87: 310000 | L87: 285196 | M87: 0 | N87: 0 | O87: 0 | P87: 0 | Q87: 0 | R87: 0 | S87: 0 | T87: x18 | U87: 2270558.8 | V87: 17.53335355 | X87: 5901407.924 | Y87: 12949940.2 | Z87: 7048532.276 | AA87: 1235844.084 | AC87: 205.0736484 | AD87: 198.4966345 | AE87: -6.57701392 | AF87: 0 | AG87: 1 | AH87: 198.4966345 | AK87: 205.0736484 | AL87: 210.7823826 | AM87: 205.0736484 | AN87: 205.0736484 | AO87: 205.0736484 | AP87: 198.4966345 | AQ87: 198.4966345 | AT87: 0 | AV87: 9.747508212 | AW87: 5.338788026 | AX87: -4.408720186 | BE87: -78
A88: 79 | B88: DRACUT | C88: 1 | D88: 0 | E88: 0 | F88: 0 | G88: 0 | H88: 0 | I88: 0 | J88: 341328 | K88: 786990 | L88: 2329186 | M88: 14380 | N88: 60550 | O88: 248406.27 | P88: 0 | Q88: 0 | R88: 0 | S88: 0 | T88: X | U88: 3780840.27 | V88: 6.856760747 | X88: 54539267.46 | Y88: 55140326.6 | Z88: 601059.14 | AA88: 41213.18718 | AC88: 101.5016439 | AD88: 101.0265007 | AE88: -0.4751432249 | AF88: 255 | AG88: 1 | AH88: 101.0265007 | AK88: 101.5016439 | AL88: 100.9583659 | AM88: 101.5011456 | AN88: 101.5016439 | AO88: 99.59380272 | AP88: 101.0265007 | AQ88: 101.0265007 | AT88: 0 | AV88: 8.172695148 | AW88: 7.625815574 | AX88: -0.5468795744 | BE88: -79
A89: 80 | B89: DUDLEY | C89: 0 | D89: 0 | E89: 0 | F89: 0 | G89: 0 | H89: 0 | I89: 0 | J89: 0 | K89: 0 | L89: 0 | M89: 0 | N89: 0 | O89: 0 | P89: 0 | Q89: 0 | R89: 0 | S89: 0 | T89: 0 | U89: 0 | V89: 0 | X89: 16490.76 | Y89: 16491 | Z89: 0.24 | AA89: 0 | AC89: 0 | AD89: 0 | AE89: 0 | AF89: 0 | AG89: Non-op | AH89: 0 | AK89: 0 | AL89: 0 | AM89: 0 | AN89: 0 | AO89: 0 | AP89: 0 | AQ89: 0 | AT89: 0 | BE89: -80
A90: 81 | B90: DUNSTABLE | C90: 0 | D90: 0 | E90: 0 | F90: 0 | G90: 0 | H90: 0 | I90: 0 | J90: 0 | K90: 0 | L90: 0 | M90: 0 | N90: 0 | O90: 0 | P90: 0 | Q90: 0 | R90: 0 | S90: 0 | T90: 0 | U90: 0 | V90: 0 | X90: 0 | Y90: 694.4 | Z90: 694.4 | AA90: 0 | AC90: 0 | AD90: 0 | AE90: 0 | AF90: 0 | AG90: Non-op | AH90: 0 | AK90: 0 | AL90: 0 | AM90: 0 | AN90: 0 | AO90: 0 | AP90: 0 | AQ90: 0 | AT90: 0 | BE90: -81
A91: 82 | B91: DUXBURY | C91: 1 | D91: 0 | E91: 699100 | F91: 0 | G91: 0 | H91: 0 | I91: 0 | J91: 0 | K91: 141408 | L91: 795096 | M91: 16853 | N91: 0 | O91: 22086.05 | P91: 0 | Q91: 0 | R91: 0 | S91: 0 | T91: x18 | U91: 1117975.85 | V91: 2.275812835 | X91: 33659011.2 | Y91: 49124244 | Z91: 15465232.8 | AA91: 351959.753 | AC91: 145.891233 | AD91: 144.9011201 | AE91: -0.9901128686 | AF91: 8 | AG91: 1 | AH91: 144.9011201 | AK91: 145.891233 | AL91: 145.8912344 | AM91: 145.891233 | AN91: 145.891233 | AO91: 145.891233 | AP91: 144.9040331 | AQ91: 144.9011201 | AT91: -0.002912947263 | AV91: 5.28027186 | AW91: 4.458327621 | AX91: -0.8219442384 | BE91: -82
A92: 83 | B92: EAST BRIDGEWATER | C92: 1 | D92: 0 | E92: 0 | F92: 0 | G92: 0 | H92: 0 | I92: 0 | J92: 427804 | K92: 816833 | L92: 878011 | M92: 0 | N92: 21550 | O92: 20307.56 | P92: 0 | Q92: 0 | R92: 0 | S92: 0 | T92: X | U92: 2164505.56 | V92: 7.300860376 | X92: 26867274.06 | Y92: 29647266.88 | Z92: 2779992.818 | AA92: 202963.3941 | AC92: 116.1710949 | AD92: 109.5917041 | AE92: -6.579390831 | AF92: 17 | AG92: 1 | AH92: 109.5917041 | AK92: 116.1710949 | AL92: 116.1319919 | AM92: 116.1710949 | AN92: 116.1710949 | AO92: 109.5044443 | AP92: 109.5909429 | AQ92: 109.5917041 | AT92: 0.0007611872683 | AV92: 4.612411762 | AW92: -1.543698824 | AX92: -6.156110585 | BE92: -83
A93: 84 | B93: EAST BROOKFIELD | C93: 0 | D93: 0 | E93: 0 | F93: 0 | G93: 0 | H93: 0 | I93: 0 | J93: 0 | K93: 0 | L93: 0 | M93: 0 | N93: 0 | O93: 0 | P93: 0 | Q93: 0 | R93: 0 | S93: 0 | T93: 0 | U93: 0 | V93: 0 | X93: 278132.52 | Y93: 347451.1 | Z93: 69318.58 | AA93: 0 | AC93: 0 | AD93: 0 | AE93: 0 | AF93: 0 | AG93: Non-op | AH93: 0 | AK93: 0 | AL93: 0 | AM93: 0 | AN93: 0 | AO93: 0 | AP93: 0 | AQ93: 0 | AT93: 0 | BE93: -84
A94: 85 | B94: EASTHAM | C94: 1 | D94: 0 | E94: 133884 | F94: 0 | G94: 0 | H94: 0 | I94: 0 | J94: 0 | K94: 69917 | L94: 34078.02575 | M94: 0 | N94: 0 | O94: 0 | P94: 0 | Q94: 0 | R94: 0 | S94: 0 | T94: x18 | U94: 214024.4077 | V94: 4.223697372 | X94: 2896212.01 | Y94: 5067228.755 | Z94: 2171016.745 | AA94: 91697.17718 | AC94: 170.0269452 | AD94: 171.7944529 | AE94: 1.767507704 | AF94: 0 | AG94: 1 | AH94: 171.7944529 | AK94: 170.0269452 | AL94: 170.026938 | AM94: 170.0269452 | AN94: 170.0269452 | AO94: 169.9818829 | AP94: 171.7944529 | AQ94: 171.7944529 | AT94: 0 | AV94: 6.880117182 | AW94: 8.053020965 | AX94: 1.172903783 | BE94: -85
A95: 86 | B95: EASTHAMPTON | C95: 1 | D95: 0 | E95: 101583 | F95: 0 | G95: 0 | H95: 0 | I95: 0 | J95: 529228 | K95: 124903 | L95: 763000 | M95: 0 | N95: 336540 | O95: 123876.48 | P95: 0 | Q95: 0 | R95: 0 | S95: 0 | T95: x18 | U95: 1445030.48 | V95: 5.78065707 | X95: 22559015.46 | Y95: 24997685.6 | Z95: 2438670.14 | AA95: 140971.1579 | AC95: 110.1788035 | AD95: 110.1852804 | AE95: 0.00647691661 | AF95: 119 | AG95: 1 | AH95: 110.1852804 | AK95: 110.1788035 | AL95: 110.1786549 | AM95: 110.1788035 | AN95: 110.1788035 | AO95: 110.3539923 | AP95: 110.1852804 | AQ95: 110.1852804 | AT95: 0 | AV95: 5.456026879 | AW95: 5.294573129 | AX95: -0.1614537502 | BE95: -86
A96: 87 | B96: EAST LONGMEADOW | C96: 1 | D96: 0 | E96: 0 | F96: 0 | G96: 0 | H96: 0 | I96: 157103 | J96: 853219 | K96: 361119 | L96: 901552 | M96: 0 | N96: 18860 | O96: 20555.5 | P96: 0 | Q96: 0 | R96: 0 | S96: 0 | T96: X | U96: 2312408.5 | V96: 5.054997577 | X96: 33881345.88 | Y96: 45744997.2 | Z96: 11863651.32 | AA96: 599707.2868 | AC96: 138.4178991 | AD96: 133.2452674 | AE96: -5.172631713 | AF96: 16 | AG96: 1 | AH96: 133.2452674 | AK96: 138.4178991 | AL96: 138.2838518 | AM96: 138.4170292 | AN96: 138.4178991 | AO96: 133.133793 | AP96: 133.2452674 | AQ96: 133.2452674 | AT96: 0 | AV96: 9.260379702 | AW96: 4.36390799 | AX96: -4.896471712 | BE96: -87
A97: 88 | B97: EASTON | C97: 1 | D97: 0 | E97: 0 | F97: 0 | G97: 0 | H97: 0 | I97: 0 | J97: 660000 | K97: 890000 | L97: 2293580 | M97: 6574 | N97: 0 | O97: 26861.8 | P97: 0 | Q97: 0 | R97: 0 | S97: 0 | T97: X | U97: 3877015.8 | V97: 7.085102165 | X97: 43192301.49 | Y97: 54720676 | Z97: 11528374.51 | AA97: 816797.112 | AC97: 132.2810859 | AD97: 124.7997375 | AE97: -7.481348366 | AF97: 25 | AG97: 0 | AH97: 132.2810859 | AK97: 132.2810859 | AL97: 132.2366523 | AM97: 132.2810859 | AN97: 132.2810859 | AO97: 132.2810859 | AP97: 132.2810859 | AQ97: 132.2810859 | AT97: 0 | AV97: 8.940600074 | AW97: 2.545579927 | AX97: -6.395020147 | BE97: -88
A98: 89 | B98: EDGARTOWN | C98: 1 | D98: 20960 | E98: 0 | F98: 0 | G98: 0 | H98: 0 | I98: 0 | J98: 0 | K98: 0 | L98: 344177 | M98: 0 | N98: 15043 | O98: 62286.49 | P98: 0 | Q98: 0 | R98: 0 | S98: 0 | T98: x18 | U98: 186870.59 | V98: 1.402996126 | X98: 6660865.34 | Y98: 13319394.58 | Z98: 6658529.24 | AA98: 93418.9073 | AC98: 207.4470082 | AD98: 198.5624239 | AE98: -8.884584319 | AF98: 34 | AG98: 1 | AH98: 198.5624239 | AK98: 207.4470082 | AL98: 207.4469982 | AM98: 207.4470082 | AN98: 207.4470082 | AO98: 197.6242594 | AP98: 198.5624239 | AQ98: 198.5624239 | AT98: 0 | AV98: 12.26828147 | AW98: 7.340142833 | AX98: -4.928138633 | BE98: -89
A99: 90 | B99: EGREMONT | C99: 0 | D99: 0 | E99: 0 | F99: 0 | G99: 0 | H99: 0 | I99: 0 | J99: 0 | K99: 0 | L99: 0 | M99: 0 | N99: 0 | O99: 0 | P99: 0 | Q99: 0 | R99: 0 | S99: 0 | T99: 0 | U99: 0 | V99: 0 | X99: 0 | Y99: 7004 | Z99: 7004 | AA99: 0 | AC99: 0 | AD99: 0 | AE99: 0 | AF99: 0 | AG99: Non-op | AH99: 0 | AK99: 0 | AL99: 0 | AM99: 0 | AN99: 0 | AO99: 0 | AP99: 0 | AQ99: 0 | AT99: 0 | BE99: -90
A100: 91 | B100: ERVING | C100: 1 | D100: 0 | E100: 262123 | F100: 0 | G100: 0 | H100: 0 | I100: 0 | J100: 165125 | K100: 0 | L100: 112900 | M100: 0 | N100: 0 | O100: 3111.15 | P100: 0 | Q100: 0 | R100: 0 | S100: 0 | T100: x18 | U100: 464229.15 | V100: 7.800236916 | X100: 2671388.78 | Y100: 5951475 | Z100: 3280086.22 | AA100: 255854.4962 | AC100: 186.3501093 | AD100: 213.2082214 | AE100: 26.85811205 | AF100: 1 | AG100: 1 | AH100: 213.2082214 | AK100: 186.3501093 | AL100: 186.9754603 | AM100: 186.3556304 | AN100: 186.3501093 | AO100: 213.0916906 | AP100: 213.2077156 | AQ100: 213.2082214 | AT100: 0.0005057229841 | AV100: 6.681105829 | AW100: 22.77527928 | AX100: 16.09417345 | BE100: -91
A101: 92 | B101: ESSEX | C101: 0 | D101: 0 | E101: 0 | F101: 0 | G101: 0 | H101: 0 | I101: 0 | J101: 0 | K101: 0 | L101: 0 | M101: 0 | N101: 0 | O101: 0 | P101: 0 | Q101: 0 | R101: 0 | S101: 0 | T101: 0 | U101: 0 | V101: 0 | X101: 0 | Y101: 0 | Z101: 0 | AA101: 0 | AC101: 0 | AD101: 0 | AE101: 0 | AF101: 0 | AG101: Non-op | AH101: 0 | AK101: 0 | AL101: 0 | AM101: 0 | AN101: 0 | AO101: 0 | AP101: 0 | AQ101: 0 | AT101: 0 | BE101: -92
A102: 93 | B102: EVERETT | C102: 1 | D102: 0 | E102: 0 | F102: 0 | G102: 0 | H102: 0 | I102: 292086 | J102: 3404369 | K102: 2005303 | L102: 2019554 | M102: 33488 | N102: 0 | O102: 1030203.58 | P102: 0 | Q102: 0 | R102: 0 | S102: 0 | T102: X | U102: 8785003.58 | V102: 5.756235666 | X102: 152643280.5 | Y102: 152617163.2 | Z102: 0 | AA102: 0 | AC102: 101.2894743 | AD102: 99.98288999 | AE102: -1.306584307 | AF102: 765 | AG102: 1 | AH102: 99.98288999 | AK102: 101.2894743 | AL102: 96.58125462 | AM102: 97.79466915 | AN102: 101.2894743 | AO102: 100.2791291 | AP102: 99.98288999 | AQ102: 99.98288999 | AT102: 0 | AV102: 16.45077374 | AW102: 14.85665355 | AX102: -1.594120185 | BE102: -93
A103: 94 | B103: FAIRHAVEN | C103: 1 | D103: 0 | E103: 0 | F103: 0 | G103: 0 | H103: 0 | I103: 0 | J103: 336505 | K103: 720942 | L103: 767239.17 | M103: 0 | N103: 0 | O103: 2908.22 | P103: 0 | Q103: 0 | R103: 0 | S103: 0 | T103: X | U103: 1827594.39 | V103: 7.518904119 | X103: 23768492.65 | Y103: 24306659.07 | Z103: 538166.42 | AA103: 40464.21712 | AC103: 104.8166384 | AD103: 102.0939578 | AE103: -2.722680607 | AF103: 4 | AG103: 1 | AH103: 102.0939578 | AK103: 104.8166384 | AL103: 103.661504 | AM103: 103.6617533 | AN103: 104.8166384 | AO103: 102.1162036 | AP103: 102.0939578 | AQ103: 102.0939578 | AT103: 0 | AV103: 6.582440037 | AW103: 3.605732464 | AX103: -2.976707573 | BE103: -94
A104: 95 | B104: FALL RIVER | C104: 1 | D104: 0 | E104: 0 | F104: 0 | G104: 0 | H104: 0 | I104: 1848704 | J104: 3925425 | K104: 3117326 | L104: 7372607 | M104: 84510 | N104: 209431 | O104: 2329662.93 | P104: 0 | Q104: 0 | R104: 0 | S104: 0 | T104: X | U104: 18887665.93 | V104: 8.251517897 | X104: 226544925.6 | Y104: 228899290.6 | Z104: 2354364.99 | AA104: 194270.8485 | AC104: 100.2700101 | AD104: 100.9534948 | AE104: 0.6834847171 | AF104: 1757 | AG104: 1 | AH104: 100.9534948 | AK104: 100.2700101 | AL104: 100.2388 | AM104: 100.2700101 | AN104: 100.2700101 | AO104: 101.091058 | AP104: 100.9534948 | AQ104: 100.9534948 | AT104: 0 | AV104: 10.64287442 | AW104: 11.46366814 | AX104: 0.8207937192 | BE104: -95
A105: 96 | B105: FALMOUTH | C105: 1 | D105: 0 | E105: 0 | F105: 0 | G105: 0 | H105: 0 | I105: 0 | J105: 1062500 | K105: 1062500 | L105: 1847098 | M105: 0 | N105: 185942 | O105: 195173.44 | P105: 0 | Q105: 0 | R105: 0 | S105: 0 | T105: x18 | U105: 3060244.84 | V105: 4.549179363 | X105: 42847018.86 | Y105: 67270261.2 | Z105: 24423242.34 | AA105: 1111057.1 | AC105: 156.7364616 | AD105: 154.4079515 | AE105: -2.328510139 | AF105: 119 | AG105: 1 | AH105: 154.4079515 | AK105: 156.7364616 | AL105: 156.7355979 | AM105: 156.7364616 | AN105: 156.7364616 | AO105: 156.7364616 | AP105: 154.4807493 | AQ105: 154.4079515 | AT105: -0.07279781619 | AV105: 4.283090744 | AW105: 2.562366265 | AX105: -1.720724478 | BE105: -96
A106: 97 | B106: FITCHBURG | C106: 1 | D106: 0 | E106: 250000 | F106: 0 | G106: 0 | H106: 0 | I106: 0 | J106: 2784966 | K106: 3241019 | L106: 2923402 | M106: 6007 | N106: 404140 | O106: 328777.61 | P106: 0 | Q106: 0 | R106: 0 | S106: 0 | T106: X | U106: 9938311.61 | V106: 10.35542189 | X106: 96678430.43 | Y106: 95972059 | Z106: 0 | AA106: 0 | AC106: 99.93453701 | AD106: 99.26935985 | AE106: -0.6651771619 | AF106: 208 | AG106: 1 | AH106: 99.26935985 | AK106: 99.93453701 | AL106: 99.89027844 | AM106: 99.93453701 | AN106: 99.93453701 | AO106: 99.45070714 | AP106: 99.26935985 | AQ106: 99.26935985 | AT106: 0 | AV106: 8.824308767 | AW106: 8.099960139 | AX106: -0.7243486288 | BE106: -97
A107: 98 | B107: FLORIDA | C107: 1 | D107: 0 | E107: 25000 | F107: 0 | G107: 0 | H107: 0 | I107: 0 | J107: 0 | K107: 0 | L107: 53500 | M107: 0 | N107: 0 | O107: 1929.27 | P107: 0 | Q107: 0 | R107: 0 | S107: 0 | T107: x18 | U107: 42979.27 | V107: 2.70150842 | X107: 917915.93 | Y107: 1590936 | Z107: 673020.07 | AA107: 18181.69386 | AC107: 159.2951849 | AD107: 171.3396897 | AE107: 12.04450483 | AF107: 1 | AG107: 1 | AH107: 171.3396897 | AK107: 159.2951849 | AL107: 224.4898049 | AM107: 224.4898049 | AN107: 159.2951849 | AO107: 171.4951963 | AP107: 171.3396897 | AQ107: 171.3396897 | AT107: 0 | AV107: -5.308184171 | AW107: 1.726651253 | AX107: 7.034835424 | BE107: -98
A108: 99 | B108: FOXBOROUGH | C108: 1 | D108: 0 | E108: 9000 | F108: 0 | G108: 0 | H108: 0 | I108: 285220 | J108: 1188695 | K108: 418745 | L108: 776144 | M108: 16264 | N108: 0 | O108: 157407.39 | P108: 0 | Q108: 0 | R108: 0 | S108: 0 | T108: X | U108: 2851475.39 | V108: 5.66523088 | X108: 34005786 | Y108: 50332907 | Z108: 16327121 | AA108: 924969.1006 | AC108: 149.2902517 | AD108: 145.292739 | AE108: -3.997512718 | AF108: 91 | AG108: 1 | AH108: 145.292739 | AK108: 149.2902517 | AL108: 149.26253 | AM108: 149.2902517 | AN108: 149.2902517 | AO108: 145.4608193 | AP108: 145.2986554 | AQ108: 145.292739 | AT108: -0.005916438557 | AV108: 5.881448207 | AW108: 2.577350752 | AX108: -3.304097456 | BE108: -99
